Workbook

Sheet Report
B1: 005930 | D1: 請於左側方格中輸入公司代碼後，點右側更新按鈕 | X1: TEJ韓國個股資料表 | AK1: TEJ韓國個股資料表
B4: =Attibute!A1 -> 005930 Samsung Elec | W4: 損益表-累計 | AD4: 資產負債表-累計 | AK4: 損益表(年)-累計 | AS4: 資產負債表(年)-累計
B5: 名 稱 | C5: =Attibute!D3 -> Samsung Elec | G5: 會計月份 | H5: =Attibute!M3 -> 12 | W5: 科目(百萬) / 年月 | X5: =YEAR(Finance!B2)&"/"&MONTH(Finance!B2) -> 2015/6 | Y5: =YEAR(Finance!C2)&"/"&MONTH(Finance!C2) -> 2015/9 | Z5: =YEAR(Finance!D2)&"/"&MONTH(Finance!D2) -> 2015/12 | AA5: =YEAR(Finance!E2)&"/"&MONTH(Finance!E2) -> 2016/3 | AB5: =YEAR(Finance!F2)&"/"&MONTH(Finance!F2) -> 2016/6 | AD5: 科目(百萬) / 年月 | AE5: =YEAR(Finance!B2)&"/"&MONTH(Finance!B2) -> 2015/6 | AF5: =YEAR(Finance!C2)&"/"&MONTH(Finance!C2) -> 2015/9 | AG5: =YEAR(Finance!D2)&"/"&MONTH(Finance!D2) -> 2015/12 | AH5: =YEAR(Finance!E2)&"/"&MONTH(Finance!E2) -> 2016/3 | AI5: =YEAR(Finance!F2)&"/"&MONTH(Finance!F2) -> 2016/6 | AK5: 科目(百萬) / 年月 | AL5: =YEAR(Finance_yearly!B2)&"/"&MONTH(Finance_yearly!B2) -> 2011/12 | AM5: =YEAR(Finance_yearly!C2)&"/"&MONTH(Finance_yearly!C2) -> 2012/12 | AN5: =YEAR(Finance_yearly!D2)&"/"&MONTH(Finance_yearly!D2) -> 2013/12 | AO5: =YEAR(Finance_yearly!E2)&"/"&MONTH(Finance_yearly!E2) -> 2014/12 | AP5: =YEAR(Finance_yearly!F2)&"/"&MONTH(Finance_yearly!F2) -> 2015/12 | AQ5: =YEAR(Finance_yearly!G2)&"/"&MONTH(Finance_yearly!G2) -> 2016/6 | AS5: 科目(百萬) / 年月 | AT5: =YEAR(Finance_yearly!B2)&"/"&MONTH(Finance_yearly!B2) -> 2011/12 | AU5: =YEAR(Finance_yearly!C2)&"/"&MONTH(Finance_yearly!C2) -> 2012/12 | AV5: =YEAR(Finance_yearly!D2)&"/"&MONTH(Finance_yearly!D2) -> 2013/12 | AW5: =YEAR(Finance_yearly!E2)&"/"&MONTH(Finance_yearly!E2) -> 2014/12 | AX5: =YEAR(Finance_yearly!F2)&"/"&MONTH(Finance_yearly!F2) -> 2015/12 | AY5: =YEAR(Finance_yearly!G2)&"/"&MONTH(Finance_yearly!G2) -> 2016/6
B6: 市 場 別 | C6: =Attibute!B3 -> KOSPI | G6: ISIN | H6: =Attibute!A3 -> KR7005930003 | W6: =Finance!A88 -> 營業收入淨額 | X6: =Finance!B88 -> 95655457 | Y6: =Finance!C88 -> 147338029 | Z6: =Finance!D88 -> 200653482 | AA6: =Finance!E88 -> 49782252 | AB6: =Finance!F88 -> 100719372 | AD6: =Finance!A3 -> 現金及約當現金 | AE6: =Finance!B3 -> 17865256 | AF6: =Finance!C3 -> 23608377 | AG6: =Finance!D3 -> 22636744 | AH6: =Finance!E3 -> 24769756 | AI6: =Finance!F3 -> 25840759 | AK6: =Finance_yearly!A88 -> 營業收入淨額 | AL6: =Finance_yearly!B88 -> 165001771 | AM6: =Finance_yearly!C88 -> 201103613 | AN6: =Finance_yearly!D88 -> 228692667 | AO6: =Finance_yearly!E88 -> 206205987 | AP6: =Finance_yearly!F88 -> 200653482 | AQ6: =Finance_yearly!G88 -> 100719372 | AS6: =Finance_yearly!A3 -> 現金及約當現金 | AT6: =Finance_yearly!B3 -> 14691761 | AU6: =Finance_yearly!C3 -> 18791460 | AV6: =Finance_yearly!D3 -> 16284780 | AW6: =Finance_yearly!E3 -> 16840766 | AX6: =Finance_yearly!F3 -> 22636744 | AY6: =Finance_yearly!G3 -> 25840759
B7: 董 事 長 | C7: =Attibute!K3 -> Lee Yun Wu | G7: 面額 | H7: =Attibute!A7 -> 5000 | J7: 投資人買賣超 | W7: =Finance!A89 -> 營業成本 | X7: =Finance!B89 -> 57910986 | Y7: =Finance!C89 -> 89520438 | Z7: =Finance!D89 -> 123482118 | AA7: =Finance!E89 -> 30373858 | AB7: =Finance!F89 -> 59982976 | AD7: =Finance!A4 -> 透過損益按公允價值衡量之金融資產─流動 | AE7: =Finance!B4 -> 0 | AF7: =Finance!C4 -> 0 | AG7: =Finance!D4 -> 0 | AH7: =Finance!E4 -> 0 | AI7: =Finance!F4 -> 0 | AK7: =Finance_yearly!A89 -> 營業成本 | AL7: =Finance_yearly!B89 -> 112145120 | AM7: =Finance_yearly!C89 -> 126651931 | AN7: =Finance_yearly!D89 -> 137696309 | AO7: =Finance_yearly!E89 -> 128278800 | AP7: =Finance_yearly!F89 -> 123482118 | AQ7: =Finance_yearly!G89 -> 59982976 | AS7: =Finance_yearly!A4 -> 透過損益按公允價值衡量之金融資產─流動 | AT7: =Finance_yearly!B4 -> 0 | AU7: =Finance_yearly!C4 -> 0 | AV7: =Finance_yearly!D4 -> 0 | AW7: =Finance_yearly!E4 -> 0 | AX7: =Finance_yearly!F4 -> 0 | AY7: =Finance_yearly!G4 -> 0
B8: 總 經 理 | C8: =Attibute!L3 -> Lee Yun Wu | G8: 電話 | H8: =Attibute!H3 -> 82-31-200-1114 | J8: ='Investor Net BuySell'!B2 -> 2016-10-12 | K8: 買進 | L8: 賣出 | M8: 買賣超 | N8: 買賣超占成交比% | W8: =Finance!A90 -> 營業毛利 | X8: =Finance!B90 -> 37744471 | Y8: =Finance!C90 -> 57817591 | Z8: =Finance!D90 -> 77171364 | AA8: =Finance!E90 -> 19408394 | AB8: =Finance!F90 -> 40736396 | AD8: =Finance!A5 -> 備供出售金融資產─流動 | AE8: =Finance!B5 -> 5110168 | AF8: =Finance!C5 -> 5220977 | AG8: =Finance!D5 -> 4627530 | AH8: =Finance!E5 -> 5829204 | AI8: =Finance!F5 -> 3781006 | AK8: =Finance_yearly!A90 -> 營業毛利 | AL8: =Finance_yearly!B90 -> 52856651 | AM8: =Finance_yearly!C90 -> 74451682 | AN8: =Finance_yearly!D90 -> 90996358 | AO8: =Finance_yearly!E90 -> 77927187 | AP8: =Finance_yearly!F90 -> 77171364 | AQ8: =Finance_yearly!G90 -> 40736396 | AS8: =Finance_yearly!A5 -> 備供出售金融資產─流動 | AT8: =Finance_yearly!B5 -> 655969 | AU8: =Finance_yearly!C5 -> 1258874 | AV8: =Finance_yearly!D5 -> 1488527 | AW8: =Finance_yearly!E5 -> 3286798 | AX8: =Finance_yearly!F5 -> 4627530 | AY8: =Finance_yearly!G5 -> 3781006
B9: 產 業 | C9: =Attibute!C3 -> Manufacturing | J9: 外資 | K9: =IF('Investor Net BuySell'!$E$16=1,'Investor Net BuySell'!H3,'Investor Net BuySell'!N3) -> 483294103.2 | L9: =IF('Investor Net BuySell'!$E$16=1,'Investor Net BuySell'!K3,'Investor Net BuySell'!Q3) -> 931470788.2 | M9: =IF('Investor Net BuySell'!$E$16=1,'Investor Net BuySell'!B3,'Investor Net BuySell'!E3) -> -448176685 | N9: ='Investor Net BuySell'!B16 -> -37.92 | W9: =Finance!A91 -> 營業費用 | X9: =Finance!B91 -> 24867167 | Y9: =Finance!C91 -> 37546914 | Z9: =Finance!D91 -> 50757922 | AA9: =Finance!E91 -> 12732582 | AB9: =Finance!F91 -> 25916634 | AD9: =Finance!A6 -> 持有至到期日金融資產─流動 | AE9: =Finance!B6 -> 0 | AF9: =Finance!C6 -> 0 | AG9: =Finance!D6 -> 0 | AH9: =Finance!E6 -> 0 | AI9: =Finance!F6 -> 0 | AK9: =Finance_yearly!A91 -> 營業費用 | AL9: =Finance_yearly!B91 -> 37212360 | AM9: =Finance_yearly!C91 -> 45402344 | AN9: =Finance_yearly!D91 -> 54211345 | AO9: =Finance_yearly!E91 -> 52902116 | AP9: =Finance_yearly!F91 -> 50757922 | AQ9: =Finance_yearly!G91 -> 25916634 | AS9: =Finance_yearly!A6 -> 持有至到期日金融資產─流動 | AT9: =Finance_yearly!B6 -> 0 | AU9: =Finance_yearly!C6 -> 0 | AV9: =Finance_yearly!D6 -> 0 | AW9: =Finance_yearly!E6 -> 0 | AX9: =Finance_yearly!F6 -> 0 | AY9: =Finance_yearly!G6 -> 0
B10: 地 址 | C10: =Attibute!G3 -> Samsung Electronics, 416, Maetan 3-dong, Yeongtong-gu, Suwon-si, Gyeonggi-do | J10: 投信 | K10: =IF('Investor Net BuySell'!$E$16=1,'Investor Net BuySell'!H4,'Investor Net BuySell'!N4) -> 31390921 | L10: =IF('Investor Net BuySell'!$E$16=1,'Investor Net BuySell'!K4,'Investor Net BuySell'!Q4) -> 5109927 | M10: =IF('Investor Net BuySell'!$E$16=1,'Investor Net BuySell'!B4,'Investor Net BuySell'!E4) -> 26280994 | N10: ='Investor Net BuySell'!B17 -> 2.22 | W10: =Finance!A92 -> 推銷費用 | X10: =Finance!B92 -> 0 | Y10: =Finance!C92 -> 0 | Z10: =Finance!D92 -> 0 | AA10: =Finance!E92 -> 0 | AB10: =Finance!F92 -> 0 | AD10: =Finance!A7 -> 避險之衍生性金融資產─流動 | AE10: =Finance!B7 -> 0 | AF10: =Finance!C7 -> 0 | AG10: =Finance!D7 -> 0 | AH10: =Finance!E7 -> 0 | AI10: =Finance!F7 -> 0 | AK10: =Finance_yearly!A92 -> 推銷費用 | AL10: =Finance_yearly!B92 -> 0 | AM10: =Finance_yearly!C92 -> 0 | AN10: =Finance_yearly!D92 -> 0 | AO10: =Finance_yearly!E92 -> 0 | AP10: =Finance_yearly!F92 -> 0 | AQ10: =Finance_yearly!G92 -> 0 | AS10: =Finance_yearly!A7 -> 避險之衍生性金融資產─流動 | AT10: =Finance_yearly!B7 -> 0 | AU10: =Finance_yearly!C7 -> 0 | AV10: =Finance_yearly!D7 -> 0 | AW10: =Finance_yearly!E7 -> 0 | AX10: =Finance_yearly!F7 -> 0 | AY10: =Finance_yearly!G7 -> 0
B11: 主要產品業務 | C11: =Attibute!N3 -> Manufacturing, sale, agency & leasing of electronics machine. | J11: 金融投資 | K11: =IF('Investor Net BuySell'!$E$16=1,'Investor Net BuySell'!H5,'Investor Net BuySell'!N5) -> 244710968 | L11: =IF('Investor Net BuySell'!$E$16=1,'Investor Net BuySell'!K5,'Investor Net BuySell'!Q5) -> 91990445 | M11: =IF('Investor Net BuySell'!$E$16=1,'Investor Net BuySell'!B5,'Investor Net BuySell'!E5) -> 152720523 | N11: ='Investor Net BuySell'!B18 -> 12.91 | W11: =Finance!A93 -> 管理費用 | X11: =Finance!B93 -> 24867167 | Y11: =Finance!C93 -> 37546914 | Z11: =Finance!D93 -> 50757922 | AA11: =Finance!E93 -> 12732582 | AB11: =Finance!F93 -> 25916634 | AD11: =Finance!A8 -> 無活絡市場之債券投資─流動 | AE11: =Finance!B8 -> 0 | AF11: =Finance!C8 -> 0 | AG11: =Finance!D8 -> 0 | AH11: =Finance!E8 -> 0 | AI11: =Finance!F8 -> 0 | AK11: =Finance_yearly!A93 -> 管理費用 | AL11: =Finance_yearly!B93 -> 37212360 | AM11: =Finance_yearly!C93 -> 45402344 | AN11: =Finance_yearly!D93 -> 54211345 | AO11: =Finance_yearly!E93 -> 52902116 | AP11: =Finance_yearly!F93 -> 50757922 | AQ11: =Finance_yearly!G93 -> 25916634 | AS11: =Finance_yearly!A8 -> 無活絡市場之債券投資─流動 | AT11: =Finance_yearly!B8 -> 0 | AU11: =Finance_yearly!C8 -> 0 | AV11: =Finance_yearly!D8 -> 0 | AW11: =Finance_yearly!E8 -> 0 | AX11: =Finance_yearly!F8 -> 0 | AY11: =Finance_yearly!G8 -> 0
B12: 股價及報酬率 | J12: 保險 | K12: =IF('Investor Net BuySell'!$E$16=1,'Investor Net BuySell'!H6,'Investor Net BuySell'!N6) -> 29180645 | L12: =IF('Investor Net BuySell'!$E$16=1,'Investor Net BuySell'!K6,'Investor Net BuySell'!Q6) -> 2521758 | M12: =IF('Investor Net BuySell'!$E$16=1,'Investor Net BuySell'!B6,'Investor Net BuySell'!E6) -> 26658887 | N12: ='Investor Net BuySell'!B19 -> 2.25 | W12: =Finance!A94 -> 研究發展費 | X12: =Finance!B94 -> 0 | Y12: =Finance!C94 -> 0 | Z12: =Finance!D94 -> 0 | AA12: =Finance!E94 -> 0 | AB12: =Finance!F94 -> 0 | AD12: =Finance!A9 -> 應收帳款及票據 | AE12: =Finance!B9 -> 25578142 | AF12: =Finance!C9 -> 27631463 | AG12: =Finance!D9 -> 25168026 | AH12: =Finance!E9 -> 25505630 | AI12: =Finance!F9 -> 26081803 | AK12: =Finance_yearly!A94 -> 研究發展費 | AL12: =Finance_yearly!B94 -> 0 | AM12: =Finance_yearly!C94 -> 0 | AN12: =Finance_yearly!D94 -> 0 | AO12: =Finance_yearly!E94 -> 0 | AP12: =Finance_yearly!F94 -> 0 | AQ12: =Finance_yearly!G94 -> 0 | AS12: =Finance_yearly!A9 -> 應收帳款及票據 | AT12: =Finance_yearly!B9 -> 21882127 | AU12: =Finance_yearly!C9 -> 23861235 | AV12: =Finance_yearly!D9 -> 24988532 | AW12: =Finance_yearly!E9 -> 24694610 | AX12: =Finance_yearly!F9 -> 25168026 | AY12: =Finance_yearly!G9 -> 26081803
B13: =Equity!P54 -> 2016-10-13 | C13: 個股 | D13: 主要指數 | F13: 漲跌幅 | J13: 私募基金 | K13: =IF('Investor Net BuySell'!$E$16=1,'Investor Net BuySell'!H7,'Investor Net BuySell'!N7) -> 24490727 | L13: =IF('Investor Net BuySell'!$E$16=1,'Investor Net BuySell'!K7,'Investor Net BuySell'!Q7) -> 497767 | M13: =IF('Investor Net BuySell'!$E$16=1,'Investor Net BuySell'!B7,'Investor Net BuySell'!E7) -> 23992960 | N13: ='Investor Net BuySell'!B20 -> 2.02 | W13: =Finance!A95 -> 其他營業收入 | X13: =Finance!B95 -> 0 | Y13: =Finance!C95 -> 0 | Z13: =Finance!D95 -> 0 | AA13: =Finance!E95 -> 0 | AB13: =Finance!F95 -> 0 | AD13: =Finance!A10 -> 應收建造合約款 | AE13: =Finance!B10 -> 0 | AF13: =Finance!C10 -> 0 | AG13: =Finance!D10 -> 0 | AH13: =Finance!E10 -> 0 | AI13: =Finance!F10 -> 0 | AK13: =Finance_yearly!A95 -> 其他營業收入 | AL13: =Finance_yearly!B95 -> 0 | AM13: =Finance_yearly!C95 -> 0 | AN13: =Finance_yearly!D95 -> 0 | AO13: =Finance_yearly!E95 -> 0 | AP13: =Finance_yearly!F95 -> 0 | AQ13: =Finance_yearly!G95 -> 0 | AS13: =Finance_yearly!A10 -> 應收建造合約款 | AT13: =Finance_yearly!B10 -> 0 | AU13: =Finance_yearly!C10 -> 0 | AV13: =Finance_yearly!D10 -> 0 | AW13: =Finance_yearly!E10 -> 0 | AX13: =Finance_yearly!F10 -> 0 | AY13: =Finance_yearly!G10 -> 0
B14: 收盤價 | C14: =Equity!Q54 -> 1557000 | D14: =IF(Equity!T54="","",Equity!T54) -> 2015.44 | G14: 個股 | H14: KOSPI | J14: 銀行 | K14: =IF('Investor Net BuySell'!$E$16=1,'Investor Net BuySell'!H8,'Investor Net BuySell'!N8) -> 6632603 | L14: =IF('Investor Net BuySell'!$E$16=1,'Investor Net BuySell'!K8,'Investor Net BuySell'!Q8) -> 2347738 | M14: =IF('Investor Net BuySell'!$E$16=1,'Investor Net BuySell'!B8,'Investor Net BuySell'!E8) -> 4284865 | N14: ='Investor Net BuySell'!B21 -> 0.36 | W14: =Finance!A96 -> 其他營業費用 | X14: =Finance!B96 -> 0 | Y14: =Finance!C96 -> 0 | Z14: =Finance!D96 -> 0 | AA14: =Finance!E96 -> 0 | AB14: =Finance!F96 -> 0 | AD14: =Finance!A11 -> 其他應收款 | AE14: =Finance!B11 -> 2591286 | AF14: =Finance!C11 -> 3062872 | AG14: =Finance!D11 -> 3352663 | AH14: =Finance!E11 -> 2980401 | AI14: =Finance!F11 -> 2942063 | AK14: =Finance_yearly!A96 -> 其他營業費用 | AL14: =Finance_yearly!B96 -> 0 | AM14: =Finance_yearly!C96 -> 0 | AN14: =Finance_yearly!D96 -> 0 | AO14: =Finance_yearly!E96 -> 0 | AP14: =Finance_yearly!F96 -> 0 | AQ14: =Finance_yearly!G96 -> 0 | AS14: =Finance_yearly!A11 -> 其他應收款 | AT14: =Finance_yearly!B11 -> 2270901 | AU14: =Finance_yearly!C11 -> 2813361 | AV14: =Finance_yearly!D11 -> 2887402 | AW14: =Finance_yearly!E11 -> 3539875 | AX14: =Finance_yearly!F11 -> 3352663 | AY14: =Finance_yearly!G11 -> 2942063
B15: 流通在外股數(百萬股) | C15: =Equity!U7 -> 140.679 | D15: - | F15: 日漲幅 | G15: =IF(Equity!R48="","",Equity!R48) -> 0.01433224756 | H15: =IF(Equity!S48="","",Equity!S48) -> -0.008860265418 | J15: 其他金融 | K15: =IF('Investor Net BuySell'!$E$16=1,'Investor Net BuySell'!H9,'Investor Net BuySell'!N9) -> 308740 | L15: =IF('Investor Net BuySell'!$E$16=1,'Investor Net BuySell'!K9,'Investor Net BuySell'!Q9) -> 1628960 | M15: =IF('Investor Net BuySell'!$E$16=1,'Investor Net BuySell'!B9,'Investor Net BuySell'!E9) -> -1320220 | N15: ='Investor Net BuySell'!B22 -> -0.11 | W15: =Finance!A97 -> 營業利益 | X15: =Finance!B97 -> 12877304 | Y15: =Finance!C97 -> 20270677 | Z15: =Finance!D97 -> 26413442 | AA15: =Finance!E97 -> 6675812 | AB15: =Finance!F97 -> 14819762 | AD15: =Finance!A12 -> 資金貸予他人─流動 | AE15: =Finance!B12 -> 0 | AF15: =Finance!C12 -> 0 | AG15: =Finance!D12 -> 0 | AH15: =Finance!E12 -> 0 | AI15: =Finance!F12 -> 0 | AK15: =Finance_yearly!A97 -> 營業利益 | AL15: =Finance_yearly!B97 -> 15644291 | AM15: =Finance_yearly!C97 -> 29049338 | AN15: =Finance_yearly!D97 -> 36785013 | AO15: =Finance_yearly!E97 -> 25025071 | AP15: =Finance_yearly!F97 -> 26413442 | AQ15: =Finance_yearly!G97 -> 14819762 | AS15: =Finance_yearly!A12 -> 資金貸予他人─流動 | AT15: =Finance_yearly!B12 -> 0 | AU15: =Finance_yearly!C12 -> 0 | AV15: =Finance_yearly!D12 -> 0 | AW15: =Finance_yearly!E12 -> 0 | AX15: =Finance_yearly!F12 -> 0 | AY15: =Finance_yearly!G12 -> 0
B16: 日報酬率% | C16: =IF(OR(ISERROR(Equity!U3/1000),Equity!U3=""),"",Equity!U3/1000) -> 0.0014332 | D16: =IF(OR(ISERROR(Equity!U13/1000),Equity!U13=""),"",Equity!U13/1000) -> -0.000886 | F16: 週漲幅 | G16: =IF(Equity!R49="","",Equity!R49) -> -0.08733880422 | H16: =IF(Equity!S49="","",Equity!S49) -> -0.0235714835 | J16: 退休基金 | K16: =IF('Investor Net BuySell'!$E$16=1,'Investor Net BuySell'!H10,'Investor Net BuySell'!N10) -> 79617706 | L16: =IF('Investor Net BuySell'!$E$16=1,'Investor Net BuySell'!K10,'Investor Net BuySell'!Q10) -> 3863019 | M16: =IF('Investor Net BuySell'!$E$16=1,'Investor Net BuySell'!B10,'Investor Net BuySell'!E10) -> 75754687 | N16: ='Investor Net BuySell'!B23 -> 6.37 | W16: =Finance!A98 -> 金融收入 | X16: =Finance!B98 -> 0 | Y16: =Finance!C98 -> 0 | Z16: =Finance!D98 -> 0 | AA16: =Finance!E98 -> 0 | AB16: =Finance!F98 -> 0 | AD16: =Finance!A13 -> 存貨 | AE16: =Finance!B13 -> 19311159 | AF16: =Finance!C13 -> 22841069 | AG16: =Finance!D13 -> 18811794 | AH16: =Finance!E13 -> 18749882 | AI16: =Finance!F13 -> 17858721 | AK16: =Finance_yearly!A98 -> 金融收入 | AL16: =Finance_yearly!B98 -> 0 | AM16: =Finance_yearly!C98 -> 0 | AN16: =Finance_yearly!D98 -> 0 | AO16: =Finance_yearly!E98 -> 0 | AP16: =Finance_yearly!F98 -> 0 | AQ16: =Finance_yearly!G98 -> 0 | AS16: =Finance_yearly!A13 -> 存貨 | AT16: =Finance_yearly!B13 -> 15716715 | AU16: =Finance_yearly!C13 -> 17747413 | AV16: =Finance_yearly!D13 -> 19134868 | AW16: =Finance_yearly!E13 -> 17317504 | AX16: =Finance_yearly!F13 -> 18811794 | AY16: =Finance_yearly!G13 -> 17858721
B17: 週報酬率% | C17: =IF(OR(ISERROR(Equity!U4/1000),Equity!U4=""),"",Equity!U4/1000) -> 0.0067585 | D17: =IF(OR(ISERROR(Equity!U14/1000),Equity!U14=""),"",Equity!U14/1000) -> 0.000998 | F17: 月漲幅 | G17: =IF(Equity!R50="","",Equity!R50) -> -0.05003050641 | H17: =IF(Equity!S50="","",Equity!S50) -> -0.02656597409 | J17: 政府 | K17: =IF('Investor Net BuySell'!$E$16=1,'Investor Net BuySell'!H11,'Investor Net BuySell'!N11) -> 13542827 | L17: =IF('Investor Net BuySell'!$E$16=1,'Investor Net BuySell'!K11,'Investor Net BuySell'!Q11) -> 702527 | M17: =IF('Investor Net BuySell'!$E$16=1,'Investor Net BuySell'!B11,'Investor Net BuySell'!E11) -> 12840300 | N17: ='Investor Net BuySell'!B24 -> 1.08 | W17: =Finance!A99 -> 金融費用 | X17: =Finance!B99 -> 0 | Y17: =Finance!C99 -> 0 | Z17: =Finance!D99 -> 0 | AA17: =Finance!E99 -> 0 | AB17: =Finance!F99 -> 0 | AD17: =Finance!A21 -> 流動資產 | AE17: =Finance!B21 -> 115789651 | AF17: =Finance!C21 -> 129778399 | AG17: =Finance!D21 -> 124814725 | AH17: =Finance!E21 -> 126587169 | AI17: =Finance!F21 -> 130163049 | AK17: =Finance_yearly!A99 -> 金融費用 | AL17: =Finance_yearly!B99 -> 0 | AM17: =Finance_yearly!C99 -> 0 | AN17: =Finance_yearly!D99 -> 0 | AO17: =Finance_yearly!E99 -> 0 | AP17: =Finance_yearly!F99 -> 0 | AQ17: =Finance_yearly!G99 -> 0 | AS17: =Finance_yearly!A21 -> 流動資產 | AT17: =Finance_yearly!B21 -> 71502063 | AU17: =Finance_yearly!C21 -> 87269017 | AV17: =Finance_yearly!D21 -> 110760271 | AW17: =Finance_yearly!E21 -> 115146026 | AX17: =Finance_yearly!F21 -> 124814725 | AY17: =Finance_yearly!G21 -> 130163049
B18: 月報酬率% | C18: =IF(OR(ISERROR(Equity!U5/1000),Equity!U5=""),"",Equity!U5/1000) -> -0.0013579 | D18: =IF(OR(ISERROR(Equity!U15/1000),Equity!U15=""),"",Equity!U15/1000) -> 0.0002414 | F18: 季漲幅 | G18: =IF(Equity!R51="","",Equity!R51) -> 0.06643835616 | H18: =IF(Equity!S51="","",Equity!S51) -> 0.04313354969 | J18: 其他法人 | K18: =IF('Investor Net BuySell'!$E$16=1,'Investor Net BuySell'!H12,'Investor Net BuySell'!N12) -> 10210799 | L18: =IF('Investor Net BuySell'!$E$16=1,'Investor Net BuySell'!K12,'Investor Net BuySell'!Q12) -> 1111614 | M18: =IF('Investor Net BuySell'!$E$16=1,'Investor Net BuySell'!B12,'Investor Net BuySell'!E12) -> 9099185 | N18: ='Investor Net BuySell'!B25 -> 0.77 | W18: =Finance!A100 -> 其他收益 | X18: =Finance!B100 -> 0 | Y18: =Finance!C100 -> 0 | Z18: =Finance!D100 -> 0 | AA18: =Finance!E100 -> 0 | AB18: =Finance!F100 -> 0 | AD18: =Finance!A22 -> 透過損益按公允價值衡量之金融資產─非流動 | AE18: =Finance!B22 -> 0 | AF18: =Finance!C22 -> 0 | AG18: =Finance!D22 -> 0 | AH18: =Finance!E22 -> 0 | AI18: =Finance!F22 -> 0 | AK18: =Finance_yearly!A100 -> 其他收益 | AL18: =Finance_yearly!B100 -> 0 | AM18: =Finance_yearly!C100 -> 0 | AN18: =Finance_yearly!D100 -> 0 | AO18: =Finance_yearly!E100 -> 0 | AP18: =Finance_yearly!F100 -> 0 | AQ18: =Finance_yearly!G100 -> 0 | AS18: =Finance_yearly!A22 -> 透過損益按公允價值衡量之金融資產─非流動 | AT18: =Finance_yearly!B22 -> 0 | AU18: =Finance_yearly!C22 -> 0 | AV18: =Finance_yearly!D22 -> 0 | AW18: =Finance_yearly!E22 -> 0 | AX18: =Finance_yearly!F22 -> 0 | AY18: =Finance_yearly!G22 -> 0
B19: 年報酬率% | C19: =IF(OR(ISERROR(Equity!U6/1000),Equity!U6=""),"",Equity!U6/1000) -> -0.0050493 | D19: =IF(OR(ISERROR(Equity!U16/1000),Equity!U16=""),"",Equity!U16/1000) -> -0.0015046 | J19: 個人 | K19: =IF('Investor Net BuySell'!$E$16=1,'Investor Net BuySell'!H13,'Investor Net BuySell'!N13) -> 260735366 | L19: =IF('Investor Net BuySell'!$E$16=1,'Investor Net BuySell'!K13,'Investor Net BuySell'!Q13) -> 142870862 | M19: =IF('Investor Net BuySell'!$E$16=1,'Investor Net BuySell'!B13,'Investor Net BuySell'!E13) -> 117864.504 | N19: ='Investor Net BuySell'!B26 -> 10.05 | W19: =Finance!A101 -> 其他費損 | X19: =Finance!B101 -> 0 | Y19: =Finance!C101 -> 0 | Z19: =Finance!D101 -> 0 | AA19: =Finance!E101 -> 0 | AB19: =Finance!F101 -> 0 | AD19: =Finance!A23 -> 備供出售金融資產─非流動 | AE19: =Finance!B23 -> 9163116 | AF19: =Finance!C23 -> 8628872 | AG19: =Finance!D23 -> 8332480 | AH19: =Finance!E23 -> 8441533 | AI19: =Finance!F23 -> 8398201 | AK19: =Finance_yearly!A101 -> 其他費損 | AL19: =Finance_yearly!B101 -> 0 | AM19: =Finance_yearly!C101 -> 0 | AN19: =Finance_yearly!D101 -> 0 | AO19: =Finance_yearly!E101 -> 0 | AP19: =Finance_yearly!F101 -> 0 | AQ19: =Finance_yearly!G101 -> 0 | AS19: =Finance_yearly!A23 -> 備供出售金融資產─非流動 | AT19: =Finance_yearly!B23 -> 3223598 | AU19: =Finance_yearly!C23 -> 5229175 | AV19: =Finance_yearly!D23 -> 6238380 | AW19: =Finance_yearly!E23 -> 12667509 | AX19: =Finance_yearly!F23 -> 8332480 | AY19: =Finance_yearly!G23 -> 8398201
B20: 現金股息 | W20: =Finance!A102 -> 稅前淨利 | X20: =Finance!B102 -> 13846667 | Y20: =Finance!C102 -> 21236786 | Z20: =Finance!D102 -> 25960995 | AA20: =Finance!E102 -> 7122485 | AB20: =Finance!F102 -> 15194444 | AD20: =Finance!A24 -> 持有至到期日金融資產─非流動 | AE20: =Finance!B24 -> 0 | AF20: =Finance!C24 -> 0 | AG20: =Finance!D24 -> 0 | AH20: =Finance!E24 -> 0 | AI20: =Finance!F24 -> 0 | AK20: =Finance_yearly!A102 -> 稅前淨利 | AL20: =Finance_yearly!B102 -> 17191918 | AM20: =Finance_yearly!C102 -> 29915017 | AN20: =Finance_yearly!D102 -> 38364279 | AO20: =Finance_yearly!E102 -> 27875034 | AP20: =Finance_yearly!F102 -> 25960995 | AQ20: =Finance_yearly!G102 -> 15194444 | AS20: =Finance_yearly!A24 -> 持有至到期日金融資產─非流動 | AT20: =Finance_yearly!B24 -> 0 | AU20: =Finance_yearly!C24 -> 0 | AV20: =Finance_yearly!D24 -> 0 | AW20: =Finance_yearly!E24 -> 0 | AX20: =Finance_yearly!F24 -> 0 | AY20: =Finance_yearly!G24 -> 0
B21: 除息日 | C21: 股息-主要股東 | D21: 股息-少數股東 | E21: 股息發放日 | G21: 分配期間 | W21: =Finance!A103 -> 所得稅費用 | X21: =Finance!B103 -> -3468555 | Y21: =Finance!C103 -> -5400115 | Z21: =Finance!D103 -> -6900851 | AA21: =Finance!E103 -> -1869682 | AB21: =Finance!F103 -> -4094248 | AD21: =Finance!A25 -> 避險之衍生性金融資產─非流動 | AE21: =Finance!B25 -> 0 | AF21: =Finance!C25 -> 0 | AG21: =Finance!D25 -> 0 | AH21: =Finance!E25 -> 0 | AI21: =Finance!F25 -> 0 | AK21: =Finance_yearly!A103 -> 所得稅費用 | AL21: =Finance_yearly!B103 -> -3432875 | AM21: =Finance_yearly!C103 -> -6069732 | AN21: =Finance_yearly!D103 -> -7889515 | AO21: =Finance_yearly!E103 -> -4480676 | AP21: =Finance_yearly!F103 -> -6900851 | AQ21: =Finance_yearly!G103 -> -4094248 | AS21: =Finance_yearly!A25 -> 避險之衍生性金融資產─非流動 | AT21: =Finance_yearly!B25 -> 0 | AU21: =Finance_yearly!C25 -> 0 | AV21: =Finance_yearly!D25 -> 0 | AW21: =Finance_yearly!E25 -> 0 | AX21: =Finance_yearly!F25 -> 0 | AY21: =Finance_yearly!G25 -> 0
B22: =IF(Dividend!A3="","",Dividend!A3) -> 2015-12-29 | C22: =IF(Dividend!B3="","",Dividend!B3) -> 20000 | D22: =IF(Dividend!C3="","",Dividend!C3) -> 20000 | E22: =IF(Dividend!D3="","",Dividend!D3) ->  | G22: =IF(Dividend!E3="","",Dividend!E3) -> 2015-12-31 | W22: =Finance!A104 -> 繼續營業單位損益 | X22: =Finance!B104 -> 10378112 | Y22: =Finance!C104 -> 15836671 | Z22: =Finance!D104 -> 19060144 | AA22: =Finance!E104 -> 5252803 | AB22: =Finance!F104 -> 11100196 | AD22: =Finance!A26 -> 無活絡市場之債券投資─非流動 | AE22: =Finance!B26 -> 0 | AF22: =Finance!C26 -> 0 | AG22: =Finance!D26 -> 0 | AH22: =Finance!E26 -> 0 | AI22: =Finance!F26 -> 0 | AK22: =Finance_yearly!A104 -> 繼續營業單位損益 | AL22: =Finance_yearly!B104 -> 13759043 | AM22: =Finance_yearly!C104 -> 23845285 | AN22: =Finance_yearly!D104 -> 30474764 | AO22: =Finance_yearly!E104 -> 23394358 | AP22: =Finance_yearly!F104 -> 19060144 | AQ22: =Finance_yearly!G104 -> 11100196 | AS22: =Finance_yearly!A26 -> 無活絡市場之債券投資─非流動 | AT22: =Finance_yearly!B26 -> 0 | AU22: =Finance_yearly!C26 -> 0 | AV22: =Finance_yearly!D26 -> 0 | AW22: =Finance_yearly!E26 -> 0 | AX22: =Finance_yearly!F26 -> 0 | AY22: =Finance_yearly!G26 -> 0
B23: =IF(Dividend!A4="","",Dividend!A4) -> 2015-06-29 | C23: =IF(Dividend!B4="","",Dividend!B4) -> 1000 | D23: =IF(Dividend!C4="","",Dividend!C4) -> 1000 | E23: =IF(Dividend!D4="","",Dividend!D4) -> 2015-08-28 | G23: =IF(Dividend!E4="","",Dividend!E4) -> 2015-06-30 | W23: =Finance!A105 -> 停業單位損益 | X23: =Finance!B105 -> 0 | Y23: =Finance!C105 -> 0 | Z23: =Finance!D105 -> 0 | AA23: =Finance!E105 -> 0 | AB23: =Finance!F105 -> 0 | AD23: =Finance!A27 -> 採權益法之長期股權投資 | AE23: =Finance!B27 -> 5303043 | AF23: =Finance!C27 -> 5406135 | AG23: =Finance!D27 -> 5276348 | AH23: =Finance!E27 -> 3942349 | AI23: =Finance!F27 -> 3942525 | AK23: =Finance_yearly!A105 -> 停業單位損益 | AL23: =Finance_yearly!B105 -> 0 | AM23: =Finance_yearly!C105 -> 0 | AN23: =Finance_yearly!D105 -> 0 | AO23: =Finance_yearly!E105 -> 0 | AP23: =Finance_yearly!F105 -> 0 | AQ23: =Finance_yearly!G105 -> 0 | AS23: =Finance_yearly!A27 -> 採權益法之長期股權投資 | AT23: =Finance_yearly!B27 -> 9204169 | AU23: =Finance_yearly!C27 -> 8785489 | AV23: =Finance_yearly!D27 -> 6422292 | AW23: =Finance_yearly!E27 -> 5232461 | AX23: =Finance_yearly!F27 -> 5276348 | AY23: =Finance_yearly!G27 -> 3942525
B24: =IF(Dividend!A5="","",Dividend!A5) -> 2014-12-29 | C24: =IF(Dividend!B5="","",Dividend!B5) -> 19500 | D24: =IF(Dividend!C5="","",Dividend!C5) -> 19500 | E24: =IF(Dividend!D5="","",Dividend!D5) ->  | G24: =IF(Dividend!E5="","",Dividend!E5) -> 2014-12-31 | W24: =Finance!A106 -> 合併總損益 | X24: =Finance!B106 -> 10378112 | Y24: =Finance!C106 -> 15836671 | Z24: =Finance!D106 -> 19060144 | AA24: =Finance!E106 -> 5252803 | AB24: =Finance!F106 -> 11100196 | AD24: =Finance!A28 -> 預付投資款 | AE24: =Finance!B28 -> 0 | AF24: =Finance!C28 -> 0 | AG24: =Finance!D28 -> 0 | AH24: =Finance!E28 -> 0 | AI24: =Finance!F28 -> 0 | AK24: =Finance_yearly!A106 -> 合併總損益 | AL24: =Finance_yearly!B106 -> 13759043 | AM24: =Finance_yearly!C106 -> 23845285 | AN24: =Finance_yearly!D106 -> 30474764 | AO24: =Finance_yearly!E106 -> 23394358 | AP24: =Finance_yearly!F106 -> 19060144 | AQ24: =Finance_yearly!G106 -> 11100196 | AS24: =Finance_yearly!A28 -> 預付投資款 | AT24: =Finance_yearly!B28 -> 0 | AU24: =Finance_yearly!C28 -> 0 | AV24: =Finance_yearly!D28 -> 0 | AW24: =Finance_yearly!E28 -> 0 | AX24: =Finance_yearly!F28 -> 0 | AY24: =Finance_yearly!G28 -> 0
B25: =IF(Dividend!A6="","",Dividend!A6) -> 2014-06-27 | C25: =IF(Dividend!B6="","",Dividend!B6) -> 500 | D25: =IF(Dividend!C6="","",Dividend!C6) -> 500 | E25: =IF(Dividend!D6="","",Dividend!D6) -> 2014-08-29 | G25: =IF(Dividend!E6="","",Dividend!E6) -> 2014-06-30 | W25: =Finance!A117 -> 本期綜合損益總額 | X25: =Finance!B117 -> 10122085 | Y25: =Finance!C117 -> 17063471 | Z25: =Finance!D117 -> 19136215 | AA25: =Finance!E117 -> 5091608 | AB25: =Finance!F117 -> 11057125 | AD25: =Finance!A29 -> 不動產廠房及設備 | AE25: =Finance!B29 -> 84666258 | AF25: =Finance!C29 -> 86560428 | AG25: =Finance!D29 -> 86477110 | AH25: =Finance!E29 -> 85565347 | AI25: =Finance!F29 -> 84634963 | AK25: =Finance_yearly!A117 -> 本期綜合損益總額 | AL25: =Finance_yearly!B117 -> 12871558 | AM25: =Finance_yearly!C117 -> 22.128 | AN25: =Finance_yearly!D117 -> 29.468 | AO25: =Finance_yearly!E117 -> 21400944 | AP25: =Finance_yearly!F117 -> 19136215 | AQ25: =Finance_yearly!G117 -> 11057125 | AS25: =Finance_yearly!A29 -> 不動產廠房及設備 | AT25: =Finance_yearly!B29 -> 62043951 | AU25: =Finance_yearly!C29 -> 68484743 | AV25: =Finance_yearly!D29 -> 75496388 | AW25: =Finance_yearly!E29 -> 80872950 | AX25: =Finance_yearly!F29 -> 86477110 | AY25: =Finance_yearly!G29 -> 84634963
B26: =IF(Dividend!A7="","",Dividend!A7) -> 2013-12-27 | C26: =IF(Dividend!B7="","",Dividend!B7) -> 13800 | D26: =IF(Dividend!C7="","",Dividend!C7) -> 13800 | E26: =IF(Dividend!D7="","",Dividend!D7) ->  | G26: =IF(Dividend!E7="","",Dividend!E7) -> 2013-12-31 | W26: =Finance!A118 -> 本期稅後淨利〈歸屬母公司股東〉 | X26: =Finance!B118 -> 10146057 | Y26: =Finance!C118 -> 15452161 | Z26: =Finance!D118 -> 18694628 | AA26: =Finance!E118 -> 5263506 | AB26: =Finance!F118 -> 11089684 | AD26: =Finance!A30 -> 商譽及無形資產合計 | AE26: =Finance!B30 -> 5530413 | AF26: =Finance!C30 -> 5560298 | AG26: =Finance!D30 -> 5396311 | AH26: =Finance!E30 -> 5375031 | AI26: =Finance!F30 -> 5247797 | AK26: =Finance_yearly!A118 -> 本期稅後淨利〈歸屬母公司股東〉 | AL26: =Finance_yearly!B118 -> 13382645 | AM26: =Finance_yearly!C118 -> 23185375 | AN26: =Finance_yearly!D118 -> 29821215 | AO26: =Finance_yearly!E118 -> 23082499 | AP26: =Finance_yearly!F118 -> 18694628 | AQ26: =Finance_yearly!G118 -> 11089684 | AS26: =Finance_yearly!A30 -> 商譽及無形資產合計 | AT26: =Finance_yearly!B30 -> 3355236 | AU26: =Finance_yearly!C30 -> 3729705 | AV26: =Finance_yearly!D30 -> 3980600 | AW26: =Finance_yearly!E30 -> 4785473 | AX26: =Finance_yearly!F30 -> 5396311 | AY26: =Finance_yearly!G30 -> 5247797
B27: =IF(Dividend!A8="","",Dividend!A8) -> 2013-06-27 | C27: =IF(Dividend!B8="","",Dividend!B8) -> 500 | D27: =IF(Dividend!C8="","",Dividend!C8) -> 500 | E27: =IF(Dividend!D8="","",Dividend!D8) -> 2013-08-26 | G27: =IF(Dividend!E8="","",Dividend!E8) -> 2013-06-30 | W27: =Finance!A119 -> 非控制權益淨利 | X27: =Finance!B119 -> 232055 | Y27: =Finance!C119 -> 384510 | Z27: =Finance!D119 -> 365516 | AA27: =Finance!E119 -> -10703 | AB27: =Finance!F119 -> 10512 | AD27: =Finance!A31 -> 遞延所得稅資產 | AE27: =Finance!B31 -> 4599808 | AF27: =Finance!C31 -> 4522873 | AG27: =Finance!D31 -> 5589108 | AH27: =Finance!E31 -> 4846762 | AI27: =Finance!F31 -> 5331307 | AK27: =Finance_yearly!A119 -> 非控制權益淨利 | AL27: =Finance_yearly!B119 -> 376398 | AM27: =Finance_yearly!C119 -> 659910 | AN27: =Finance_yearly!D119 -> 653549 | AO27: =Finance_yearly!E119 -> 311859 | AP27: =Finance_yearly!F119 -> 365516 | AQ27: =Finance_yearly!G119 -> 10512 | AS27: =Finance_yearly!A31 -> 遞延所得稅資產 | AT27: =Finance_yearly!B31 -> 1783086 | AU27: =Finance_yearly!C31 -> 2516080 | AV27: =Finance_yearly!D31 -> 4621780 | AW27: =Finance_yearly!E31 -> 4526595 | AX27: =Finance_yearly!F31 -> 5589108 | AY27: =Finance_yearly!G31 -> 5331307
W28: =Finance!A120 -> 母公司綜合損益 | X28: =Finance!B120 -> 9897687 | Y28: =Finance!C120 -> 16632865 | Z28: =Finance!D120 -> 18804189 | AA28: =Finance!E120 -> 5070139 | AB28: =Finance!F120 -> 11026386 | AD28: =Finance!A32 -> 其他遞延資產淨額 | AE28: =Finance!B32 -> 0 | AF28: =Finance!C32 -> 0 | AG28: =Finance!D32 -> 0 | AH28: =Finance!E32 -> 0 | AI28: =Finance!F32 -> 0 | AK28: =Finance_yearly!A120 -> 母公司綜合損益 | AL28: =Finance_yearly!B120 -> 12439116 | AM28: =Finance_yearly!C120 -> 21.499 | AN28: =Finance_yearly!D120 -> 28.838 | AO28: =Finance_yearly!E120 -> 20990732 | AP28: =Finance_yearly!F120 -> 18804189 | AQ28: =Finance_yearly!G120 -> 11026386 | AS28: =Finance_yearly!A32 -> 其他遞延資產淨額 | AT28: =Finance_yearly!B32 -> 0 | AU28: =Finance_yearly!C32 -> 0 | AV28: =Finance_yearly!D32 -> 0 | AW28: =Finance_yearly!E32 -> 0 | AX28: =Finance_yearly!F32 -> 0 | AY28: =Finance_yearly!G32 -> 0
W29: =Finance!A121 -> 非控制權益綜合損益 | X29: =Finance!B121 -> 224398 | Y29: =Finance!C121 -> 430606 | Z29: =Finance!D121 -> 332026 | AA29: =Finance!E121 -> 21469 | AB29: =Finance!F121 -> 30739 | AD29: =Finance!A33 -> 遞延資產合計 | AE29: =Finance!B33 -> 4599808 | AF29: =Finance!C33 -> 4522873 | AG29: =Finance!D33 -> 5589108 | AH29: =Finance!E33 -> 4846762 | AI29: =Finance!F33 -> 5331307 | AK29: =Finance_yearly!A121 -> 非控制權益綜合損益 | AL29: =Finance_yearly!B121 -> 432442 | AM29: =Finance_yearly!C121 -> 0.629 | AN29: =Finance_yearly!D121 -> 0.63 | AO29: =Finance_yearly!E121 -> 410212 | AP29: =Finance_yearly!F121 -> 332026 | AQ29: =Finance_yearly!G121 -> 30739 | AS29: =Finance_yearly!A33 -> 遞延資產合計 | AT29: =Finance_yearly!B33 -> 1783086 | AU29: =Finance_yearly!C33 -> 2516080 | AV29: =Finance_yearly!D33 -> 4621780 | AW29: =Finance_yearly!E33 -> 4526595 | AX29: =Finance_yearly!F33 -> 5589108 | AY29: =Finance_yearly!G33 -> 5331307
W30: =Finance!A122&"(元)" -> 每股盈餘(元) | X30: =Finance!B122 -> 0.06809 | Y30: =Finance!C122 -> 0.10372 | Z30: =Finance!D122 -> 0.126305 | AA30: =Finance!E122 -> 0.036356 | AB30: =Finance!F122 -> 0.077266 | AD30: =Finance!A34 -> 投資性不動產淨額 | AE30: =Finance!B34 -> 0 | AF30: =Finance!C34 -> 0 | AG30: =Finance!D34 -> 0 | AH30: =Finance!E34 -> 0 | AI30: =Finance!F34 -> 0 | AK30: =Finance_yearly!A122&"(元)" -> 每股盈餘(元) | AL30: =Finance_yearly!B122 -> 0.089229 | AM30: =Finance_yearly!C122 -> 0.15402 | AN30: =Finance_yearly!D122 -> 0.227852 | AO30: =Finance_yearly!E122 -> 0.176305 | AP30: =Finance_yearly!F122 -> 0.126305 | AQ30: =Finance_yearly!G122 -> 0.077266 | AS30: =Finance_yearly!A34 -> 投資性不動產淨額 | AT30: =Finance_yearly!B34 -> 0 | AU30: =Finance_yearly!C34 -> 0 | AV30: =Finance_yearly!D34 -> 0 | AW30: =Finance_yearly!E34 -> 0 | AX30: =Finance_yearly!F34 -> 0 | AY30: =Finance_yearly!G34 -> 0
J31: 產銷組合 | W31: =Finance!A123 -> 加權平均股數 | X31: =Finance!B123 -> 129.387 | Y31: =Finance!C123 -> 129.362 | Z31: =Finance!D123 -> 129.19 | AA31: =Finance!E123 -> 126.647 | AB31: =Finance!F123 -> 125.693 | AD31: =Finance!A35 -> 生物資產非流動 | AE31: =Finance!B35 -> 0 | AF31: =Finance!C35 -> 0 | AG31: =Finance!D35 -> 0 | AH31: =Finance!E35 -> 0 | AI31: =Finance!F35 -> 0 | AK31: =Finance_yearly!A123 -> 加權平均股數 | AL31: =Finance_yearly!B123 -> 130.152 | AM31: =Finance_yearly!C123 -> 0.130698 | AN31: =Finance_yearly!D123 -> 130.88 | AO31: =Finance_yearly!E123 -> 130.924 | AP31: =Finance_yearly!F123 -> 129.19 | AQ31: =Finance_yearly!G123 -> 125.693 | AS31: =Finance_yearly!A35 -> 生物資產非流動 | AT31: =Finance_yearly!B35 -> 0 | AU31: =Finance_yearly!C35 -> 0 | AV31: =Finance_yearly!D35 -> 0 | AW31: =Finance_yearly!E35 -> 0 | AX31: =Finance_yearly!F35 -> 0 | AY31: =Finance_yearly!G35 -> 0
J32: 產品別 | K32: 收入比率% | M32: 收入(十億) | N32: 佔比變動 | W32: 財務比率(%) | AD32: =Finance!A36 -> 所得稅資產非流動 | AE32: =Finance!B36 -> 0 | AF32: =Finance!C36 -> 0 | AG32: =Finance!D36 -> 0 | AH32: =Finance!E36 -> 0 | AI32: =Finance!F36 -> 0 | AK32: 財務比率(%) | AS32: =Finance_yearly!A36 -> 所得稅資產非流動 | AT32: =Finance_yearly!B36 -> 0 | AU32: =Finance_yearly!C36 -> 0 | AV32: =Finance_yearly!D36 -> 0 | AW32: =Finance_yearly!E36 -> 0 | AX32: =Finance_yearly!F36 -> 0 | AY32: =Finance_yearly!G36 -> 0
J33: =IF(Products!A4="","",(Products!A4)) -> Telecommunication Device | K33: =IF(Products!B4="","",(Products!B4)) -> 55.44 | M33: =IF(Products!C4="","",(Products!C4)) -> 27599.9 | N33: =IF(Products!F4="","",IF(Products!F4=0,"-",IF(Products!F4>0,"↑"&Products!F4,"↓"&Products!F4))) -> ↑55.44 | W33: =Finance!A136 -> 營業毛利率 | X33: =Finance!B136 -> 39.46 | Y33: =Finance!C136 -> 39.24 | Z33: =Finance!D136 -> 38.46 | AA33: =Finance!E136 -> 38.99 | AB33: =Finance!F136 -> 40.45 | AD33: =Finance!A37 -> 其他金融資產--非流動 | AE33: =Finance!B37 -> 0 | AF33: =Finance!C37 -> 0 | AG33: =Finance!D37 -> 0 | AH33: =Finance!E37 -> 0 | AI33: =Finance!F37 -> 0 | AK33: =Finance_yearly!A136 -> 營業毛利率 | AL33: =Finance_yearly!B136 -> 32.03 | AM33: =Finance_yearly!C136 -> 37.02 | AN33: =Finance_yearly!D136 -> 39.79 | AO33: =Finance_yearly!E136 -> 37.79 | AP33: =Finance_yearly!F136 -> 38.46 | AQ33: =Finance_yearly!G136 -> 40.45 | AS33: =Finance_yearly!A37 -> 其他金融資產--非流動 | AT33: =Finance_yearly!B37 -> 0 | AU33: =Finance_yearly!C37 -> 0 | AV33: =Finance_yearly!D37 -> 0 | AW33: =Finance_yearly!E37 -> 0 | AX33: =Finance_yearly!F37 -> 0 | AY33: =Finance_yearly!G37 -> 0
J34: =IF(Products!A5="","",(Products!A5)) -> Component of Semiconductor | K34: =IF(Products!B5="","",(Products!B5)) -> 22.4 | M34: =IF(Products!C5="","",(Products!C5)) -> 11151.9 | N34: =IF(Products!F5="","",IF(Products!F5=0,"-",IF(Products!F5>0,"↑"&Products!F5,"↓"&Products!F5))) -> ↑22.4 | W34: =Finance!A137 -> 營業利益率 | X34: =Finance!B137 -> 13.46 | Y34: =Finance!C137 -> 13.76 | Z34: =Finance!D137 -> 13.16 | AA34: =Finance!E137 -> 13.41 | AB34: =Finance!F137 -> 14.71 | AD34: =Finance!A38 -> 其他非流動資產 | AE34: =Finance!B38 -> 6638597 | AF34: =Finance!C38 -> 6110568 | AG34: =Finance!D38 -> 6293439 | AH34: =Finance!E38 -> 6481598 | AI34: =Finance!F38 -> 6242831 | AK34: =Finance_yearly!A137 -> 營業利益率 | AL34: =Finance_yearly!B137 -> 9.48 | AM34: =Finance_yearly!C137 -> 14.44 | AN34: =Finance_yearly!D137 -> 16.08 | AO34: =Finance_yearly!E137 -> 12.14 | AP34: =Finance_yearly!F137 -> 13.16 | AQ34: =Finance_yearly!G137 -> 14.71 | AS34: =Finance_yearly!A38 -> 其他非流動資產 | AT34: =Finance_yearly!B38 -> 4688160 | AU34: =Finance_yearly!C38 -> 5057361 | AV34: =Finance_yearly!D38 -> 6555307 | AW34: =Finance_yearly!E38 -> 7191944 | AX34: =Finance_yearly!F38 -> 6293439 | AY34: =Finance_yearly!G38 -> 6242831
J35: =IF(Products!A6="","",(Products!A6)) -> Digital Display and Media | K35: =IF(Products!B6="","",(Products!B6)) -> 21.34 | M35: =IF(Products!C6="","",(Products!C6)) -> 10623.3 | N35: =IF(Products!F6="","",IF(Products!F6=0,"-",IF(Products!F6>0,"↑"&Products!F6,"↓"&Products!F6))) -> ↑21.34 | W35: =Finance!A138 -> 稅後淨利率 | X35: =Finance!B138 -> 10.61 | Y35: =Finance!C138 -> 10.49 | Z35: =Finance!D138 -> 9.32 | AA35: =Finance!E138 -> 10.57 | AB35: =Finance!F138 -> 11.01 | AD35: =Finance!A39 -> 非流動資產 | AE35: =Finance!B39 -> 115901235 | AF35: =Finance!C39 -> 116789174 | AG35: =Finance!D39 -> 117364796 | AH35: =Finance!E39 -> 114652620 | AI35: =Finance!F39 -> 113797624 | AK35: =Finance_yearly!A138 -> 稅後淨利率 | AL35: =Finance_yearly!B138 -> 8.11 | AM35: =Finance_yearly!C138 -> 11.53 | AN35: =Finance_yearly!D138 -> 13.04 | AO35: =Finance_yearly!E138 -> 11.19 | AP35: =Finance_yearly!F138 -> 9.32 | AQ35: =Finance_yearly!G138 -> 11.01 | AS35: =Finance_yearly!A39 -> 非流動資產 | AT35: =Finance_yearly!B39 -> 84298200 | AU35: =Finance_yearly!C39 -> 93802553 | AV35: =Finance_yearly!D39 -> 103314747 | AW35: =Finance_yearly!E39 -> 115276932 | AX35: =Finance_yearly!F39 -> 117364796 | AY35: =Finance_yearly!G39 -> 113797624
J36: =IF(Products!A7="","",(Products!A7)) -> TFT-LCD Monitor | K36: =IF(Products!B7="","",(Products!B7)) -> 12.12 | M36: =IF(Products!C7="","",(Products!C7)) -> 6035.6 | N36: =IF(Products!F7="","",IF(Products!F7=0,"-",IF(Products!F7>0,"↑"&Products!F7,"↓"&Products!F7))) -> ↑12.12 | W36: =Finance!A139 -> 本益比 | X36: =Finance!B139 -> 10.07 | Y36: =Finance!C139 -> 8.5 | Z36: =Finance!D139 -> 9.47 | AA36: =Finance!E139 -> 9.74 | AB36: =Finance!F139 -> 10.36 | AD36: =Finance!A40 -> 資產總額 | AE36: =Finance!B40 -> 231690886 | AF36: =Finance!C40 -> 246567573 | AG36: =Finance!D40 -> 242179521 | AH36: =Finance!E40 -> 241239789 | AI36: =Finance!F40 -> 243960673 | AK36: =Finance_yearly!A139 -> 本益比 | AL36: =Finance_yearly!B139 -> 12.87 | AM36: =Finance_yearly!C139 -> 1.78 | AN36: =Finance_yearly!D139 -> 1.22 | AO36: =Finance_yearly!E139 -> 8.61 | AP36: =Finance_yearly!F139 -> 9.47 | AQ36: =Finance_yearly!G139 -> 10.36 | AS36: =Finance_yearly!A40 -> 資產總額 | AT36: =Finance_yearly!B40 -> 155800263 | AU36: =Finance_yearly!C40 -> 181071570 | AV36: =Finance_yearly!D40 -> 214075018 | AW36: =Finance_yearly!E40 -> 230422958 | AX36: =Finance_yearly!F40 -> 242179521 | AY36: =Finance_yearly!G40 -> 243960673
J37: =IF(Products!A8="","",(Products!A8)) -> Other | K37: =IF(Products!B8="","",(Products!B8)) -> -11.28 | M37: =IF(Products!C8="","",(Products!C8)) -> -5616.4 | N37: =IF(Products!F8="","",IF(Products!F8=0,"-",IF(Products!F8>0,"↑"&Products!F8,"↓"&Products!F8))) -> ↓-11.28 | W37: =Finance!A140 -> 總資產週轉率(次) | X37: =Finance!B140 -> 0.41 | Y37: =Finance!C140 -> 0.62 | Z37: =Finance!D140 -> 0.85 | AA37: =Finance!E140 -> 0.21 | AB37: =Finance!F140 -> 0.41 | AD37: =Finance!A41 -> 短期借款 | AE37: =Finance!B41 -> 9771024 | AF37: =Finance!C41 -> 11303099 | AG37: =Finance!D41 -> 11155425 | AH37: =Finance!E41 -> 9465181 | AI37: =Finance!F41 -> 10259758 | AK37: =Finance_yearly!A140 -> 總資產週轉率(次) | AL37: =Finance_yearly!B140 -> 1.14 | AM37: =Finance_yearly!C140 -> 1.19 | AN37: =Finance_yearly!D140 -> 1.16 | AO37: =Finance_yearly!E140 -> 0.93 | AP37: =Finance_yearly!F140 -> 0.85 | AQ37: =Finance_yearly!G140 -> 0.41 | AS37: =Finance_yearly!A41 -> 短期借款 | AT37: =Finance_yearly!B41 -> 9653722 | AU37: =Finance_yearly!C41 -> 8443752 | AV37: =Finance_yearly!D41 -> 6438517 | AW37: =Finance_yearly!E41 -> 0 | AX37: =Finance_yearly!F41 -> 11155425 | AY37: =Finance_yearly!G41 -> 10259758
J38: =IF(Products!A9="","",(Products!A9)) ->  | K38: =IF(Products!B9="","",(Products!B9)) ->  | M38: =IF(Products!C9="","",(Products!C9)) ->  | N38: =IF(Products!F9="","",IF(Products!F9=0,"-",IF(Products!F9>0,"↑"&Products!F9,"↓"&Products!F9))) ->  | W38: =Finance!A141 -> 應收帳款週轉率(次) | X38: =Finance!B141 -> 3.81 | Y38: =Finance!C141 -> 5.63 | Z38: =Finance!D141 -> 8.05 | AA38: =Finance!E141 -> 1.96 | AB38: =Finance!F141 -> 3.93 | AD38: =Finance!A42 -> 應付商業本票／承兌匯票 | AE38: =Finance!B42 -> 0 | AF38: =Finance!C42 -> 0 | AG38: =Finance!D42 -> 0 | AH38: =Finance!E42 -> 0 | AI38: =Finance!F42 -> 0 | AK38: =Finance_yearly!A141 -> 應收帳款週轉率(次) | AL38: =Finance_yearly!B141 -> 8.04 | AM38: =Finance_yearly!C141 -> 8.79 | AN38: =Finance_yearly!D141 -> 9.36 | AO38: =Finance_yearly!E141 -> 8.3 | AP38: =Finance_yearly!F141 -> 8.05 | AQ38: =Finance_yearly!G141 -> 3.93 | AS38: =Finance_yearly!A42 -> 應付商業本票／承兌匯票 | AT38: =Finance_yearly!B42 -> 0 | AU38: =Finance_yearly!C42 -> 0 | AV38: =Finance_yearly!D42 -> 0 | AW38: =Finance_yearly!E42 -> 0 | AX38: =Finance_yearly!F42 -> 0 | AY38: =Finance_yearly!G42 -> 0
W39: =Finance!A142 -> 流動比率 | X39: =Finance!B142 -> 250.89 | Y39: =Finance!C142 -> 244.73 | Z39: =Finance!D142 -> 247.14 | AA39: =Finance!E142 -> 258.08 | AB39: =Finance!F142 -> 271.13 | AD39: =Finance!A43 -> 透過損益按公允價值衡量之金融負債─流動 | AE39: =Finance!B43 -> 0 | AF39: =Finance!C43 -> 0 | AG39: =Finance!D43 -> 0 | AH39: =Finance!E43 -> 0 | AI39: =Finance!F43 -> 0 | AK39: =Finance_yearly!A142 -> 流動比率 | AL39: =Finance_yearly!B142 -> 161.33 | AM39: =Finance_yearly!C142 -> 185.94 | AN39: =Finance_yearly!D142 -> 215.84 | AO39: =Finance_yearly!E142 -> 221.38 | AP39: =Finance_yearly!F142 -> 247.14 | AQ39: =Finance_yearly!G142 -> 271.13 | AS39: =Finance_yearly!A43 -> 透過損益按公允價值衡量之金融負債─流動 | AT39: =Finance_yearly!B43 -> 0 | AU39: =Finance_yearly!C43 -> 0 | AV39: =Finance_yearly!D43 -> 0 | AW39: =Finance_yearly!E43 -> 0 | AX39: =Finance_yearly!F43 -> 0 | AY39: =Finance_yearly!G43 -> 0
W40: =Finance!A143 -> 速動比率 | X40: =Finance!B143 -> 195.08 | Y40: =Finance!C143 -> 189.37 | Z40: =Finance!D143 -> 198.19 | AA40: =Finance!E143 -> 206.12 | AB40: =Finance!F143 -> 220.99 | AD40: =Finance!A44 -> 避險之衍生性金融負債─流動 | AE40: =Finance!B44 -> 0 | AF40: =Finance!C44 -> 0 | AG40: =Finance!D44 -> 0 | AH40: =Finance!E44 -> 0 | AI40: =Finance!F44 -> 0 | AK40: =Finance_yearly!A143 -> 速動比率 | AL40: =Finance_yearly!B143 -> 115.14 | AM40: =Finance_yearly!C143 -> 136.63 | AN40: =Finance_yearly!D143 -> 165.82 | AO40: =Finance_yearly!E143 -> 174.37 | AP40: =Finance_yearly!F143 -> 198.19 | AQ40: =Finance_yearly!G143 -> 220.99 | AS40: =Finance_yearly!A44 -> 避險之衍生性金融負債─流動 | AT40: =Finance_yearly!B44 -> 0 | AU40: =Finance_yearly!C44 -> 0 | AV40: =Finance_yearly!D44 -> 0 | AW40: =Finance_yearly!E44 -> 0 | AX40: =Finance_yearly!F44 -> 0 | AY40: =Finance_yearly!G44 -> 0
W41: =Finance!A144 -> 負債比率 | X41: =Finance!B144 -> 24.93 | Y41: =Finance!C144 -> 26.7 | Z41: =Finance!D144 -> 26.06 | AA41: =Finance!E144 -> 26.08 | AB41: =Finance!F144 -> 25.46 | AD41: =Finance!A45 -> 應付帳款及票據 | AE41: =Finance!B45 -> 6766875 | AF41: =Finance!C45 -> 9842913 | AG41: =Finance!D45 -> 6187291 | AH41: =Finance!E45 -> 7829743 | AI41: =Finance!F45 -> 7344748 | AK41: =Finance_yearly!A144 -> 負債比率 | AL41: =Finance_yearly!B144 -> 34.97 | AM41: =Finance_yearly!C144 -> 32.91 | AN41: =Finance_yearly!D144 -> 29.92 | AO41: =Finance_yearly!E144 -> 27.05 | AP41: =Finance_yearly!F144 -> 26.06 | AQ41: =Finance_yearly!G144 -> 25.46 | AS41: =Finance_yearly!A45 -> 應付帳款及票據 | AT41: =Finance_yearly!B45 -> 10276727 | AU41: =Finance_yearly!C45 -> 9489111 | AV41: =Finance_yearly!D45 -> 8437139 | AW41: =Finance_yearly!E45 -> 7914704 | AX41: =Finance_yearly!F45 -> 6187291 | AY41: =Finance_yearly!G45 -> 7344748
W42: 損益表(自結數)-累計 | AD42: =Finance!A47 -> 其他應付款 | AE42: =Finance!B47 -> 17710936 | AF42: =Finance!C47 -> 18745157 | AG42: =Finance!D47 -> 20493117 | AH42: =Finance!E47 -> 20164892 | AI42: =Finance!F47 -> 17833406 | AK42: 現金流量表(年)-累計 | AS42: =Finance_yearly!A47 -> 其他應付款 | AT42: =Finance_yearly!B47 -> 16056491 | AU42: =Finance_yearly!C47 -> 16895395 | AV42: =Finance_yearly!D47 -> 20541096 | AW42: =Finance_yearly!E47 -> 23195184 | AX42: =Finance_yearly!F47 -> 20493117 | AY42: =Finance_yearly!G47 -> 17833406
W43: 科目(百萬) / 年月 | X43: =IFERROR(IS!B8,"") -> 2016/3 | Y43: =IFERROR(IS!C8,"") -> 2016/6 | Z43: =IFERROR(IS!D8,"") -> 2016/9 | AA43: =IFERROR(IS!E8,"") ->  | AB43: =IFERROR(IS!F8,"") ->  | AD43: =Finance!A53 -> 一年內到期長期負債 | AE43: =Finance!B53 -> 53198 | AF43: =Finance!C53 -> 46910 | AG43: =Finance!D53 -> 221548 | AH43: =Finance!E53 -> 221055 | AI43: =Finance!F53 -> 1389682 | AK43: 科目(百萬) / 年月 | AL43: =YEAR(Finance_yearly!B2)&"/"&MONTH(Finance_yearly!B2) -> 2011/12 | AM43: =YEAR(Finance_yearly!C2)&"/"&MONTH(Finance_yearly!C2) -> 2012/12 | AN43: =YEAR(Finance_yearly!D2)&"/"&MONTH(Finance_yearly!D2) -> 2013/12 | AO43: =YEAR(Finance_yearly!E2)&"/"&MONTH(Finance_yearly!E2) -> 2014/12 | AP43: =YEAR(Finance_yearly!F2)&"/"&MONTH(Finance_yearly!F2) -> 2015/12 | AQ43: =YEAR(Finance_yearly!G2)&"/"&MONTH(Finance_yearly!G2) -> 2016/6 | AS43: =Finance_yearly!A53 -> 一年內到期長期負債 | AT43: =Finance_yearly!B53 -> 30292 | AU43: =Finance_yearly!C53 -> 999010 | AV43: =Finance_yearly!D53 -> 2425831 | AW43: =Finance_yearly!E53 -> 9807966 | AX43: =Finance_yearly!F53 -> 221548 | AY43: =Finance_yearly!G53 -> 1389682
W44: =IS!A12 -> 合併與否Y/N | X44: =IFERROR(IS!B12,"") -> Y | Y44: =IFERROR(IS!C12,"") -> Y | Z44: =IFERROR(IS!D12,"") -> Y | AA44: =IFERROR(IS!E12,"") ->  | AB44: =IFERROR(IS!F12,"") ->  | AD44: =Finance!A56 -> 其他流動負債 | AE44: =Finance!B56 -> 1190000 | AF44: =Finance!C56 -> 1178000 | AG44: =Finance!D56 -> 1279868 | AH44: =Finance!E56 -> 1591549 | AI44: =Finance!F56 -> 1551912 | AK44: =IF(Finance_yearly!A146="","",Finance_yearly!A146) -> 來自營運之現金流量 | AL44: =IF(Finance_yearly!B146="","",Finance_yearly!B146) -> 22917901 | AM44: =IF(Finance_yearly!C146="","",Finance_yearly!C146) -> 37972809 | AN44: =IF(Finance_yearly!D146="","",Finance_yearly!D146) -> 46707440 | AO44: =IF(Finance_yearly!E146="","",Finance_yearly!E146) -> 36975389 | AP44: =IF(Finance_yearly!F146="","",Finance_yearly!F146) -> 40061761 | AQ44: =IF(Finance_yearly!G146="","",Finance_yearly!G146) -> 22063135 | AS44: =Finance_yearly!A56 -> 其他流動負債 | AT44: =Finance_yearly!B56 -> 2073715 | AU44: =Finance_yearly!C56 -> 1310325 | AV44: =Finance_yearly!D56 -> 1644019 | AW44: =Finance_yearly!E56 -> 1487894 | AX44: =Finance_yearly!F56 -> 1279868 | AY44: =Finance_yearly!G56 -> 1551912
W45: =IS!A13 -> 原始公告日 | X45: =IFERROR(IS!B13,"") -> 42467 | Y45: =IFERROR(IS!C13,"") -> 42558 | Z45: =IFERROR(IS!D13,"") -> 42650 | AA45: =IFERROR(IS!E13,"") ->  | AB45: =IFERROR(IS!F13,"") ->  | AD45: =Finance!A57 -> 流動負債 | AE45: =Finance!B57 -> 46150700 | AF45: =Finance!C57 -> 53028395 | AG45: =Finance!D57 -> 50502909 | AH45: =Finance!E57 -> 49049500 | AI45: =Finance!F57 -> 48008164 | AK45: =IF(Finance_yearly!A147="","",Finance_yearly!A147) -> 投資活動之現金流量 | AL45: =IF(Finance_yearly!B147="","",Finance_yearly!B147) -> -21112564 | AM45: =IF(Finance_yearly!C147="","",Finance_yearly!C147) -> -31321554 | AN45: =IF(Finance_yearly!D147="","",Finance_yearly!D147) -> -44747019 | AO45: =IF(Finance_yearly!E147="","",Finance_yearly!E147) -> -32806408 | AP45: =IF(Finance_yearly!F147="","",Finance_yearly!F147) -> -27167787 | AQ45: =IF(Finance_yearly!G147="","",Finance_yearly!G147) -> -10176994 | AS45: =Finance_yearly!A57 -> 流動負債 | AT45: =Finance_yearly!B57 -> 44319014 | AU45: =Finance_yearly!C57 -> 46933052 | AV45: =Finance_yearly!D57 -> 51315409 | AW45: =Finance_yearly!E57 -> 52013913 | AX45: =Finance_yearly!F57 -> 50502909 | AY45: =Finance_yearly!G57 -> 48008164
W46: 單季營業收入淨額 | X46: =IFERROR(IS!B14,"") -> 49782252 | Y46: =IFERROR(IS!C14,"") -> 50937120 | Z46: =IFERROR(IS!D14,"") -> 47000000 | AA46: =IFERROR(IS!E14,"") ->  | AB46: =IFERROR(IS!F14,"") ->  | AD46: =Finance!A62 -> 銀行借款─非流動 | AE46: =Finance!B62 -> 105649 | AF46: =Finance!C62 -> 78001 | AG46: =Finance!D62 -> 266542 | AH46: =Finance!E62 -> 367543 | AI46: =Finance!F62 -> 533222 | AK46: =IF(Finance_yearly!A148="","",Finance_yearly!A148) -> 融資活動之現金流量 | AL46: =IF(Finance_yearly!B148="","",Finance_yearly!B148) -> 3109729 | AM46: =IF(Finance_yearly!C148="","",Finance_yearly!C148) -> -1864508 | AN46: =IF(Finance_yearly!D148="","",Finance_yearly!D148) -> -4137031 | AO46: =IF(Finance_yearly!E148="","",Finance_yearly!E148) -> -3057109 | AP46: =IF(Finance_yearly!F148="","",Finance_yearly!F148) -> -6573509 | AQ46: =IF(Finance_yearly!G148="","",Finance_yearly!G148) -> -8768488 | AS46: =Finance_yearly!A62 -> 銀行借款─非流動 | AT46: =Finance_yearly!B62 -> 3682472 | AU46: =Finance_yearly!C62 -> 3521257 | AV46: =Finance_yearly!D62 -> 902715 | AW46: =Finance_yearly!E62 -> 101671 | AX46: =Finance_yearly!F62 -> 266542 | AY46: =Finance_yearly!G62 -> 533222
W47: 營業淨額 | X47: =IFERROR(IS!B15,"") -> 49782252 | Y47: =IFERROR(IS!C15,"") -> 101000000 | Z47: =IFERROR(IS!D15,"") -> 147720000 | AA47: =IFERROR(IS!E15,"") ->  | AB47: =IFERROR(IS!F15,"") ->  | AD47: =Finance!A63 -> 其他長期借款─非流動 | AE47: =Finance!B63 -> 0 | AF47: =Finance!C63 -> 0 | AG47: =Finance!D63 -> 0 | AH47: =Finance!E63 -> 0 | AI47: =Finance!F63 -> 0 | AK47: =IF(Finance_yearly!A149="","",Finance_yearly!A149) -> 匯率影響數 | AL47: =IF(Finance_yearly!B149="","",Finance_yearly!B149) -> -14724 | AM47: =IF(Finance_yearly!C149="","",Finance_yearly!C149) -> -687048 | AN47: =IF(Finance_yearly!D149="","",Finance_yearly!D149) -> -330070 | AO47: =IF(Finance_yearly!E149="","",Finance_yearly!E149) -> -555886 | AP47: =IF(Finance_yearly!F149="","",Finance_yearly!F149) -> -524487 | AQ47: =IF(Finance_yearly!G149="","",Finance_yearly!G149) -> 86362 | AS47: =Finance_yearly!A63 -> 其他長期借款─非流動 | AT47: =Finance_yearly!B63 -> 0 | AU47: =Finance_yearly!C63 -> 0 | AV47: =Finance_yearly!D63 -> 0 | AW47: =Finance_yearly!E63 -> 0 | AX47: =Finance_yearly!F63 -> 0 | AY47: =Finance_yearly!G63 -> 0
W48: 營業利益 | X48: =IFERROR(IS!B16,"") -> 6675812 | Y48: =IFERROR(IS!C16,"") -> 14819762 | Z48: =IFERROR(IS!D16,"") -> 20020000 | AA48: =IFERROR(IS!E16,"") ->  | AB48: =IFERROR(IS!F16,"") ->  | AD48: =Finance!A64 -> 負債準備─非流動 | AE48: =Finance!B64 -> 629198 | AF48: =Finance!C64 -> 692508 | AG48: =Finance!D64 -> 522378 | AH48: =Finance!E64 -> 573484 | AI48: =Finance!F64 -> 624509 | AK48: =IF(Finance_yearly!A150="","",Finance_yearly!A150) -> 其他影響數 | AL48: =IF(Finance_yearly!B150="","",Finance_yearly!B150) -> 0 | AM48: =IF(Finance_yearly!C150="","",Finance_yearly!C150) -> 0 | AN48: =IF(Finance_yearly!D150="","",Finance_yearly!D150) -> 0 | AO48: =IF(Finance_yearly!E150="","",Finance_yearly!E150) -> 0 | AP48: =IF(Finance_yearly!F150="","",Finance_yearly!F150) -> 0 | AQ48: =IF(Finance_yearly!G150="","",Finance_yearly!G150) -> 0 | AS48: =Finance_yearly!A64 -> 負債準備─非流動 | AT48: =Finance_yearly!B64 -> 363223 | AU48: =Finance_yearly!C64 -> 408529 | AV48: =Finance_yearly!D64 -> 460924 | AW48: =Finance_yearly!E64 -> 499290 | AX48: =Finance_yearly!F64 -> 522378 | AY48: =Finance_yearly!G64 -> 624509
W49: 稅前淨利 | X49: =IFERROR(IS!B17,"") -> 7122485 | Y49: =IFERROR(IS!C17,"") -> 15194444 | Z49: =IFERROR(IS!D17,"") -> 0 | AA49: =IFERROR(IS!E17,"") ->  | AB49: =IFERROR(IS!F17,"") ->  | AD49: =Finance!A69 -> 其他非流動負債 | AE49: =Finance!B69 -> 3753192 | AF49: =Finance!C69 -> 4326178 | AG49: =Finance!D69 -> 5083827 | AH49: =Finance!E69 -> 5328364 | AI49: =Finance!F69 -> 5544436 | AK49: =IF(Finance_yearly!A151="","",Finance_yearly!A151) -> 本期產生現金流量 | AL49: =IF(Finance_yearly!B151="","",Finance_yearly!B151) -> 4900342 | AM49: =IF(Finance_yearly!C151="","",Finance_yearly!C151) -> 4099699 | AN49: =IF(Finance_yearly!D151="","",Finance_yearly!D151) -> -2506680 | AO49: =IF(Finance_yearly!E151="","",Finance_yearly!E151) -> 555986 | AP49: =IF(Finance_yearly!F151="","",Finance_yearly!F151) -> 5795978 | AQ49: =IF(Finance_yearly!G151="","",Finance_yearly!G151) -> 3204015 | AS49: =Finance_yearly!A69 -> 其他非流動負債 | AT49: =Finance_yearly!B69 -> 1389170 | AU49: =Finance_yearly!C69 -> 1637975 | AV49: =Finance_yearly!D69 -> 2119217 | AW49: =Finance_yearly!E69 -> 4064861 | AX49: =Finance_yearly!F69 -> 5083827 | AY49: =Finance_yearly!G69 -> 5544436
W50: 本期稅後淨利 | X50: =IFERROR(IS!B18,"") -> 5252803 | Y50: =IFERROR(IS!C18,"") -> 11100196 | Z50: =IFERROR(IS!D18,"") -> 0 | AA50: =IFERROR(IS!E18,"") ->  | AB50: =IFERROR(IS!F18,"") ->  | AD50: =Finance!A70 -> 非流動負債 | AE50: =Finance!B70 -> 11603540 | AF50: =Finance!C70 -> 12810542 | AG50: =Finance!D70 -> 12616807 | AH50: =Finance!E70 -> 13864103 | AI50: =Finance!F70 -> 14109993 | AK50: =IF(Finance_yearly!A152="","",Finance_yearly!A152) -> 期初現金及約當現金 | AL50: =IF(Finance_yearly!B152="","",Finance_yearly!B152) -> 9791419 | AM50: =IF(Finance_yearly!C152="","",Finance_yearly!C152) -> 14691761 | AN50: =IF(Finance_yearly!D152="","",Finance_yearly!D152) -> 18791460 | AO50: =IF(Finance_yearly!E152="","",Finance_yearly!E152) -> 16284780 | AP50: =IF(Finance_yearly!F152="","",Finance_yearly!F152) -> 16840766 | AQ50: =IF(Finance_yearly!G152="","",Finance_yearly!G152) -> 22636744 | AS50: =Finance_yearly!A70 -> 非流動負債 | AT50: =Finance_yearly!B70 -> 10167619 | AU50: =Finance_yearly!C70 -> 12658312 | AV50: =Finance_yearly!D70 -> 12743599 | AW50: =Finance_yearly!E70 -> 10320857 | AX50: =Finance_yearly!F70 -> 12616807 | AY50: =Finance_yearly!G70 -> 14109993
J51: 主要大股東及董監事 | W51: 合併淨利(支配) | X51: =IFERROR(IS!B19,"") -> 5263506 | Y51: =IFERROR(IS!C19,"") -> 11089684 | Z51: =IFERROR(IS!D19,"") -> 0 | AA51: =IFERROR(IS!E19,"") ->  | AB51: =IFERROR(IS!F19,"") ->  | AD51: =Finance!A71 -> 負債總額 | AE51: =Finance!B71 -> 57754240 | AF51: =Finance!C71 -> 65838937 | AG51: =Finance!D71 -> 63119716 | AH51: =Finance!E71 -> 62913603 | AI51: =Finance!F71 -> 62118157 | AK51: =IF(Finance_yearly!A153="","",Finance_yearly!A153) -> 期末現金及約當現金 | AL51: =IF(Finance_yearly!B153="","",Finance_yearly!B153) -> 14691761 | AM51: =IF(Finance_yearly!C153="","",Finance_yearly!C153) -> 18791460 | AN51: =IF(Finance_yearly!D153="","",Finance_yearly!D153) -> 16284780 | AO51: =IF(Finance_yearly!E153="","",Finance_yearly!E153) -> 16840766 | AP51: =IF(Finance_yearly!F153="","",Finance_yearly!F153) -> 22636744 | AQ51: =IF(Finance_yearly!G153="","",Finance_yearly!G153) -> 25840759 | AS51: =Finance_yearly!A71 -> 負債總額 | AT51: =Finance_yearly!B71 -> 54486633 | AU51: =Finance_yearly!C71 -> 59591364 | AV51: =Finance_yearly!D71 -> 64059008 | AW51: =Finance_yearly!E71 -> 62334770 | AX51: =Finance_yearly!F71 -> 63119716 | AY51: =Finance_yearly!G71 -> 62118157
J52: 名稱 | K52: 持股數(股) | L52: 持股率 | M52: 職稱 | W52: 現金流量表-累計 | AD52: =Finance!A72 -> 普通股股本 | AE52: =Finance!B72 -> 778047 | AF52: =Finance!C72 -> 778047 | AG52: =Finance!D72 -> 778047 | AH52: =Finance!E72 -> 778047 | AI52: =Finance!F72 -> 778047 | AS52: =Finance_yearly!A72 -> 普通股股本 | AT52: =Finance_yearly!B72 -> 778047 | AU52: =Finance_yearly!C72 -> 119467 | AV52: =Finance_yearly!D72 -> 119467 | AW52: =Finance_yearly!E72 -> 778047 | AX52: =Finance_yearly!F72 -> 778047 | AY52: =Finance_yearly!G72 -> 778047
J53: =IF(Shareholders!A4="","",Shareholders!A4) -> National Pension Service | K53: =IF(Shareholders!B4="","",Shareholders!B4) -> 13068288 | L53: =IF(Shareholders!C4="","",Shareholders!C4) -> 8.87 | M53: =IF(Shareholders!D4="","",Shareholders!D4) -> Major Stockholder | W53: 科目(百萬) / 年月 | X53: =YEAR(Finance!B2)&"/"&MONTH(Finance!B2) -> 2015/6 | Y53: =YEAR(Finance!C2)&"/"&MONTH(Finance!C2) -> 2015/9 | Z53: =YEAR(Finance!D2)&"/"&MONTH(Finance!D2) -> 2015/12 | AA53: =YEAR(Finance!E2)&"/"&MONTH(Finance!E2) -> 2016/3 | AB53: =YEAR(Finance!F2)&"/"&MONTH(Finance!F2) -> 2016/6 | AD53: =Finance!A73 -> 特別股股本 | AE53: =Finance!B73 -> 119467 | AF53: =Finance!C73 -> 119467 | AG53: =Finance!D73 -> 119467 | AH53: =Finance!E73 -> 119467 | AI53: =Finance!F73 -> 119467 | AS53: =Finance_yearly!A73 -> 特別股股本 | AT53: =Finance_yearly!B73 -> 119467 | AU53: =Finance_yearly!C73 -> 778047 | AV53: =Finance_yearly!D73 -> 778047 | AW53: =Finance_yearly!E73 -> 119467 | AX53: =Finance_yearly!F73 -> 119467 | AY53: =Finance_yearly!G73 -> 119467
J54: =IF(Shareholders!A5="","",Shareholders!A5) -> Samsung Life Insurance Co., Ltd. | K54: =IF(Shareholders!B5="","",Shareholders!B5) -> 10622814 | L54: =IF(Shareholders!C5="","",Shareholders!C5) -> 7.21 | M54: =IF(Shareholders!D5="","",Shareholders!D5) -> Major Stockholder | W54: =IF(Finance!A145="","",Finance!A145) -> 來自營運之現金流量 | X54: =IF(Finance!B145="","",Finance!B145) -> 15831595 | Y54: =IF(Finance!C145="","",Finance!C145) -> 27705410 | Z54: =IF(Finance!D145="","",Finance!D145) -> 40061761 | AA54: =IF(Finance!E145="","",Finance!E145) -> 8718290 | AB54: =IF(Finance!F145="","",Finance!F145) -> 22063135 | AD54: =Finance!A76 -> 資本公積─發行溢價 | AE54: =Finance!B76 -> 4403893 | AF54: =Finance!C76 -> 4403893 | AG54: =Finance!D76 -> 4403893 | AH54: =Finance!E76 -> 4403893 | AI54: =Finance!F76 -> 4403893 | AS54: =Finance_yearly!A76 -> 資本公積─發行溢價 | AT54: =Finance_yearly!B76 -> 4403893 | AU54: =Finance_yearly!C76 -> 4403893 | AV54: =Finance_yearly!D76 -> 4403893 | AW54: =Finance_yearly!E76 -> 4403893 | AX54: =Finance_yearly!F76 -> 4403893 | AY54: =Finance_yearly!G76 -> 4403893
I55: 10 | J55: =IF(Shareholders!A6="","",Shareholders!A6) -> Samsung C&T Corporation | K55: =IF(Shareholders!B6="","",Shareholders!B6) -> 5976362 | L55: =IF(Shareholders!C6="","",Shareholders!C6) -> 4.06 | M55: =IF(Shareholders!D6="","",Shareholders!D6) -> Major Stockholder | W55: =IF(Finance!A146="","",Finance!A146) -> 投資活動之現金流量 | X55: =IF(Finance!B146="","",Finance!B146) -> -10160623 | Y55: =IF(Finance!C146="","",Finance!C146) -> -18146352 | Z55: =IF(Finance!D146="","",Finance!D146) -> -27167787 | AA55: =IF(Finance!E146="","",Finance!E146) -> -2390665 | AB55: =IF(Finance!F146="","",Finance!F146) -> -10176994 | AD55: =Finance!A77 -> 其他資本公積 | AE55: =Finance!B77 -> 0 | AF55: =Finance!C77 -> 0 | AG55: =Finance!D77 -> 0 | AH55: =Finance!E77 -> 0 | AI55: =Finance!F77 -> 0 | AS55: =Finance_yearly!A77 -> 其他資本公積 | AT55: =Finance_yearly!B77 -> 0 | AU55: =Finance_yearly!C77 -> 0 | AV55: =Finance_yearly!D77 -> 0 | AW55: =Finance_yearly!E77 -> 0 | AX55: =Finance_yearly!F77 -> 0 | AY55: =Finance_yearly!G77 -> 0
I56: 6 | J56: =IF(Shareholders!A7="","",Shareholders!A7) -> Lee Geon Hui | K56: =IF(Shareholders!B7="","",Shareholders!B7) -> 4985464 | L56: =IF(Shareholders!C7="","",Shareholders!C7) -> 3.38 | M56: =IF(Shareholders!D7="","",Shareholders!D7) -> Major Stockholder | W56: =IF(Finance!A147="","",Finance!A147) -> 融資活動之現金流量 | X56: =IF(Finance!B147="","",Finance!B147) -> -4296669 | Y56: =IF(Finance!C147="","",Finance!C147) -> -2985202 | Z56: =IF(Finance!D147="","",Finance!D147) -> -6573509 | AA56: =IF(Finance!E147="","",Finance!E147) -> -4261569 | AB56: =IF(Finance!F147="","",Finance!F147) -> -8768488 | AD56: =Finance!A78 -> 資本公積合計 | AE56: =Finance!B78 -> 4403893 | AF56: =Finance!C78 -> 4403893 | AG56: =Finance!D78 -> 4403893 | AH56: =Finance!E78 -> 4403893 | AI56: =Finance!F78 -> 4403893 | AS56: =Finance_yearly!A78 -> 資本公積合計 | AT56: =Finance_yearly!B78 -> 4403893 | AU56: =Finance_yearly!C78 -> 4403893 | AV56: =Finance_yearly!D78 -> 4403893 | AW56: =Finance_yearly!E78 -> 4403893 | AX56: =Finance_yearly!F78 -> 4403893 | AY56: =Finance_yearly!G78 -> 4403893
J57: =IF(Shareholders!A8="","",Shareholders!A8) -> Samsung Fire & Marine Insurance Co., Ltd | K57: =IF(Shareholders!B8="","",Shareholders!B8) -> 1856370 | L57: =IF(Shareholders!C8="","",Shareholders!C8) -> 1.26 | M57: =IF(Shareholders!D8="","",Shareholders!D8) -> Major Stockholder | W57: =IF(Finance!A148="","",Finance!A148) -> 匯率影響數 | X57: =IF(Finance!B148="","",Finance!B148) -> -349813 | Y57: =IF(Finance!C148="","",Finance!C148) -> 193755 | Z57: =IF(Finance!D148="","",Finance!D148) -> -524487 | AA57: =IF(Finance!E148="","",Finance!E148) -> 66956 | AB57: =IF(Finance!F148="","",Finance!F148) -> 86362 | AD57: =Finance!A79 -> 保留盈餘合計 | AE57: =Finance!B79 -> 0 | AF57: =Finance!C79 -> 0 | AG57: =Finance!D79 -> 0 | AH57: =Finance!E79 -> 0 | AI57: =Finance!F79 -> 0 | AS57: =Finance_yearly!A79 -> 保留盈餘合計 | AT57: =Finance_yearly!B79 -> 97622872 | AU57: =Finance_yearly!C79 -> 119985689 | AV57: =Finance_yearly!D79 -> 148600282 | AW57: =Finance_yearly!E79 -> 0 | AX57: =Finance_yearly!F79 -> 0 | AY57: =Finance_yearly!G79 -> 0
J58: =IF(Shareholders!A9="","",Shareholders!A9) -> Hong Ra Hui | K58: =IF(Shareholders!B9="","",Shareholders!B9) -> 1083072 | L58: =IF(Shareholders!C9="","",Shareholders!C9) -> 0.74 | M58: =IF(Shareholders!D9="","",Shareholders!D9) -> Major Stockholder | W58: =IF(Finance!A149="","",Finance!A149) -> 其他影響數 | X58: =IF(Finance!B149="","",Finance!B149) -> 0 | Y58: =IF(Finance!C149="","",Finance!C149) -> 0 | Z58: =IF(Finance!D149="","",Finance!D149) -> 0 | AA58: =IF(Finance!E149="","",Finance!E149) -> 0 | AB58: =IF(Finance!F149="","",Finance!F149) -> 0 | AD58: =Finance!A80 -> 其他權益 | AE58: =Finance!B80 -> -14225212 | AF58: =Finance!C80 -> -12796100 | AG58: =Finance!D80 -> -17556654 | AH58: =Finance!E80 -> -16389883 | AI58: =Finance!F80 -> -15583542 | AS58: =Finance_yearly!A80 -> 其他權益 | AT58: =Finance_yearly!B80 -> 1650352 | AU58: =Finance_yearly!C80 -> -864359 | AV58: =Finance_yearly!D80 -> -2145884 | AW58: =Finance_yearly!E80 -> -12649286 | AX58: =Finance_yearly!F80 -> -17556654 | AY58: =Finance_yearly!G80 -> -15583542
I59: 5 | J59: =IF(Shareholders!A10="","",Shareholders!A10) -> Lee Jae Yong(67.03.31) | K59: =IF(Shareholders!B10="","",Shareholders!B10) -> 840403 | L59: =IF(Shareholders!C10="","",Shareholders!C10) -> 0.57 | M59: =IF(Shareholders!D10="","",Shareholders!D10) -> Major Stockholder | W59: =IF(Finance!A150="","",Finance!A150) -> 本期產生現金流量 | X59: =IF(Finance!B150="","",Finance!B150) -> 1024490 | Y59: =IF(Finance!C150="","",Finance!C150) -> 6767611 | Z59: =IF(Finance!D150="","",Finance!D150) -> 5795978 | AA59: =IF(Finance!E150="","",Finance!E150) -> 2133012 | AB59: =IF(Finance!F150="","",Finance!F150) -> 3204015 | AD59: =Finance!A81 -> 庫藏股票帳面值 | AE59: =Finance!B81 -> 0 | AF59: =Finance!C81 -> 0 | AG59: =Finance!D81 -> 0 | AH59: =Finance!E81 -> 0 | AI59: =Finance!F81 -> 0 | AS59: =Finance_yearly!A81 -> 庫藏股票帳面值 | AT59: =Finance_yearly!B81 -> 7539561 | AU59: =Finance_yearly!C81 -> 7350927 | AV59: =Finance_yearly!D81 -> 7323432 | AW59: =Finance_yearly!E81 -> 0 | AX59: =Finance_yearly!F81 -> 0 | AY59: =Finance_yearly!G81 -> 0
J60: =IF(Shareholders!A11="","",Shareholders!A11) -> Samsung Life Insurance Co., Ltd.(special account) | K60: =IF(Shareholders!B11="","",Shareholders!B11) -> 493350 | L60: =IF(Shareholders!C11="","",Shareholders!C11) -> 0.33 | M60: =IF(Shareholders!D11="","",Shareholders!D11) -> Major Stockholder | W60: =IF(Finance!A151="","",Finance!A151) -> 期初現金及約當現金 | X60: =IF(Finance!B151="","",Finance!B151) -> 16840766 | Y60: =IF(Finance!C151="","",Finance!C151) -> 16840766 | Z60: =IF(Finance!D151="","",Finance!D151) -> 16840766 | AA60: =IF(Finance!E151="","",Finance!E151) -> 22636744 | AB60: =IF(Finance!F151="","",Finance!F151) -> 22636744 | AD60: =Finance!A82 -> 母公司股東權益合計 | AE60: =Finance!B82 -> 167808559 | AF60: =Finance!C82 -> 174394863 | AG60: =Finance!D82 -> 172876767 | AH60: =Finance!E82 -> 172130138 | AI60: =Finance!F82 -> 175638353 | AS60: =Finance_yearly!A82 -> 母公司股東權益合計 | AT60: =Finance_yearly!B82 -> 97090383 | AU60: =Finance_yearly!C82 -> 117094052 | AV60: =Finance_yearly!D82 -> 144442616 | AW60: =Finance_yearly!E82 -> 162181725 | AX60: =Finance_yearly!F82 -> 172876767 | AY60: =Finance_yearly!G82 -> 175638353
J61: =IF(Shareholders!A12="","",Shareholders!A12) -> Samsung Foundation of Welfare | K61: =IF(Shareholders!B12="","",Shareholders!B12) -> 89683 | L61: =IF(Shareholders!C12="","",Shareholders!C12) -> 0.06 | M61: =IF(Shareholders!D12="","",Shareholders!D12) -> Major Stockholder | W61: =IF(Finance!A152="","",Finance!A152) -> 期末現金及約當現金 | X61: =IF(Finance!B152="","",Finance!B152) -> 17865256 | Y61: =IF(Finance!C152="","",Finance!C152) -> 23608377 | Z61: =IF(Finance!D152="","",Finance!D152) -> 22636744 | AA61: =IF(Finance!E152="","",Finance!E152) -> 24769756 | AB61: =IF(Finance!F152="","",Finance!F152) -> 25840759 | AD61: =Finance!A83 -> 非控制權益 | AE61: =Finance!B83 -> 6128087 | AF61: =Finance!C83 -> 6333773 | AG61: =Finance!D83 -> 6183038 | AH61: =Finance!E83 -> 6196048 | AI61: =Finance!F83 -> 6204163 | AS61: =Finance_yearly!A83 -> 非控制權益 | AT61: =Finance_yearly!B83 -> 4223247 | AU61: =Finance_yearly!C83 -> 4386154 | AV61: =Finance_yearly!D83 -> 5573394 | AW61: =Finance_yearly!E83 -> 5906463 | AX61: =Finance_yearly!F83 -> 6183038 | AY61: =Finance_yearly!G83 -> 6204163
J62: =IF(Shareholders!A13="","",Shareholders!A13) -> Samsung Foundation of Culture | K62: =IF(Shareholders!B13="","",Shareholders!B13) -> 37615 | L62: =IF(Shareholders!C13="","",Shareholders!C13) -> 0.03 | M62: =IF(Shareholders!D13="","",Shareholders!D13) -> Major Stockholder | AD62: =Finance!A84 -> 股東權益總額 | AE62: =Finance!B84 -> 173936646 | AF62: =Finance!C84 -> 180728636 | AG62: =Finance!D84 -> 179059805 | AH62: =Finance!E84 -> 178326186 | AI62: =Finance!F84 -> 181842516 | AS62: =Finance_yearly!A84 -> 股東權益總額 | AT62: =Finance_yearly!B84 -> 101313630 | AU62: =Finance_yearly!C84 -> 121480206 | AV62: =Finance_yearly!D84 -> 150016010 | AW62: =Finance_yearly!E84 -> 168088188 | AX62: =Finance_yearly!F84 -> 179059805 | AY62: =Finance_yearly!G84 -> 181842516

Sheet Attibute
A1: 005930 Samsung Elec
A2: 國際證券編號 | B2: 上市別 | C2: 產業別 | D2: 公司簡稱 | E2: 公司簡稱-TEJ | F2: 公司全稱 | G2: 公司地址 | H2: 電話 | I2: 網址 | J2: CEO | K2: 董事長 | L2: 總經理 | M2: 會計月份 | N2: 公司業務1 | O2: 公司業務2 | P2: 公司業務3 | Q2: 公司業務4 | R2: 公司業務5 | S2: 員工人數 | T2: 設立日期 | U2: 上市日期 | V2: 下市日期
A3: KR7005930003 | B3: KOSPI | C3: Manufacturing | D3: Samsung Elec | E3: Samsung Elec | F3: Samsung Electronics Co., Ltd. | G3: Samsung Electronics, 416, Maetan 3-dong, Yeongtong-gu, Suwon-si, Gyeonggi-do | H3: 82-31-200-1114 | I3: http://www.sec.co.kr | J3: Kwon O Hyeon | K3: Lee Yun Wu | L3: Lee Yun Wu | M3: 12 | N3: Manufacturing, sale, agency & leasing of electronics machine. | O3: Manufacturing, sale, agency & leasing of communication apparatus. | P3: Mft. & sale of medical eqipment. | Q3: Mft. lease & sale of optical fiber, cable & peripheral device. | R3: Mft. sale, agency & lease of electonic computation organ & peripheral | S3: 84721 | T3: 1969-12-01 | U3: 1975-06-11
A6: 面額-變更後
A7: 5000

Sheet Equity
A1: 005930 Samsung Elec | P1: =A1 -> 005930 Samsung Elec | W1: PE | AB1: PB
B2: 年月日 | C2: 成交量(個股)_月 | D2: 收盤價(元) | E2: 報酬率(％)_月 | F2: PE | G2: PB | I2: 證券代碼 | J2: 年月日 | K2: 成交量(個股) | L2: 收盤價(元) | M2: 報酬率(％) | P2: Data Field | Q2: 2016-10-13 | R2: 2016-10-07 | S2: 2016-09-30 | T2: 2015-12-30 | W2: 5 | X2: 10 | Y2: 15 | Z2: 20 | AA2: 25 | AB2: 0.5 | AC2: 1 | AD2: 2 | AE2: 3 | AF2: 4
A3: =IF(ROUNDUP((MONTH(B3)/3)-1,0)<=0,YEAR(B3)-1&"Q4",YEAR(B3)&"Q"&(ROUNDUP((MONTH(B3)/3)-1,0))) -> 2011Q3 | B3: 2011-10-31 | C3: 8309646 | D3: 968000 | E3: 15.238 | F3: =D3/VLOOKUP($A3,$O$19:$S$38,5,0) -> 38.31599614 | G3: =D3/VLOOKUP($A3,$O$19:$S$38,4,0) -> 1.742812165 | H3: =YEAR(J3)-1 -> 2015 | I3: KS200 KOSPI 200 | J3: 2016-10-13 | K3: 58490000 | L3: 253.93 | M3: -0.886 | P3: 報酬率(％)_日 | Q3: 1.4332 | U3: =SUM(Q3:T3) -> 1.4332 | W3: =W2&"*PE" -> 5*PE | X3: =X2&"*PE" -> 10*PE | Y3: =Y2&"*PE" -> 15*PE | Z3: =Z2&"*PE" -> 20*PE | AA3: =AA2&"*PE" -> 25*PE | AB3: =AB2&"*"&"PB" -> 0.5*PB | AC3: =AC2&"*"&"PB" -> 1*PB | AD3: =AD2&"*"&"PB" -> 2*PB | AE3: =AE2&"*"&"PB" -> 3*PB | AF3: =AF2&"*"&"PB" -> 4*PB
A4: =IF(ROUNDUP((MONTH(B4)/3)-1,0)<=0,YEAR(B4)-1&"Q4",YEAR(B4)&"Q"&(ROUNDUP((MONTH(B4)/3)-1,0))) -> 2011Q3 | B4: 2011-11-30 | C4: 8192518 | D4: 1004000 | E4: 3.7192 | F4: =D4/VLOOKUP($A4,$O$19:$S$38,5,0) -> 39.7409712 | G4: =D4/VLOOKUP($A4,$O$19:$S$38,4,0) -> 1.807627493 | H4: =YEAR(J4)-1 -> 2015 | I4: KS200 KOSPI 200 | J4: 2016-10-12 | K4: 62692000 | L4: 256.2 | M4: 0.0195 | P4: 報酬率(％)_週 | R4: 6.7585 | U4: =SUM(Q4:T4) -> 6.7585 | V4: =B3 -> 2011-10-31 | W4: =W$2*$D3/$F3 -> 126318 | X4: =X$2*$D3/$F3 -> 252636 | Y4: =Y$2*$D3/$F3 -> 378954 | Z4: =Z$2*$D3/$F3 -> 505272 | AA4: 631590 | AB4: =AB$2*$D3/$G3 -> 277712.085 | AC4: =AC$2*$D3/$G3 -> 555424.17 | AD4: =AD$2*$D3/$G3 -> 1110848.34 | AE4: =AE$2*$D3/$G3 -> 1666272.51 | AF4: =AF$2*$D3/$G3 -> 2221696.68
A5: 2011Q3 | B5: 2011-12-29 | C5: 6777378 | D5: 1058000 | E5: 5.3785 | F5: 41.87843379 | G5: 1.904850486 | H5: 2015 | I5: KS200 KOSPI 200 | J5: 2016-10-11 | K5: 68771000 | L5: 256.15 | M5: -1.5981 | P5: 報酬率(％)_月 | S5: -1.3579 | U5: =SUM(Q5:T5) -> -1.3579 | V5: =B4 -> 2011-11-30 | W5: 126318 | X5: 252636 | Y5: 378954 | Z5: 505272 | AA5: =AA$2*$D4/$F4 -> 631590 | AB5: =AB$2*$D4/$G4 -> 277712.085 | AC5: =AC$2*$D4/$G4 -> 555424.17 | AD5: =AD$2*$D4/$G4 -> 1110848.34 | AE5: =AE$2*$D4/$G4 -> 1666272.51 | AF5: =AF$2*$D4/$G4 -> 2221696.68
A6: 2011Q4 | B6: 2012-01-31 | C6: 7182025 | D6: 1107000 | E6: 4.6316 | F6: 18.16087881 | G6: 1.864853856 | H6: 2015 | I6: KS200 KOSPI 200 | J6: 2016-10-10 | K6: 74084000 | L6: 260.31 | M6: 0.0961 | P6: 報酬率(％)_年 | T6: -5.0493 | U6: =SUM(Q6:T6) -> -5.0493 | V6: 2011-12-29 | W6: 126318 | X6: 252636 | Y6: 378954 | Z6: 505272 | AA6: 631590 | AB6: 277712.085 | AC6: 555424.17 | AD6: 1110848.34 | AE6: 1666272.51 | AF6: 2221696.68
A7: 2011Q4 | B7: 2012-02-29 | C7: 7050168 | D7: 1206000 | E7: 8.9432 | F7: 19.78502244 | G7: 2.031629404 | H7: 2015 | I7: KS200 KOSPI 200 | J7: 2016-10-07 | K7: 62370000 | L7: 260.06 | M7: -0.4098 | P7: 流通在外股數(百萬股) | Q7: 140.679 | U7: =SUM(Q7:T7) -> 140.679 | V7: 2012-01-31 | W7: 304776 | X7: 609552 | Y7: 914328 | Z7: 1219104 | AA7: 1523880 | AB7: 296806.1 | AC7: 593612.2 | AD7: 1187224.4 | AE7: 1780836.6 | AF7: 2374448.8
A8: 2011Q4 | B8: 2012-03-30 | C8: 5697698 | D8: 1275000 | E8: 5.7215 | F8: 20.91700134 | G8: 2.147866907 | H8: 2015 | I8: KS200 KOSPI 200 | J8: 2016-10-06 | K8: 64936000 | L8: 261.13 | M8: 0.8263 | V8: 2012-02-29 | W8: 304776 | X8: 609552 | Y8: 914328 | Z8: 1219104 | AA8: 1523880 | AB8: 296806.1 | AC8: 593612.2 | AD8: 1187224.4 | AE8: 1780836.6 | AF8: 2374448.8
A9: 2012Q1 | B9: 2012-04-30 | C9: 6028836 | D9: 1390000 | E9: 9.0196 | F9: 18.81133985 | G9: 2.207379422 | H9: 2015 | I9: KS200 KOSPI 200 | J9: 2016-10-05 | K9: 58014000 | L9: 258.99 | M9: -0.0733 | V9: 2012-03-30 | W9: 304776 | X9: 609552 | Y9: 914328 | Z9: 1219104 | AA9: 1523880 | AB9: 296806.1 | AC9: 593612.2 | AD9: 1187224.4 | AE9: 1780836.6 | AF9: 2374448.8
A10: 2012Q1 | B10: 2012-05-31 | C10: 7748478 | D10: 1211000 | E10: -12.8778 | F10: 16.38887235 | G10: 1.92311977 | H10: 2015 | I10: KS200 KOSPI 200 | J10: 2016-10-04 | K10: 62561000 | L10: 259.18 | M10: 0.6563 | P10: =Q11 -> KS200 KOSPI 200 | V10: 2012-04-30 | W10: 369458 | X10: 738916 | Y10: 1108374 | Z10: 1477832 | AA10: 1847290 | AB10: 314852.985 | AC10: 629705.97 | AD10: 1259411.94 | AE10: 1889117.91 | AF10: 2518823.88
A11: 2012Q1 | B11: 2012-06-29 | C11: 7314521 | D11: 1201000 | E11: -0.8256 | F11: 16.25353897 | G11: 1.907239342 | H11: 2015 | I11: KS200 KOSPI 200 | J11: 2016-09-30 | K11: 74919000 | L11: 257.49 | M11: -1.0985 | Q11: KS200 KOSPI 200 | R11: KS200 KOSPI 200 | S11: KS200 KOSPI 200 | T11: KS200 KOSPI 200 | V11: 2012-05-31 | W11: 369458 | X11: 738916 | Y11: 1108374 | Z11: 1477832 | AA11: 1847290 | AB11: 314852.985 | AC11: 629705.97 | AD11: 1259411.94 | AE11: 1889117.91 | AF11: 2518823.88
A12: 2012Q2 | B12: 2012-07-31 | C12: 8220114 | D12: 1309000 | E12: 8.9929 | F12: 13.05850289 | G12: 1.98845342 | H12: 2015 | I12: KS200 KOSPI 200 | J12: 2016-09-29 | K12: 65366000 | L12: 260.35 | M12: 0.8288 | P12: Data Field | Q12: 2016-10-13 | R12: 2016-10-07 | S12: 2016-09-30 | T12: 2015-12-30 | V12: 2012-06-29 | W12: 369458 | X12: 738916 | Y12: 1108374 | Z12: 1477832 | AA12: 1847290 | AB12: 314852.985 | AC12: 629705.97 | AD12: 1259411.94 | AE12: 1889117.91 | AF12: 2518823.88
A13: 2012Q2 | B13: 2012-08-31 | C13: 8729323 | D13: 1233000 | E13: -5.8058 | F13: 12.3003316 | G13: 1.873004635 | H13: 2015 | I13: KS200 KOSPI 200 | J13: 2016-09-28 | K13: 59187000 | L13: 258.21 | M13: -0.5239 | P13: 報酬率(％)_日 | Q13: -0.886 | U13: =SUM(Q13:T13) -> -0.886 | V13: 2012-07-31 | W13: 501206 | X13: 1002412 | Y13: 1503618 | Z13: 2004824 | AA13: 2506030 | AB13: 329150.28 | AC13: 658300.56 | AD13: 1316601.12 | AE13: 1974901.68 | AF13: 2633202.24
A14: 2012Q2 | B14: 2012-09-28 | C14: 6093053 | D14: 1346000 | E14: 9.1646 | F14: 13.4276126 | G14: 2.04465875 | H14: 2015 | I14: KS200 KOSPI 200 | J14: 2016-09-27 | K14: 58685000 | L14: 259.57 | M14: 0.8117 | P14: 報酬率(％)_週 | R14: 0.998 | U14: =SUM(Q14:T14) -> 0.998 | V14: 2012-08-31 | W14: 501206 | X14: 1002412 | Y14: 1503618 | Z14: 2004824 | AA14: 2506030 | AB14: 329150.28 | AC14: 658300.56 | AD14: 1316601.12 | AE14: 1974901.68 | AF14: 2633202.24
A15: 2012Q3 | B15: 2012-10-31 | C15: 5332753 | D15: 1310000 | E15: -2.6745 | F15: 11.06489944 | G15: 1.872789956 | H15: 2015 | I15: KS200 KOSPI 200 | J15: 2016-09-26 | K15: 43876000 | L15: 257.48 | M15: -0.3445 | P15: 報酬率(％)_月 | S15: 0.2414 | U15: =SUM(Q15:T15) -> 0.2414 | V15: 2012-09-28 | W15: 501206 | X15: 1002412 | Y15: 1503618 | Z15: 2004824 | AA15: 2506030 | AB15: 329150.28 | AC15: 658300.56 | AD15: 1316601.12 | AE15: 1974901.68 | AF15: 2633202.24
A16: 2012Q3 | B16: 2012-11-30 | C16: 5508293 | D16: 1406000 | E16: 7.3281 | F16: 11.8757623 | G16: 2.010032579 | H16: 2015 | I16: KS200 KOSPI 200 | J16: 2016-09-23 | K16: 58393000 | L16: 258.37 | M16: 0.0116 | P16: 報酬率(％)_年 | T16: -1.5046 | U16: =SUM(Q16:T16) -> -1.5046 | V16: 2012-10-31 | W16: 591962 | X16: 1183924 | Y16: 1775886 | Z16: 2367848 | AA16: 2959810 | AB16: 349745.575 | AC16: 699491.15 | AD16: 1398982.3 | AE16: 2098473.45 | AF16: 2797964.6
A17: 2012Q3 | B17: 2012-12-28 | C17: 5464997 | D17: 1522000 | E17: 8.2504 | F17: 12.85555492 | G17: 2.175867414 | H17: 2015 | I17: KS200 KOSPI 200 | J17: 2016-09-22 | K17: 59904000 | L17: 258.34 | M17: 0.7095 | P17: 流通在外股數(百萬股) | U17: =SUM(Q17:T17) -> 0 | V17: 2012-11-30 | W17: 591962 | X17: 1183924 | Y17: 1775886 | Z17: 2367848 | AA17: 2959810 | AB17: 349745.575 | AC17: 699491.15 | AD17: 1398982.3 | AE17: 2098473.45 | AF17: 2797964.6
A18: 2012Q4 | B18: 2013-01-31 | C18: 6615321 | D18: 1448000 | E18: -4.8621 | F18: 10.03403812 | G18: 1.961019563 | H18: 2015 | I18: KS200 KOSPI 200 | J18: 2016-09-21 | K18: 51982000 | L18: 256.52 | M18: 0.5606 | P18: 年月 | Q18: 每股盈餘 | R18: 每股淨值 | S18: 年化EPS | V18: 2012-12-28 | W18: 591962 | X18: 1183924 | Y18: 1775886 | Z18: 2367848 | AA18: 2959810 | AB18: 349745.575 | AC18: 699491.15 | AD18: 1398982.3 | AE18: 2098473.45 | AF18: 2797964.6
A19: 2012Q4 | B19: 2013-02-28 | C19: 3935074 | D19: 1544000 | E19: 6.6298 | F19: 10.69927821 | G19: 2.091031909 | H19: 2015 | I19: KS200 KOSPI 200 | J19: 2016-09-20 | K19: 54627000 | L19: 255.09 | M19: 0.4568 | O19: =YEAR(P19)&"Q"&((MONTH(P19)/3)) -> 2016Q2 | P19: 2016-06-30 | Q19: 77266 | R19: 1158162.38 | S19: =SUM(Q19:Q22)/30*12 -> 137458.8 | V19: 2013-01-31 | W19: 721544 | X19: 1443088 | Y19: 2164632 | Z19: 2886176 | AA19: 3607720 | AB19: 369195.705 | AC19: 738391.41 | AD19: 1476782.82 | AE19: 2215174.23 | AF19: 2953565.64
A20: 2012Q4 | B20: 2013-03-29 | C20: 5640262 | D20: 1527000 | E20: -1.1012 | F20: 10.58147528 | G20: 2.06800889 | H20: 2015 | I20: KS200 KOSPI 200 | J20: 2016-09-19 | K20: 59751000 | L20: 253.93 | M20: 0.8579 | O20: =YEAR(P20)&"Q"&((MONTH(P20)/3)) -> 2016Q1 | P20: 2016-03-31 | Q20: 36356 | R20: 1140943.55 | S20: 133788.4 | V20: 2013-02-28 | W20: 721544 | X20: 1443088 | Y20: 2164632 | Z20: 2886176 | AA20: 3607720 | AB20: 369195.705 | AC20: 738391.41 | AD20: 1476782.82 | AE20: 2215174.23 | AF20: 2953565.64
A21: 2013Q1 | B21: 2013-04-30 | C21: 5058603 | D21: 1520000 | E21: -0.4584 | F21: 10.14085108 | G21: 1.932906181 | H21: 2015 | I21: KS200 KOSPI 200 | J21: 2016-09-13 | K21: 74549000 | L21: 251.77 | M21: 0.495 | O21: 2015Q4 | P21: 2015-12-30 | Q21: 126305 | R21: 997532.1 | S21: 131370.4 | V21: 2013-03-29 | W21: 721544 | X21: 1443088 | Y21: 2164632 | Z21: 2886176 | AA21: 3607720 | AB21: 369195.705 | AC21: 738391.41 | AD21: 1476782.82 | AE21: 2215174.23 | AF21: 2953565.64
A22: 2013Q1 | B22: 2013-05-31 | C22: 4930400 | D22: 1538000 | E22: 1.1842 | F22: 10.26094011 | G22: 1.95579586 | H22: 2015 | I22: KS200 KOSPI 200 | J22: 2016-09-12 | K22: 66332000 | L22: 250.53 | M22: -2.635 | O22: 2015Q3 | P22: 2015-09-30 | Q22: 103720 | R22: 1141782.31 | S22: 151370.4 | V22: 2013-04-30 | W22: 749444 | X22: 1498888 | Y22: 2248332 | Z22: 2997776 | AA22: 3747220 | AB22: 393190.32 | AC22: 786380.64 | AD22: 1572761.28 | AE22: 2359141.92 | AF22: 3145522.56
A23: 2013Q1 | B23: 2013-06-28 | C23: 8311860 | D23: 1342000 | E23: -12.7439 | F23: 8.953304049 | G23: 1.706552694 | H23: 2015 | I23: KS200 KOSPI 200 | J23: 2016-09-09 | K23: 70054000 | L23: 257.31 | M23: -1.3609 | O23: 2015Q2 | P23: 2015-06-30 | Q23: 68090 | R23: 1098872.82 | S23: 157086 | V23: 2013-05-31 | W23: 749444 | X23: 1498888 | Y23: 2248332 | Z23: 2997776 | AA23: 3747220 | AB23: 393190.32 | AC23: 786380.64 | AD23: 1572761.28 | AE23: 2359141.92 | AF23: 3145522.56
A24: 2013Q2 | B24: 2013-07-31 | C24: 6426545 | D24: 1280000 | E24: -4.62 | F24: 7.893555405 | G24: 1.513256631 | H24: 2015 | I24: KS200 KOSPI 200 | J24: 2016-09-08 | K24: 79383000 | L24: 260.86 | M24: 0.2113 | O24: 2015Q1 | P24: 2015-03-31 | Q24: 30311 | R24: 1058962.01 | S24: 166087.2 | V24: 2013-06-28 | W24: 749444 | X24: 1498888 | Y24: 2248332 | Z24: 2997776 | AA24: 3747220 | AB24: 393190.32 | AC24: 786380.64 | AD24: 1572761.28 | AE24: 2359141.92 | AF24: 3145522.56
A25: 2013Q2 | B25: 2013-08-30 | C25: 5399871 | D25: 1368000 | E25: 6.875 | F25: 8.436237339 | G25: 1.617293024 | H25: 2015 | I25: KS200 KOSPI 200 | J25: 2016-09-07 | K25: 68750000 | L25: 260.31 | M25: -0.2376 | O25: 2014Q4 | P25: 2014-12-30 | Q25: 176305 | R25: 1055186.64 | S25: 173818.8 | V25: 2013-07-31 | W25: 810788 | X25: 1621576 | Y25: 2432364 | Z25: 3243152 | AA25: 4053940 | AB25: 422928.925 | AC25: 845857.85 | AD25: 1691715.7 | AE25: 2537573.55 | AF25: 3383431.4
A26: 2013Q2 | B26: 2013-09-30 | C26: 4889929 | D26: 1367000 | E26: -0.073 | F26: 8.430070499 | G26: 1.616110792 | H26: 2015 | I26: KS200 KOSPI 200 | J26: 2016-09-06 | K26: 49970000 | L26: 260.93 | M26: 0.4968 | O26: 2014Q3 | P26: 2014-09-30 | Q26: 118009 | R26: 1020484.1 | S26: 194437.6 | V26: 2013-08-30 | W26: 810788 | X26: 1621576 | Y26: 2432364 | Z26: 3243152 | AA26: 4053940 | AB26: 422928.925 | AC26: 845857.85 | AD26: 1691715.7 | AE26: 2537573.55 | AF26: 3383431.4
A27: 2013Q3 | B27: 2013-10-31 | C27: 4398536 | D27: 1465000 | E27: 7.169 | F27: 8.197088215 | G27: 1.655915461 | H27: 2015 | I27: KS200 KOSPI 200 | J27: 2016-09-05 | K27: 54168000 | L27: 259.64 | M27: 1.2242 | O27: 2014Q2 | P27: 2014-06-30 | Q27: 90593 | R27: 995798.91 | S27: 207213.2 | V27: 2013-09-30 | W27: 810788 | X27: 1621576 | Y27: 2432364 | Z27: 3243152 | AA27: 4053940 | AB27: 422928.925 | AC27: 845857.85 | AD27: 1691715.7 | AE27: 2537573.55 | AF27: 3383431.4
A28: 2013Q3 | B28: 2013-11-29 | C28: 3965399 | D28: 1494000 | E28: 1.9794 | F28: 8.359351395 | G28: 1.688694675 | H28: 2015 | I28: KS200 KOSPI 200 | J28: 2016-09-02 | K28: 49266000 | L28: 256.5 | M28: 0.1836 | O28: 2014Q1 | P28: 2014-03-31 | Q28: 49640 | R28: 964592.59 | S28: 209594.4 | V28: 2013-10-31 | W28: 893610 | X28: 1787220 | Y28: 2680830 | Z28: 3574440 | AA28: 4468050 | AB28: 442353.5 | AC28: 884707 | AD28: 1769414 | AE28: 2654121 | AF28: 3538828
A29: 2013Q3 | B29: 2013-12-30 | C29: 4081514 | D29: 1372000 | E29: -8.1659 | F29: 7.676726984 | G29: 1.550795913 | H29: 2015 | I29: KS200 KOSPI 200 | J29: 2016-09-01 | K29: 56098000 | L29: 256.03 | M29: -0.327 | O29: 2013Q4 | P29: 2013-12-30 | Q29: 227852 | R29: 924954.26 | S29: 208254.8 | V29: 2013-11-29 | W29: 893610 | X29: 1787220 | Y29: 2680830 | Z29: 3574440 | AA29: 4468050 | AB29: 442353.5 | AC29: 884707 | AD29: 1769414 | AE29: 2654121 | AF29: 3538828
A30: 2013Q4 | B30: 2014-01-29 | C30: 6360306 | D30: 1280000 | E30: -6.7053 | F30: 6.146316916 | G30: 1.383852213 | H30: 2015 | I30: KS200 KOSPI 200 | J30: 2016-08-31 | K30: 66352000 | L30: 256.87 | M30: -0.2408 | O30: 2013Q3 | P30: 2013-09-30 | Q30: 149948 | R30: 884707 | S30: 178722 | V30: 2013-12-30 | W30: 893610 | X30: 1787220 | Y30: 2680830 | Z30: 3574440 | AA30: 4468050 | AB30: 442353.5 | AC30: 884707 | AD30: 1769414 | AE30: 2654121 | AF30: 3538828
A31: 2013Q4 | B31: 2014-02-28 | C31: 4230976 | D31: 1349000 | E31: 5.3906 | F31: 6.477641812 | G31: 1.458450497 | H31: 2015 | I31: KS200 KOSPI 200 | J31: 2016-08-30 | K31: 56516000 | L31: 257.49 | M31: 0.3899 | O31: 2013Q2 | P31: 2013-06-28 | Q31: 96546 | R31: 845857.85 | S31: 162157.6 | V31: 2014-01-29 | W31: 1041274 | X31: 2082548 | Y31: 3123822 | Z31: 4165096 | AA31: 5206370 | AB31: 462477.13 | AC31: 924954.26 | AD31: 1849908.52 | AE31: 2774862.78 | AF31: 3699817.04
A32: 2013Q4 | B32: 2014-03-31 | C32: 4425194 | D32: 1343000 | E32: -0.4448 | F32: 6.448830951 | G32: 1.45196369 | H32: 2015 | I32: KS200 KOSPI 200 | J32: 2016-08-29 | K32: 62755000 | L32: 256.49 | M32: 0.1015 | O32: 2013Q1 | P32: 2013-03-29 | Q32: 46291 | R32: 786380.64 | S32: 149888.8 | V32: 2014-02-28 | W32: 1041274 | X32: 2082548 | Y32: 3123822 | Z32: 4165096 | AA32: 5206370 | AB32: 462477.13 | AC32: 924954.26 | AD32: 1849908.52 | AE32: 2774862.78 | AF32: 3699817.04
A33: 2014Q1 | B33: 2014-04-30 | C33: 4949658 | D33: 1343000 | E33: 0.0001 | F33: 6.407613944 | G33: 1.392297654 | H33: 2015 | I33: KS200 KOSPI 200 | J33: 2016-08-26 | K33: 68304000 | L33: 256.23 | M33: -0.4004 | O33: 2012Q4 | P33: 2012-12-28 | Q33: 154020 | R33: 738391.41 | S33: 144308.8 | V33: 2014-03-31 | W33: 1041274 | X33: 2082548 | Y33: 3123822 | Z33: 4165096 | AA33: 5206370 | AB33: 462477.13 | AC33: 924954.26 | AD33: 1849908.52 | AE33: 2774862.78 | AF33: 3699817.04
A34: 2014Q1 | B34: 2014-05-30 | C34: 4612223 | D34: 1443000 | E34: 7.446 | F34: 6.884725928 | G34: 1.495968365 | H34: 2015 | I34: KS200 KOSPI 200 | J34: 2016-08-25 | K34: 58804000 | L34: 257.26 | M34: -0.0155 | O34: 2012Q3 | P34: 2012-09-28 | Q34: 108537 | R34: 699491.15 | S34: 118392.4 | V34: 2014-04-30 | W34: 1047972 | X34: 2095944 | Y34: 3143916 | Z34: 4191888 | AA34: 5239860 | AB34: 482296.295 | AC34: 964592.59 | AD34: 1929185.18 | AE34: 2893777.77 | AF34: 3858370.36
A35: 2014Q1 | B35: 2014-06-30 | C35: 5222324 | D35: 1322000 | E35: -8.3852 | F35: 6.307420427 | G35: 1.370526804 | H35: 2015 | I35: KS200 KOSPI 200 | J35: 2016-08-24 | K35: 54461000 | L35: 257.3 | M35: -0.4334 | O35: 2012Q2 | P35: 2012-06-29 | Q35: 65874 | R35: 658300.56 | S35: 100241.2 | V35: 2014-05-30 | W35: 1047972 | X35: 2095944 | Y35: 3143916 | Z35: 4191888 | AA35: 5239860 | AB35: 482296.295 | AC35: 964592.59 | AD35: 1929185.18 | AE35: 2893777.77 | AF35: 3858370.36
A36: 2014Q2 | B36: 2014-07-31 | C36: 4748739 | D36: 1343000 | E36: 1.5888 | F36: 6.481247334 | G36: 1.348665867 | H36: 2015 | I36: KS200 KOSPI 200 | J36: 2016-08-23 | K36: 65707000 | L36: 258.42 | M36: 0.447 | O36: 2012Q1 | P36: 2012-03-30 | Q36: 32341 | R36: 629705.97 | S36: 73891.6 | V36: 2014-06-30 | W36: 1047972 | X36: 2095944 | Y36: 3143916 | Z36: 4191888 | AA36: 5239860 | AB36: 482296.295 | AC36: 964592.59 | AD36: 1929185.18 | AE36: 2893777.77 | AF36: 3858370.36
A37: 2014Q2 | B37: 2014-08-29 | C37: 5113102 | D37: 1234000 | E37: -8.1161 | F37: 5.955219069 | G37: 1.239206016 | H37: 2015 | I37: KS200 KOSPI 200 | J37: 2016-08-22 | K37: 62921000 | L37: 257.27 | M37: -0.5489 | O37: 2011Q4 | P37: 2011-12-29 | Q37: 89229 | R37: 593612.2 | S37: 60955.2 | V37: 2014-07-31 | W37: 1036066 | X37: 2072132 | Y37: 3108198 | Z37: 4144264 | AA37: 5180330 | AB37: 497899.455 | AC37: 995798.91 | AD37: 1991597.82 | AE37: 2987396.73 | AF37: 3983195.64
A38: 2014Q2 | B38: 2014-09-30 | C38: 4990536 | D38: 1184000 | E38: -4.052 | F38: 5.7139217 | G38: 1.188995075 | H38: 2015 | I38: KS200 KOSPI 200 | J38: 2016-08-19 | K38: 72797000 | L38: 258.69 | M38: 0.2247 | O38: 2011Q3 | P38: 2011-09-30 | Q38: 63159 | R38: 555424.17 | S38: 25263.6 | V38: 2014-08-29 | W38: 1036066 | X38: 2072132 | Y38: 3108198 | Z38: 4144264 | AA38: 5180330 | AB38: 497899.455 | AC38: 995798.91 | AD38: 1991597.82 | AE38: 2987396.73 | AF38: 3983195.64
A39: 2014Q3 | B39: 2014-10-31 | C39: 6138341 | D39: 1244000 | E39: 5.0675 | F39: 6.397939493 | G39: 1.219029282 | H39: 2015 | I39: KS200 KOSPI 200 | J39: 2016-08-18 | K39: 64012000 | L39: 258.11 | M39: 0.8085 | V39: 2014-09-30 | W39: 1036066 | X39: 2072132 | Y39: 3108198 | Z39: 4144264 | AA39: 5180330 | AB39: 497899.455 | AC39: 995798.91 | AD39: 1991597.82 | AE39: 2987396.73 | AF39: 3983195.64
A40: 2014Q3 | B40: 2014-11-28 | C40: 5274978 | D40: 1287000 | E40: 3.4568 | F40: 6.619090135 | G40: 1.261166147 | H40: 2015 | I40: KS200 KOSPI 200 | J40: 2016-08-17 | K40: 63810000 | L40: 256.04 | M40: -0.0429 | V40: 2014-10-31 | W40: 972188 | X40: 1944376 | Y40: 2916564 | Z40: 3888752 | AA40: 4860940 | AB40: 510242.05 | AC40: 1020484.1 | AD40: 2040968.2 | AE40: 3061452.3 | AF40: 4081936.4
A41: 2014Q3 | B41: 2014-12-30 | C41: 5122154 | D41: 1327000 | E41: 3.1079 | F41: 6.824811662 | G41: 1.30036323 | H41: 2015 | I41: KS200 KOSPI 200 | J41: 2016-08-16 | K41: 68324000 | L41: 256.15 | M41: -0.0078 | V41: 2014-11-28 | W41: 972188 | X41: 1944376 | Y41: 2916564 | Z41: 3888752 | AA41: 4860940 | AB41: 510242.05 | AC41: 1020484.1 | AD41: 2040968.2 | AE41: 3061452.3 | AF41: 4081936.4
A42: 2014Q4 | B42: 2015-01-30 | C42: 5260414 | D42: 1365000 | E42: 2.8638 | F42: 7.853005544 | G42: 1.29361001 | H42: 2015 | I42: KS200 KOSPI 200 | J42: 2016-08-12 | K42: 74918000 | L42: 256.17 | M42: -0.0039 | V42: 2014-12-30 | W42: 972188 | X42: 1944376 | Y42: 2916564 | Z42: 3888752 | AA42: 4860940 | AB42: 510242.05 | AC42: 1020484.1 | AD42: 2040968.2 | AE42: 3061452.3 | AF42: 4081936.4
A43: 2014Q4 | B43: 2015-02-27 | C43: 3008737 | D43: 1357000 | E43: -0.5861 | F43: 7.806980603 | G43: 1.286028413 | H43: 2015 | I43: KS200 KOSPI 200 | J43: 2016-08-11 | K43: 93472000 | L43: 256.18 | M43: 0.2936 | V43: 2015-01-30 | W43: 869094 | X43: 1738188 | Y43: 2607282 | Z43: 3476376 | AA43: 4345470 | AB43: 527593.32 | AC43: 1055186.64 | AD43: 2110373.28 | AE43: 3165559.92 | AF43: 4220746.56
A44: 2014Q4 | B44: 2015-03-31 | C44: 5598436 | D44: 1441000 | E44: 6.19 | F44: 8.290242482 | G44: 1.365635183 | H44: 2015 | I44: KS200 KOSPI 200 | J44: 2016-08-10 | K44: 66935000 | L44: 255.43 | M44: -0.1642 | V44: 2015-02-27 | W44: 869094 | X44: 1738188 | Y44: 2607282 | Z44: 3476376 | AA44: 4345470 | AB44: 527593.32 | AC44: 1055186.64 | AD44: 2110373.28 | AE44: 3165559.92 | AF44: 4220746.56
A45: 2015Q1 | B45: 2015-04-30 | C45: 4965983 | D45: 1410000 | E45: -2.1513 | F45: 8.48951635 | G45: 1.331492524 | H45: 2015 | I45: KS200 KOSPI 200 | J45: 2016-08-09 | K45: 60355000 | L45: 255.85 | M45: 0.6847 | V45: 2015-03-31 | W45: 869094 | X45: 1738188 | Y45: 2607282 | Z45: 3476376 | AA45: 4345470 | AB45: 527593.32 | AC45: 1055186.64 | AD45: 2110373.28 | AE45: 3165559.92 | AF45: 4220746.56
A46: 2015Q1 | B46: 2015-05-29 | C46: 3851911 | D46: 1307000 | E46: -7.305 | F46: 7.869360192 | G46: 1.234227468 | H46: 2015 | I46: KS200 KOSPI 200 | J46: 2016-08-08 | K46: 64329000 | L46: 254.11 | M46: 0.6935 | V46: 2015-04-30 | W46: 830436 | X46: 1660872 | Y46: 2491308 | Z46: 3321744 | AA46: 4152180 | AB46: 529481.005 | AC46: 1058962.01 | AD46: 2117924.02 | AE46: 3176886.03 | AF46: 4235848.04
A47: 2015Q1 | B47: 2015-06-30 | C47: 4777840 | D47: 1268000 | E47: -2.984 | F47: 7.634543782 | G47: 1.197398951 | H47: 2015 | I47: KS200 KOSPI 200 | J47: 2016-08-05 | K47: 62004000 | L47: 252.36 | M47: 1.2518 | R47: =A1 -> 005930 Samsung Elec | S47: KOSPI | V47: 2015-05-29 | W47: 830436 | X47: 1660872 | Y47: 2491308 | Z47: 3321744 | AA47: 4152180 | AB47: 529481.005 | AC47: 1058962.01 | AD47: 2117924.02 | AE47: 3176886.03 | AF47: 4235848.04
A48: 2015Q2 | B48: 2015-07-31 | C48: 5356365 | D48: 1185000 | E48: -6.5457 | F48: 7.543638516 | G48: 1.078377751 | H48: 2015 | I48: KS200 KOSPI 200 | J48: 2016-08-04 | K48: 54041000 | L48: 249.24 | M48: 0.2373 | Q48: 日漲跌幅 | R48: =(Q54-Q55)/Q55 -> 0.01433224756 | S48: =(L3-L4)/L4 -> -0.008860265418 | V48: 2015-06-30 | W48: 830436 | X48: 1660872 | Y48: 2491308 | Z48: 3321744 | AA48: 4152180 | AB48: 529481.005 | AC48: 1058962.01 | AD48: 2117924.02 | AE48: 3176886.03 | AF48: 4235848.04
A49: 2015Q2 | B49: 2015-08-31 | C49: 6362035 | D49: 1089000 | E49: -8.1014 | F49: 6.932508308 | G49: 0.9910155026 | H49: 2015 | I49: KS200 KOSPI 200 | J49: 2016-08-03 | K49: 74699000 | L49: 248.65 | M49: -1.3019 | Q49: 週漲跌幅 | R49: =(Q54-Q58)/Q58 -> -0.08733880422 | S49: =(L3-L7)/L7 -> -0.0235714835 | V49: 2015-07-31 | W49: 785430 | X49: 1570860 | Y49: 2356290 | Z49: 3141720 | AA49: 3927150 | AB49: 549436.41 | AC49: 1098872.82 | AD49: 2197745.64 | AE49: 3296618.46 | AF49: 4395491.28
A50: 2015Q2 | B50: 2015-09-30 | C50: 5218699 | D50: 1134000 | E50: 4.1322 | F50: 7.218975593 | G50: 1.031966556 | H50: 2015 | I50: KS200 KOSPI 200 | J50: 2016-08-02 | K50: 61750000 | L50: 251.93 | M50: -0.7407 | Q50: 月漲跌幅 | R50: =(Q54-Q75)/Q75 -> -0.05003050641 | S50: =(L3-L24)/L24 -> -0.02656597409 | V50: 2015-08-31 | W50: 785430 | X50: 1570860 | Y50: 2356290 | Z50: 3141720 | AA50: 3927150 | AB50: 549436.41 | AC50: 1098872.82 | AD50: 2197745.64 | AE50: 3296618.46 | AF50: 4395491.28
A51: 2015Q3 | B51: 2015-10-30 | C51: 6251233 | D51: 1372000 | E51: 20.9876 | F51: 9.063859249 | G51: 1.201630108 | H51: 2015 | I51: KS200 KOSPI 200 | J51: 2016-08-01 | K51: 91146000 | L51: 253.81 | M51: 0.9265 | Q51: 季漲跌幅 | R51: =(Q54-Q118)/Q118 -> 0.06643835616 | S51: =(L3-L67)/L67 -> 0.04313354969 | V51: 2015-09-30 | W51: 785430 | X51: 1570860 | Y51: 2356290 | Z51: 3141720 | AA51: 3927150 | AB51: 549436.41 | AC51: 1098872.82 | AD51: 2197745.64 | AE51: 3296618.46 | AF51: 4395491.28
A52: 2015Q3 | B52: 2015-11-30 | C52: 4547436 | D52: 1284000 | E52: -6.4141 | F52: 8.482503845 | G52: 1.124557623 | H52: 2015 | I52: KS200 KOSPI 200 | J52: 2016-07-29 | K52: 87035000 | L52: 251.48 | M52: -0.1509 | V52: 2015-10-30 | W52: 756852 | X52: 1513704 | Y52: 2270556 | Z52: 3027408 | AA52: 3784260 | AB52: 570891.155 | AC52: 1141782.31 | AD52: 2283564.62 | AE52: 3425346.93 | AF52: 4567129.24
A53: 2015Q3 | B53: 2015-12-30 | C53: 4211376 | D53: 1260000 | E53: -1.8692 | F53: 8.323952371 | G53: 1.103537854 | H53: 2015 | I53: KS200 KOSPI 200 | J53: 2016-07-28 | K53: 74226000 | L53: 251.86 | M53: -0.3442 | P53: 年月日 | Q53: 收盤價(元) | R53: 證券代碼 | S53: 年月日 | T53: 收盤價(元) | V53: 2015-11-30 | W53: 756852 | X53: 1513704 | Y53: 2270556 | Z53: 3027408 | AA53: 3784260 | AB53: 570891.155 | AC53: 1141782.31 | AD53: 2283564.62 | AE53: 3425346.93 | AF53: 4567129.24
A54: 2015Q4 | B54: 2016-01-29 | C54: 4813038 | D54: 1150000 | E54: -8.7302 | F54: 8.753874541 | G54: 1.152845106 | H54: 2015 | I54: KS200 KOSPI 200 | J54: 2016-07-27 | K54: 78389000 | L54: 252.73 | M54: 0.004 | P54: 2016-10-13 | Q54: 1557000 | R54: KS11 KOSPI | S54: 2016-10-13 | T54: 2015.44 | V54: 2015-12-30 | W54: 756852 | X54: 1513704 | Y54: 2270556 | Z54: 3027408 | AA54: 3784260 | AB54: 570891.155 | AC54: 1141782.31 | AD54: 2283564.62 | AE54: 3425346.93 | AF54: 4567129.24
A55: 2015Q4 | B55: 2016-02-29 | C55: 3670039 | D55: 1178000 | E55: 2.4346 | F55: 8.967012356 | G55: 1.180914379 | H55: 2015 | I55: KS200 KOSPI 200 | J55: 2016-07-26 | K55: 73286000 | L55: 252.72 | M55: 0.8259 | P55: 2016-10-12 | Q55: 1535000 | V55: 2016-01-29 | W55: 656852 | X55: 1313704 | Y55: 1970556 | Z55: 2627408 | AA55: 3284260 | AB55: 498766.05 | AC55: 997532.1 | AD55: 1995064.2 | AE55: 2992596.3 | AF55: 3990128.4
A56: 2015Q4 | B56: 2016-03-31 | C56: 4635170 | D56: 1312000 | E56: 11.3752 | F56: 9.987029042 | G56: 1.315245895 | H56: 2015 | I56: KS200 KOSPI 200 | J56: 2016-07-25 | K56: 68797000 | L56: 250.65 | M56: 0.244 | P56: 2016-10-11 | Q56: 1545000 | V56: 2016-02-29 | W56: 656852 | X56: 1313704 | Y56: 1970556 | Z56: 2627408 | AA56: 3284260 | AB56: 498766.05 | AC56: 997532.1 | AD56: 1995064.2 | AE56: 2992596.3 | AF56: 3990128.4
A57: 2016Q1 | B57: 2016-04-29 | C57: 3865173 | D57: 1245000 | E57: -5.1068 | F57: 9.305739511 | G57: 1.091202102 | H57: 2015 | I57: KS200 KOSPI 200 | J57: 2016-07-22 | K57: 55604000 | L57: 250.04 | M57: -0.1597 | P57: 2016-10-10 | Q57: 1680000 | V57: 2016-03-31 | W57: 656852 | X57: 1313704 | Y57: 1970556 | Z57: 2627408 | AA57: 3284260 | AB57: 498766.05 | AC57: 997532.1 | AD57: 1995064.2 | AE57: 2992596.3 | AF57: 3990128.4
A58: 2016Q1 | B58: 2016-05-31 | C58: 5205395 | D58: 1292000 | E58: 3.7754 | F58: 9.657040521 | G58: 1.132396077 | H58: 2015 | I58: KS200 KOSPI 200 | J58: 2016-07-21 | K58: 63664000 | L58: 250.44 | M58: -0.0878 | P58: 2016-10-07 | Q58: 1706000 | V58: 2016-04-29 | W58: 668942 | X58: 1337884 | Y58: 2006826 | Z58: 2675768 | AA58: 3344710 | AB58: 570471.775 | AC58: 1140943.55 | AD58: 2281887.1 | AE58: 3422830.65 | AF58: 4563774.2
A59: 2016Q1 | B59: 2016-06-30 | C59: 6630549 | D59: 1425000 | E59: 10.2941 | F59: 10.65114763 | G59: 1.248966261 | H59: 2015 | I59: KS200 KOSPI 200 | J59: 2016-07-20 | K59: 60018000 | L59: 250.66 | M59: -0.1235 | P59: 2016-10-06 | Q59: 1691000 | V59: 2016-05-31 | W59: 668942 | X59: 1337884 | Y59: 2006826 | Z59: 2675768 | AA59: 3344710 | AB59: 570471.775 | AC59: 1140943.55 | AD59: 2281887.1 | AE59: 3422830.65 | AF59: 4563774.2
A60: 2016Q2 | B60: 2016-07-29 | C60: 4470481 | D60: 1539000 | E60: 7.9999 | F60: 11.19608203 | G60: 1.32882921 | H60: 2015 | I60: KS200 KOSPI 200 | J60: 2016-07-19 | K60: 62164000 | L60: 250.97 | M60: -0.2187 | P60: 2016-10-05 | Q60: 1619000 | V60: 2016-06-30 | W60: 668942 | X60: 1337884 | Y60: 2006826 | Z60: 2675768 | AA60: 3344710 | AB60: 570471.775 | AC60: 1140943.55 | AD60: 2281887.1 | AE60: 3422830.65 | AF60: 4563774.2
A61: 2016Q2 | B61: 2016-08-31 | C61: 5037192 | D61: 1620000 | E61: 5.2632 | F61: 11.7853495 | G61: 1.398767589 | H61: 2015 | I61: KS200 KOSPI 200 | J61: 2016-07-18 | K61: 55903000 | L61: 251.52 | M61: 0.1992 | P61: 2016-10-04 | Q61: 1614000 | V61: 2016-07-29 | W61: 687294 | X61: 1374588 | Y61: 2061882 | Z61: 2749176 | AA61: 3436470 | AB61: 579081.19 | AC61: 1158162.38 | AD61: 2316324.76 | AE61: 3474487.14 | AF61: 4632649.52
A62: 2016Q2 | B62: 2016-09-30 | C62: 5218372 | D62: 1598000 | E62: -1.3579 | F62: =D62/VLOOKUP($A62,$O$19:$S$38,5,0) -> 11.62530154 | G62: 1.37977198 | H62: 2015 | I62: KS200 KOSPI 200 | J62: 2016-07-15 | K62: 75736000 | L62: 251.02 | M62: 0.4884 | P62: 2016-09-30 | Q62: 1598000 | V62: 2016-08-31 | W62: 687294 | X62: 1374588 | Y62: 2061882 | Z62: 2749176 | AA62: 3436470 | AB62: 579081.19 | AC62: 1158162.38 | AD62: 2316324.76 | AE62: 3474487.14 | AF62: 4632649.52
H63: 2015 | I63: KS200 KOSPI 200 | J63: 2016-07-14 | K63: 67347000 | L63: 249.8 | M63: 0.2207 | P63: 2016-09-29 | Q63: 1600000 | V63: 2016-09-30 | W63: 687294 | X63: 1374588 | Y63: 2061882 | Z63: 2749176 | AA63: 3436470 | AB63: 579081.19 | AC63: 1158162.38 | AD63: 2316324.76 | AE63: 3474487.14 | AF63: 4632649.52
H64: 2015 | I64: KS200 KOSPI 200 | J64: 2016-07-13 | K64: 78645000 | L64: 249.25 | M64: 0.8538 | P64: 2016-09-28 | Q64: 1567000
H65: 2015 | I65: KS200 KOSPI 200 | J65: 2016-07-12 | K65: 72908000 | L65: 247.14 | M65: 0.0607 | P65: 2016-09-27 | Q65: 1569000
H66: 2015 | I66: KS200 KOSPI 200 | J66: 2016-07-11 | K66: 63842000 | L66: 246.99 | M66: 1.4624 | P66: 2016-09-26 | Q66: 1568000
H67: 2015 | I67: KS200 KOSPI 200 | J67: 2016-07-08 | K67: 62667000 | L67: 243.43 | M67: -0.4783 | P67: 2016-09-23 | Q67: 1571000
H68: =YEAR(J68)-1 -> 2015 | I68: KS200 KOSPI 200 | J68: 2016-07-07 | K68: 62210000 | L68: 244.6 | M68: 1.1329 | P68: 2016-09-22 | Q68: 1618000
H69: 2015 | I69: KS200 KOSPI 200 | J69: 2016-07-06 | K69: 71673000 | L69: 241.86 | M69: -2.0453 | P69: 2016-09-21 | Q69: 1592000
H70: 2015 | I70: KS200 KOSPI 200 | J70: 2016-07-05 | K70: 54811000 | L70: 246.91 | M70: -0.2867 | P70: 2016-09-20 | Q70: 1585000
H71: 2015 | I71: KS200 KOSPI 200 | J71: 2016-07-04 | K71: 63633000 | L71: 247.62 | M71: 0.4462 | P71: 2016-09-19 | Q71: 1558000
H72: 2015 | I72: KS200 KOSPI 200 | J72: 2016-07-01 | K72: 63046000 | L72: 246.52 | M72: 0.9749 | P72: 2016-09-13 | Q72: 1527000
H73: 2015 | I73: KS200 KOSPI 200 | J73: 2016-06-30 | K73: 75453000 | L73: 244.14 | M73: 0.7511 | P73: 2016-09-12 | Q73: 1465000
H74: 2015 | I74: KS200 KOSPI 200 | J74: 2016-06-29 | K74: 67355000 | L74: 242.32 | M74: 0.933 | P74: 2016-09-09 | Q74: 1575000
H75: 2015 | I75: KS200 KOSPI 200 | J75: 2016-06-28 | K75: 79649000 | L75: 240.08 | M75: 0.3343 | P75: 2016-09-08 | Q75: 1639000
H76: 2015 | I76: KS200 KOSPI 200 | J76: 2016-06-27 | K76: 95451000 | L76: 239.28 | M76: 0.0293 | P76: 2016-09-07 | Q76: 1621000
H77: 2015 | I77: KS200 KOSPI 200 | J77: 2016-06-24 | K77: 190033000 | L77: 239.21 | M77: -2.8825 | P77: 2016-09-06 | Q77: 1643000
H78: 2015 | I78: KS200 KOSPI 200 | J78: 2016-06-23 | K78: 65983000 | L78: 246.31 | M78: -0.1783 | P78: 2016-09-05 | Q78: 1606000
H79: 2015 | I79: KS200 KOSPI 200 | J79: 2016-06-22 | K79: 65849000 | L79: 246.75 | M79: 0.5747 | P79: 2016-09-02 | Q79: 1597000
H80: 2015 | I80: KS200 KOSPI 200 | J80: 2016-06-21 | K80: 58403000 | L80: 245.34 | M80: 0.0693 | P80: 2016-09-01 | Q80: 1587000
H81: 2015 | I81: KS200 KOSPI 200 | J81: 2016-06-20 | K81: 75085000 | L81: 245.17 | M81: 1.465 | P81: 2016-08-31 | Q81: 1620000
H82: 2015 | I82: KS200 KOSPI 200 | J82: 2016-06-17 | K82: 77334000 | L82: 241.63 | M82: 0.0083 | P82: 2016-08-30 | Q82: 1645000
H83: 2015 | I83: KS200 KOSPI 200 | J83: 2016-06-16 | K83: 83308000 | L83: 241.61 | M83: -0.6946 | P83: 2016-08-29 | Q83: 1640000
H84: 2015 | I84: KS200 KOSPI 200 | J84: 2016-06-15 | K84: 84096000 | L84: 243.3 | M84: -0.0205 | P84: 2016-08-26 | Q84: 1612000
H85: 2015 | I85: KS200 KOSPI 200 | J85: 2016-06-14 | K85: 107840000 | L85: 243.35 | M85: -0.2868 | P85: 2016-08-25 | Q85: 1639000
H86: 2015 | I86: KS200 KOSPI 200 | J86: 2016-06-13 | K86: 79115000 | L86: 244.05 | M86: -1.9722 | P86: 2016-08-24 | Q86: 1653000
H87: 2015 | I87: KS200 KOSPI 200 | J87: 2016-06-10 | K87: 89453000 | L87: 248.96 | M87: -0.4916 | P87: 2016-08-23 | Q87: 1687000
H88: 2015 | I88: KS200 KOSPI 200 | J88: 2016-06-09 | K88: 138770000 | L88: 250.19 | M88: 0.06 | P88: 2016-08-22 | Q88: 1665000
H89: 2015 | I89: KS200 KOSPI 200 | J89: 2016-06-08 | K89: 90733000 | L89: 250.04 | M89: 0.8836 | P89: 2016-08-19 | Q89: 1675000
H90: 2015 | I90: KS200 KOSPI 200 | J90: 2016-06-07 | K90: 79435000 | L90: 247.85 | M90: 1.4158 | P90: 2016-08-18 | Q90: 1640000
H91: 2015 | I91: KS200 KOSPI 200 | J91: 2016-06-03 | K91: 86345000 | L91: 244.39 | M91: 0.086 | P91: 2016-08-17 | Q91: 1566000
H92: 2015 | I92: KS200 KOSPI 200 | J92: 2016-06-02 | K92: 78953000 | L92: 244.18 | M92: 0.2463 | P92: 2016-08-16 | Q92: 1568000
H93: 2015 | I93: KS200 KOSPI 200 | J93: 2016-06-01 | K93: 78835000 | L93: 243.58 | M93: -0.0205 | P93: 2016-08-12 | Q93: 1545000
H94: 2015 | I94: KS200 KOSPI 200 | J94: 2016-05-31 | K94: 117967000 | L94: 243.63 | M94: 0.786 | P94: 2016-08-11 | Q94: 1559000
H95: 2015 | I95: KS200 KOSPI 200 | J95: 2016-05-30 | K95: 67446000 | L95: 241.73 | M95: -0.0496 | P95: 2016-08-10 | Q95: 1541000
H96: 2015 | I96: KS200 KOSPI 200 | J96: 2016-05-27 | K96: 92225000 | L96: 241.85 | M96: 0.5279 | P96: 2016-08-09 | Q96: 1567000
H97: 2015 | I97: KS200 KOSPI 200 | J97: 2016-05-26 | K97: 130282000 | L97: 240.58 | M97: -0.137 | P97: 2016-08-08 | Q97: 1569000
H98: 2015 | I98: KS200 KOSPI 200 | J98: 2016-05-25 | K98: 91189000 | L98: 240.91 | M98: 1.3718 | P98: 2016-08-05 | Q98: 1561000
H99: 2015 | I99: KS200 KOSPI 200 | J99: 2016-05-24 | K99: 89473000 | L99: 237.65 | M99: -0.9172 | P99: 2016-08-04 | Q99: 1517000
H100: 2015 | I100: KS200 KOSPI 200 | J100: 2016-05-23 | K100: 57834000 | L100: 239.85 | M100: 0.4649 | P100: 2016-08-03 | Q100: 1517000
H101: 2015 | I101: KS200 KOSPI 200 | J101: 2016-05-20 | K101: 65914000 | L101: 238.74 | M101: -0.1255 | P101: 2016-08-02 | Q101: 1548000
H102: 2015 | I102: KS200 KOSPI 200 | J102: 2016-05-19 | K102: 103128000 | L102: 239.04 | M102: -0.3252 | P102: 2016-08-01 | Q102: 1568000
H103: 2015 | I103: KS200 KOSPI 200 | J103: 2016-05-18 | K103: 103981000 | L103: 239.82 | M103: -0.502 | P103: 2016-07-29 | Q103: 1539000
H104: 2015 | I104: KS200 KOSPI 200 | J104: 2016-05-17 | K104: 71716000 | L104: 241.03 | M104: 0.0872 | P104: 2016-07-28 | Q104: 1507000
H105: 2015 | I105: KS200 KOSPI 200 | J105: 2016-05-16 | K105: 97138000 | L105: 240.82 | M105: 0.0914 | P105: 2016-07-27 | Q105: 1527000
H106: 2015 | I106: KS200 KOSPI 200 | J106: 2016-05-13 | K106: 74187000 | L106: 240.6 | M106: -0.718 | P106: 2016-07-26 | Q106: 1530000
H107: 2015 | I107: KS200 KOSPI 200 | J107: 2016-05-12 | K107: 81719000 | L107: 242.34 | M107: -0.3003 | P107: 2016-07-25 | Q107: 1502000
H108: 2015 | I108: KS200 KOSPI 200 | J108: 2016-05-11 | K108: 87896000 | L108: 243.07 | M108: -0.2503 | P108: 2016-07-22 | Q108: 1516000
H109: 2015 | I109: KS200 KOSPI 200 | J109: 2016-05-10 | K109: 114280000 | L109: 243.68 | M109: 0.5986 | P109: 2016-07-21 | Q109: 1543000
H110: 2015 | I110: KS200 KOSPI 200 | J110: 2016-05-09 | K110: 98228000 | L110: 242.23 | M110: -0.4439 | P110: 2016-07-20 | Q110: 1540000
H111: 2015 | I111: KS200 KOSPI 200 | J111: 2016-05-04 | K111: 110857000 | L111: 243.31 | M111: -0.4012 | P111: 2016-07-19 | Q111: 1533000
H112: 2015 | I112: KS200 KOSPI 200 | J112: 2016-05-03 | K112: 71151000 | L112: 244.29 | M112: 0.3368 | P112: 2016-07-18 | Q112: 1533000
H113: 2015 | I113: KS200 KOSPI 200 | J113: 2016-05-02 | K113: 78968000 | L113: 243.47 | M113: -0.7055 | P113: 2016-07-15 | Q113: 1518000
H114: 2015 | I114: KS200 KOSPI 200 | J114: 2016-04-29 | K114: 104339000 | L114: 245.2 | M114: -0.4345 | P114: 2016-07-14 | Q114: 1500000
H115: 2015 | I115: KS200 KOSPI 200 | J115: 2016-04-28 | K115: 108535000 | L115: 246.27 | M115: -0.9731 | P115: 2016-07-13 | Q115: 1481000
H116: 2015 | I116: KS200 KOSPI 200 | J116: 2016-04-27 | K116: 163101000 | L116: 248.69 | M116: -0.0924 | P116: 2016-07-12 | Q116: 1464000
H117: 2015 | I117: KS200 KOSPI 200 | J117: 2016-04-26 | K117: 134475000 | L117: 248.92 | M117: 0.3184 | P117: 2016-07-11 | Q117: 1489000
H118: 2015 | I118: KS200 KOSPI 200 | J118: 2016-04-25 | K118: 129122000 | L118: 248.13 | M118: -0.0765 | P118: 2016-07-08 | Q118: 1460000
H119: 2015 | I119: KS200 KOSPI 200 | J119: 2016-04-22 | K119: 105792000 | L119: 248.32 | M119: -0.429 | P119: 2016-07-07 | Q119: 1450000
H120: 2015 | I120: KS200 KOSPI 200 | J120: 2016-04-21 | K120: 87879000 | L120: 249.39 | M120: 0.8614 | P120: 2016-07-06 | Q120: 1421000
H121: 2015 | I121: KS200 KOSPI 200 | J121: 2016-04-20 | K121: 93348000 | L121: 247.26 | M121: -0.2501 | P121: 2016-07-05 | Q121: 1469000
H122: 2015 | I122: KS200 KOSPI 200 | J122: 2016-04-19 | K122: 99751000 | L122: 247.88 | M122: -0.0484 | P122: 2016-07-04 | Q122: 1466000
H123: 2015 | I123: KS200 KOSPI 200 | J123: 2016-04-18 | K123: 82379000 | L123: 248 | M123: -0.2133 | P123: 2016-07-01 | Q123: 1466000
H124: 2015 | I124: KS200 KOSPI 200 | J124: 2016-04-15 | K124: 99585000 | L124: 248.53 | M124: -0.1446 | P124: 2016-06-30 | Q124: 1425000
H125: 2015 | I125: KS200 KOSPI 200 | J125: 2016-04-14 | K125: 136903000 | L125: 248.89 | M125: 2.1255 | P125: 2016-06-29 | Q125: 1396000
H126: 2015 | I126: KS200 KOSPI 200 | J126: 2016-04-12 | K126: 102075000 | L126: 243.71 | M126: 0.6816 | P126: 2016-06-28 | Q126: 1397999.72
H127: 2015 | I127: KS200 KOSPI 200 | J127: 2016-04-11 | K127: 89459000 | L127: 242.06 | M127: 0.1199 | P127: 2016-06-27 | Q127: 1397000.43
H128: 2015 | I128: KS200 KOSPI 200 | J128: 2016-04-08 | K128: 117363000 | L128: 241.77 | M128: -0.2146 | P128: 2016-06-24 | Q128: 1398999
H129: 2015 | I129: KS200 KOSPI 200 | J129: 2016-04-07 | K129: 138884000 | L129: 242.29 | M129: 0.124 | P129: 2016-06-23 | Q129: 1428977.55
H130: 2015 | I130: KS200 KOSPI 200 | J130: 2016-04-06 | K130: 103088000 | L130: 241.99 | M130: 0.5861 | P130: 2016-06-22 | Q130: 1443966.82
H131: 2015 | I131: KS200 KOSPI 200 | J131: 2016-04-05 | K131: 63929000 | L131: 240.58 | M131: -1.0163 | P131: 2016-06-21 | Q131: 1446964.68
H132: =YEAR(J132)-1 -> 2015 | I132: KS200 KOSPI 200 | J132: 2016-04-04 | K132: 68618000 | L132: 243.05 | M132: 0.2847 | P132: 2016-06-20 | Q132: 1429976.83
H133: 2015 | I133: KS200 KOSPI 200 | J133: 2016-04-01 | K133: 157191000 | L133: 242.36 | M133: -1.4236 | P133: 2016-06-17 | Q133: 1424980.41
H134: 2015 | I134: KS200 KOSPI 200 | J134: 2016-03-31 | K134: 89221000 | L134: 245.86 | M134: -0.2758 | P134: 2016-06-16 | Q134: 1407992.56
H135: 2015 | I135: KS200 KOSPI 200 | J135: 2016-03-30 | K135: 103093000 | L135: 246.54 | M135: 0.4114 | P135: 2016-06-15 | Q135: 1411989.71
H136: 2015 | I136: KS200 KOSPI 200 | J136: 2016-03-29 | K136: 103640000 | L136: 245.53 | M136: 0.6477 | P136: 2016-06-14 | Q136: 1379013.3
H137: 2015 | I137: KS200 KOSPI 200 | J137: 2016-03-28 | K137: 104247000 | L137: 243.95 | M137: 0.0656 | P137: 2016-06-13 | Q137: 1370019.73
H138: 2015 | I138: KS200 KOSPI 200 | J138: 2016-03-25 | K138: 73172000 | L138: 243.79 | M138: -0.1188 | P138: 2016-06-10 | Q138: 1404994.71
H139: 2015 | I139: KS200 KOSPI 200 | J139: 2016-03-24 | K139: 74739000 | L139: 244.08 | M139: -0.4689 | P139: 2016-06-09 | Q139: 1428977.55
H140: 2015 | I140: KS200 KOSPI 200 | J140: 2016-03-23 | K140: 72958000 | L140: 245.23 | M140: -0.0733 | P140: 2016-06-08 | Q140: 1404994.71
H141: 2015 | I141: KS200 KOSPI 200 | J141: 2016-03-22 | K141: 73835000 | L141: 245.41 | M141: 0.4626 | P141: 2016-06-07 | Q141: 1397000.43
H142: 2015 | I142: KS200 KOSPI 200 | J142: 2016-03-21 | K142: 72832000 | L142: 244.28 | M142: -0.1431 | P142: 2016-06-03 | Q142: 1376015.45
H143: 2015 | I143: KS200 KOSPI 200 | J143: 2016-03-18 | K143: 77050000 | L143: 244.63 | M143: 0.2212 | P143: 2016-06-02 | Q143: 1364024.02
H144: 2015 | I144: KS200 KOSPI 200 | J144: 2016-03-17 | K144: 88888000 | L144: 244.09 | M144: 0.718 | P144: 2016-06-01 | Q144: 1332046.91
H145: 2015 | I145: KS200 KOSPI 200 | J145: 2016-03-16 | K145: 73418000 | L145: 242.35 | M145: 0.215 | P145: 2016-05-31 | Q145: 1291076.22
H146: 2015 | I146: KS200 KOSPI 200 | J146: 2016-03-15 | K146: 67444000 | L146: 241.83 | M146: -0.1321 | P146: 2016-05-30 | Q146: 1279084.8
H147: 2015 | I147: KS200 KOSPI 200 | J147: 2016-03-14 | K147: 73873000 | L147: 242.15 | M147: 0.0744 | P147: 2016-05-27 | Q147: 1281083.37
H148: 2015 | I148: KS200 KOSPI 200 | J148: 2016-03-11 | K148: 60923000 | L148: 241.97 | M148: 0.2237 | P148: 2016-05-26 | Q148: 1295073.36
H149: 2015 | I149: KS200 KOSPI 200 | J149: 2016-03-10 | K149: 84245000 | L149: 241.43 | M149: 0.9618 | P149: 2016-05-25 | Q149: 1294074.07
H150: 2015 | I150: KS200 KOSPI 200 | J150: 2016-03-09 | K150: 76741000 | L150: 239.13 | M150: 0.2894 | P150: 2016-05-24 | Q150: 1270091.23
H151: 2015 | I151: KS200 KOSPI 200 | J151: 2016-03-08 | K151: 119589000 | L151: 238.44 | M151: -0.7369 | P151: 2016-05-23 | Q151: 1285080.51
H152: 2015 | I152: KS200 KOSPI 200 | J152: 2016-03-07 | K152: 134368000 | L152: 240.21 | M152: 0.196 | P152: 2016-05-20 | Q152: 1268092.67
H153: 2015 | I153: KS200 KOSPI 200 | J153: 2016-03-04 | K153: 116636000 | L153: 239.74 | M153: -0.1458 | P153: 2016-05-19 | Q153: 1269091.95
H154: 2015 | I154: KS200 KOSPI 200 | J154: 2016-03-03 | K154: 111241000 | L154: 240.09 | M154: 0.6118 | P154: 2016-05-18 | Q154: 1267093.38
H155: 2015 | I155: KS200 KOSPI 200 | J155: 2016-03-02 | K155: 108552000 | L155: 238.63 | M155: 1.7048 | P155: 2016-05-17 | Q155: 1263096.24
H156: 2015 | I156: KS200 KOSPI 200 | J156: 2016-02-29 | K156: 80365000 | L156: 234.63 | M156: -0.2508 | P156: 2016-05-16 | Q156: 1247107.68
H157: 2015 | I157: KS200 KOSPI 200 | J157: 2016-02-26 | K157: 77666000 | L157: 235.22 | M157: -0.0637 | P157: 2016-05-13 | Q157: 1252104.1
H158: 2015 | I158: KS200 KOSPI 200 | J158: 2016-02-25 | K158: 73320000 | L158: 235.37 | M158: 0.1958 | P158: 2016-05-12 | Q158: 1280084.08
H159: 2015 | I159: KS200 KOSPI 200 | J159: 2016-02-24 | K159: 70373000 | L159: 234.91 | M159: -0.0511 | P159: 2016-05-11 | Q159: 1291076.22
H160: 2015 | I160: KS200 KOSPI 200 | J160: 2016-02-23 | K160: 70243000 | L160: 235.03 | M160: 0.034 | P160: 2016-05-10 | Q160: 1295073.36
H161: 2015 | I161: KS200 KOSPI 200 | J161: 2016-02-22 | K161: 59585000 | L161: 234.95 | M161: -0.136 | P161: 2016-05-09 | Q161: 1298071.22
H162: 2015 | I162: KS200 KOSPI 200 | J162: 2016-02-19 | K162: 74343000 | L162: 235.27 | M162: 0.2258 | P162: 2016-05-04 | Q162: 1289077.65
H163: 2015 | I163: KS200 KOSPI 200 | J163: 2016-02-18 | K163: 81408000 | L163: 234.74 | M163: 1.2072 | P163: 2016-05-03 | Q163: 1260098.39
H164: 2015 | I164: KS200 KOSPI 200 | J164: 2016-02-17 | K164: 95029000 | L164: 231.94 | M164: 0.1814 | P164: 2016-05-02 | Q164: 1249106.25
H165: 2015 | I165: KS200 KOSPI 200 | J165: 2016-02-16 | K165: 76713000 | L165: 231.52 | M165: 1.366 | P165: 2016-04-29 | Q165: 1244109.82
H166: 2015 | I166: KS200 KOSPI 200 | J166: 2016-02-15 | K166: 82005000 | L166: 228.4 | M166: 1.5201 | P166: 2016-04-28 | Q166: 1264095.52
H167: 2015 | I167: KS200 KOSPI 200 | J167: 2016-02-12 | K167: 122056000 | L167: 224.98 | M167: -0.7587 | P167: 2016-04-27 | Q167: 1299070.5
H168: 2015 | I168: KS200 KOSPI 200 | J168: 2016-02-11 | K168: 83572000 | L168: 226.7 | M168: -2.829 | P168: 2016-04-26 | Q168: 1295073.36
H169: 2015 | I169: KS200 KOSPI 200 | J169: 2016-02-05 | K169: 90042000 | L169: 233.3 | M169: 0.1674 | P169: 2016-04-25 | Q169: 1280084.08
H170: 2015 | I170: KS200 KOSPI 200 | J170: 2016-02-04 | K170: 84734000 | L170: 232.91 | M170: 1.7207 | P170: 2016-04-22 | Q170: 1279084.8
H171: 2015 | I171: KS200 KOSPI 200 | J171: 2016-02-03 | K171: 77801000 | L171: 228.97 | M171: -0.9217 | P171: 2016-04-21 | Q171: 1293074.79
H172: 2015 | I172: KS200 KOSPI 200 | J172: 2016-02-02 | K172: 87257000 | L172: 231.1 | M172: -1.0998 | P172: 2016-04-20 | Q172: 1298071.22
H173: 2015 | I173: KS200 KOSPI 200 | J173: 2016-02-01 | K173: 106256000 | L173: 233.67 | M173: 0.6764 | P173: 2016-04-19 | Q173: 1287079.08
H174: 2015 | I174: KS200 KOSPI 200 | J174: 2016-01-29 | K174: 107901000 | L174: 232.1 | M174: 0.2548 | P174: 2016-04-18 | Q174: 1298071.22
H175: 2015 | I175: KS200 KOSPI 200 | J175: 2016-01-28 | K175: 131304000 | L175: 231.51 | M175: 0.2381 | P175: 2016-04-15 | Q175: 1299070.5
H176: 2015 | I176: KS200 KOSPI 200 | J176: 2016-01-27 | K176: 92894000 | L176: 230.96 | M176: 1.6594 | P176: 2016-04-14 | Q176: 1299070.5
H177: 2015 | I177: KS200 KOSPI 200 | J177: 2016-01-26 | K177: 89529000 | L177: 227.19 | M177: -1.3118
H178: 2015 | I178: KS200 KOSPI 200 | J178: 2016-01-25 | K178: 75663000 | L178: 230.21 | M178: 0.6207
H179: 2015 | I179: KS200 KOSPI 200 | J179: 2016-01-22 | K179: 115529000 | L179: 228.79 | M179: 2.2251 | P179: 年月日 | Q179: 成交量(個股) | R179: 收盤價(元) | S179: 報酬率(％)
H180: 2015 | I180: KS200 KOSPI 200 | J180: 2016-01-21 | K180: 145375000 | L180: 223.81 | M180: -0.3251 | P180: 2015-10-14 | Q180: 175051 | R180: 1233306.49 | S180: 0.1597
H181: 2015 | I181: KS200 KOSPI 200 | J181: 2016-01-20 | K181: 121075000 | L181: 224.54 | M181: -2.4079 | P181: 2015-10-15 | Q181: 248503 | R181: 1248058.96 | S181: 1.1962
H182: 2015 | I182: KS200 KOSPI 200 | J182: 2016-01-19 | K182: 80142000 | L182: 230.08 | M182: 0.6518 | P182: 2015-10-16 | Q182: 143968 | R182: 1244124.97 | S182: -0.3152
H183: 2015 | I183: KS200 KOSPI 200 | J183: 2016-01-18 | K183: 79303000 | L183: 228.59 | M183: -0.083 | P183: 2015-10-19 | Q183: 117070 | R183: 1235273.49 | S183: -0.7115
H184: 2015 | I184: KS200 KOSPI 200 | J184: 2016-01-15 | K184: 96871000 | L184: 228.78 | M184: -1.1237 | P184: 2015-10-20 | Q184: 150347 | R184: 1245108.47 | S184: 0.7962
H185: 2015 | I185: KS200 KOSPI 200 | J185: 2016-01-14 | K185: 78137000 | L185: 231.38 | M185: -0.9164 | P185: 2015-10-21 | Q185: 139567 | R185: 1249042.46 | S185: 0.316
H186: 2015 | I186: KS200 KOSPI 200 | J186: 2016-01-13 | K186: 71913000 | L186: 233.52 | M186: 1.2882 | P186: 2015-10-22 | Q186: 230673 | R186: 1258877.44 | S186: 0.7874
H187: 2015 | I187: KS200 KOSPI 200 | J187: 2016-01-12 | K187: 72237000 | L187: 230.55 | M187: -0.1213 | P187: 2015-10-23 | Q187: 263071 | R187: 1267728.92 | S187: 0.7031
H188: 2015 | I188: KS200 KOSPI 200 | J188: 2016-01-11 | K188: 76835000 | L188: 230.83 | M188: -1.2196 | P188: 2015-10-26 | Q188: 152165 | R188: 1270679.42 | S188: 0.2327
H189: 2015 | I189: KS200 KOSPI 200 | J189: 2016-01-08 | K189: 117165000 | L189: 233.68 | M189: 0.7545 | P189: 2015-10-27 | Q189: 132241 | R189: 1276580.4 | S189: 0.4644
H190: 2015 | I190: KS200 KOSPI 200 | J190: 2016-01-07 | K190: 88012000 | L190: 231.93 | M190: -1.1381 | P190: 2015-10-28 | Q190: 271303 | R190: 1286415.38 | S190: 0.7704
H191: 2015 | I191: KS200 KOSPI 200 | J191: 2016-01-06 | K191: 89014000 | L191: 234.6 | M191: -0.6479 | P191: 2015-10-29 | Q191: 630471 | R191: 1303134.85 | S191: 1.2997
H192: 2015 | I192: KS200 KOSPI 200 | J192: 2016-01-05 | K192: 67017000 | L192: 236.13 | M192: 0.6393 | P192: 2015-10-30 | Q192: 509385 | R192: 1349359.26 | S192: 3.5472
H193: 2015 | I193: KS200 KOSPI 200 | J193: 2016-01-04 | K193: 68179000 | L193: 234.63 | M193: -2.392 | P193: 2015-11-02 | Q193: 386546 | R193: 1360177.73 | S193: 0.8017
H194: 2014 | I194: KS200 KOSPI 200 | J194: 2015-12-30 | K194: 67554000 | L194: 240.38 | M194: -0.3482 | P194: 2015-11-03 | Q194: 301840 | R194: 1329689.3 | S194: -2.2415
H195: 2014 | I195: KS200 KOSPI 200 | J195: 2015-12-29 | K195: 61633000 | L195: 241.22 | M195: -0.2357 | P195: 2015-11-04 | Q195: 281070 | R195: 1308052.34 | S195: -1.6272
H196: =YEAR(J196)-1 -> 2014 | I196: KS200 KOSPI 200 | J196: 2015-12-28 | K196: 66381000 | L196: 241.79 | M196: -1.443 | P196: 2015-11-05 | Q196: 173042 | R196: 1319854.32 | S196: 0.9023
H197: 2014 | I197: KS200 KOSPI 200 | J197: 2015-12-24 | K197: 58777000 | L197: 245.33 | M197: -0.4868 | P197: 2015-11-06 | Q197: 164322 | R197: 1315920.32 | S197: -0.2981
H198: 2014 | I198: KS200 KOSPI 200 | J198: 2015-12-23 | K198: 68707000 | L198: 246.53 | M198: 0.4277 | P198: 2015-11-09 | Q198: 185661 | R198: 1321821.31 | S198: 0.4484
H199: 2014 | I199: KS200 KOSPI 200 | J199: 2015-12-22 | K199: 69970000 | L199: 245.48 | M199: 0.7056 | P199: 2015-11-10 | Q199: 197551 | R199: 1299200.86 | S199: -1.7113
H200: 2014 | I200: KS200 KOSPI 200 | J200: 2015-12-21 | K200: 53527000 | L200: 243.76 | M200: 0.3128 | P200: 2015-11-11 | Q200: 140449 | R200: 1311002.83 | S200: 0.9084
... 225 more rows

Sheet Products
A1: 005930 Samsung Elec
B2: 2016-03-31 | C2: 2016-03-31
A3: 營業項目 | B3: 收入比率 | C3: 收入 | F3: 變動 | H3: 營業項目 | I3: 收入比率
A4: Telecommunication Device | B4: 55.44 | C4: 27599.9 | F4: =IF(A4="","",ROUND(B4-D4,2)) -> 55.44 | H4: =IF(OR(A4="",B4<=0),"",A4) -> Telecommunication Device | I4: =IF(OR(A4="",B4<=0),"",B4) -> 55.44
A5: Component of Semiconductor | B5: 22.4 | C5: 11151.9 | F5: =IF(A5="","",ROUND(B5-D5,2)) -> 22.4 | H5: Component of Semiconductor | I5: =IF(OR(A5="",B5<=0),"",B5) -> 22.4
A6: Digital Display and Media | B6: 21.34 | C6: 10623.3 | F6: 21.34 | H6: Digital Display and Media | I6: 21.34
A7: TFT-LCD Monitor | B7: 12.12 | C7: 6035.6 | F7: 12.12 | H7: TFT-LCD Monitor | I7: 12.12
A8: Other | B8: -11.28 | C8: -5616.4 | F8: =IF(A8="","",ROUND(B8-D8,2)) -> -11.28
F10: =IF(A10="","",ROUND(B10-D10,2)) -> 

Sheet Dividend
A1: 005930 Samsung Elec
A2: 除息日 | B2: 現金股息-主要股東 | C2: 現金股息-少數股東 | D2: 股息發放日 | E2: 分配年度
A3: 2015-12-29 | B3: 20000 | C3: 20000 | E3: 2015-12-31
A4: 2015-06-29 | B4: 1000 | C4: 1000 | D4: 2015-08-28 | E4: 2015-06-30
A5: 2014-12-29 | B5: 19500 | C5: 19500 | E5: 2014-12-31
A6: 2014-06-27 | B6: 500 | C6: 500 | D6: 2014-08-29 | E6: 2014-06-30
A7: 2013-12-27 | B7: 13800 | C7: 13800 | E7: 2013-12-31
A8: 2013-06-27 | B8: 500 | C8: 500 | D8: 2013-08-26 | E8: 2013-06-30
A9: 2012-12-27 | B9: 7500 | C9: 7500 | D9: 2013-04-15 | E9: 2012-12-31
A10: 2012-06-28 | B10: 500 | C10: 500 | D10: 2012-08-27 | E10: 2012-06-30
A11: 2011-12-28 | B11: 5000 | C11: 5000 | D11: 2012-04-16 | E11: 2011-12-31
A12: 2011-06-29 | B12: 500 | C12: 500 | D12: 2011-08-26 | E12: 2011-06-30
A13: 2010-12-29 | B13: 5000 | C13: 5000 | D13: 2011-04-18 | E13: 2010-12-31
A14: 2010-06-29 | B14: 5000 | C14: 5000 | D14: 2010-08-30 | E14: 2010-06-30

Sheet Finance
A1: 005930 Samsung Elec
A2: Data Field | B2: 2015-06-30 | C2: 2015-09-30 | D2: 2015-12-30 | E2: 2016-03-31 | F2: 2016-06-30
A3: 現金及約當現金 | B3: 17865256 | C3: 23608377 | D3: 22636744 | E3: 24769756 | F3: 25840759
A4: 透過損益按公允價值衡量之金融資產─流動 | B4: 0 | C4: 0 | D4: 0 | E4: 0 | F4: 0
A5: 備供出售金融資產─流動 | B5: 5110168 | C5: 5220977 | D5: 4627530 | E5: 5829204 | F5: 3781006
A6: 持有至到期日金融資產─流動 | B6: 0 | C6: 0 | D6: 0 | E6: 0 | F6: 0
A7: 避險之衍生性金融資產─流動 | B7: 0 | C7: 0 | D7: 0 | E7: 0 | F7: 0
A8: 無活絡市場之債券投資─流動 | B8: 0 | C8: 0 | D8: 0 | E8: 0 | F8: 0
A9: 應收帳款及票據 | B9: 25578142 | C9: 27631463 | D9: 25168026 | E9: 25505630 | F9: 26081803
A10: 應收建造合約款 | B10: 0 | C10: 0 | D10: 0 | E10: 0 | F10: 0
A11: 其他應收款 | B11: 2591286 | C11: 3062872 | D11: 3352663 | E11: 2980401 | F11: 2942063
A12: 資金貸予他人─流動 | B12: 0 | C12: 0 | D12: 0 | E12: 0 | F12: 0
A13: 存貨 | B13: 19311159 | C13: 22841069 | D13: 18811794 | E13: 18749882 | F13: 17858721
A14: 生物資產流動 | B14: 0 | C14: 0 | D14: 0 | E14: 0 | F14: 0
A15: 預付費用及預付款 | B15: 5335581 | C15: 5405086 | D15: 4876635 | E15: 5807079 | F15: 5320933
A16: 應收代理店款 | B16: 0 | C16: 0 | D16: 0 | E16: 0 | F16: 0
A17: 待出售非流動資產 | B17: 27507 | C17: 0 | D17: 77073 | E17: 0 | F17: 0
A18: 當期所得稅資產─流動 | F18: 0
A19: 其他金融資產─流動 | B19: 38858419 | C19: 40895407 | D19: 44228800 | E19: 42013517 | F19: 47449558
A20: 其他流動資產 | B20: 1112133 | C20: 1113148 | D20: 1035460 | E20: 931700 | F20: 888206
A21: 流動資產 | B21: 115789651 | C21: 129778399 | D21: 124814725 | E21: 126587169 | F21: 130163049
A22: 透過損益按公允價值衡量之金融資產─非流動 | F22: 0
A23: 備供出售金融資產─非流動 | B23: 9163116 | C23: 8628872 | D23: 8332480 | E23: 8441533 | F23: 8398201
A24: 持有至到期日金融資產─非流動 | B24: 0 | C24: 0 | D24: 0 | E24: 0 | F24: 0
A25: 避險之衍生性金融資產─非流動 | B25: 0 | C25: 0 | D25: 0 | E25: 0 | F25: 0
A26: 無活絡市場之債券投資─非流動 | B26: 0 | C26: 0 | D26: 0 | E26: 0 | F26: 0
A27: 採權益法之長期股權投資 | B27: 5303043 | C27: 5406135 | D27: 5276348 | E27: 3942349 | F27: 3942525
A28: 預付投資款
A29: 不動產廠房及設備 | B29: 84666258 | C29: 86560428 | D29: 86477110 | E29: 85565347 | F29: 84634963
A30: 商譽及無形資產合計 | B30: 5530413 | C30: 5560298 | D30: 5396311 | E30: 5375031 | F30: 5247797
A31: 遞延所得稅資產 | B31: 4599808 | C31: 4522873 | D31: 5589108 | E31: 4846762 | F31: 5331307
A32: 其他遞延資產淨額 | B32: 0 | C32: 0 | D32: 0 | E32: 0 | F32: 0
A33: 遞延資產合計 | B33: 4599808 | C33: 4522873 | D33: 5589108 | E33: 4846762 | F33: 5331307
A34: 投資性不動產淨額 | B34: 0 | C34: 0 | D34: 0 | E34: 0 | F34: 0
A35: 生物資產非流動 | B35: 0 | C35: 0 | D35: 0 | E35: 0 | F35: 0
A36: 所得稅資產非流動 | F36: 0
A37: 其他金融資產--非流動 | B37: 0 | C37: 0 | D37: 0 | E37: 0 | F37: 0
A38: 其他非流動資產 | B38: 6638597 | C38: 6110568 | D38: 6293439 | E38: 6481598 | F38: 6242831
A39: 非流動資產 | B39: 115901235 | C39: 116789174 | D39: 117364796 | E39: 114652620 | F39: 113797624
A40: 資產總額 | B40: 231690886 | C40: 246567573 | D40: 242179521 | E40: 241239789 | F40: 243960673
A41: 短期借款 | B41: 9771024 | C41: 11303099 | D41: 11155425 | E41: 9465181 | F41: 10259758
A42: 應付商業本票／承兌匯票 | B42: 0 | C42: 0 | D42: 0 | E42: 0 | F42: 0
A43: 透過損益按公允價值衡量之金融負債─流動 | F43: 0
A44: 避險之衍生性金融負債─流動 | B44: 0 | C44: 0 | D44: 0 | E44: 0 | F44: 0
A45: 應付帳款及票據 | B45: 6766875 | C45: 9842913 | D45: 6187291 | E45: 7829743 | F45: 7344748
A46: 應付建造合約款 | F46: 0
A47: 其他應付款 | B47: 17710936 | C47: 18745157 | D47: 20493117 | E47: 20164892 | F47: 17833406
A48: 當期所得稅負債 | B48: 1750571 | C48: 1712186 | D48: 3401625 | E48: 1894858 | F48: 1863772
A49: 負債準備──流動 | B49: 7594916 | C49: 8885694 | D49: 6420603 | E49: 6467550 | F49: 6413045
A50: 與待出售非流動資產直接相關之負債 | B50: 0 | C50: 0 | D50: 0 | E50: 0 | F50: 0
A51: 其他金融負債─流動 | F51: 0
A52: 預收款項 | B52: 1313180 | C52: 1314436 | D52: 1343432 | E52: 1414672 | F52: 1351841
A53: 一年內到期長期負債 | B53: 53198 | C53: 46910 | D53: 221548 | E53: 221055 | F53: 1389682
A54: 特別股負債─流動 | F54: 0
A55: 應付代理店款 | B55: 0 | C55: 0 | D55: 0 | E55: 0 | F55: 0
A56: 其他流動負債 | B56: 1190000 | C56: 1178000 | D56: 1279868 | E56: 1591549 | F56: 1551912
A57: 流動負債 | B57: 46150700 | C57: 53028395 | D57: 50502909 | E57: 49049500 | F57: 48008164
A58: 透過損益按公允價值衡量之金融負債─非流動 | F58: 0
A59: 避險之衍生性金融負債─非流動 | B59: 0 | C59: 0 | D59: 0 | E59: 0 | F59: 0
A60: 特別股負債─非流動 | F60: 0
A61: 應付公司債─非流動 | B61: 1383809 | C61: 1458885 | D61: 1230448 | E61: 1211856 | F61: 62085
A62: 銀行借款─非流動 | B62: 105649 | C62: 78001 | D62: 266542 | E62: 367543 | F62: 533222
A63: 其他長期借款─非流動 | B63: 0 | C63: 0 | D63: 0 | E63: 0 | F63: 0
A64: 負債準備─非流動 | B64: 629198 | C64: 692508 | D64: 522378 | E64: 573484 | F64: 624509
A65: 遞延貸項 | B65: 0 | C65: 0 | D65: 0 | E65: 0 | F65: 0
A66: 應計退休金負債 | B66: 750633 | C66: 1012175 | D66: 358820 | E66: 593657 | F66: 880552
A67: 遞延所得稅 | B67: 4981059 | C67: 5242795 | D67: 5154792 | E67: 5789199 | F67: 6465189
A68: 所得稅負債 | F68: 0
A69: 其他非流動負債 | B69: 3753192 | C69: 4326178 | D69: 5083827 | E69: 5328364 | F69: 5544436
A70: 非流動負債 | B70: 11603540 | C70: 12810542 | D70: 12616807 | E70: 13864103 | F70: 14109993
A71: 負債總額 | B71: 57754240 | C71: 65838937 | D71: 63119716 | E71: 62913603 | F71: 62118157
A72: 普通股股本 | B72: 778047 | C72: 778047 | D72: 778047 | E72: 778047 | F72: 778047
A73: 特別股股本 | B73: 119467 | C73: 119467 | D73: 119467 | E73: 119467 | F73: 119467
A74: 換股權利證書 | B74: 0 | C74: 0 | D74: 0 | E74: 0 | F74: 0
A75: 股本 | B75: 897514 | C75: 897514 | D75: 897514 | E75: 897514 | F75: 897514
A76: 資本公積─發行溢價 | B76: 4403893 | C76: 4403893 | D76: 4403893 | E76: 4403893 | F76: 4403893
A77: 其他資本公積 | B77: 0 | C77: 0 | E77: 0 | F77: 0
A78: 資本公積合計 | B78: 4403893 | C78: 4403893 | D78: 4403893 | E78: 4403893 | F78: 4403893
A79: 保留盈餘合計 | B79: 0 | C79: 0 | D79: 0 | E79: 0 | F79: 0
A80: 其他權益 | B80: -14225212 | C80: -12796100 | D80: -17556654 | E80: -16389883 | F80: -15583542
A81: 庫藏股票帳面值 | B81: 0 | C81: 0 | D81: 0 | E81: 0 | F81: 0
A82: 母公司股東權益合計 | B82: 167808559 | C82: 174394863 | D82: 172876767 | E82: 172130138 | F82: 175638353
A83: 非控制權益 | B83: 6128087 | C83: 6333773 | D83: 6183038 | E83: 6196048 | F83: 6204163
A84: 股東權益總額 | B84: 173936646 | C84: 180728636 | D84: 179059805 | E84: 178326186 | F84: 181842516
A85: 負債及股東權益總額 | B85: 231690886 | C85: 246567573 | D85: 242179521 | E85: 241239789 | F85: 243960673
A86: 營業收入毛額
A87: 退回及折讓
A88: 營業收入淨額 | B88: 95655457 | C88: 147338029 | D88: 200653482 | E88: 49782252 | F88: 100719372
A89: 營業成本 | B89: 57910986 | C89: 89520438 | D89: 123482118 | E89: 30373858 | F89: 59982976
A90: 營業毛利 | B90: 37744471 | C90: 57817591 | D90: 77171364 | E90: 19408394 | F90: 40736396
A91: 營業費用 | B91: 24867167 | C91: 37546914 | D91: 50757922 | E91: 12732582 | F91: 25916634
A92: 推銷費用 | B92: 0 | C92: 0 | D92: 0 | E92: 0 | F92: 0
A93: 管理費用 | B93: 24867167 | C93: 37546914 | D93: 50757922 | E93: 12732582 | F93: 25916634
A94: 研究發展費 | B94: 0 | C94: 0 | D94: 0 | E94: 0 | F94: 0
A95: 其他營業收入
A96: 其他營業費用
A97: 營業利益 | B97: 12877304 | C97: 20270677 | D97: 26413442 | E97: 6675812 | F97: 14819762
A98: 金融收入
A99: 金融費用
A100: 其他收益
A101: 其他費損
A102: 稅前淨利 | B102: 13846667 | C102: 21236786 | D102: 25960995 | E102: 7122485 | F102: 15194444
A103: 所得稅費用 | B103: -3468555 | C103: -5400115 | D103: -6900851 | E103: -1869682 | F103: -4094248
A104: 繼續營業單位損益 | B104: 10378112 | C104: 15836671 | D104: 19060144 | E104: 5252803 | F104: 11100196
A105: 停業單位損益 | B105: 0 | C105: 0 | D105: 0 | E105: 0 | F105: 0
A106: 合併總損益 | B106: 10378112 | C106: 15836671 | D106: 19060144 | E106: 5252803 | F106: 11100196
A107: 國外機構財務報表換算之兌換差額─OCI | B107: 269033 | C107: 2110157 | D107: 268315 | E107: -101428 | F107: 110275
A108: 備供出售金融資產未實現評價損益─OCI | B108: -478895 | C108: -818154 | D108: -414961 | E108: 74595 | F108: 29915
A109: 現金流量避險─OCI | B109: 0 | C109: 0 | D109: 0 | E109: 0 | F109: 0
A110: 國外營運機構淨投資避險─OCI | B110: 0 | C110: 0 | D110: 0 | E110: 0 | F110: 0
A111: 重估價之利益〈損失〉─OCI | B111: 0 | C111: 0 | D111: 0 | E111: 0 | F111: 0
A112: 確定福利計畫精算利益〈損失〉─OCI | B112: -49931 | C112: -67240 | D112: 263978 | E112: -22783 | F112: -47045
A113: 採用權益法認列之關聯企業及合資之其他綜合損益之份額─OCI | B113: 3766 | C113: 2037 | D113: -41261 | E113: -111579 | F113: -136216
A114: 其他綜合損益─其他─OCI | B114: 0 | C114: 0 | D114: 0 | E114: 0 | F114: 0
A115: 與其他綜合損益組成部分相關之所得稅─OCI | B115: 0 | C115: 0 | D115: 0 | E115: 0 | F115: 0
A116: 其他綜合損益─OCI | B116: -256027 | C116: 1226800 | D116: 76071 | E116: -161195 | F116: -43071
A117: 本期綜合損益總額 | B117: 10122085 | C117: 17063471 | D117: 19136215 | E117: 5091608 | F117: 11057125
A118: 本期稅後淨利〈歸屬母公司股東〉 | B118: 10146057 | C118: 15452161 | D118: 18694628 | E118: 5263506 | F118: 11089684
A119: 非控制權益淨利 | B119: 232055 | C119: 384510 | D119: 365516 | E119: -10703 | F119: 10512
A120: 母公司綜合損益 | B120: 9897687 | C120: 16632865 | D120: 18804189 | E120: 5070139 | F120: 11026386
A121: 非控制權益綜合損益 | B121: 224398 | C121: 430606 | D121: 332026 | E121: 21469 | F121: 30739
A122: 每股盈餘 | B122: 0.06809 | C122: 0.10372 | D122: 0.126305 | E122: 0.036356 | F122: 0.077266
A123: 加權平均股數 | B123: 129.387 | C123: 129.362 | D123: 129.19 | E123: 126.647 | F123: 125.693
A124: 發放特別股股息 | C124: 2034800 | D124: 2377353 | E124: 659120 | F124: 1377858
A125: 稀釋稅後淨利
A126: 每股盈餘─完全稀釋 | B126: 0.068089 | C126: 0.103718 | D126: 0.126303 | E126: 0.036356 | F126: 0.077266
A127: 加權平均股數─稀釋
A128: 普通股庫藏股股數(個股) | B128: 17.986686 | C128: 17.986686 | E128: 19.571265 | F128: 19.010776
A129: 當期財報面額(元) | B129: 0.005 | C129: 0.005 | D129: 0.005 | E129: 0.005 | F129: 0.005
A130: 特別股庫藏股股數(個股) | B130: 3.229693 | C130: 3.229693 | E130: 3.634419 | F130: 3.482507
A131: 已發行普通股數(個股) | B131: 147.299337 | C131: 147.299337 | D131: 147.299337 | E131: 145.069337 | F131: 142.969337
A132: 稅前息前淨利 | B132: 14202804 | C132: 21798157 | D132: 26737506 | E132: 7122485 | F132: 15194444
A133: 稅前息前折舊前淨利 | B133: 14549174 | C133: 22326135 | D133: 27452389 | E133: 7122485 | F133: 15194444
A134: 常續性稅後淨利 | B134: 10027749 | C134: 15398549 | D134: 20699321 | E134: 4815277 | F134: 10738937
A135: 普通股每股淨值 | B135: 1293.34974 | C135: 1343.88801 | D135: 1149.9327 | E135: 1345.93442 | F135: 1365.14686
A136: 營業毛利率 | B136: 39.46 | C136: 39.24 | D136: 38.46 | E136: 38.99 | F136: 40.45
A137: 營業利益率 | B137: 13.46 | C137: 13.76 | D137: 13.16 | E137: 13.41 | F137: 14.71
A138: 稅後淨利率 | B138: 10.61 | C138: 10.49 | D138: 9.32 | E138: 10.57 | F138: 11.01
A139: 本益比 | B139: 10.07 | C139: 8.5 | D139: 9.47 | E139: 9.74 | F139: 10.36
A140: 總資產週轉率(次) | B140: 0.41 | C140: 0.62 | D140: 0.85 | E140: 0.21 | F140: 0.41
A141: 應收帳款週轉率(次) | B141: 3.81 | C141: 5.63 | D141: 8.05 | E141: 1.96 | F141: 3.93
A142: 流動比率 | B142: 250.89 | C142: 244.73 | D142: 247.14 | E142: 258.08 | F142: 271.13
A143: 速動比率 | B143: 195.08 | C143: 189.37 | D143: 198.19 | E143: 206.12 | F143: 220.99
A144: 負債比率 | B144: 24.93 | C144: 26.7 | D144: 26.06 | E144: 26.08 | F144: 25.46
A145: 來自營運之現金流量 | B145: 15831595 | C145: 27705410 | D145: 40061761 | E145: 8718290 | F145: 22063135
A146: 投資活動之現金流量 | B146: -10160623 | C146: -18146352 | D146: -27167787 | E146: -2390665 | F146: -10176994
A147: 融資活動之現金流量 | B147: -4296669 | C147: -2985202 | D147: -6573509 | E147: -4261569 | F147: -8768488
A148: 匯率影響數 | B148: -349813 | C148: 193755 | D148: -524487 | E148: 66956 | F148: 86362
A149: 其他影響數 | B149: 0 | C149: 0 | D149: 0 | E149: 0 | F149: 0
A150: 本期產生現金流量 | B150: 1024490 | C150: 6767611 | D150: 5795978 | E150: 2133012 | F150: 3204015
A151: 期初現金及約當現金 | B151: 16840766 | C151: 16840766 | D151: 16840766 | E151: 22636744 | F151: 22636744
A152: 期末現金及約當現金 | B152: 17865256 | C152: 23608377 | D152: 22636744 | E152: 24769756 | F152: 25840759

Sheet ROI(Acc)
A1: 005930 Samsung Elec | C1: KS200 KOSPI 200 | F1: =RIGHT(A1,LEN(A1)-SEARCH(" ",A1,1)) -> Samsung Elec | G1: =RIGHT(C1,LEN(C1)-SEARCH(" ",C1,1)) -> KOSPI 200 | H1: =RIGHT(A1,LEN(A1)-SEARCH(" ",A1,1)) -> Samsung Elec | I1: =RIGHT(C1,LEN(C1)-SEARCH(" ",C1,1)) -> KOSPI 200
A2: 年月日 | B2: 報酬率(％) | C2: 年月日 | D2: 報酬率(％) | F2: 計算過程 | G2: 計算過程 | H2: 累積報酬率 | I2: 累積報酬率
A3: 2015-10-14 | B3: 0.1597 | C3: 2015-10-14 | D3: -0.4471 | F3: =1+B3/100 -> 1.001597 | G3: =1+D3/100 -> 0.995529 | H3: 0 | I3: 0
A4: 2015-10-15 | B4: 1.1962 | C4: 2015-10-15 | D4: 1.2044 | F4: =1+B4/100 -> 1.011962 | G4: =1+D4/100 -> 1.012044 | H4: =PRODUCT($F$4:F4)-1 -> 0.011962 | I4: =PRODUCT($G$4:G4)-1 -> 0.012044
A5: 2015-10-16 | B5: -0.3152 | C5: 2015-10-16 | D5: -0.2098 | F5: 0.996848 | G5: 0.997902 | H5: =PRODUCT($F$4:F5)-1 -> 0.008772295776 | I5: =PRODUCT($G$4:G5)-1 -> 0.009920731688
A6: 2015-10-19 | B6: -0.7115 | C6: 2015-10-19 | D6: 0.0404 | F6: 0.992885 | G6: 1.000404 | H6: =PRODUCT($F$4:F6)-1 -> 0.001594880892 | I6: =PRODUCT($G$4:G6)-1 -> 0.01032873966
A7: 2015-10-20 | B7: 0.7962 | C7: 2015-10-20 | D7: 0.4283 | F7: 1.007962 | G7: 1.004283 | H7: =PRODUCT($F$4:F7)-1 -> 0.009569579333 | I7: =PRODUCT($G$4:G7)-1 -> 0.01465597766
A8: 2015-10-21 | B8: 0.316 | C8: 2015-10-21 | D8: 0.2897 | F8: 1.00316 | G8: 1.002897 | H8: =PRODUCT($F$4:F8)-1 -> 0.0127598192 | I8: =PRODUCT($G$4:G8)-1 -> 0.01759543602
A9: 2015-10-22 | B9: 0.7874 | C9: 2015-10-22 | D9: -0.8144 | F9: 1.007874 | G9: 0.991856 | H9: =PRODUCT($F$4:F9)-1 -> 0.02073429002 | I9: =PRODUCT($G$4:G9)-1 -> 0.009308138792
A10: 2015-10-23 | B10: 0.7031 | C10: 2015-10-23 | D10: 0.8859 | F10: 1.007031 | G10: 1.008859 | H10: =PRODUCT($F$4:F10)-1 -> 0.02791107281 | I10: =PRODUCT($G$4:G10)-1 -> 0.01824959959
A11: 2015-10-26 | B11: 0.2327 | C11: 2015-10-26 | D11: 0.3809 | F11: 1.002327 | G11: 1.003809 | H11: =PRODUCT($F$4:F11)-1 -> 0.03030302188 | I11: =PRODUCT($G$4:G11)-1 -> 0.02212811232
A12: 2015-10-27 | B12: 0.4644 | C12: 2015-10-27 | D12: -0.1278 | F12: 1.004644 | G12: 0.998722 | H12: =PRODUCT($F$4:F12)-1 -> 0.03508774911 | I12: =PRODUCT($G$4:G12)-1 -> 0.02082183259
A13: 2015-10-28 | B13: 0.7704 | C13: 2015-10-28 | D13: -0.1 | F13: 1.007704 | G13: 0.999 | H13: =PRODUCT($F$4:F13)-1 -> 0.04306206513 | I13: =PRODUCT($G$4:G13)-1 -> 0.01980101076
A14: 2015-10-29 | B14: 1.2997 | C14: 2015-10-29 | D14: -0.3443 | F14: 1.012997 | G14: 0.996557 | H14: =PRODUCT($F$4:F14)-1 -> 0.05661874279 | I14: =PRODUCT($G$4:G14)-1 -> 0.01628983588
A15: 2015-10-30 | B15: 3.5472 | C15: 2015-10-30 | D15: 0.1928 | F15: 1.035472 | G15: 1.001928 | H15: =PRODUCT($F$4:F15)-1 -> 0.09409912284 | I15: =PRODUCT($G$4:G15)-1 -> 0.01824924268
A16: 2015-11-02 | B16: 0.8017 | C16: 2015-11-02 | D16: 0.4771 | F16: 1.008017 | G16: 1.004771 | H16: =PRODUCT($F$4:F16)-1 -> 0.1028705155 | I16: =PRODUCT($G$4:G16)-1 -> 0.02310730982
A17: 2015-11-03 | B17: -2.2415 | C17: 2015-11-03 | D17: 0.6065 | F17: 0.977585 | G17: 1.006065 | H17: =PRODUCT($F$4:F17)-1 -> 0.0781496729 | I17: =PRODUCT($G$4:G17)-1 -> 0.02931245565
A18: 2015-11-04 | B18: -1.6272 | C18: 2015-11-04 | D18: 0.0833 | F18: 0.983728 | G18: 1.000833 | H18: =PRODUCT($F$4:F18)-1 -> 0.06060602142 | I18: =PRODUCT($G$4:G18)-1 -> 0.03016987293
A19: 2015-11-05 | B19: 0.9023 | C19: 2015-11-05 | D19: -0.214 | F19: 1.009023 | G19: 0.99786 | H19: =PRODUCT($F$4:F19)-1 -> 0.07017586955 | I19: =PRODUCT($G$4:G19)-1 -> 0.0279653094
A20: 2015-11-06 | B20: -0.2981 | C20: 2015-11-06 | D20: -0.6116 | F20: 0.997019 | G20: 0.993884 | H20: =PRODUCT($F$4:F20)-1 -> 0.06698567529 | I20: =PRODUCT($G$4:G20)-1 -> 0.02167827357
A21: 2015-11-09 | B21: 0.4484 | C21: 2015-11-09 | D21: -0.4156 | F21: 1.004484 | G21: 0.995844 | H21: =PRODUCT($F$4:F21)-1 -> 0.07177003906 | I21: =PRODUCT($G$4:G21)-1 -> 0.01743217866
A22: 2015-11-10 | B22: -1.7113 | C22: 2015-11-10 | D22: -1.3442 | F22: 0.982887 | G22: 0.986558 | H22: =PRODUCT($F$4:F22)-1 -> 0.05342883838 | I22: =PRODUCT($G$4:G22)-1 -> 0.003755855317
A23: 2015-11-11 | B23: 0.9084 | C23: 2015-11-11 | D23: 0 | F23: 1.009084 | G23: 1 | H23: =PRODUCT($F$4:F23)-1 -> 0.06299818594 | I23: =PRODUCT($G$4:G23)-1 -> 0.003755855317
A24: 2015-11-12 | B24: -1.2003 | C24: 2015-11-12 | D24: -0.2928 | F24: 0.987997 | G24: 0.997072 | H24: =PRODUCT($F$4:F24)-1 -> 0.05023901872 | I24: =PRODUCT($G$4:G24)-1 -> 0.0008168581729
A25: 2015-11-13 | B25: -1.2908 | C25: 2015-11-13 | D25: -0.9913 | F25: 0.987092 | G25: 0.990087 | H25: =PRODUCT($F$4:F25)-1 -> 0.03668253346 | I25: =PRODUCT($G$4:G25)-1 -> -0.009104239342
A26: 2015-11-16 | B26: -2.8462 | C26: 2015-11-16 | D26: -1.5821 | F26: 0.971538 | G26: 0.984179 | H26: =PRODUCT($F$4:F26)-1 -> 0.007176475197 | I26: =PRODUCT($G$4:G26)-1 -> -0.02478120117
A27: 2015-11-17 | B27: 0.5542 | C27: 2015-11-17 | D27: 1.0005 | F27: 1.005542 | G27: 1.010005 | H27: =PRODUCT($F$4:F27)-1 -> 0.01275824722 | I27: =PRODUCT($G$4:G27)-1 -> -0.01502413709
A28: 2015-11-18 | B28: 0.8661 | C28: 2015-11-18 | D28: 0.0746 | F28: 1.008661 | G28: 1.000746 | H28: =PRODUCT($F$4:F28)-1 -> 0.0215297464 | I28: =PRODUCT($G$4:G28)-1 -> -0.0142893451
A29: 2015-11-19 | B29: 0.6245 | C29: 2015-11-19 | D29: 1.3875 | F29: 1.006245 | G29: 1.013875 | H29: =PRODUCT($F$4:F29)-1 -> 0.02790919967 | I29: =PRODUCT($G$4:G29)-1 -> -0.0006126097588
A30: 2015-11-20 | B30: -0.3103 | C30: 2015-11-20 | D30: 0.0041 | F30: 0.996897 | G30: 1.000041 | H30: =PRODUCT($F$4:F30)-1 -> 0.02471959742 | I30: =PRODUCT($G$4:G30)-1 -> -0.0005716348758
A31: 2015-11-23 | B31: -0.2335 | C31: 2015-11-23 | D31: 0.4575 | F31: 0.997665 | G31: 1.004575 | H31: =PRODUCT($F$4:F31)-1 -> 0.02232687716 | I31: =PRODUCT($G$4:G31)-1 -> 0.004000749895
A32: 2015-11-24 | B32: 1.3261 | C32: 2015-11-24 | D32: 0.6466 | F32: 1.013261 | G32: 1.006466 | H32: =PRODUCT($F$4:F32)-1 -> 0.03588395388 | I32: =PRODUCT($G$4:G32)-1 -> 0.01049261874
A33: 2015-11-25 | B33: 0 | C33: 2015-11-25 | D33: -0.3757 | F33: 1 | G33: 0.996243 | H33: =PRODUCT($F$4:F33)-1 -> 0.03588395388 | I33: =PRODUCT($G$4:G33)-1 -> 0.006696197975
A34: 2015-11-26 | B34: 2.7714 | C34: 2015-11-26 | D34: 1.1558 | F34: 1.027714 | G34: 1.011558 | H34: =PRODUCT($F$4:F34)-1 -> 0.06459244178 | I34: =PRODUCT($G$4:G34)-1 -> 0.01833159263
A35: 2015-11-27 | B35: -0.5993 | C35: 2015-11-27 | D35: -0.1443 | F35: 0.994007 | G35: 0.998557 | H35: =PRODUCT($F$4:F35)-1 -> 0.05821233927 | I35: =PRODUCT($G$4:G35)-1 -> 0.01686214014
A36: 2015-11-30 | B36: -3.2404 | C36: 2015-11-30 | D36: -1.9392 | F36: 0.967596 | G36: 0.980608 | H36: =PRODUCT($F$4:F36)-1 -> 0.02392202663 | I36: =PRODUCT($G$4:G36)-1 -> -0.002856850479
A37: 2015-12-01 | B37: 2.8816 | C37: 2015-12-01 | D37: 1.8261 | F37: 1.028816 | G37: 1.018261 | H37: =PRODUCT($F$4:F37)-1 -> 0.05342736375 | I37: =PRODUCT($G$4:G37)-1 -> 0.01535198057
A38: 2015-12-02 | B38: -1.5897 | C38: 2015-12-02 | D38: -0.8444 | F38: 0.984103 | G38: 0.991556 | H38: =PRODUCT($F$4:F38)-1 -> 0.03668102895 | I38: =PRODUCT($G$4:G38)-1 -> 0.006778348451
A39: 2015-12-03 | B39: -0.7692 | C39: 2015-12-03 | D39: -0.7786 | F39: 0.992308 | G39: 0.992214 | H39: =PRODUCT($F$4:F39)-1 -> 0.02870687848 | I39: =PRODUCT($G$4:G39)-1 -> -0.00106042777
A40: 2015-12-04 | B40: -1.6279 | C40: 2015-12-04 | D40: -1.034 | F40: 0.983721 | G40: 0.98966 | H40: =PRODUCT($F$4:F40)-1 -> 0.0119605592 | I40: =PRODUCT($G$4:G40)-1 -> -0.01138946295
A41: 2015-12-07 | B41: -0.5516 | C41: 2015-12-07 | D41: -0.6071 | F41: 0.994484 | G41: 0.993929 | H41: =PRODUCT($F$4:F41)-1 -> 0.006378584756 | I41: =PRODUCT($G$4:G41)-1 -> -0.01739131752
A42: 2015-12-08 | B42: 0 | C42: 2015-12-08 | D42: -0.6025 | F42: 1 | G42: 0.993975 | H42: =PRODUCT($F$4:F42)-1 -> 0.006378584756 | I42: =PRODUCT($G$4:G42)-1 -> -0.02331153483
A43: 2015-12-09 | B43: 0.0792 | C43: 2015-12-09 | D43: 0.0711 | F43: 1.000792 | G43: 1.000711 | H43: =PRODUCT($F$4:F43)-1 -> 0.007175636595 | I43: =PRODUCT($G$4:G43)-1 -> -0.02261710933
A44: 2015-12-10 | B44: 1.5835 | C44: 2015-12-10 | D44: 0.5013 | F44: 1.015835 | G44: 1.005013 | H44: =PRODUCT($F$4:F44)-1 -> 0.0231242628 | I44: =PRODUCT($G$4:G44)-1 -> -0.0177174889
A45: 2015-12-11 | B45: 0.0779 | C45: 2015-12-11 | D45: -0.1039 | F45: 1.000779 | G45: 0.998961 | H45: =PRODUCT($F$4:F45)-1 -> 0.0239212766 | I45: =PRODUCT($G$4:G45)-1 -> -0.01873808043
A46: 2015-12-14 | B46: -1.7913 | C46: 2015-12-14 | D46: -0.907 | F46: 0.982087 | G46: 0.99093 | H46: =PRODUCT($F$4:F46)-1 -> 0.005579774774 | I46: =PRODUCT($G$4:G46)-1 -> -0.02763812604
A47: 2015-12-15 | B47: 1.2688 | C47: 2015-12-15 | D47: 0.2645 | F47: 1.012688 | G47: 1.002645 | H47: =PRODUCT($F$4:F47)-1 -> 0.01833857096 | I47: =PRODUCT($G$4:G47)-1 -> -0.02506622888
A48: 2015-12-16 | B48: 1.7228 | C48: 2015-12-16 | D48: 1.964 | F48: 1.017228 | G48: 1.01964 | H48: =PRODUCT($F$4:F48)-1 -> 0.03588250786 | I48: =PRODUCT($G$4:G48)-1 -> -0.005918529618
A49: 2015-12-17 | B49: -0.6928 | C49: 2015-12-17 | D49: 0.2793 | F49: 0.993072 | G49: 1.002793 | H49: =PRODUCT($F$4:F49)-1 -> 0.02870591384 | I49: =PRODUCT($G$4:G49)-1 -> -0.003142060071
A50: 2015-12-18 | B50: -0.9302 | C50: 2015-12-18 | D50: -0.4792 | F50: 0.990698 | G50: 0.995208 | H50: =PRODUCT($F$4:F50)-1 -> 0.01913689143 | I50: =PRODUCT($G$4:G50)-1 -> -0.007919003319
A51: 2015-12-21 | B51: 0.1565 | C51: 2015-12-21 | D51: 0.3128 | F51: 1.001565 | G51: 1.003128 | H51: =PRODUCT($F$4:F51)-1 -> 0.02073184067 | I51: =PRODUCT($G$4:G51)-1 -> -0.004815773962
A52: 2015-12-22 | B52: 0.9375 | C52: 2015-12-22 | D52: 0.7056 | F52: 1.009375 | G52: 1.007056 | H52: =PRODUCT($F$4:F52)-1 -> 0.03030120167 | I52: =PRODUCT($G$4:G52)-1 -> 0.002206245937
A53: 2015-12-23 | B53: 0.2322 | C53: 2015-12-23 | D53: 0.4277 | F53: 1.002322 | G53: 1.004277 | H53: =PRODUCT($F$4:F53)-1 -> 0.03269356106 | I53: =PRODUCT($G$4:G53)-1 -> 0.006492682051
A54: 2015-12-24 | B54: -0.7722 | C54: 2015-12-24 | D54: -0.4868 | F54: 0.992278 | G54: 0.995132 | H54: =PRODUCT($F$4:F54)-1 -> 0.02471910138 | I54: =PRODUCT($G$4:G54)-1 -> 0.001593075675
A55: 2015-12-28 | B55: -1.4786 | C55: 2015-12-28 | D55: -1.443 | F55: 0.985214 | G55: 0.98557 | H55: =PRODUCT($F$4:F55)-1 -> 0.009567604752 | I55: =PRODUCT($G$4:G55)-1 -> -0.01285991241
A56: 2015-12-29 | B56: -0.9479 | C56: 2015-12-29 | D56: -0.2357 | F56: 0.990521 | G56: 0.997643 | H56: =PRODUCT($F$4:F56)-1 -> -2.086573731e-06 | I56: =PRODUCT($G$4:G56)-1 -> -0.01518660159
A57: 2015-12-30 | B57: 0.4785 | C57: 2015-12-30 | D57: -0.3482 | F57: 1.004785 | G57: 0.996518 | H57: =PRODUCT($F$4:F57)-1 -> 0.004782903442 | I57: =PRODUCT($G$4:G57)-1 -> -0.01861572185
A58: 2016-01-04 | B58: -4.3651 | C58: 2016-01-04 | D58: -2.392 | F58: 0.956349 | G58: 0.97608 | H58: =PRODUCT($F$4:F58)-1 -> -0.03907687508 | I58: =PRODUCT($G$4:G58)-1 -> -0.04209043378
A59: 2016-01-05 | B59: 0.249 | C59: 2016-01-05 | D59: 0.6393 | F59: 1.00249 | G59: 1.006393 | H59: =PRODUCT($F$4:F59)-1 -> -0.0366841765 | I59: =PRODUCT($G$4:G59)-1 -> -0.03596651792
A60: 2016-01-06 | B60: -2.7318 | C60: 2016-01-06 | D60: -0.6479 | F60: 0.972682 | G60: 0.993521 | H60: =PRODUCT($F$4:F60)-1 -> -0.06300003816 | I60: =PRODUCT($G$4:G60)-1 -> -0.04221249085
A61: 2016-01-07 | B61: -1.0213 | C61: 2016-01-07 | D61: -1.1381 | F61: 0.989787 | G61: 0.988619 | H61: =PRODUCT($F$4:F61)-1 -> -0.07256961877 | I61: =PRODUCT($G$4:G61)-1 -> -0.0531130705
A62: 2016-01-08 | B62: 0.6879 | C62: 2016-01-08 | D62: 0.7545 | F62: 1.006879 | G62: 1.007545 | H62: =PRODUCT($F$4:F62)-1 -> -0.06618982518 | I62: =PRODUCT($G$4:G62)-1 -> -0.04596880861
A63: 2016-01-11 | B63: -1.6225 | C63: 2016-01-11 | D63: -1.2196 | F63: 0.983775 | G63: 0.987804 | H63: =PRODUCT($F$4:F63)-1 -> -0.08134089527 | I63: =PRODUCT($G$4:G63)-1 -> -0.05760417302
A64: 2016-01-12 | B64: -0.5208 | C64: 2016-01-12 | D64: -0.1213 | F64: 0.994792 | G64: 0.998787 | H64: =PRODUCT($F$4:F64)-1 -> -0.08612527188 | I64: =PRODUCT($G$4:G64)-1 -> -0.05874729916
A65: 2016-01-13 | B65: 0.1745 | C65: 2016-01-13 | D65: 1.2882 | F65: 1.001745 | G65: 1.012882 | H65: =PRODUCT($F$4:F65)-1 -> -0.08453056048 | I65: =PRODUCT($G$4:G65)-1 -> -0.04662208187
A66: 2016-01-14 | B66: -0.8711 | C66: 2016-01-14 | D66: -0.9164 | F66: 0.991289 | G66: 0.990836 | H66: =PRODUCT($F$4:F66)-1 -> -0.09250521477 | I66: =PRODUCT($G$4:G66)-1 -> -0.05535883711
A67: 2016-01-15 | B67: -0.5272 | C67: 2016-01-15 | D67: -1.1237 | F67: 0.994728 | G67: 0.988763 | H67: =PRODUCT($F$4:F67)-1 -> -0.09728952728 | I67: =PRODUCT($G$4:G67)-1 -> -0.06597376986
A68: 2016-01-18 | B68: -0.53 | C68: 2016-01-18 | D68: -0.083 | F68: =1+B68/100 -> 0.9947 | G68: =1+D68/100 -> 0.99917 | H68: =PRODUCT($F$4:F68)-1 -> -0.1020738928 | I68: =PRODUCT($G$4:G68)-1 -> -0.06674901163
A69: 2016-01-19 | B69: 3.9964 | C69: 2016-01-19 | D69: 0.6518 | F69: 1.039964 | G69: 1.006518 | H69: =PRODUCT($F$4:F69)-1 -> -0.06618917383 | I69: =PRODUCT($G$4:G69)-1 -> -0.06066608169
A70: 2016-01-20 | B70: -2.8181 | C70: 2016-01-20 | D70: -2.4079 | F70: 0.971819 | G70: 0.975921 | H70: =PRODUCT($F$4:F70)-1 -> -0.09250489673 | I70: =PRODUCT($G$4:G70)-1 -> -0.08328430311
A71: 2016-01-21 | B71: -0.6151 | C71: 2016-01-21 | D71: -0.3251 | F71: 0.993849 | G71: 0.996749 | H71: =PRODUCT($F$4:F71)-1 -> -0.09808689911 | I71: =PRODUCT($G$4:G71)-1 -> -0.08626454584
A72: 2016-01-22 | B72: 3.2714 | C72: 2016-01-22 | D72: 2.2251 | F72: 1.032714 | G72: 1.022251 | H72: =PRODUCT($F$4:F72)-1 -> -0.06858171392 | I72: =PRODUCT($G$4:G72)-1 -> -0.06593301825
A73: 2016-01-25 | B73: -0.5137 | C73: 2016-01-25 | D73: 0.6207 | F73: 0.994863 | G73: 1.006207 | H73: =PRODUCT($F$4:F73)-1 -> -0.07336640966 | I73: =PRODUCT($G$4:G73)-1 -> -0.06013526449
A74: 2016-01-26 | B74: -2.1515 | C74: 2016-01-26 | D74: -1.3118 | F74: 0.978485 | G74: 0.986882 | H74: =PRODUCT($F$4:F74)-1 -> -0.09330293136 | I74: =PRODUCT($G$4:G74)-1 -> -0.07246441009
A75: 2016-01-27 | B75: 3.3421 | C75: 2016-01-27 | D75: 1.6594 | F75: 1.033421 | G75: 1.016594 | H75: =PRODUCT($F$4:F75)-1 -> -0.06300020863 | I75: =PRODUCT($G$4:G75)-1 -> -0.05707288451
A76: 2016-01-28 | B76: -2.5532 | C76: 2016-01-28 | D76: 0.2381 | F76: 0.974468 | G76: 1.002381 | H76: =PRODUCT($F$4:F76)-1 -> -0.0869236873 | I76: =PRODUCT($G$4:G76)-1 -> -0.05482777505
A77: 2016-01-29 | B77: 0.4367 | C77: 2016-01-29 | D77: 0.2548 | F77: 1.004367 | G77: 1.002548 | H77: =PRODUCT($F$4:F77)-1 -> -0.08293628304 | I77: =PRODUCT($G$4:G77)-1 -> -0.05241947622
A78: 2016-02-01 | B78: 1.1304 | C78: 2016-02-01 | D78: 0.6764 | F78: 1.011304 | G78: 1.006764 | H78: =PRODUCT($F$4:F78)-1 -> -0.07256979478 | I78: =PRODUCT($G$4:G78)-1 -> -0.04601004156
A79: 2016-02-02 | B79: -0.6019 | C79: 2016-02-02 | D79: -1.0998 | F79: 0.993981 | G79: 0.989002 | H79: =PRODUCT($F$4:F79)-1 -> -0.07815199719 | I79: =PRODUCT($G$4:G79)-1 -> -0.05650202312
A80: 2016-02-03 | B80: -0.8651 | C80: 2016-02-03 | D80: -0.9217 | F80: 0.991349 | G80: 0.990783 | H80: =PRODUCT($F$4:F80)-1 -> -0.08612690426 | I80: =PRODUCT($G$4:G80)-1 -> -0.06519824397
A81: 2016-02-04 | B81: 0.8726 | C81: 2016-02-04 | D81: 1.7207 | F81: 1.008726 | G81: 1.017207 | H81: =PRODUCT($F$4:F81)-1 -> -0.07815244763 | I81: =PRODUCT($G$4:G81)-1 -> -0.04911311016
A82: 2016-02-05 | B82: 0.692 | C82: 2016-02-05 | D82: 0.1674 | F82: 1.00692 | G82: 1.001674 | H82: =PRODUCT($F$4:F82)-1 -> -0.07177326257 | I82: =PRODUCT($G$4:G82)-1 -> -0.0475213255
A83: 2016-02-11 | B83: -2.921 | C83: 2016-02-11 | D83: -2.829 | F83: 0.97079 | G83: 0.97171 | H83: =PRODUCT($F$4:F83)-1 -> -0.09888676557 | I83: =PRODUCT($G$4:G83)-1 -> -0.07446694721
A84: 2016-02-12 | B84: 0 | C84: 2016-02-12 | D84: -0.7587 | F84: 1 | G84: 0.992413 | H84: =PRODUCT($F$4:F84)-1 -> -0.09888676557 | I84: =PRODUCT($G$4:G84)-1 -> -0.08148896648
A85: 2016-02-15 | B85: 2.1239 | C85: 2016-02-15 | D85: 1.5201 | F85: 1.021239 | G85: 1.015201 | H85: =PRODUCT($F$4:F85)-1 -> -0.07974802158 | I85: =PRODUCT($G$4:G85)-1 -> -0.06752668026
A86: 2016-02-16 | B86: 1.2132 | C86: 2016-02-16 | D86: 1.366 | F86: 1.012132 | G86: 1.01366 | H86: =PRODUCT($F$4:F86)-1 -> -0.06858352458 | I86: =PRODUCT($G$4:G86)-1 -> -0.05478909471
A87: 2016-02-17 | B87: 1.4555 | C87: 2016-02-17 | D87: 0.1814 | F87: 1.014555 | G87: 1.001814 | H87: =PRODUCT($F$4:F87)-1 -> -0.05502675778 | I87: =PRODUCT($G$4:G87)-1 -> -0.05307448213
A88: 2016-02-18 | B88: 0.1688 | C88: 2016-02-18 | D88: 1.2072 | F88: 1.001688 | G88: 1.012072 | H88: =PRODUCT($F$4:F88)-1 -> -0.05343164295 | I88: =PRODUCT($G$4:G88)-1 -> -0.04164319727
A89: 2016-02-19 | B89: 0.2527 | C89: 2016-02-19 | D89: 0.2258 | F89: 1.002527 | G89: 1.002258 | H89: =PRODUCT($F$4:F89)-1 -> -0.05103966471 | I89: =PRODUCT($G$4:G89)-1 -> -0.03947922761
A90: 2016-02-22 | B90: -1.2605 | C90: 2016-02-22 | D90: -0.136 | F90: 0.987395 | G90: 0.99864 | H90: =PRODUCT($F$4:F90)-1 -> -0.06300130973 | I90: =PRODUCT($G$4:G90)-1 -> -0.04078553586
A91: 2016-02-23 | B91: 0.5106 | C91: 2016-02-23 | D91: 0.034 | F91: 1.005106 | G91: 1.00034 | H91: =PRODUCT($F$4:F91)-1 -> -0.05821699442 | I91: =PRODUCT($G$4:G91)-1 -> -0.04045940295
A92: 2016-02-24 | B92: -0.7621 | C92: 2016-02-24 | D92: -0.0511 | F92: 0.992379 | G92: 0.999489 | H92: =PRODUCT($F$4:F92)-1 -> -0.06539432271 | I92: =PRODUCT($G$4:G92)-1 -> -0.04094972819
A93: 2016-02-25 | B93: 0.5973 | C93: 2016-02-25 | D93: 0.1958 | F93: 1.005973 | G93: 1.001958 | H93: =PRODUCT($F$4:F93)-1 -> -0.059811923 | I93: =PRODUCT($G$4:G93)-1 -> -0.03907190776
A94: 2016-02-26 | B94: -0.5937 | C94: 2016-02-26 | D94: -0.0637 | F94: 0.994063 | G94: 0.999363 | H94: =PRODUCT($F$4:F94)-1 -> -0.06539381961 | I94: =PRODUCT($G$4:G94)-1 -> -0.03968401895
A95: 2016-02-29 | B95: 0.5119 | C95: 2016-02-29 | D95: -0.2508 | F95: 1.005119 | G95: 0.997492 | H95: =PRODUCT($F$4:F95)-1 -> -0.06060957057 | I95: =PRODUCT($G$4:G95)-1 -> -0.04209249143
A96: 2016-03-02 | B96: 1.6129 | C96: 2016-03-02 | D96: 1.7048 | F96: 1.016129 | G96: 1.017048 | H96: =PRODUCT($F$4:F96)-1 -> -0.04545814234 | I96: =PRODUCT($G$4:G96)-1 -> -0.02576208423
A97: 2016-03-03 | B97: 1.9215 | C97: 2016-03-03 | D97: 0.6118 | F97: 1.019215 | G97: 1.006118 | H97: =PRODUCT($F$4:F97)-1 -> -0.02711662054 | I97: =PRODUCT($G$4:G97)-1 -> -0.01980169666
A98: 2016-03-04 | B98: -0.4098 | C98: 2016-03-04 | D98: -0.1458 | F98: 0.995902 | G98: 0.998542 | H98: =PRODUCT($F$4:F98)-1 -> -0.03110349663 | I98: =PRODUCT($G$4:G98)-1 -> -0.02123082579
A99: 2016-03-07 | B99: 0.6584 | C99: 2016-03-07 | D99: 0.196 | F99: 1.006584 | G99: 1.00196 | H99: =PRODUCT($F$4:F99)-1 -> -0.02472428205 | I99: =PRODUCT($G$4:G99)-1 -> -0.0193124382
A100: 2016-03-08 | B100: -2.5348 | C100: 2016-03-08 | D100: -0.7369 | F100: 0.974652 | G100: 0.992631 | H100: =PRODUCT($F$4:F100)-1 -> -0.04944557095 | I100: =PRODUCT($G$4:G100)-1 -> -0.02653912485
A101: 2016-03-09 | B101: 0.1678 | C101: 2016-03-09 | D101: 0.2894 | F101: 1.001678 | G101: 1.002894 | H101: =PRODUCT($F$4:F101)-1 -> -0.04785054062 | I101: =PRODUCT($G$4:G101)-1 -> -0.02372192907
A102: 2016-03-10 | B102: 2.5963 | C102: 2016-03-10 | D102: 0.9618 | F102: 1.025963 | G102: 1.009618 | H102: =PRODUCT($F$4:F102)-1 -> -0.0231298842 | I102: =PRODUCT($G$4:G102)-1 -> -0.01433208659
A103: 2016-03-11 | B103: 1.9592 | C103: 2016-03-11 | D103: 0.2237 | F103: 1.019592 | G103: 1.002237 | H103: =PRODUCT($F$4:F103)-1 -> -0.003991044896 | I103: =PRODUCT($G$4:G103)-1 -> -0.01212714747
A104: 2016-03-14 | B104: 0.4804 | C104: 2016-03-14 | D104: 0.0744 | F104: 1.004804 | G104: 1.000744 | H104: =PRODUCT($F$4:F104)-1 -> 0.0007937821248 | I104: =PRODUCT($G$4:G104)-1 -> -0.01139217006
A105: 2016-03-15 | B105: -0.1594 | C105: 2016-03-15 | D105: -0.1321 | F105: 0.998406 | G105: 0.998679 | H105: =PRODUCT($F$4:F105)-1 -> -0.0008014831639 | I105: =PRODUCT($G$4:G105)-1 -> -0.01269812101
A106: 2016-03-16 | B106: 0.2394 | C106: 2016-03-16 | D106: 0.215 | F106: 1.002394 | G106: 1.00215 | H106: =PRODUCT($F$4:F106)-1 -> 0.001590598085 | I106: =PRODUCT($G$4:G106)-1 -> -0.01057542197
A107: 2016-03-17 | B107: 0.5573 | C107: 2016-03-17 | D107: 0.718 | F107: 1.005573 | G107: 1.00718 | H107: =PRODUCT($F$4:F107)-1 -> 0.007172462489 | I107: =PRODUCT($G$4:G107)-1 -> -0.003471353497
A108: 2016-03-18 | B108: 0.7918 | C108: 2016-03-18 | D108: 0.2212 | F108: 1.007918 | G108: 1.002212 | H108: =PRODUCT($F$4:F108)-1 -> 0.01514725405 | I108: =PRODUCT($G$4:G108)-1 -> -0.001267032131
A109: 2016-03-21 | B109: -0.4713 | C109: 2016-03-21 | D109: -0.1431 | F109: 0.995287 | G109: 0.998569 | H109: =PRODUCT($F$4:F109)-1 -> 0.01036286504 | I109: =PRODUCT($G$4:G109)-1 -> -0.002696219008
A110: 2016-03-22 | B110: 0.1579 | C110: 2016-03-22 | D110: 0.4626 | F110: 1.001579 | G110: 1.004626 | H110: =PRODUCT($F$4:F110)-1 -> 0.011958228 | I110: =PRODUCT($G$4:G110)-1 -> 0.001917308283
A111: 2016-03-23 | B111: 0.788 | C111: 2016-03-23 | D111: -0.0733 | F111: 1.00788 | G111: 0.999267 | H111: =PRODUCT($F$4:F111)-1 -> 0.01993245884 | I111: =PRODUCT($G$4:G111)-1 -> 0.001182902896
A112: 2016-03-24 | B112: 0.2346 | C112: 2016-03-24 | D112: -0.4689 | F112: 1.002346 | G112: 0.995311 | H112: =PRODUCT($F$4:F112)-1 -> 0.02232522039 | I112: =PRODUCT($G$4:G112)-1 -> -0.003511643736
A113: 2016-03-25 | B113: 0.468 | C113: 2016-03-25 | D113: -0.1188 | F113: 1.00468 | G113: 0.998812 | H113: =PRODUCT($F$4:F113)-1 -> 0.02710970242 | I113: =PRODUCT($G$4:G113)-1 -> -0.004695471903
A114: 2016-03-28 | B114: 0.4658 | C114: 2016-03-28 | D114: 0.0656 | F114: 1.004658 | G114: 1.000656 | H114: =PRODUCT($F$4:F114)-1 -> 0.03189397941 | I114: =PRODUCT($G$4:G114)-1 -> -0.004042552133
A115: 2016-03-29 | B115: -0.3091 | C115: 2016-03-29 | D115: 0.6477 | F115: 0.996909 | G115: 1.006477 | H115: =PRODUCT($F$4:F115)-1 -> 0.02870439512 | I115: =PRODUCT($G$4:G115)-1 -> 0.002408264257
A116: 2016-03-30 | B116: 1.3953 | C116: 2016-03-30 | D116: 0.4114 | F116: 1.013953 | G116: 1.004114 | H116: =PRODUCT($F$4:F116)-1 -> 0.04305790755 | I116: =PRODUCT($G$4:G116)-1 -> 0.006532171856
A117: 2016-03-31 | B117: 0.3058 | C117: 2016-03-31 | D117: -0.2758 | F117: 1.003058 | G117: 0.997242 | H117: =PRODUCT($F$4:F117)-1 -> 0.04624757863 | I117: =PRODUCT($G$4:G117)-1 -> 0.003756156126
A118: 2016-04-01 | B118: -2.5152 | C118: 2016-04-01 | D118: -1.4236 | F118: 0.974848 | G118: 0.985764 | H118: =PRODUCT($F$4:F118)-1 -> 0.01993235953 | I118: =PRODUCT($G$4:G118)-1 -> -0.01053331651
A119: 2016-04-04 | B119: 2.0328 | C119: 2016-04-04 | D119: 0.2847 | F119: 1.020328 | G119: 1.002847 | H119: =PRODUCT($F$4:F119)-1 -> 0.04066554454 | I119: =PRODUCT($G$4:G119)-1 -> -0.007716304865
A120: 2016-04-05 | B120: -3.4483 | C120: 2016-04-05 | D120: -1.0163 | F120: 0.965517 | G120: 0.989837 | H120: =PRODUCT($F$4:F120)-1 -> 0.004780274563 | I120: =PRODUCT($G$4:G120)-1 -> -0.01780088406
A121: 2016-04-06 | B121: 1.9841 | C121: 2016-04-06 | D121: 0.5861 | F121: 1.019841 | G121: 1.005861 | H121: =PRODUCT($F$4:F121)-1 -> 0.02471611999 | I121: =PRODUCT($G$4:G121)-1 -> -0.01204421504
A122: 2016-04-07 | B122: -1.2451 | C122: 2016-04-07 | D122: 0.124 | F122: 0.987549 | G122: 1.00124 | H122: =PRODUCT($F$4:F122)-1 -> 0.01195737958 | I122: =PRODUCT($G$4:G122)-1 -> -0.01081914987
A123: 2016-04-08 | B123: -1.8125 | C123: 2016-04-08 | D123: -0.2146 | F123: 0.981875 | G123: 0.997854 | H123: =PRODUCT($F$4:F123)-1 -> -0.006384347924 | I123: =PRODUCT($G$4:G123)-1 -> -0.01294193197
A124: 2016-04-11 | B124: 1.6051 | C124: 2016-04-11 | D124: 0.1199 | F124: 1.016051 | G124: 1.001199 | H124: =PRODUCT($F$4:F124)-1 -> 0.009564176907 | I124: =PRODUCT($G$4:G124)-1 -> -0.01175844935
A125: 2016-04-12 | B125: 0.7109 | C125: 2016-04-12 | D125: 0.6816 | F125: 1.007109 | G125: 1.006816 | H125: =PRODUCT($F$4:F125)-1 -> 0.01674116864 | I125: =PRODUCT($G$4:G125)-1 -> -0.005022594938
A126: 2016-04-14 | B126: 1.9608 | C126: 2016-04-14 | D126: 2.1255 | F126: 1.019608 | G126: 1.021255 | H126: =PRODUCT($F$4:F126)-1 -> 0.03667742948 | I126: =PRODUCT($G$4:G126)-1 -> 0.01612564981
A127: 2016-04-15 | B127: 0 | C127: 2016-04-15 | D127: -0.1446 | F127: 1 | G127: 0.998554 | H127: =PRODUCT($F$4:F127)-1 -> 0.03667742948 | I127: =PRODUCT($G$4:G127)-1 -> 0.01465633212
A128: 2016-04-18 | B128: -0.0769 | C128: 2016-04-18 | D128: -0.2133 | F128: 0.999231 | G128: 0.997867 | H128: =PRODUCT($F$4:F128)-1 -> 0.03588022453 | I128: =PRODUCT($G$4:G128)-1 -> 0.01249207016
A129: 2016-04-19 | B129: -0.8468 | C129: 2016-04-19 | D129: -0.0484 | F129: 0.991532 | G129: 0.999516 | H129: =PRODUCT($F$4:F129)-1 -> 0.02710839079 | I129: =PRODUCT($G$4:G129)-1 -> 0.012002024
A130: 2016-04-20 | B130: 0.854 | C130: 2016-04-20 | D130: -0.2501 | F130: 1.00854 | G130: 0.997499 | H130: =PRODUCT($F$4:F130)-1 -> 0.03587989645 | I130: =PRODUCT($G$4:G130)-1 -> 0.009471006937
A131: 2016-04-21 | B131: -0.3849 | C131: 2016-04-21 | D131: 0.8614 | F131: 0.996151 | G131: 1.008614 | H131: =PRODUCT($F$4:F131)-1 -> 0.03189279473 | I131: =PRODUCT($G$4:G131)-1 -> 0.01816659019
A132: 2016-04-22 | B132: -1.0819 | C132: 2016-04-22 | D132: -0.429 | F132: =1+B132/100 -> 0.989181 | G132: =1+D132/100 -> 0.99571 | H132: =PRODUCT($F$4:F132)-1 -> 0.02072874658 | I132: =PRODUCT($G$4:G132)-1 -> 0.01379865552
A133: 2016-04-25 | B133: 0.0781 | C133: 2016-04-25 | D133: -0.0765 | F133: 1.000781 | G133: 0.999235 | H133: =PRODUCT($F$4:F133)-1 -> 0.02152593573 | I133: =PRODUCT($G$4:G133)-1 -> 0.01302309955
A134: 2016-04-26 | B134: 1.171 | C134: 2016-04-26 | D134: 0.3184 | F134: 1.01171 | G134: 1.003184 | H134: =PRODUCT($F$4:F134)-1 -> 0.03348800444 | I134: =PRODUCT($G$4:G134)-1 -> 0.0162485651
A135: 2016-04-27 | B135: 0.3086 | C135: 2016-04-27 | D135: -0.0924 | F135: 1.003086 | G135: 0.999076 | H135: =PRODUCT($F$4:F135)-1 -> 0.03667734842 | I135: =PRODUCT($G$4:G135)-1 -> 0.01530955142
A136: 2016-04-28 | B136: -2.6923 | C136: 2016-04-28 | D136: -0.9731 | F136: 0.973077 | G136: 0.990269 | H136: =PRODUCT($F$4:F136)-1 -> 0.008766884169 | I136: =PRODUCT($G$4:G136)-1 -> 0.005429574177
A137: 2016-04-29 | B137: -1.581 | C137: 2016-04-29 | D137: -0.4345 | F137: 0.98419 | G137: 0.995655 | H137: =PRODUCT($F$4:F137)-1 -> -0.007181720269 | I137: =PRODUCT($G$4:G137)-1 -> 0.001060982677
A138: 2016-05-02 | B138: 0.4016 | C138: 2016-05-02 | D138: -0.7055 | F138: 1.004016 | G138: 0.992945 | H138: =PRODUCT($F$4:F138)-1 -> -0.003194562058 | I138: =PRODUCT($G$4:G138)-1 -> -0.006001502556
A139: 2016-05-03 | B139: 0.88 | C139: 2016-05-03 | D139: 0.3368 | F139: 1.0088 | G139: 1.003368 | H139: =PRODUCT($F$4:F139)-1 -> 0.005577325796 | I139: =PRODUCT($G$4:G139)-1 -> -0.002653715616
A140: 2016-05-04 | B140: 2.2998 | C140: 2016-05-04 | D140: -0.4012 | F140: 1.022998 | G140: 0.995988 | H140: =PRODUCT($F$4:F140)-1 -> 0.02870359313 | I140: =PRODUCT($G$4:G140)-1 -> -0.006655068909
A141: 2016-05-09 | B141: 0.6977 | C141: 2016-05-09 | D141: -0.4439 | F141: 1.006977 | G141: 0.995561 | H141: =PRODUCT($F$4:F141)-1 -> 0.0358808581 | I141: =PRODUCT($G$4:G141)-1 -> -0.01106452706
A142: 2016-05-10 | B142: -0.2309 | C142: 2016-05-10 | D142: 0.5986 | F142: 0.997691 | G142: 1.005986 | H142: =PRODUCT($F$4:F142)-1 -> 0.0334890092 | I142: =PRODUCT($G$4:G142)-1 -> -0.005144759317
A143: 2016-05-11 | B143: -0.3086 | C143: 2016-05-11 | D143: -0.2503 | F143: 0.996914 | G143: 0.997497 | H143: =PRODUCT($F$4:F143)-1 -> 0.03029966212 | I143: =PRODUCT($G$4:G143)-1 -> -0.007634881985
A144: 2016-05-12 | B144: -0.8514 | C144: 2016-05-12 | D144: -0.3003 | F144: 0.991486 | G144: 0.996997 | H144: =PRODUCT($F$4:F144)-1 -> 0.0215276908 | I144: =PRODUCT($G$4:G144)-1 -> -0.01061495443
A145: 2016-05-13 | B145: -2.1858 | C145: 2016-05-13 | D145: -0.718 | F145: 0.978142 | G145: 0.99282 | H145: =PRODUCT($F$4:F145)-1 -> -0.0008008614685 | I145: =PRODUCT($G$4:G145)-1 -> -0.01771873906
A146: 2016-05-16 | B146: -0.399 | C146: 2016-05-16 | D146: 0.0914 | F146: 0.99601 | G146: 1.000914 | H146: =PRODUCT($F$4:F146)-1 -> -0.004787666031 | I146: =PRODUCT($G$4:G146)-1 -> -0.01682093399
A147: 2016-05-17 | B147: 1.2821 | C147: 2016-05-17 | D147: 0.0872 | F147: 1.012821 | G147: 1.000872 | H147: =PRODUCT($F$4:F147)-1 -> 0.007971951303 | I147: =PRODUCT($G$4:G147)-1 -> -0.01596360184
A148: 2016-05-18 | B148: 0.3165 | C148: 2016-05-18 | D148: -0.502 | F148: 1.003165 | G148: 0.99498 | H148: =PRODUCT($F$4:F148)-1 -> 0.01116218253 | I148: =PRODUCT($G$4:G148)-1 -> -0.02090346456
A149: 2016-05-19 | B149: 0.1577 | C149: 2016-05-19 | D149: -0.3252 | F149: 1.001577 | G149: 0.996748 | H149: =PRODUCT($F$4:F149)-1 -> 0.01275678529 | I149: =PRODUCT($G$4:G149)-1 -> -0.0240874865
A150: 2016-05-20 | B150: -0.0787 | C150: 2016-05-20 | D150: -0.1255 | F150: 0.999213 | G150: 0.998745 | H150: =PRODUCT($F$4:F150)-1 -> 0.0119597457 | I150: =PRODUCT($G$4:G150)-1 -> -0.0253122567
A151: 2016-05-23 | B151: 1.3396 | C151: 2016-05-23 | D151: 0.4649 | F151: 1.013396 | G151: 1.004649 | H151: =PRODUCT($F$4:F151)-1 -> 0.02551595845 | I151: =PRODUCT($G$4:G151)-1 -> -0.02078093338
A152: 2016-05-24 | B152: -1.1664 | C152: 2016-05-24 | D152: -0.9172 | F152: 0.988336 | G152: 0.990828 | H152: =PRODUCT($F$4:F152)-1 -> 0.01355434031 | I152: =PRODUCT($G$4:G152)-1 -> -0.02976233066
A153: 2016-05-25 | B153: 1.8883 | C153: 2016-05-25 | D153: 1.3718 | F153: 1.018883 | G153: 1.013718 | H153: =PRODUCT($F$4:F153)-1 -> 0.03269328692 | I153: =PRODUCT($G$4:G153)-1 -> -0.01645261031
A154: 2016-05-26 | B154: 0.0772 | C154: 2016-05-26 | D154: -0.137 | F154: 1.000772 | G154: 0.99863 | H154: =PRODUCT($F$4:F154)-1 -> 0.03349052614 | I154: =PRODUCT($G$4:G154)-1 -> -0.01780007024
A155: 2016-05-27 | B155: -1.0802 | C155: 2016-05-27 | D155: 0.5279 | F155: 0.989198 | G155: 1.005279 | H155: =PRODUCT($F$4:F155)-1 -> 0.02232676148 | I155: =PRODUCT($G$4:G155)-1 -> -0.01261503681
A156: 2016-05-30 | B156: -0.156 | C156: 2016-05-30 | D156: -0.0496 | F156: 0.99844 | G156: 0.999504 | H156: =PRODUCT($F$4:F156)-1 -> 0.02073193173 | I156: =PRODUCT($G$4:G156)-1 -> -0.01310477975
A157: 2016-05-31 | B157: 0.9375 | C157: 2016-05-31 | D157: 0.786 | F157: 1.009375 | G157: 1.00786 | H157: =PRODUCT($F$4:F157)-1 -> 0.03030129359 | I157: =PRODUCT($G$4:G157)-1 -> -0.005347783317
A158: 2016-06-01 | B158: 3.1734 | C158: 2016-06-01 | D158: -0.0205 | F158: 1.031734 | G158: 0.999795 | H158: =PRODUCT($F$4:F158)-1 -> 0.06299687484 | I158: =PRODUCT($G$4:G158)-1 -> -0.005551687022
A159: 2016-06-02 | B159: 2.4006 | C159: 2016-06-02 | D159: 0.2463 | F159: 1.024006 | G159: 1.002463 | H159: =PRODUCT($F$4:F159)-1 -> 0.08851517782 | I159: =PRODUCT($G$4:G159)-1 -> -0.003102360827
A160: 2016-06-03 | B160: 0.8791 | C160: 2016-06-03 | D160: 0.086 | F160: 1.008791 | G160: 1.00086 | H160: =PRODUCT($F$4:F160)-1 -> 0.09808431474 | I160: =PRODUCT($G$4:G160)-1 -> -0.002245028857
A161: 2016-06-07 | B161: 1.5251 | C161: 2016-06-07 | D161: 1.4158 | F161: 1.015251 | G161: 1.014158 | H161: =PRODUCT($F$4:F161)-1 -> 0.1148311986 | I161: =PRODUCT($G$4:G161)-1 -> 0.01188118602
A162: 2016-06-08 | B162: 0.5722 | C162: 2016-06-08 | D162: 0.8836 | F162: 1.005722 | G162: 1.008836 | H162: =PRODUCT($F$4:F162)-1 -> 0.1212102627 | I162: =PRODUCT($G$4:G162)-1 -> 0.02082216818
A163: 2016-06-09 | B163: 1.707 | C163: 2016-06-09 | D163: 0.06 | F163: 1.01707 | G163: 1.0006 | H163: =PRODUCT($F$4:F163)-1 -> 0.1403493219 | I163: =PRODUCT($G$4:G163)-1 -> 0.02143466148
A164: 2016-06-10 | B164: -1.6783 | C164: 2016-06-10 | D164: -0.4916 | F164: 0.983217 | G164: 0.995084 | H164: =PRODUCT($F$4:F164)-1 -> 0.1212108393 | I164: =PRODUCT($G$4:G164)-1 -> 0.01641328869
A165: 2016-06-13 | B165: -2.4893 | C165: 2016-06-13 | D165: -1.9722 | F165: 0.975107 | G165: 0.980278 | H165: =PRODUCT($F$4:F165)-1 -> 0.09330053784 | I165: =PRODUCT($G$4:G165)-1 -> -0.00363241419
A166: 2016-06-14 | B166: 0.6565 | C166: 2016-06-14 | D166: -0.2868 | F166: 1.006565 | G166: 0.997132 | H166: =PRODUCT($F$4:F166)-1 -> 0.1004780559 | I166: =PRODUCT($G$4:G166)-1 -> -0.006489996427
A167: 2016-06-15 | B167: 2.3913 | C167: 2016-06-15 | D167: -0.0205 | F167: 1.023913 | G167: 0.999795 | H167: =PRODUCT($F$4:F167)-1 -> 0.1267937876 | I167: =PRODUCT($G$4:G167)-1 -> -0.006693665977
A168: 2016-06-16 | B168: -0.2831 | C168: 2016-06-16 | D168: -0.6946 | F168: 0.997169 | G168: 0.993054 | H168: =PRODUCT($F$4:F168)-1 -> 0.1236038344 | I168: =PRODUCT($G$4:G168)-1 -> -0.01359317177
A169: 2016-06-17 | B169: 1.2065 | C169: 2016-06-17 | D169: 0.0083 | F169: 1.012065 | G169: 1.000083 | H169: =PRODUCT($F$4:F169)-1 -> 0.1371601147 | I169: =PRODUCT($G$4:G169)-1 -> -0.01351130001
A170: 2016-06-20 | B170: 0.3506 | C170: 2016-06-20 | D170: 1.465 | F170: 1.003506 | G170: 1.01465 | H170: =PRODUCT($F$4:F170)-1 -> 0.141146998 | I170: =PRODUCT($G$4:G170)-1 -> 0.0009407594482
A171: 2016-06-21 | B171: 1.188 | C171: 2016-06-21 | D171: 0.0693 | F171: 1.01188 | G171: 1.000693 | H171: =PRODUCT($F$4:F171)-1 -> 0.1547038244 | I171: =PRODUCT($G$4:G171)-1 -> 0.001634411395
A172: 2016-06-22 | B172: -0.2072 | C172: 2016-06-22 | D172: 0.5747 | F172: 0.997928 | G172: 1.005747 | H172: =PRODUCT($F$4:F172)-1 -> 0.152311278 | I172: =PRODUCT($G$4:G172)-1 -> 0.007390804357
A173: 2016-06-23 | B173: -1.0381 | C173: 2016-06-23 | D173: -0.1783 | F173: 0.989619 | G173: 0.998217 | H173: =PRODUCT($F$4:F173)-1 -> 0.1403491347 | I173: =PRODUCT($G$4:G173)-1 -> 0.005594626553
A174: 2016-06-24 | B174: -2.0979 | C174: 2016-06-24 | D174: -2.8825 | F174: 0.979021 | G174: 0.971175 | H174: =PRODUCT($F$4:F174)-1 -> 0.1164257502 | I174: =PRODUCT($G$4:G174)-1 -> -0.02339163856
A175: 2016-06-27 | B175: -0.1429 | C175: 2016-06-27 | D175: 0.0293 | F175: 0.998571 | G175: 1.000293 | H175: =PRODUCT($F$4:F175)-1 -> 0.1148303778 | I175: =PRODUCT($G$4:G175)-1 -> -0.02310549231
A176: 2016-06-28 | B176: 0.0715 | C176: 2016-06-28 | D176: 0.3343 | F176: 1.000715 | G176: 1.003343 | H176: =PRODUCT($F$4:F176)-1 -> 0.1156274815 | I176: =PRODUCT($G$4:G176)-1 -> -0.01983973397
A177: 2016-06-29 | B177: -0.2144 | C177: 2016-06-29 | D177: 0.933 | F177: 0.997856 | G177: 1.00933 | H177: =PRODUCT($F$4:F177)-1 -> 0.1132355762 | I177: =PRODUCT($G$4:G177)-1 -> -0.01069483869
A178: 2016-06-30 | B178: 2.0774 | C178: 2016-06-30 | D178: 0.7511 | F178: 1.020774 | G178: 1.007511 | H178: =PRODUCT($F$4:F178)-1 -> 0.136361932 | I178: =PRODUCT($G$4:G178)-1 -> -0.00326416762
A179: 2016-07-01 | B179: 2.8772 | C179: 2016-07-01 | D179: 0.9749 | F179: 1.028772 | G179: 1.009749 | H179: =PRODUCT($F$4:F179)-1 -> 0.1690573375 | I179: =PRODUCT($G$4:G179)-1 -> 0.00645301001
A180: 2016-07-04 | B180: 0 | C180: 2016-07-04 | D180: 0.4462 | F180: 1 | G180: 1.004462 | H180: =PRODUCT($F$4:F180)-1 -> 0.1690573375 | I180: =PRODUCT($G$4:G180)-1 -> 0.01094380334
A181: 2016-07-05 | B181: 0.2046 | C181: 2016-07-05 | D181: -0.2867 | F181: 1.002046 | G181: 0.997133 | H181: =PRODUCT($F$4:F181)-1 -> 0.1714492289 | I181: =PRODUCT($G$4:G181)-1 -> 0.008045427456
A182: 2016-07-06 | B182: -3.2675 | C182: 2016-07-06 | D182: -2.0453 | F182: 0.967325 | G182: 0.979547 | H182: =PRODUCT($F$4:F182)-1 -> 0.1331721253 | I182: =PRODUCT($G$4:G182)-1 -> -0.01257212567
A183: 2016-07-07 | B183: 2.0408 | C183: 2016-07-07 | D183: 1.1329 | F183: 1.020408 | G183: 1.011329 | H183: =PRODUCT($F$4:F183)-1 -> 0.156297902 | I183: =PRODUCT($G$4:G183)-1 -> -0.001385555283
A184: 2016-07-08 | B184: 0.6897 | C184: 2016-07-08 | D184: -0.4783 | F184: 1.006897 | G184: 0.995217 | H184: =PRODUCT($F$4:F184)-1 -> 0.1642728887 | I184: =PRODUCT($G$4:G184)-1 -> -0.006161928172
A185: 2016-07-11 | B185: 1.9863 | C185: 2016-07-11 | D185: 1.4624 | F185: 1.019863 | G185: 1.014624 | H185: =PRODUCT($F$4:F185)-1 -> 0.1873988411 | I185: =PRODUCT($G$4:G185)-1 -> 0.00837195979
A186: 2016-07-12 | B186: -1.679 | C186: 2016-07-12 | D186: 0.0607 | F186: 0.98321 | G186: 1.000607 | H186: =PRODUCT($F$4:F186)-1 -> 0.1674624145 | I186: =PRODUCT($G$4:G186)-1 -> 0.00898404157
A187: 2016-07-13 | B187: 1.1612 | C187: 2016-07-13 | D187: 0.8538 | F187: 1.011612 | G187: 1.008538 | H187: =PRODUCT($F$4:F187)-1 -> 0.1810189881 | I187: =PRODUCT($G$4:G187)-1 -> 0.01759874732
A188: 2016-07-14 | B188: 1.2829 | C188: 2016-07-14 | D188: 0.2207 | F188: 1.012829 | G188: 1.002207 | H188: =PRODUCT($F$4:F188)-1 -> 0.1961702807 | I188: =PRODUCT($G$4:G188)-1 -> 0.01984458775
A189: 2016-07-15 | B189: 1.2 | C189: 2016-07-15 | D189: 0.4884 | F189: 1.012 | G189: 1.004884 | H189: =PRODUCT($F$4:F189)-1 -> 0.210524324 | I189: =PRODUCT($G$4:G189)-1 -> 0.02482550872
A190: 2016-07-18 | B190: 0.9881 | C190: 2016-07-18 | D190: 0.1992 | F190: 1.009881 | G190: 1.001992 | H190: =PRODUCT($F$4:F190)-1 -> 0.2224855149 | I190: =PRODUCT($G$4:G190)-1 -> 0.02686696113
A191: 2016-07-19 | B191: 0 | C191: 2016-07-19 | D191: -0.2187 | F191: 1 | G191: 0.997813 | H191: =PRODUCT($F$4:F191)-1 -> 0.2224855149 | I191: =PRODUCT($G$4:G191)-1 -> 0.02462120309
A192: 2016-07-20 | B192: 0.4566 | C192: 2016-07-20 | D192: -0.1235 | F192: 1.004566 | G192: 0.998765 | H192: =PRODUCT($F$4:F192)-1 -> 0.2280673837 | I192: =PRODUCT($G$4:G192)-1 -> 0.0233557959
A193: 2016-07-21 | B193: 0.1948 | C193: 2016-07-21 | D193: -0.0878 | F193: 1.001948 | G193: 0.999122 | H193: =PRODUCT($F$4:F193)-1 -> 0.230459659 | I193: =PRODUCT($G$4:G193)-1 -> 0.02245728951
A194: 2016-07-22 | B194: -1.7498 | C194: 2016-07-22 | D194: -0.1597 | F194: 0.982502 | G194: 0.998403 | H194: =PRODUCT($F$4:F194)-1 -> 0.2089290759 | I194: =PRODUCT($G$4:G194)-1 -> 0.02082442522
A195: 2016-07-25 | B195: -0.9235 | C195: 2016-07-25 | D195: 0.244 | F195: 0.990765 | G195: 1.00244 | H195: =PRODUCT($F$4:F195)-1 -> 0.1977646159 | I195: =PRODUCT($G$4:G195)-1 -> 0.02331523682
A196: 2016-07-26 | B196: 1.8642 | C196: 2016-07-26 | D196: 0.8259 | F196: =1+B196/100 -> 1.018642 | G196: =1+D196/100 -> 1.008259 | H196: =PRODUCT($F$4:F196)-1 -> 0.2200933438 | I196: =PRODUCT($G$4:G196)-1 -> 0.03176679736
A197: 2016-07-27 | B197: -0.1961 | C197: 2016-07-27 | D197: 0.004 | F197: 0.998039 | G197: 1.00004 | H197: =PRODUCT($F$4:F197)-1 -> 0.2177007408 | I197: =PRODUCT($G$4:G197)-1 -> 0.03180806803
A198: 2016-07-28 | B198: -1.3098 | C198: 2016-07-28 | D198: -0.3442 | F198: 0.986902 | G198: 0.996558 | H198: =PRODUCT($F$4:F198)-1 -> 0.2017512965 | I198: =PRODUCT($G$4:G198)-1 -> 0.02825658466
A199: 2016-07-29 | B199: 2.1234 | C199: 2016-07-29 | D199: -0.1509 | F199: 1.021234 | G199: 0.998491 | H199: =PRODUCT($F$4:F199)-1 -> 0.2272692835 | I199: =PRODUCT($G$4:G199)-1 -> 0.02670494548
A200: 2016-08-01 | B200: 1.8843 | C200: 2016-08-01 | D200: 0.9265 | F200: 1.018843 | G200: 1.009265 | H200: =PRODUCT($F$4:F200)-1 -> 0.2503947186 | I200: =PRODUCT($G$4:G200)-1 -> 0.0362173668
... 50 more rows

Sheet YOY
A1: 005930 Samsung Elec
A2: 年月 | B2: 營業利益成長率％ | C2: 稅後淨利成長率％ | D2: 稅前淨利成長率％ | E2: 營收成長率％ | F2: 營業收入淨額 | G2: 營業毛利率％ | H2: 營業利益率％ | I2: 稅後淨利率％ | J2: 稅後淨利 | K2: 加權平均股數 | L2: 營業收入淨額-單季(百萬) | N2: 營收單季成長率 | O2: 稅後淨利-單季(百萬) | P2: EPS-單季 | Q2: 年月 | R2: 營業利益成長率％ | S2: 稅前淨利成長率％ | T2: 稅後淨利成長率％ | U2: 營收成長率％ | V2: 營業收入淨額 | W2: 稅後淨利 | X2: 加權平均股數
A3: 2011-09-30 | B3: -19.49 | C3: -24.22 | D3: -25.63 | E3: 4.38 | F3: 117697836 | G3: 31.49 | H3: 9.23 | I3: 8.05 | J3: 9471758 | K3: 149.81 | L3: =IF(M3=Y6,F3-V6,F3) -> 41273965 | M3: =YEAR(A3) -> 2011 | N3: 0 | O3: =IF(M3=Y6,J3-W6,J3) -> 3300157 | P3: =O3/K3 -> 22028.95 | Q3: 2010-09-30 | R3: 86.66 | S3: 85.64 | T3: 89.76 | U3: 16.16 | V3: 112759249 | W3: 12499510 | X3: 147.763 | Y3: =YEAR(Q3) -> 2010
A4: 2011-12-29 | B4: -5.88 | C4: -15.29 | D4: -11.05 | E4: 6.71 | F4: 165001771 | G4: 32.03 | H4: 9.48 | I4: 8.11 | J4: 13382645 | K4: 148.746 | L4: =IF(M4=M3,F4-F3,F4) -> 47303935 | M4: =YEAR(A4) -> 2011 | N4: =((L4-X4)/X4)*100 -> 32140965.8 | O4: =IF(M4=M3,J4-J3,J4) -> 3910887 | P4: 26292.38433 | Q4: 2010-12-30 | R4: 43.56 | S4: 53.83 | T4: 63.73 | U4: 11.25 | V4: 154630328 | W4: 15799035 | X4: 147.176 | Y4: =YEAR(Q4) -> 2010
A5: 2012-03-30 | B5: 103.51 | C5: 79.06 | D5: 87.45 | E5: 22.4 | F5: 45270517 | G5: 33.43 | H5: 12.57 | I5: 10.74 | J5: 4860894 | K5: 150.301 | L5: 45270517 | M5: 2012 | N5: =((L5-X4)/X4)*100 -> 30759342.44 | O5: 4860894 | P5: 32341.06227 | Q5: 2011-03-31 | R5: -30.73 | S5: -31.88 | T5: -32.41 | U5: 6.78 | V5: 36985017 | W5: 2714645 | X5: 152.243 | Y5: =YEAR(Q5) -> 2011
A6: 2012-06-29 | B6: 84.97 | C6: 60.57 | D6: 73.2 | E6: 21.52 | F6: 92867496 | G6: 35.27 | H6: 13.08 | I6: 10.67 | J6: 9909936 | K6: 150.287 | L6: 47596979 | M6: 2012 | N6: =((L6-X5)/X5)*100 -> 31263721 | O6: 5049042 | P6: 33595.99965 | Q6: 2011-06-30 | R6: -24.84 | S6: -26.58 | T6: -24.64 | U6: 5.37 | V6: 76423871 | W6: 6171601 | X6: 149.904 | Y6: =YEAR(Q6) -> 2011
A7: 2012-09-28 | B7: 86.11 | C7: 72.46 | D7: 83 | E7: 23.23 | F7: 145044766 | G7: 36.5 | H7: 13.94 | I7: 11.26 | J7: 16334808 | K7: 150.408 | L7: 52177270 | M7: 2012 | N7: =((L7-L3)/L3)*100 -> 26.41690712 | O7: 6424872 | P7: 42716.29169 | Q7: 2011-09-30 | R7: -19.49 | S7: -25.63 | T7: -24.22 | U7: 4.38 | V7: 117697836 | W7: 9471758 | X7: 149.81 | Y7: =YEAR(Q7) -> 2011
A8: 2012-12-28 | B8: 85.69 | C8: 73.25 | D8: 74.01 | E8: 21.88 | F8: 201103613 | G8: 37.02 | H8: 14.44 | I8: 11.53 | J8: 23185375 | K8: 149.497 | L8: 56058847 | M8: 2012 | N8: 18.50778799 | O8: 6850567 | P8: 45824.11018
A9: 2013-03-29 | B9: 54.32 | C9: 43.53 | D9: 42.44 | E9: 16.78 | F9: 52868095 | G9: 40.65 | H9: 16.61 | I9: 13.2 | J9: 6976918 | K9: 150.719 | L9: 52868095 | M9: 2013 | N9: 16.78261814 | O9: 6976918 | P9: 46290.89896
A10: 2013-06-28 | B10: 50.69 | C10: 46.84 | D10: 44.29 | E10: 18.81 | F10: 110332543 | G10: 40.43 | H10: 16.6 | I10: 13.19 | J10: 14551934 | K10: 150.725 | L10: 57464448 | M10: 2013 | N10: 20.73129263 | O10: 7575016 | P10: 50257.19688
A11: 2013-09-30 | B11: 40.88 | C11: 38.36 | D11: 36.15 | E11: 16.8 | F11: 169416042 | G11: 40.24 | H11: 16.81 | I11: 13.34 | J11: 22601471 | K11: 150.729 | L11: 59083499 | M11: 2013 | N11: 13.23608728 | O11: 8049537 | P11: 53404.03638
A12: 2013-12-30 | B12: 26.63 | C12: 28.62 | D12: 28.24 | E12: 13.72 | F12: 228692667 | G12: 39.79 | H12: 16.08 | I12: 13.04 | J12: 29821215 | K12: 130.88 | L12: 59276625 | M12: 2013 | N12: 5.740000325 | O12: 7219744 | P12: 55163.08068
A13: 2014-03-31 | B13: -3.31 | C13: 7.28 | D13: 6.67 | E13: 1.53 | F13: 53675326 | G13: 40.29 | H13: 15.82 | I13: 13.94 | J13: 7484680 | K13: 150.779 | L13: 53675326 | M13: 2014 | N13: 1.526877411 | O13: 7484680 | P13: 49640.06924
A14: 2014-06-30 | B14: -14.39 | C14: -6.12 | D14: -7.63 | E14: -3.9 | F14: 106028555 | G14: 39.9 | H14: 14.78 | I14: 12.88 | J14: 13661186 | K14: 150.797 | L14: 52353229 | M14: 2014 | N14: -8.894575999 | O14: 6176506 | P14: 40959.07744
A15: 2014-09-30 | B15: -30.68 | C15: -21.26 | D15: -23.47 | E15: -9.41 | F15: 153475865 | G15: 38.47 | H15: 12.86 | I15: 11.6 | J15: 17796608 | K15: 150.807 | L15: 47447310 | M15: 2014 | N15: -19.69448187 | O15: 4135422 | P15: 27421.94991
A16: 2014-12-30 | B16: -31.97 | C16: -22.6 | D16: -27.34 | E16: -9.83 | F16: 206205987 | G16: 37.79 | H16: 12.14 | I16: 11.19 | J16: 23082499 | K16: 130.924 | L16: 52730122 | M16: 2014 | N16: -11.04398741 | O16: 5285891 | P16: 40373.73591
A17: 2015-03-31 | B17: -29.56 | C17: -39.62 | D17: -35.55 | E17: -12.22 | F17: 47117918 | G17: 38.55 | H17: 12.69 | I17: 9.59 | J17: 4519323 | K17: 149.098 | L17: 47117918 | M17: 2015 | N17: -12.21680144 | O17: 4519323 | P17: 30311.09069
A18: 2015-06-30 | B18: -17.85 | C18: -25.73 | D18: -20.58 | E18: -9.78 | F18: 95655457 | G18: 39.46 | H18: 13.46 | I18: 10.61 | J18: 10146057 | K18: 148.722 | L18: 48537539 | M18: 2015 | N18: -7.28835656 | O18: 5626734 | P18: 37833.90487
A19: 2015-09-30 | B19: 2.71 | C19: -13.17 | D19: -4.69 | E19: -4 | F19: 147338029 | G19: 39.24 | H19: 13.76 | I19: 10.49 | J19: 15452161 | K19: 148.791 | L19: 51682572 | M19: 2015 | N19: 8.926242605 | O19: 5306104 | P19: 35661.45802
A20: 2015-12-30 | B20: 5.55 | C20: -19.01 | D20: -6.87 | E20: -2.69 | F20: 200653482 | G20: 38.46 | H20: 13.16 | I20: 9.32 | J20: 18694628 | K20: 144.232 | L20: 53315453 | M20: 2015 | N20: 1.110050532 | O20: 3242467 | P20: 22480.9127
A21: 2016-03-31 | B21: 11.65 | C21: 16.47 | D21: 14.53 | E21: 5.65 | F21: 49782252 | G21: 38.99 | H21: 13.41 | I21: 10.57 | J21: 5263506 | K21: 144.777 | L21: 49782252 | M21: 2016 | N21: 5.654608932 | O21: 5263506 | P21: 36355.95433
A22: 2016-06-30 | B22: 15.08 | C22: 9.3 | D22: 9.73 | E22: 5.29 | F22: 100719372 | G22: 40.45 | H22: 14.71 | I22: 11.01 | J22: 11089684 | L22: 50937120 | M22: 2016 | N22: 4.943763218 | O22: 5826178
L23: 0 | M23: 1900 | N23: =((L23-L19)/L19)*100 -> -100 | O23: 0 | P23: =O23/K23 -> 
A29: 年月 | B29: 流動比率 | C29: 負債比率 | D29: 速動比率
A30: 2011-09-30 | B30: 161.2 | C30: 33.41 | D30: 109.11
A31: 2011-12-29 | B31: 161.33 | C31: 34.97 | D31: 115.14
A32: 2012-03-30 | B32: 157.78 | C32: 34.12 | D32: 109.95
A33: 2012-06-29 | B33: 165.32 | C33: 33.7 | D33: 114.22
A34: 2012-09-28 | B34: 172.08 | C34: 34.06 | D34: 119.73
A35: 2012-12-28 | B35: 185.94 | C35: 32.91 | D35: 136.63
A36: 2013-03-29 | B36: 188.66 | C36: 32.51 | D36: 137.52
A37: 2013-06-28 | B37: 196.69 | C37: 32.09 | D37: 143.73
A38: 2013-09-30 | B38: 203.41 | C38: 31.48 | D38: 150.44
A39: 2013-12-30 | B39: 215.84 | C39: 29.92 | D39: 165.82
A40: 2014-03-31 | B40: 213.85 | C40: 30.95 | D40: 163.67
A41: 2014-06-30 | B41: 226.39 | C41: 29.02 | D41: 175.23
A42: 2014-09-30 | B42: 225.18 | C42: 29.46 | D42: 175.79
A43: 2014-12-30 | B43: 221.38 | C43: 27.05 | D43: 174.37
A44: 2015-03-31 | B44: 223.49 | C44: 26.24 | D44: 170.67
A45: 2015-06-30 | B45: 250.89 | C45: 24.93 | D45: 195.08
A46: 2015-09-30 | B46: 244.73 | C46: 26.7 | D46: 189.37
A47: 2015-12-30 | B47: 247.14 | C47: 26.06 | D47: 198.19
A48: 2016-03-31 | B48: 258.08 | C48: 26.08 | D48: 206.12
A49: 2016-06-30 | B49: 271.13 | C49: 25.46 | D49: 220.99

Sheet Shareholders
A1: 005930 Samsung Elec
B2: 2015-12-30 | C2: 2015-12-30 | D2: 2015-12-30
A3: 持股人姓名 | B3: 持有股數 | C3: 持股比率 | D3: 職稱
A4: National Pension Service | B4: 13068288 | C4: 8.87 | D4: Major Stockholder
A5: Samsung Life Insurance Co., Ltd. | B5: 10622814 | C5: 7.21 | D5: Major Stockholder
A6: Samsung C&T Corporation | B6: 5976362 | C6: 4.06 | D6: Major Stockholder
A7: Lee Geon Hui | B7: 4985464 | C7: 3.38 | D7: Major Stockholder
A8: Samsung Fire & Marine Insurance Co., Ltd | B8: 1856370 | C8: 1.26 | D8: Major Stockholder
A9: Hong Ra Hui | B9: 1083072 | C9: 0.74 | D9: Major Stockholder
A10: Lee Jae Yong(67.03.31) | B10: 840403 | C10: 0.57 | D10: Major Stockholder
A11: Samsung Life Insurance Co., Ltd.(special account) | B11: 493350 | C11: 0.33 | D11: Major Stockholder
A12: Samsung Foundation of Welfare | B12: 89683 | C12: 0.06 | D12: Major Stockholder
A13: Samsung Foundation of Culture | B13: 37615 | C13: 0.03 | D13: Major Stockholder
A14: Kwon O Hyeon | B14: 1700 | C14: 0 | D14: Major Stockholder & CEO
A15: Lee Sang Hun | B15: 1473 | C15: 0 | D15: Major Stockholder & Executive Director
A16: Kim Eun Mi | B16: 0 | C16: 0 | D16: Independent Director
A17: Kim Han Jung | B17: 0 | C17: 0 | D17: Independent Director
A18: Lee Byeong Gi | B18: 0 | C18: 0 | D18: Independent Director
A19: Lee In Ho | B19: 0 | C19: 0 | D19: Independent Director
A20: Sin Jong Gyun | B20: 0 | C20: 0 | D20: CEO
A21: Song Gwang Su | B21: 0 | C21: 0 | D21: Independent Director
A22: Yoon Bu Geun | B22: 0 | C22: 0 | D22: CEO

Sheet Finance_yearly
A1: 005930 Samsung Elec
A2: Data Field | B2: 2011-12-29 | C2: 2012-12-28 | D2: 2013-12-30 | E2: 2014-12-30 | F2: 2015-12-30 | G2: 2016-06-30
A3: 現金及約當現金 | B3: 14691761 | C3: 18791460 | D3: 16284780 | E3: 16840766 | F3: 22636744 | G3: 25840759
A4: 透過損益按公允價值衡量之金融資產─流動 | B4: 0 | C4: 0 | D4: 0 | E4: 0 | F4: 0 | G4: 0
A5: 備供出售金融資產─流動 | B5: 655969 | C5: 1258874 | D5: 1488527 | E5: 3286798 | F5: 4627530 | G5: 3781006
A6: 持有至到期日金融資產─流動 | B6: 0 | C6: 0 | D6: 0 | E6: 0 | F6: 0 | G6: 0
A7: 避險之衍生性金融資產─流動 | B7: 0 | C7: 0 | D7: 0 | E7: 0 | F7: 0 | G7: 0
A8: 無活絡市場之債券投資─流動 | B8: 0 | C8: 0 | D8: 0 | E8: 0 | F8: 0 | G8: 0
A9: 應收帳款及票據 | B9: 21882127 | C9: 23861235 | D9: 24988532 | E9: 24694610 | F9: 25168026 | G9: 26081803
A10: 應收建造合約款 | B10: 0 | C10: 0 | D10: 0 | E10: 0 | F10: 0 | G10: 0
A11: 其他應收款 | B11: 2270901 | C11: 2813361 | D11: 2887402 | E11: 3539875 | F11: 3352663 | G11: 2942063
A12: 資金貸予他人─流動 | B12: 0 | C12: 0 | D12: 0 | E12: 0 | F12: 0 | G12: 0
A13: 存貨 | B13: 15716715 | C13: 17747413 | D13: 19134868 | E13: 17317504 | F13: 18811794 | G13: 17858721
A14: 生物資產流動 | B14: 0 | C14: 0 | D14: 0 | E14: 0 | F14: 0 | G14: 0
A15: 預付費用及預付款 | B15: 3765751 | C15: 3936662 | D15: 4401138 | E15: 5336063 | F15: 4876635 | G15: 5320933
A16: 應收代理店款 | B16: 0 | C16: 0 | D16: 0 | E16: 0 | F16: 0 | G16: 0
A17: 待出售非流動資產 | B17: 0 | C17: 0 | D17: 2716733 | E17: 645491 | F17: 77073 | G17: 0
A18: 當期所得稅資產─流動 | B18: 0 | C18: 0 | D18: 0 | G18: 0
A19: 其他金融資產─流動 | B19: 11529905 | C19: 17397937 | D19: 36722702 | E19: 41689776 | F19: 44228800 | G19: 47449558
A20: 其他流動資產 | B20: 988934 | C20: 1462075 | D20: 2135589 | E20: 1795143 | F20: 1035460 | G20: 888206
A21: 流動資產 | B21: 71502063 | C21: 87269017 | D21: 110760271 | E21: 115146026 | F21: 124814725 | G21: 130163049
A22: 透過損益按公允價值衡量之金融資產─非流動 | B22: 0 | C22: 0 | D22: 0 | G22: 0
A23: 備供出售金融資產─非流動 | B23: 3223598 | C23: 5229175 | D23: 6238380 | E23: 12667509 | F23: 8332480 | G23: 8398201
A24: 持有至到期日金融資產─非流動 | B24: 0 | C24: 0 | D24: 0 | E24: 0 | F24: 0 | G24: 0
A25: 避險之衍生性金融資產─非流動 | B25: 0 | C25: 0 | D25: 0 | E25: 0 | F25: 0 | G25: 0
A26: 無活絡市場之債券投資─非流動 | B26: 0 | C26: 0 | D26: 0 | E26: 0 | F26: 0 | G26: 0
A27: 採權益法之長期股權投資 | B27: 9204169 | C27: 8785489 | D27: 6422292 | E27: 5232461 | F27: 5276348 | G27: 3942525
A28: 預付投資款
A29: 不動產廠房及設備 | B29: 62043951 | C29: 68484743 | D29: 75496388 | E29: 80872950 | F29: 86477110 | G29: 84634963
A30: 商譽及無形資產合計 | B30: 3355236 | C30: 3729705 | D30: 3980600 | E30: 4785473 | F30: 5396311 | G30: 5247797
A31: 遞延所得稅資產 | B31: 1783086 | C31: 2516080 | D31: 4621780 | E31: 4526595 | F31: 5589108 | G31: 5331307
A32: 其他遞延資產淨額 | B32: 0 | C32: 0 | D32: 0 | E32: 0 | F32: 0 | G32: 0
A33: 遞延資產合計 | B33: 1783086 | C33: 2516080 | D33: 4621780 | E33: 4526595 | F33: 5589108 | G33: 5331307
A34: 投資性不動產淨額 | B34: 0 | C34: 0 | D34: 0 | E34: 0 | F34: 0 | G34: 0
A35: 生物資產非流動 | B35: 0 | C35: 0 | D35: 0 | E35: 0 | F35: 0 | G35: 0
A36: 所得稅資產非流動 | B36: 0 | C36: 0 | D36: 0 | G36: 0
A37: 其他金融資產--非流動 | B37: 0 | C37: 0 | D37: 0 | E37: 0 | F37: 0 | G37: 0
A38: 其他非流動資產 | B38: 4688160 | C38: 5057361 | D38: 6555307 | E38: 7191944 | F38: 6293439 | G38: 6242831
A39: 非流動資產 | B39: 84298200 | C39: 93802553 | D39: 103314747 | E39: 115276932 | F39: 117364796 | G39: 113797624
A40: 資產總額 | B40: 155800263 | C40: 181071570 | D40: 214075018 | E40: 230422958 | F40: 242179521 | G40: 243960673
A41: 短期借款 | B41: 9653722 | C41: 8443752 | D41: 6438517 | F41: 11155425 | G41: 10259758
A42: 應付商業本票／承兌匯票 | B42: 0 | C42: 0 | D42: 0 | E42: 0 | F42: 0 | G42: 0
A43: 透過損益按公允價值衡量之金融負債─流動 | B43: 0 | C43: 0 | D43: 0 | G43: 0
A44: 避險之衍生性金融負債─流動 | B44: 0 | C44: 0 | D44: 0 | E44: 0 | F44: 0 | G44: 0
A45: 應付帳款及票據 | B45: 10276727 | C45: 9489111 | D45: 8437139 | E45: 7914704 | F45: 6187291 | G45: 7344748
A46: 應付建造合約款 | B46: 0 | C46: 0 | D46: 0 | G46: 0
A47: 其他應付款 | B47: 16056491 | C47: 16895395 | D47: 20541096 | E47: 23195184 | F47: 20493117 | G47: 17833406
A48: 當期所得稅負債 | B48: 1262798 | C48: 3222934 | D48: 3386018 | E48: 2161109 | F48: 3401625 | G48: 1863772
A49: 負債準備──流動 | B49: 3514536 | C49: 5054853 | D49: 6736476 | E49: 5991510 | F49: 6420603 | G49: 6413045
A50: 與待出售非流動資產直接相關之負債 | B50: 0 | C50: 0 | D50: 0 | E50: 28316 | F50: 0 | G50: 0
A51: 其他金融負債─流動 | B51: 0 | C51: 0 | D51: 0 | G51: 0
A52: 預收款項 | B52: 1450733 | C52: 1517672 | D52: 1706313 | E52: 1427230 | F52: 1343432 | G52: 1351841
A53: 一年內到期長期負債 | B53: 30292 | C53: 999010 | D53: 2425831 | E53: 9807966 | F53: 221548 | G53: 1389682
A54: 特別股負債─流動 | B54: 0 | C54: 0 | D54: 0 | G54: 0
A55: 應付代理店款 | B55: 0 | C55: 0 | D55: 0 | E55: 0 | F55: 0 | G55: 0
A56: 其他流動負債 | B56: 2073715 | C56: 1310325 | D56: 1644019 | E56: 1487894 | F56: 1279868 | G56: 1551912
A57: 流動負債 | B57: 44319014 | C57: 46933052 | D57: 51315409 | E57: 52013913 | F57: 50502909 | G57: 48008164
A58: 透過損益按公允價值衡量之金融負債─非流動 | B58: 0 | C58: 0 | D58: 0 | G58: 0
A59: 避險之衍生性金融負債─非流動 | B59: 0 | C59: 0 | D59: 0 | E59: 0 | F59: 0 | G59: 0
A60: 特別股負債─非流動 | B60: 0 | C60: 0 | D60: 0 | G60: 0
A61: 應付公司債─非流動 | B61: 1280124 | C61: 1829374 | D61: 1311068 | E61: 1355882 | F61: 1230448 | G61: 62085
A62: 銀行借款─非流動 | B62: 3682472 | C62: 3521257 | D62: 902715 | E62: 101671 | F62: 266542 | G62: 533222
A63: 其他長期借款─非流動 | B63: 0 | C63: 0 | D63: 0 | E63: 0 | F63: 0 | G63: 0
A64: 負債準備─非流動 | B64: 363223 | C64: 408529 | D64: 460924 | E64: 499290 | F64: 522378 | G64: 624509
A65: 遞延貸項 | B65: 0 | C65: 0 | D65: 0 | E65: 0 | F65: 0 | G65: 0
A66: 應計退休金負債 | B66: 0 | C66: 1729939 | D66: 1854902 | E66: 201342 | F66: 358820 | G66: 880552
A67: 遞延所得稅 | B67: 2333442 | C67: 3429467 | D67: 6012371 | E67: 4097811 | F67: 5154792 | G67: 6465189
A68: 所得稅負債 | B68: 0 | C68: 0 | D68: 0 | G68: 0
A69: 其他非流動負債 | B69: 1389170 | C69: 1637975 | D69: 2119217 | E69: 4064861 | F69: 5083827 | G69: 5544436
A70: 非流動負債 | B70: 10167619 | C70: 12658312 | D70: 12743599 | E70: 10320857 | F70: 12616807 | G70: 14109993
A71: 負債總額 | B71: 54486633 | C71: 59591364 | D71: 64059008 | E71: 62334770 | F71: 63119716 | G71: 62118157
A72: 普通股股本 | B72: 778047 | C72: 119467 | D72: 119467 | E72: 778047 | F72: 778047 | G72: 778047
A73: 特別股股本 | B73: 119467 | C73: 778047 | D73: 778047 | E73: 119467 | F73: 119467 | G73: 119467
A74: 換股權利證書 | B74: 55313 | C74: 22242 | D74: 10243 | E74: 0 | F74: 0 | G74: 0
A75: 股本 | B75: 952827 | C75: 919756 | D75: 907757 | E75: 897514 | F75: 897514 | G75: 897514
A76: 資本公積─發行溢價 | B76: 4403893 | C76: 4403893 | D76: 4403893 | E76: 4403893 | F76: 4403893 | G76: 4403893
A77: 其他資本公積 | B77: 0 | C77: 0 | D77: 0 | G77: 0
A78: 資本公積合計 | B78: 4403893 | C78: 4403893 | D78: 4403893 | E78: 4403893 | F78: 4403893 | G78: 4403893
A79: 保留盈餘合計 | B79: 97622872 | C79: 119985689 | D79: 148600282 | E79: 0 | F79: 0 | G79: 0
A80: 其他權益 | B80: 1650352 | C80: -864359 | D80: -2145884 | E80: -12649286 | F80: -17556654 | G80: -15583542
A81: 庫藏股票帳面值 | B81: 7539561 | C81: 7350927 | D81: 7323432 | E81: 0 | F81: 0 | G81: 0
A82: 母公司股東權益合計 | B82: 97090383 | C82: 117094052 | D82: 144442616 | E82: 162181725 | F82: 172876767 | G82: 175638353
A83: 非控制權益 | B83: 4223247 | C83: 4386154 | D83: 5573394 | E83: 5906463 | F83: 6183038 | G83: 6204163
A84: 股東權益總額 | B84: 101313630 | C84: 121480206 | D84: 150016010 | E84: 168088188 | F84: 179059805 | G84: 181842516
A85: 負債及股東權益總額 | B85: 155800263 | C85: 181071570 | D85: 214075018 | E85: 230422958 | F85: 242179521 | G85: 243960673
A86: 營業收入毛額
A87: 退回及折讓
A88: 營業收入淨額 | B88: 165001771 | C88: 201103613 | D88: 228692667 | E88: 206205987 | F88: 200653482 | G88: 100719372
A89: 營業成本 | B89: 112145120 | C89: 126651931 | D89: 137696309 | E89: 128278800 | F89: 123482118 | G89: 59982976
A90: 營業毛利 | B90: 52856651 | C90: 74451682 | D90: 90996358 | E90: 77927187 | F90: 77171364 | G90: 40736396
A91: 營業費用 | B91: 37212360 | C91: 45402344 | D91: 54211345 | E91: 52902116 | F91: 50757922 | G91: 25916634
A92: 推銷費用 | B92: 0 | C92: 0 | D92: 0 | E92: 0 | F92: 0 | G92: 0
A93: 管理費用 | B93: 37212360 | C93: 45402344 | D93: 54211345 | E93: 52902116 | F93: 50757922 | G93: 25916634
A94: 研究發展費 | B94: 0 | C94: 0 | D94: 0 | E94: 0 | F94: 0 | G94: 0
A95: 其他營業收入
A96: 其他營業費用
A97: 營業利益 | B97: 15644291 | C97: 29049338 | D97: 36785013 | E97: 25025071 | F97: 26413442 | G97: 14819762
A98: 金融收入
A99: 金融費用
A100: 其他收益
A101: 其他費損
A102: 稅前淨利 | B102: 17191918 | C102: 29915017 | D102: 38364279 | E102: 27875034 | F102: 25960995 | G102: 15194444
A103: 所得稅費用 | B103: -3432875 | C103: -6069732 | D103: -7889515 | E103: -4480676 | F103: -6900851 | G103: -4094248
A104: 繼續營業單位損益 | B104: 13759043 | C104: 23845285 | D104: 30474764 | E104: 23394358 | F104: 19060144 | G104: 11100196
A105: 停業單位損益 | B105: 0 | C105: 0 | D105: 0 | E105: 0 | F105: 0 | G105: 0
A106: 合併總損益 | B106: 13759043 | C106: 23845285 | D106: 30474764 | E106: 23394358 | F106: 19060144 | G106: 11100196
A107: 國外機構財務報表換算之兌換差額─OCI | B107: 183655 | C107: -1.825 | D107: -1.001 | E107: -922059 | F107: 268315 | G107: 110275
A108: 備供出售金融資產未實現評價損益─OCI | B108: -572028 | C108: 0.962 | D108: 0.186 | E108: -232105 | F108: -414961 | G108: 29915
A109: 現金流量避險─OCI | B109: 0 | C109: 0 | D109: 0 | E109: 0 | F109: 0 | G109: 0
A110: 國外營運機構淨投資避險─OCI | B110: 0 | C110: 0 | D110: 0 | E110: 0 | F110: 0 | G110: 0
A111: 重估價之利益〈損失〉─OCI | B111: 0 | C111: 0 | D111: 0 | E111: 0 | F111: 0 | G111: 0
A112: 確定福利計畫精算利益〈損失〉─OCI | B112: -385214 | C112: -0.504 | D112: -0.213 | E112: -710318 | F112: 263978 | G112: -47045
A113: 採用權益法認列之關聯企業及合資之其他綜合損益之份額─OCI | B113: -113898 | C113: -0.35 | D113: 0.021 | E113: -128932 | F113: -41261 | G113: -136216
A114: 其他綜合損益─其他─OCI | B114: 0 | C114: 0 | D114: 0 | E114: 0 | F114: 0 | G114: 0
A115: 與其他綜合損益組成部分相關之所得稅─OCI | B115: 0 | C115: 0 | D115: 0 | E115: 0 | F115: 0 | G115: 0
A116: 其他綜合損益─OCI | B116: -887485 | C116: -1.717 | D116: -1.007 | E116: -1993414 | F116: 76071 | G116: -43071
A117: 本期綜合損益總額 | B117: 12871558 | C117: 22.128 | D117: 29.468 | E117: 21400944 | F117: 19136215 | G117: 11057125
A118: 本期稅後淨利〈歸屬母公司股東〉 | B118: 13382645 | C118: 23185375 | D118: 29821215 | E118: 23082499 | F118: 18694628 | G118: 11089684
A119: 非控制權益淨利 | B119: 376398 | C119: 659910 | D119: 653549 | E119: 311859 | F119: 365516 | G119: 10512
A120: 母公司綜合損益 | B120: 12439116 | C120: 21.499 | D120: 28.838 | E120: 20990732 | F120: 18804189 | G120: 11026386
A121: 非控制權益綜合損益 | B121: 432442 | C121: 0.629 | D121: 0.63 | E121: 410212 | F121: 332026 | G121: 30739
A122: 每股盈餘 | B122: 0.089229 | C122: 0.15402 | D122: 0.227852 | E122: 0.176305 | F122: 0.126305 | G122: 0.077266
A123: 加權平均股數 | B123: 130.152 | C123: 0.130698 | D123: 130.88 | E123: 130.924 | F123: 129.19 | G123: 125.693
A124: 發放特別股股息 | B124: 1769345 | C124: 3.055 | D124: 0 | F124: 2377353 | G124: 1377858
A125: 稀釋稅後淨利 | B125: 11614952
A126: 每股盈餘─完全稀釋 | B126: 0.089146 | C126: 0.15395 | D126: 0 | E126: 0 | F126: 0.126303 | G126: 0.077266
A127: 加權平均股數─稀釋 | B127: 130.292
A128: 普通股庫藏股股數(個股) | B128: 16.912614 | C128: 16.451438 | D128: 16.384216 | E128: 17.094741 | G128: 19.010776
A129: 當期財報面額(元) | B129: 0.005 | C129: 0.005 | D129: 0.005 | E129: 0.005 | F129: 0.005 | G129: 0.005
A130: 特別股庫藏股股數(個股) | B130: 2.979693 | C130: 2.979693 | D130: 2.979693 | E130: 3.110943 | G130: 3.482507
A131: 已發行普通股數(個股) | B131: 147.299337 | C131: 147.299337 | D131: 147.299337 | E131: 147.299337 | F131: 147.299337 | G131: 142.969337
A132: 稅前息前淨利 | B132: 17836051 | C132: 29916215.01 | D132: 38365298.32 | E132: 28467974 | F132: 26737506 | G132: 15194444
A133: 稅前息前折舊前淨利 | B133: 18204174 | C133: 30358295.01 | D133: 38921242.32 | E133: 29138683 | F133: 27452389 | G133: 15194444
A134: 常續性稅後淨利 | B134: 13702070 | C134: 24225162.94 | D134: 29285033.8 | E134: 23984927 | F134: 20699321 | G134: 10738937
A135: 普通股每股淨值 | B135: 689.4289 | C135: 13545.8021 | D135: 22687.1235 | E135: 1240.503 | F135: 1149.9327 | G135: 1365.1469
A136: 營業毛利率 | B136: 32.03 | C136: 37.02 | D136: 39.79 | E136: 37.79 | F136: 38.46 | G136: 40.45
A137: 營業利益率 | B137: 9.48 | C137: 14.44 | D137: 16.08 | E137: 12.14 | F137: 13.16 | G137: 14.71
A138: 稅後淨利率 | B138: 8.11 | C138: 11.53 | D138: 13.04 | E138: 11.19 | F138: 9.32 | G138: 11.01
A139: 本益比 | B139: 12.87 | C139: 1.78 | D139: 1.22 | E139: 8.61 | F139: 9.47 | G139: 10.36
A140: 總資產週轉率(次) | B140: 1.14 | C140: 1.19 | D140: 1.16 | E140: 0.93 | F140: 0.85 | G140: 0.41
A141: 應收帳款週轉率(次) | B141: 8.04 | C141: 8.79 | D141: 9.36 | E141: 8.3 | F141: 8.05 | G141: 3.93
A142: 流動比率 | B142: 161.33 | C142: 185.94 | D142: 215.84 | E142: 221.38 | F142: 247.14 | G142: 271.13
A143: 速動比率 | B143: 115.14 | C143: 136.63 | D143: 165.82 | E143: 174.37 | F143: 198.19 | G143: 220.99
A144: 負債比率 | B144: 34.97 | C144: 32.91 | D144: 29.92 | E144: 27.05 | F144: 26.06 | G144: 25.46
A145: 營收成長率 | B145: 6.71 | C145: 21.88 | D145: 13.72 | E145: -9.83 | F145: -2.69 | G145: 5.29
A146: 來自營運之現金流量 | B146: 22917901 | C146: 37972809 | D146: 46707440 | E146: 36975389 | F146: 40061761 | G146: 22063135
A147: 投資活動之現金流量 | B147: -21112564 | C147: -31321554 | D147: -44747019 | E147: -32806408 | F147: -27167787 | G147: -10176994
A148: 融資活動之現金流量 | B148: 3109729 | C148: -1864508 | D148: -4137031 | E148: -3057109 | F148: -6573509 | G148: -8768488
A149: 匯率影響數 | B149: -14724 | C149: -687048 | D149: -330070 | E149: -555886 | F149: -524487 | G149: 86362
A150: 其他影響數 | B150: 0 | C150: 0 | D150: 0 | E150: 0 | F150: 0 | G150: 0
A151: 本期產生現金流量 | B151: 4900342 | C151: 4099699 | D151: -2506680 | E151: 555986 | F151: 5795978 | G151: 3204015
A152: 期初現金及約當現金 | B152: 9791419 | C152: 14691761 | D152: 18791460 | E152: 16284780 | F152: 16840766 | G152: 22636744
A153: 期末現金及約當現金 | B153: 14691761 | C153: 18791460 | D153: 16284780 | E153: 16840766 | F153: 22636744 | G153: 25840759

Sheet IS
A1: 005930 Samsung Elec
A2: 年度 | B2: 季_0 | C2: 季 | D2: 合併與否Y/N | E2: 原始公告日 | F2: 單季營業收入淨額(千圜) | G2: 營業淨額(千圜) | H2: 營業利益(千圜) | I2: 稅前淨利(千圜) | J2: 本期稅後淨利(千圜) | K2: 合併淨利(支配) (千圜)
A3: 2016-12-29 | C3: Q1 | D3: Y | E3: 2016-04-07 | F3: 49782252 | G3: 49782252 | H3: 6675812 | I3: 7122485 | J3: 5252803 | K3: 5263506
A4: 2016-12-29 | C4: Q2 | D4: Y | E4: 2016-07-07 | F4: 50937120 | G4: 101000000 | H4: 14819762 | I4: 15194444 | J4: 11100196 | K4: 11089684
A5: 2016-12-29 | C5: Q3 | D5: Y | E5: 2016-10-07 | F5: 47000000 | G5: 147720000 | H5: 20020000
B8: =IF(B11="Q1",YEAR(B9)&"/"&3,IF(B11="Q2",YEAR(B9)&"/"&6,IF(B11="Q3",YEAR(B9)&"/"&9,YEAR(B9)&"/"&12))) -> 2016/3 | C8: =IF(C11="Q1",YEAR(C9)&"/"&3,IF(C11="Q2",YEAR(C9)&"/"&6,IF(C11="Q3",YEAR(C9)&"/"&9,YEAR(C9)&"/"&12))) -> 2016/6 | D8: =IF(D11="Q1",YEAR(D9)&"/"&3,IF(D11="Q2",YEAR(D9)&"/"&6,IF(D11="Q3",YEAR(D9)&"/"&9,YEAR(D9)&"/"&12))) -> 2016/9 | E8: =IF(E11="Q1",YEAR(E9)&"/"&3,IF(E11="Q2",YEAR(E9)&"/"&6,IF(E11="Q3",YEAR(E9)&"/"&9,YEAR(E9)&"/"&12))) ->  | F8: =IF(F11="Q1",YEAR(F9)&"/"&3,IF(F11="Q2",YEAR(F9)&"/"&6,IF(F11="Q3",YEAR(F9)&"/"&9,YEAR(F9)&"/"&12))) -> 
A9: =IFERROR(TRANSPOSE(A2:K5),"") -> 年度 | B9: 2016-12-29 | C9: 2016-12-29 | D9: 2016-12-29
A10: 季_0 | B10: 0 | C10: 0 | D10: 0
A11: 季 | B11: Q1 | C11: Q2 | D11: Q3
A12: 合併與否Y/N | B12: Y | C12: Y | D12: Y
A13: 原始公告日 | B13: 2016-04-07 | C13: 2016-07-07 | D13: 2016-10-07
A14: 單季營業收入淨額(千圜) | B14: 49782252 | C14: 50937120 | D14: 47000000
A15: 營業淨額(千圜) | B15: 49782252 | C15: 101000000 | D15: 147720000
A16: 營業利益(千圜) | B16: 6675812 | C16: 14819762 | D16: 20020000
A17: 稅前淨利(千圜) | B17: 7122485 | C17: 15194444 | D17: 0
A18: 本期稅後淨利(千圜) | B18: 5252803 | C18: 11100196 | D18: 0
A19: 合併淨利(支配) (千圜) | B19: 5263506 | C19: 11089684 | D19: 0

Sheet Investor Net BuySell
A1: 005930 Samsung Elec
A2: Data Field | B2: 2016-10-12 | D2: Data Field | E2: 2016-10-12 | G2: Data Field | H2: 2016-10-12 | J2: Data Field | K2: 2016-10-12 | M2: Data Field | N2: 2016-10-12 | P2: Data Field | Q2: 2016-10-12
A3: 外資買賣超(股) | B3: -296489 | D3: 外資買賣超(百萬元) | E3: -448176685 | G3: 外資買(股) | H3: 319086 | J3: 外資賣(股) | K3: 615575 | M3: 外資買(百萬元) | N3: 483294103.2 | P3: 外資賣(百萬元) | Q3: 931470788.2
A4: 投信買賣超(股) | B4: 17320 | D4: 投信買賣超(百萬元) | E4: 26280994 | G4: 投信買(股) | H4: 20689 | J4: 投信賣(股) | K4: 3369 | M4: 投信買(百萬元) | N4: 31390921 | P4: 投信賣(百萬元) | Q4: 5109927
A5: 金融投資買賣超(股) | B5: 100961 | D5: 金融投資買賣超(百萬元) | E5: 152720523 | G5: 金融投資買(股) | H5: 161464 | J5: 金融投資賣(股) | K5: 60503 | M5: 金融投資買(百萬元) | N5: 244710968 | P5: 金融投資賣(百萬元) | Q5: 91990445
A6: 保險買賣超(股) | B6: 17609 | D6: 保險買賣超(百萬元) | E6: 26658887 | G6: 保險買(股) | H6: 19269 | J6: 保險賣(股) | K6: 1660 | M6: 保險買(百萬元) | N6: 29180645 | P6: 保險賣(百萬元) | Q6: 2521758
A7: 私募基金買賣超(股) | B7: 15826 | D7: 私募基金買賣超(百萬元) | E7: 23992960 | G7: 私募基金買(股) | H7: 16153 | J7: 私募基金賣(股) | K7: 327 | M7: 私募基金買(百萬元) | N7: 24490727 | P7: 私募基金賣(百萬元) | Q7: 497767
A8: 銀行買賣超(股) | B8: 2843 | D8: 銀行買賣超(百萬元) | E8: 4284865 | G8: 銀行買(股) | H8: 4392 | J8: 銀行賣(股) | K8: 1549 | M8: 銀行買(百萬元) | N8: 6632603 | P8: 銀行賣(百萬元) | Q8: 2347738
A9: 其他金融買賣超(股) | B9: -875 | D9: 其他金融買賣超(百萬元) | E9: -1320220 | G9: 其他金融買(股) | H9: 200 | J9: 其他金融賣(股) | K9: 1075 | M9: 其他金融買(百萬元) | N9: 308740 | P9: 其他金融賣(百萬元) | Q9: 1628960
A10: 退休基金買賣超(股) | B10: 49836 | D10: 退休基金買賣超(百萬元) | E10: 75754687 | G10: 退休基金買(股) | H10: 52382 | J10: 退休基金賣(股) | K10: 2546 | M10: 退休基金買(百萬元) | N10: 79617706 | P10: 退休基金賣(百萬元) | Q10: 3863019
A11: 政府買賣超(股) | B11: 8424 | D11: 政府買賣超(百萬元) | E11: 12840300 | G11: 政府買(股) | H11: 8886 | J11: 政府賣(股) | K11: 462 | M11: 政府買(百萬元) | N11: 13542827 | P11: 政府賣(百萬元) | Q11: 702527
A12: 其他法人買賣超(股) | B12: 5985 | D12: 其他法人買賣超(百萬元) | E12: 9099185 | G12: 其他法人買(股) | H12: 6714 | J12: 其他法人賣(股) | K12: 729 | M12: 其他法人買(百萬元) | N12: 10210799 | P12: 其他法人賣(百萬元) | Q12: 1111614
A13: 個人買賣超(股) | B13: 78560 | D13: 個人買賣超(百萬元) | E13: 117864.504 | G13: 個人買(股) | H13: 172536 | J13: 個人賣(股) | K13: 93976 | M13: 個人買(百萬元) | N13: 260735366 | P13: 個人賣(百萬元) | Q13: 142870862
A15: Data Field | B15: 2016-10-12 | D15: 單位 | G15: 年月日 | H15: 外資買賣超(百萬元) | I15: 投信買賣超(百萬元) | J15: 金融投資買賣超(百萬元) | K15: 保險買賣超(百萬元) | L15: 私募基金買賣超(百萬元) | M15: 銀行買賣超(百萬元) | N15: 其他金融買賣超(百萬元) | O15: 退休基金買賣超(百萬元) | P15: 政府買賣超(百萬元) | Q15: 其他法人買賣超(百萬元) | R15: 個人買賣超(百萬元) | S15: =IF($E$16=1,"不含外資買賣超總額(股)","不含外資買賣超總額(百萬元)") -> 不含外資買賣超總額(百萬元) | T15: 年月日 | U15: 外資買賣超(股) | V15: 投信買賣超(股) | W15: 金融投資買賣超(股) | X15: 保險買賣超(股) | Y15: 私募基金買賣超(股) | Z15: 銀行買賣超(股) | AA15: 其他金融買賣超(股) | AB15: 退休基金買賣超(股) | AC15: 政府買賣超(股) | AD15: 其他法人買賣超(股) | AE15: 個人買賣超(股) | AG15: =IF($E$16=1,U15,H15) -> 外資買賣超(百萬元)
A16: 外資買賣超佔成交量比率 % | B16: -37.92 | D16: 單位：股 | E16: 2 | G16: 2015-10-14 | H16: -40170868 | I16: 1338135 | J16: 7069473 | K16: 1897816 | L16: 16932392 | M16: -173456 | N16: 541190 | O16: 20329288 | P16: 2034946 | Q16: -111045 | R16: -9687.871 | S16: =IF($E$16=1,SUM(U16:AD16),SUM(H16:Q16)) -> 9687871 | T16: 2015-10-14 | U16: -32186 | V16: 1067 | W16: 5699 | X16: 1508 | Y16: 13502 | Z16: -135 | AA16: 432 | AB16: 16301 | AC16: 1633 | AD16: -90 | AE16: -7731 | AG16: =IF($E$16=1,U16,H16) -> -40170868
A17: 投信買賣超佔成交量比率% | B17: 2.22 | D17: 單位：百萬元 | G17: 2015-10-15 | H17: -47870308.15 | I17: 4511156 | J17: 53478765 | K17: 188679 | L17: 16577810.15 | M17: -86137 | N17: -1354474 | O17: 12323550 | P17: 2143358 | Q17: 1073370 | R17: -40985.769 | S17: =IF($E$16=1,SUM(U17:AD17),SUM(H17:Q17)) -> 40985769 | T17: 2015-10-15 | U17: -37518 | V17: 3541 | W17: 41902 | X17: 144 | Y17: 12990 | Z17: -68 | AA17: -1065 | AB17: 9653 | AC17: 1676 | AD17: 837 | AE17: -32092 | AG17: -47870308.15
A18: 金融投資買賣超佔成交量比率% | B18: 12.91 | G18: 2015-10-16 | H18: -42046184 | I18: 13396415 | J18: 20650326 | K18: -3557552 | L18: 1467213 | M18: -204740 | N18: -845975 | O18: 18538826 | P18: -2924291 | Q18: 602486 | R18: -5076.524 | S18: 5076524 | T18: 2015-10-16 | U18: -33251 | V18: 10593 | W18: 16332 | X18: -2819 | Y18: 1161 | Z18: -162 | AA18: -670 | AB18: 14670 | AC18: -2316 | AD18: 477 | AE18: -4015 | AG18: -42046184
A19: 保險買賣超佔成交量比率% | B19: 2.25 | G19: 2015-10-19 | H19: -21202492 | I19: -1439320 | J19: 23445021 | K19: 426851 | L19: 251566 | M19: 715377 | N19: -389292 | O19: 5732872 | P19: 34709 | Q19: -79080 | R19: -7496.212 | S19: 7496212 | T19: 2015-10-19 | U19: -16878 | V19: -1144 | W19: 18657 | X19: 336 | Y19: 198 | Z19: 571 | AA19: -311 | AB19: 4563 | AC19: 27 | AD19: -64 | AE19: -5955 | AG19: -21202492
A20: 私募基金買賣超佔成交量比率% | B20: 2.02 | G20: 2015-10-20 | H20: -20135186 | I20: 2221222 | J20: 6869589 | K20: -9192 | L20: -325051 | M20: -470982 | N20: 5080 | O20: 31797614 | P20: 123149 | Q20: -110345 | R20: -19965.898 | S20: 19965898 | T20: 2015-10-20 | U20: -15861 | V20: 1740 | W20: 5416 | X20: -4 | Y20: -257 | Z20: -371 | AA20: 4 | AB20: 25058 | AC20: 97 | AD20: -86 | AE20: -15736 | AG20: -20135186
A21: 銀行買賣超佔成交量比率% | B21: 0.36 | G21: 2015-10-21 | H21: -10864194 | I21: -4968397 | J21: 28458906 | K21: 116648 | L21: 2175458 | M21: -2304712 | N21: -1337274 | O21: 13795145 | P21: 1068737 | Q21: -1763240 | R21: -24377.077 | S21: 24377077 | T21: 2015-10-21 | U21: -8517 | V21: -3914 | W21: 22357 | X21: 82 | Y21: 1707 | Z21: -1809 | AA21: -1051 | AB21: 10793 | AC21: 840 | AD21: -1382 | AE21: -19106 | AG21: -10864194
A22: 其他金融買賣超佔成交量比率% | B22: -0.11 | G22: 2015-10-22 | H22: -70835553 | I22: 1689840 | J22: 20061828 | K22: 11191215 | L22: 8728722 | M22: -1936303 | N22: 932872 | O22: 47324990 | P22: 5101931 | Q22: -5480082 | R22: -16779.46 | S22: 16779460 | T22: 2015-10-22 | U22: -55258 | V22: 1302 | W22: 15613 | X22: 8725 | Y22: 6776 | Z22: -1513 | AA22: 726 | AB22: 36962 | AC22: 3984 | AD22: -4269 | AE22: -13048 | AG22: -70835553
A23: 退休基金買賣超佔成交量比率% | B23: 6.37 | G23: 2015-10-23 | H23: -49790207 | I23: -2699761 | J23: 30274647 | K23: 1080928 | L23: 20614921 | M23: -1523843 | O23: 30096276 | P23: 5430877 | Q23: 3650449 | R23: -37134.287 | S23: 37134287 | T23: 2015-10-23 | U23: -38637 | V23: -2092 | W23: 23467 | X23: 827 | Y23: 15970 | Z23: -1176 | AB23: 23300 | AC23: 4206 | AD23: 2825 | AE23: -28690 | AG23: -49790207
A24: 政府買賣超佔成交量比率% | B24: 1.08 | G24: 2015-10-26 | H24: -5030164 | I24: 1641839 | J24: 8239825 | K24: -3034224 | L24: 710936 | M24: 82723 | N24: -75768 | O24: 8913919 | P24: -472445 | Q24: 841812 | R24: -11818.453 | S24: 11818453 | T24: 2015-10-26 | U24: -3995 | V24: 1288 | W24: 6411 | X24: -2355 | Y24: 551 | Z24: 66 | AA24: -59 | AB24: 6930 | AC24: -367 | AD24: 658 | AE24: -9128 | AG24: -5030164
A25: 其他法人買賣超佔成交量比率% | B25: 0.77 | G25: 2015-10-27 | H25: -11687545 | I25: 15439704 | J25: 3213818 | K25: -2460461 | L25: 1447696 | M25: -439401 | N25: 887097 | O25: 17308759 | P25: -34956 | Q25: -714834 | R25: -22959.877 | S25: 22959877 | T25: 2015-10-27 | U25: -9059 | V25: 11915 | W25: 2502 | X25: -1903 | Y25: 1116 | Z25: -339 | AA25: 685 | AB25: 13358 | AC25: -27 | AD25: -552 | AE25: -17696 | AG25: -11687545
A26: 個人買賣超佔成交量比率% | B26: 10.05 | G26: 2015-10-28 | H26: -102278429 | I26: 2213160 | J26: 29306088 | K26: 11180969 | L26: 14274978 | M26: 49473 | N26: 619687 | O26: 64172946 | P26: -389742 | Q26: 1115279 | R26: -20264.409 | S26: 20264409 | T26: 2015-10-28 | U26: -78593 | V26: 1689 | W26: 22536 | X26: 8584 | Y26: 10979 | Z26: 41 | AA26: 477 | AB26: 49262 | AC26: -299 | AD26: 858 | AE26: -15534 | AG26: -102278429
G27: 2015-10-29 | H27: 124448959 | I27: -116229 | J27: -16041126 | K27: -20268177 | L27: -8217719 | M27: -2332635 | N27: -3520352 | O27: 11765313 | P27: 1202442 | Q27: -10140479 | R27: -76779.997 | S27: 76779997 | T27: 2015-10-29 | U27: 91270 | V27: -161 | W27: -11854 | X27: -15177 | Y27: -6137 | Z27: -1715 | AA27: -2588 | AB27: 8838 | AC27: 895 | AD27: -7463 | AE27: -55908 | AG27: 124448959
G28: 2015-10-30 | H28: 101393674 | I28: -19077136 | J28: -11185211 | K28: -14379970 | L28: -6037128 | M28: -2857317 | N28: -1431202 | O28: 40115179 | P28: 5140290 | Q28: 1162766 | R28: -92843.945 | S28: 92843945 | T28: 2015-10-30 | U28: 74186 | V28: -13906 | W28: -8322 | X28: -10483 | Y28: -4408 | Z28: -2088 | AA28: -1043 | AB28: 29183 | AC28: 3749 | AD28: 871 | AE28: -67739 | AG28: 101393674
G29: 2015-11-02 | H29: 75321250 | I29: -20591083 | J29: -36934818 | K29: -7543561 | L29: -40098482 | M29: -292501 | N29: -969866 | O29: 17750728 | P29: 908350 | Q29: 31717139 | R29: -19267.156 | S29: 19267156 | T29: 2015-11-02 | U29: 54436 | V29: -14893 | W29: -26686 | X29: -5456 | Y29: -29001 | Z29: -208 | AA29: -700 | AB29: 12827 | AC29: 656 | AD29: 22916 | AE29: -13891 | AG29: 75321250
G30: 2015-11-03 | H30: -69384596 | I30: -7649242 | J30: 35062922 | K30: 714205 | L30: -12431013 | M30: -2392666 | N30: -929271 | O30: -6191541 | P30: -14793682 | Q30: 74828125 | R30: 3166.759 | S30: -3166759 | T30: 2015-11-03 | U30: -50546 | V30: -5603 | W30: 25758 | X30: 525 | Y30: -9131 | Z30: -1749 | AA30: -680 | AB30: -4551 | AC30: -10829 | AD30: 54370 | AE30: 2436 | AG30: -69384596
G31: 2015-11-04 | H31: -31356563 | I31: -24190618 | J31: 10491478 | K31: -12156613 | L31: -4894967 | M31: -1061844 | N31: -1335408 | O31: -12863725 | P31: -9139190 | Q31: 77330157 | R31: 9177.293 | S31: -9177293 | T31: 2015-11-04 | U31: -23069 | V31: -18079 | W31: 7839 | X31: -9099 | Y31: -3656 | Z31: -796 | AA31: -999 | AB31: -9645 | AC31: -6849 | AD31: 57405 | AE31: 6948 | AG31: -31356563
G32: 2015-11-05 | H32: 22442455 | I32: -14789864 | J32: 1861517 | K32: -1985687 | L32: -14119473 | M32: -242960 | N32: -2415929 | O32: -3879585 | P32: 1244638 | Q32: 35698568 | R32: -23813.68 | S32: 23813680 | T32: 2015-11-05 | U32: 16730 | V32: -11013 | W32: 1372 | X32: -1499 | Y32: -10542 | Z32: -178 | AA32: -1803 | AB32: -2895 | AC32: 926 | AD32: 26629 | AE32: -17727 | AG32: 22442455
G33: 2015-11-06 | H33: -48573675 | I33: -13071643 | J33: -8451190 | K33: 2173505 | L33: -1583463 | M33: 880967 | N33: -197814 | O33: 4279121 | P33: 41384 | Q33: 73585724 | R33: -9082.916 | S33: 9082916 | T33: 2015-11-06 | U33: -36192 | V33: -9767 | W33: -6302 | X33: 1621 | Y33: -1184 | Z33: 659 | AA33: -148 | AB33: 3200 | AC33: 31 | AD33: 54873 | AE33: -6791 | AG33: -48573675
G34: 2015-11-09 | H34: -14740232 | I34: -14868474 | J34: -614119 | K34: -9218725 | L34: -1196256 | M34: -191256 | N34: -1013960 | O34: -3496243 | P34: -1701101 | Q34: 74530960 | R34: -27490.594 | S34: 27490594 | T34: 2015-11-09 | U34: -11013 | V34: -11143 | W34: -416 | X34: -6898 | Y34: -902 | Z34: -130 | AA34: -760 | AB34: -2614 | AC34: -1271 | AD34: 55757 | AE34: -20610 | AG34: -14740232
G35: 2015-11-10 | H35: -37313690 | I35: -12843267 | J35: 9305861 | K35: -6561127 | L35: -25667053 | M35: 1240962 | N35: -167641 | O35: 4533016 | P35: 384894 | Q35: 75038956 | R35: -7950.911 | S35: 7950911 | T35: 2015-11-10 | U35: -27901 | V35: -9651 | W35: 7039 | X35: -4943 | Y35: -19367 | Z35: 940 | AA35: -127 | AB35: 3404 | AC35: 300 | AD35: 56255 | AE35: -5949 | AG35: -37313690
G36: 2015-11-11 | H36: -37604384 | I36: -3629745 | J36: -9009276 | K36: -6769728 | L36: 2542707 | M36: -2617974 | N36: 124851 | O36: 22512888 | P36: 161160 | Q36: 47252155 | R36: -12962.654 | S36: 12962654 | T36: 2015-11-11 | U36: -28235 | V36: -2752 | W36: -6743 | X36: -5090 | Y36: 1889 | Z36: -1957 | AA36: 93 | AB36: 16776 | AC36: 120 | AD36: 35584 | AE36: -9685 | AG36: -37604384
G37: 2015-11-12 | H37: -81226976 | I37: 2027774 | J37: -9928026 | K37: -10002362 | L37: 2168583 | M37: 1565334 | N37: 94341 | O37: -118971 | P37: -869407 | Q37: 90759275 | R37: 5530.435 | S37: -5530435 | T37: 2015-11-12 | U37: -61028 | V37: 1531 | W37: -7502 | X37: -7543 | Y37: 1632 | Z37: 1181 | AA37: 71 | AB37: -90 | AC37: -655 | AD37: 68194 | AE37: 4209 | AG37: -81226976
G38: 2015-11-13 | H38: -49615731 | I38: -2526055 | J38: -5106256 | K38: -6175641 | L38: -1667419 | M38: 1017672 | N38: -667503 | O38: 5347186 | P38: -754970 | Q38: 72796836 | R38: -12648.119 | S38: 12648119 | T38: 2015-11-13 | U38: -37775 | V38: -1935 | W38: -3879 | X38: -4723 | Y38: -1265 | Z38: 781 | AA38: -510 | AB38: 4094 | AC38: -569 | AD38: 55416 | AE38: -9635 | AG38: -49615731
G39: 2015-11-16 | H39: -65237200 | I39: -2889758 | J39: 14822296 | K39: -10808066 | L39: 1751799 | M39: 1391614 | N39: -567499 | O39: 3921736 | P39: -1315129 | Q39: 56887156 | R39: 2043.051 | S39: -2043051 | T39: 2015-11-16 | U39: -50985 | V39: -2275 | W39: 11725 | X39: -8503 | Y39: 1385 | Z39: 1094 | AA39: -445 | AB39: 3061 | AC39: -1040 | AD39: 44302 | AE39: 1681 | AG39: -65237200
G40: 2015-11-17 | H40: -16168709 | I40: -7532509 | J40: -23575190 | K40: -2943184 | L40: -1976798 | M40: -1372143 | N40: -248961 | O40: 18690423 | P40: -2568 | Q40: 28614356 | R40: 6515.283 | S40: -6515283 | T40: 2015-11-17 | U40: -12701 | V40: -5892 | W40: -18374 | X40: -2302 | Y40: -1552 | Z40: -1073 | AA40: -195 | AB40: 14597 | AC40: -2 | AD40: 22370 | AE40: 5124 | AG40: -16168709
G41: 2015-11-18 | H41: -4015158 | I41: 3540648 | J41: -50454378 | K41: 1615005 | L41: 9053082 | M41: -1970231 | N41: 198612 | O41: 7602441 | P41: 137960 | Q41: 42507385 | R41: -8215.366 | S41: 8215366 | T41: 2015-11-18 | U41: -3128 | V41: 2763 | W41: -39353 | X41: 1259 | Y41: 7061 | Z41: -1534 | AA41: 155 | AB41: 5926 | AC41: 108 | AD41: 33136 | AE41: -6393 | AG41: -4015158
G42: 2015-11-19 | H42: -83464367 | I42: -2796756 | J42: -805482 | K42: 178479 | L42: 2579033 | M42: -141938 | N42: -206764 | O42: -997109 | Q42: 86952430 | R42: -1297.526 | S42: 1297526 | T42: 2015-11-19 | U42: -65059 | V42: -2187 | W42: -621 | X42: 137 | Y42: 2008 | Z42: -112 | AA42: -161 | AB42: -775 | AD42: 67770 | AE42: -1000 | AG42: -83464367
G43: 2015-11-20 | H43: -90867501 | I43: 993814 | J43: 3220166 | K43: -7248909 | L43: 5346069 | M43: 616304 | N43: -57944 | O43: 2931992 | P43: -874282 | Q43: 88290397 | R43: -2350.106 | S43: 2350106 | T43: 2015-11-20 | U43: -70488 | V43: 759 | W43: 2528 | X43: -5634 | Y43: 4156 | Z43: 478 | AA43: -45 | AB43: 2266 | AC43: -679 | AD43: 68471 | AE43: -1812 | AG43: -90867501
G44: 2015-11-23 | H44: -80630858 | I44: -3933013 | J44: 19807765 | K44: -4459689 | L44: 5146366 | M44: 2976690 | N44: -174779 | O44: -4301784 | P44: -294629 | Q44: 68994084 | R44: -3130.153 | S44: 3130153 | T44: 2015-11-23 | U44: -62465 | V44: -3080 | W44: 15327 | X44: -3472 | Y44: 3991 | Z44: 2298 | AA44: -135 | AB44: -3345 | AC44: -228 | AD44: 53454 | AE44: -2345 | AG44: -80630858
G45: 2015-11-24 | H45: -55710913 | I45: -4283770 | J45: -8347722 | K45: 4621695 | L45: -887725 | M45: -577107 | N45: 28298 | O45: 43469750 | P45: 1405752 | Q45: 36246777 | R45: -15965.035 | S45: 15965035 | T45: 2015-11-24 | U45: -43113 | V45: -3313 | W45: -6447 | X45: 3579 | Y45: -687 | Z45: -440 | AA45: 22 | AB45: 33516 | AC45: 1084 | AD45: 28100 | AE45: -12301 | AG45: -55710913
G46: 2015-11-25 | H46: -87105586 | I46: 230338 | J46: -8765603 | K46: -13984 | L46: 24191612 | M46: -230359 | N46: 296503 | O46: 11290202 | P46: 117525 | Q46: 69891735 | R46: -9902.383 | S46: 9902383 | T46: 2015-11-25 | U46: -66776 | V46: 172 | W46: -6709 | X46: -12 | Y46: 18531 | Z46: -177 | AA46: 228 | AB46: 8645 | AC46: 90 | AD46: 53586 | AE46: -7578 | AG46: -87105586
G47: 2015-11-26 | H47: -19138125 | I47: -17160590 | J47: -2111420 | K47: 4255984 | L47: 4777623 | M47: 899227 | N47: -169101 | O47: 15143428 | P47: 125318 | Q47: 54861437 | R47: -41483.781 | S47: 41483781 | T47: 2015-11-26 | U47: -14502 | V47: -12883 | W47: -1565 | X47: 3193 | Y47: 3566 | Z47: 675 | AA47: -128 | AB47: 11352 | AC47: 95 | AD47: 41333 | AE47: -31136 | AG47: -19138125
G48: 2015-11-27 | H48: -67311117 | I48: -16188094 | J48: -19093619 | K48: 4932356 | L48: -535019 | M48: 3799141 | N48: 233102 | O48: -2986201 | P48: 53271 | Q48: 114381626 | R48: -17285.446 | S48: 17285446 | T48: 2015-11-27 | U48: -50365 | V48: -12093 | W48: -14216 | X48: 3702 | Y48: -411 | Z48: 2839 | AA48: 175 | AB48: -2236 | AC48: 40 | AD48: 85430 | AE48: -12865 | AG48: -67311117
G49: 2015-11-30 | H49: -198115391 | I49: 45252640 | J49: 15828430 | K49: 3614251 | L49: 6211888 | M49: 490754 | N49: 68594 | O49: 19016088 | P49: 372116 | Q49: 72722394 | R49: 34538.236 | S49: -34538236 | T49: 2015-11-30 | U49: -152802 | V49: 35087 | W49: 12288 | X49: 2801 | Y49: 4833 | Z49: 374 | AA49: 54 | AB49: 14753 | AC49: 289 | AD49: 55533 | AE49: 26790 | AG49: -198115391
G50: 2015-12-01 | H50: 9976729 | I50: -6498519 | J50: -22273462 | K50: 6966911 | L50: 667674 | M50: -3410595 | N50: 540026 | O50: 7977117 | P50: 1096277 | Q50: 34207188 | R50: -29249.346 | S50: 29249346 | T50: 2015-12-01 | U50: 7447 | V50: -4968 | W50: -16845 | X50: 5296 | Y50: 512 | Z50: -2608 | AA50: 414 | AB50: 6073 | AC50: 837 | AD50: 26138 | AE50: -22296 | AG50: 9976729
G51: 2015-12-02 | H51: -103096094 | I51: 1897911 | J51: -16612528 | K51: 10742398 | L51: -14370435 | M51: 1755037 | N51: -337832 | O51: 4108804 | P51: 74879 | Q51: 113068215 | R51: 2769.645 | S51: -2769645 | T51: 2015-12-02 | U51: -78701 | V51: 1432 | W51: -12483 | X51: 8213 | Y51: -11041 | Z51: 1341 | AA51: -257 | AB51: 3139 | AC51: 57 | AD51: 85983 | AE51: 2317 | AG51: -103096094
G52: 2015-12-03 | H52: -49949099 | I52: -354286 | J52: -14859947 | K52: 3063230 | L52: -13103820 | M52: 250695 | N52: 148274 | O52: -6562608 | P52: -1346699 | Q52: 70451941 | R52: 12262.319 | S52: -12262319 | T52: 2015-12-03 | U52: -38653 | V52: -271 | W52: -11516 | X52: 2375 | Y52: -10152 | Z52: 195 | AA52: 115 | AB52: -5093 | AC52: -1041 | AD52: 54522 | AE52: 9519 | AG52: -49949099
G53: 2015-12-04 | H53: -90129475 | I53: 6937826 | J53: -10386736 | K53: -5278513 | L53: -4172352 | M53: 625345 | N53: -562865 | O53: 2764630 | P53: -95549 | Q53: 70218844 | R53: 30078.845 | S53: -30078845 | T53: 2015-12-04 | U53: -70799 | V53: 5450 | W53: -8160 | X53: -4158 | Y53: -3278 | Z53: 492 | AA53: -444 | AB53: 2177 | AC53: -75 | AD53: 55129 | AE53: 23666 | AG53: -90129475
G54: 2015-12-07 | H54: -84481277 | I54: 7162604 | J54: -2233174 | K54: 3754715 | L54: -4589262 | M54: -773248 | N54: 258780 | O54: -2367339 | P54: 913600 | Q54: 69422103 | R54: 12932.498 | S54: -12932498 | T54: 2015-12-07 | U54: -66590 | V54: 5646 | W54: -1753 | X54: 2957 | Y54: -3635 | Z54: -611 | AA54: 204 | AB54: -1868 | AC54: 720 | AD54: 54718 | AE54: 10212 | AG54: -84481277
G55: 2015-12-08 | H55: -39920469 | I55: -1253609 | J55: -10108410 | K55: -3402928 | L55: -1001425 | M55: 238741 | N55: 2309485 | O55: -891162 | P55: 784803 | Q55: 58827833 | R55: -5582.859 | S55: 5582859 | T55: 2015-12-08 | U55: -31606 | V55: -994 | W55: -7969 | X55: -2691 | Y55: -791 | Z55: 189 | AA55: 1829 | AB55: -709 | AC55: 620 | AD55: 46530 | AE55: -4408 | AG55: -39920469
G56: 2015-12-09 | H56: -96631527 | I56: 946722 | J56: 10822100 | K56: 9491149 | L56: 5545012 | M56: -31967 | N56: 196585 | O56: 6776979 | P56: -344012 | Q56: 69247929 | R56: -6018.97 | S56: 6018970 | T56: 2015-12-09 | U56: -76314 | V56: 751 | W56: 8584 | X56: 7492 | Y56: 4364 | Z56: -25 | AA56: 155 | AB56: 5341 | AC56: -272 | AD56: 54645 | AE56: -4721 | AG56: -96631527
G57: 2015-12-10 | H57: -114044484 | I57: 37201230 | J57: -31769848 | K57: 16534491 | L57: 15975882 | M57: 7597 | N57: 404850 | O57: 9146885 | P57: 2428226 | Q57: 57933066 | R57: 6182.105 | S57: -6182105 | T57: 2015-12-10 | U57: -88962 | V57: 29033 | W57: -24857 | X57: 12879 | Y57: 12460 | Z57: 6 | AA57: 314 | AB57: 7123 | AC57: 1891 | AD57: 45260 | AE57: 4853 | AG57: -114044484
G58: 2015-12-11 | H58: -88570230 | I58: -1376656 | J58: 14880970 | K58: -2606254 | L58: 7941554 | M58: -994280 | O58: 5308448 | P58: -1438698 | Q58: 95156056 | R58: -28300.91 | S58: 28300910 | T58: 2015-12-11 | U58: -68850 | V58: -1068 | W58: 11561 | X58: -2030 | Y58: 6174 | Z58: -770 | AB58: 4123 | AC58: -1119 | AD58: 73995 | AE58: -22016 | AG58: -88570230
G59: 2015-12-14 | H59: -125543213 | I59: 7351429 | J59: 52884915 | K59: 3806450 | L59: -128328 | M59: -1084508 | N59: 1094749 | O59: 6670007 | P59: 306935 | Q59: 68321968 | R59: -13680.404 | S59: 13680404 | T59: 2015-12-14 | U59: -99243 | V59: 5820 | W59: 41880 | X59: 2997 | Y59: -103 | Z59: -857 | AA59: 866 | AB59: 5272 | AC59: 242 | AD59: 53821 | AE59: -10695 | AG59: -125543213
G60: 2015-12-15 | H60: -99873957 | I60: 6273979 | J60: 34127880 | K60: 4873628 | L60: 3538515 | M60: 725221 | N60: 44671 | O60: 1964413 | P60: -87960 | Q60: 69300862 | R60: -20887.252 | S60: 20887252 | T60: 2015-12-15 | U60: -78625 | V60: 4896 | W60: 26791 | X60: 3823 | Y60: 2778 | Z60: 568 | AA60: 35 | AB60: 1528 | AC60: -69 | AD60: 54668 | AE60: -16393 | AG60: -99873957
G61: 2015-12-16 | H61: -56684999 | I61: 22890203 | J61: 64873872 | K61: 9356493 | L61: 3204690 | M61: 89291 | N61: 873559 | O61: -12142285 | P61: -1203655 | Q61: 34310085 | R61: -65567.254 | S61: 65567254 | T61: 2015-12-16 | U61: -43687 | V61: 17609 | W61: 49889 | X61: 7187 | Y61: 2469 | Z61: 70 | AA61: 670 | AB61: -9329 | AC61: -926 | AD61: 26372 | AE61: -50324 | AG61: -56684999
G62: 2015-12-17 | H62: -84430511 | I62: 9287938 | J62: 14894048 | K62: 4354968 | L62: -2163598 | M62: 2067866 | N62: -200498 | O62: 4014543 | P62: -1002035 | Q62: 44639782 | R62: 8537.497 | S62: -8537497 | T62: 2015-12-17 | U62: -65405 | V62: 7218 | W62: 11602 | X62: 3366 | Y62: -1700 | Z62: 1605 | AA62: -156 | AB62: 3159 | AC62: -779 | AD62: 34472 | AE62: 6618 | AG62: -84430511
G63: 2015-12-18 | H63: -36371500 | I63: -2503307 | J63: 12300570 | K63: 4747140 | L63: -11143651 | M63: 701271 | N63: -233032 | O63: -9554002 | P63: 788790 | Q63: 43722646 | R63: -2454.925 | S63: 2454925 | T63: 2015-12-18 | U63: -28554 | V63: -1963 | W63: 9631 | X63: 3686 | Y63: -8769 | Z63: 545 | AA63: -182 | AB63: -7478 | AC63: 617 | AD63: 34363 | AE63: -1896 | AG63: -36371500
G64: 2015-12-21 | H64: -45015770 | I64: -13258158 | J64: 34841114 | K64: -3874685 | L64: -11621325 | M64: -1660374 | N64: -473709 | O64: -4014535 | P64: 50832 | Q64: 44317113 | R64: 709.497 | S64: -709497 | T64: 2015-12-21 | U64: -35358 | V64: -10446 | W64: 27377 | X64: -3048 | Y64: -9137 | Z64: -1306 | AA64: -371 | AB64: -3215 | AC64: 40 | AD64: 34752 | AE64: 712 | AG64: -45015770
G65: 2015-12-22 | H65: -16672361 | I65: 15883203 | J65: -6467344 | K65: -12938351 | L65: -5224332 | M65: -449677 | N65: -436978 | O65: 15098174 | P65: -3030510 | Q65: 44874490 | R65: -30636.314 | S65: 30636314 | T65: 2015-12-22 | U65: -13235 | V65: 12526 | W65: -4940 | X65: -10149 | Y65: -4094 | Z65: -354 | AA65: -342 | AB65: 11651 | AC65: -2388 | AD65: 35097 | AE65: -23772 | AG65: -16672361
G66: 2015-12-23 | H66: -55823667 | I66: 524793 | J66: 63344526 | K66: -4424459 | L66: 1637918 | M66: -1530466 | N66: -284292 | O66: 3104208 | P66: 1642444 | Q66: 42669287 | R66: -50860.292 | S66: 50860292 | T66: 2015-12-23 | U66: -43176 | V66: 400 | W66: 48972 | X66: -3424 | Y66: 1265 | Z66: -1183 | AA66: -220 | AB66: 2389 | AC66: 1269 | AD66: 32973 | AE66: -39265 | AG66: -55823667
G67: 2015-12-24 | H67: -52123684 | I67: -5012218 | J67: 66752347 | K67: 10585018 | L67: -2687840 | M67: -127902 | N67: -2999316 | O67: 2524635 | P67: 264435 | Q67: 42719106 | R67: -59894.581 | S67: 59894581 | T67: 2015-12-24 | U67: -40190 | V67: -3898 | W67: 51484 | X67: 8166 | Y67: -2092 | Z67: -97 | AA67: -2312 | AB67: 1948 | AC67: 204 | AD67: 32945 | AE67: -46158 | AG67: -52123684
G68: 2015-12-28 | H68: -7577674 | I68: -20247819 | J68: 29292207 | K68: 1235656 | L68: 1861486 | M68: -595496 | N68: 362649 | O68: 2395229 | P68: -27029 | Q68: 44199424 | R68: -50898.633 | S68: 50898633 | T68: 2015-12-28 | U68: -5837 | V68: -15958 | W68: 22941 | X68: 968 | Y68: 1464 | Z68: -468 | AA68: 285 | AB68: 1880 | AC68: -24 | AD68: 34653 | AE68: -39904 | AG68: -7577674
G69: 2015-12-29 | H69: -59604764 | I69: -6385752 | J69: -44131866 | K69: -4482991 | L69: -7821049 | M69: -2168986 | N69: 1829920 | O69: 15041541 | P69: -449386 | Q69: 64714580 | R69: 43458.753 | S69: -43458753 | T69: 2015-12-29 | U69: -47556 | V69: -5029 | W69: -35197 | X69: -3618 | Y69: -6195 | Z69: -1732 | AA69: 1464 | AB69: 11935 | AC69: -361 | AD69: 51495 | AE69: 34794 | AG69: -59604764
G70: 2015-12-30 | H70: 3655303 | I70: -8023158 | J70: -57161423 | K70: -545081 | L70: -6607381 | M70: -839635 | N70: 1414936 | O70: 15291432 | P70: 657370 | Q70: 53787415 | R70: -1629.778 | S70: 1629778 | T70: 2015-12-30 | U70: 2897 | V70: -6362 | W70: -45337 | X70: -441 | Y70: -5263 | Z70: -664 | AA70: 1123 | AB70: 12099 | AC70: 521 | AD70: 42678 | AE70: -1251 | AG70: 3655303
G71: 2016-01-04 | H71: -75262575 | I71: 21448783 | J71: -61103203 | K71: -9513944 | L71: -8297376 | M71: 272003 | O71: -11280190 | P71: -435453 | Q71: 38636005 | R71: 105535.95 | S71: -105535950 | T71: 2016-01-04 | U71: -61655 | V71: 17569 | W71: -49825 | X71: -7811 | Y71: -6793 | Z71: 222 | AB71: -9276 | AC71: -359 | AD71: 31454 | AE71: 86474 | AG71: -75262575
G72: 2016-01-05 | H72: -32661285 | I72: 13265602 | J72: -29834463 | K72: 1597098 | L72: 1462142 | M72: -438051 | N72: 85855 | O72: -3675984 | P72: -642439 | Q72: 37353068 | R72: 13488.457 | S72: -13488457 | T72: 2016-01-05 | U72: -27043 | V72: 10970 | W72: -24574 | X72: 1295 | Y72: 1212 | Z72: -362 | AA72: 68 | AB72: -3041 | AC72: -533 | AD72: 30852 | AE72: 11156 | AG72: -32661285
G73: 2016-01-06 | H73: -80836636 | I73: 15633777 | J73: -25882871 | K73: -20370823 | L73: 11098830 | M73: 1325070 | N73: 184281 | O73: -6332725 | P73: -1537772 | Q73: 39180869 | R73: 67538 | S73: -67538000 | T73: 2016-01-06 | U73: -68178 | V73: 13145 | W73: -21804 | X73: -17288 | Y73: 9362 | Z73: 1127 | AA73: 153 | AB73: -5380 | AC73: -1299 | AD73: 33088 | AE73: 57074 | AG73: -80836636
G74: 2016-01-07 | H74: -61868862 | I74: 44035 | J74: -271133 | K74: -5734317 | L74: -12057993 | M74: -134710 | N74: 155663 | O74: 66977 | P74: 2357563 | Q74: 37587333 | R74: 39855.444 | S74: -39855444 | T74: 2016-01-07 | U74: -53073 | V74: 42 | W74: -167 | X74: -4936 | Y74: -10332 | Z74: -117 | AA74: 132 | AB74: 52 | AC74: 2019 | AD74: 32105 | AE74: 34275 | AG74: -61868862
G75: 2016-01-08 | H75: -55869734 | I75: 8532542 | J75: 4171518 | K75: 4447011 | L75: 1339254 | M75: 1882736 | N75: 1214302 | O75: -5478544 | P75: 2446977 | Q75: 29898199 | R75: 7415.739 | S75: -7415739 | T75: 2016-01-08 | U75: -47691 | V75: 7272 | W75: 3555 | X75: 3791 | Y75: 1137 | Z75: 1607 | AA75: 1035 | AB75: -4677 | AC75: 2086 | AD75: 25538 | AE75: 6347 | AG75: -55869734
G76: 2016-01-11 | H76: -78191081 | I76: 16654585 | J76: 3522373 | K76: -533423 | L76: 8363093 | M76: 1309665 | N76: 1129220 | O76: 1782128 | P76: -876623 | Q76: 38915053 | R76: 7925.01 | S76: -7925010 | T76: 2016-01-11 | U76: -67701 | V76: 14414 | W76: 3083 | X76: -461 | Y76: 7263 | Z76: 1136 | AA76: 978 | AB76: 1544 | AC76: -759 | AD76: 33575 | AE76: 6928 | AG76: -78191081
G77: 2016-01-12 | H77: -45628999 | I77: -7059799 | J77: -7080051 | K77: -1275437 | L77: 1673078 | M77: -25756 | N77: 392888 | O77: 668289 | P77: -537682 | Q77: 38708691 | R77: 20164.778 | S77: -20164778 | T77: 2016-01-12 | U77: -39560 | V77: -6120 | W77: -6089 | X77: -1107 | Y77: 1445 | Z77: -21 | AA77: 337 | AB77: 571 | AC77: -468 | AD77: 33455 | AE77: 17557 | AG77: -45628999
G78: 2016-01-13 | H78: -14859936 | I78: 9234149 | J78: 7260239 | K78: -148674 | L78: 1933730 | M78: -346204 | N78: 458519 | O78: -9657372 | P78: 967061 | Q78: 379094 | R78: 4779.394 | S78: -4779394 | T78: 2016-01-13 | U78: -12917 | V78: 8011 | W78: 6303 | X78: -134 | Y78: 1677 | Z78: -300 | AA78: 398 | AB78: -8381 | AC78: 836 | AD78: 330 | AE78: 4177 | AG78: -14859936
G79: 2016-01-14 | H79: -36503729 | I79: 9225927 | J79: -1045562 | K79: -742240 | L79: 8094318 | M79: 929429 | N79: -257617 | O79: 1212995 | P79: 1306644 | Q79: 3794598 | R79: 13985.237 | S79: -13985237 | T79: 2016-01-14 | U79: -32151 | V79: 8111 | W79: -920 | X79: -664 | Y79: 7122 | Z79: 818 | AA79: -227 | AB79: 1053 | AC79: 1149 | AD79: 3346 | AE79: 12363 | AG79: -36503729
G80: 2016-01-15 | H80: -10389120 | I80: 6711484 | J80: -8910544 | K80: 2993560 | L80: 4743839 | M80: -130441 | N80: 17184 | O80: -3269661 | P80: -657501 | Q80: -2272992 | R80: 11164.192 | S80: -11164192 | T80: 2016-01-15 | U80: -9286 | V80: 5947 | W80: -7834 | X80: 2627 | Y80: 4175 | Z80: -110 | AA80: 15 | AB80: -2891 | AC80: -580 | AD80: -1979 | AE80: 9916 | AG80: =IF($E$16=1,U80,H80) -> -10389120
G81: 2016-01-18 | H81: -44719366 | I81: 21722990 | J81: 9264392 | K81: 3077212 | L81: 7808368 | M81: 1348076 | N81: -228569 | O81: -7137343 | P81: -1214295 | Q81: -805206 | R81: 10883.741 | S81: =IF($E$16=1,SUM(U81:AD81),SUM(H81:Q81)) -> -10883741 | T81: 2016-01-18 | U81: -40871 | V81: 19435 | W81: 8639 | X81: 2770 | Y81: 6977 | Z81: 1219 | AA81: -201 | AB81: -6326 | AC81: -1080 | AD81: -713 | AE81: 10151 | AG81: -44719366
G82: 2016-01-19 | H82: 53026530 | I82: 9353080 | J82: -32296010 | K82: 5611444 | L82: 4015451 | M82: -1359763 | N82: 1413945 | O82: -10664910 | P82: 748197 | Q82: -1238419 | R82: -28609.545 | S82: 28609545 | T82: 2016-01-19 | U82: 45898 | V82: 8162 | W82: -27959 | X82: 4814 | Y82: 3491 | Z82: -1164 | AA82: 1221 | AB82: -9212 | AC82: 650 | AD82: -1080 | AE82: -24821 | AG82: 53026530
G83: 2016-01-20 | H83: -30136072 | I83: 5265225 | J83: 3011726 | K83: 2928883 | L83: 4598455 | M83: 2285850 | N83: 18199 | O83: -4824934 | P83: -4237392 | Q83: 423579 | R83: 20666.481 | S83: -20666481 | T83: 2016-01-20 | U83: -26302 | V83: 4582 | W83: 2622 | X83: 2563 | Y83: 4009 | Z83: 2008 | AA83: 16 | AB83: -4214 | AC83: -3723 | AD83: 372 | AE83: 18067 | AG83: -30136072
G84: 2016-01-21 | H84: -63684244 | I84: 14760516 | J84: 32786149 | K84: 2236207 | L84: 10967222 | M84: 210482 | N84: 77803 | O84: -561860 | P84: -1600787 | Q84: -325540 | R84: 5134.052 | S84: -5134052 | T84: 2016-01-21 | U84: -55986 | V84: 12969 | W84: 28780 | X84: 1943 | Y84: 9623 | Z84: 184 | AA84: 68 | AB84: -473 | AC84: -1404 | AD84: -285 | AE84: 4581 | AG84: -63684244
G85: 2016-01-22 | H85: -22591401 | I85: 3179609 | J85: 35968618 | K85: 7459711 | L85: 7242432 | M85: -480872 | N85: -605043 | O85: -5755981 | P85: -5737 | Q85: 3263484 | R85: -27674.82 | S85: 27674820 | T85: 2016-01-22 | U85: -19500 | V85: 2720 | W85: 31029 | X85: 6431 | Y85: 6241 | Z85: -403 | AA85: -522 | AB85: -4955 | AC85: -4 | AD85: 2810 | AE85: -23847 | AG85: -22591401
G86: 2016-01-25 | H86: -46811458 | I86: 10628443 | J86: 19682616 | K86: 1930269 | L86: 4714083 | M86: 441169 | N86: 521405 | O86: -2723285 | P86: 812196 | Q86: 171895 | R86: 10632.667 | S86: -10632667 | T86: 2016-01-25 | U86: -40220 | V86: 9120 | W86: 16925 | X86: 1652 | Y86: 4052 | Z86: 380 | AA86: 447 | AB86: -2336 | AC86: 698 | AD86: 148 | AE86: 9134 | AG86: -46811458
G87: 2016-01-26 | H87: -21250939 | I87: 1365093 | J87: 20122573 | K87: -1612709 | L87: 2219245 | M87: 577929 | N87: 8145 | O87: -20071710 | P87: -254522 | Q87: -1727721 | R87: 20624.616 | S87: -20624616 | T87: 2016-01-26 | U87: -18621 | V87: 1186 | W87: 17598 | X87: -1414 | Y87: 1950 | Z87: 504 | AA87: 6 | AB87: -17577 | AC87: -223 | AD87: -1515 | AE87: 18106 | AG87: -21250939
G88: 2016-01-27 | H88: -30116373 | I88: -4965434 | J88: 71229231 | K88: 10291697 | L88: 12670459 | M88: -2482460 | N88: 680406 | O88: -44292923 | P88: 781193 | Q88: -183267 | R88: -13612.529 | S88: 13612529 | T88: 2016-01-27 | U88: -26608 | V88: -4340 | W88: 61934 | X88: 8816 | Y88: 10919 | Z88: -2136 | AA88: 586 | AB88: -38332 | AC88: 671 | AD88: -164 | AE88: -11346 | AG88: -30116373
G89: 2016-01-28 | H89: 30923564 | I89: -27948805 | J89: -3979214 | K89: -9018855 | L89: -10116274 | M89: 2859829 | N89: 2086904 | O89: -46105231 | P89: -1084984 | Q89: 26800 | R89: 62356.266 | S89: -62356266 | T89: 2016-01-28 | U89: 27060 | V89: -24453 | W89: -3448 | X89: -7900 | Y89: -8853 | Z89: 2489 | AA89: 1812 | AB89: -40242 | AC89: -950 | AD89: 23 | AE89: 54462 | AG89: 30923564
G90: 2016-01-29 | H90: -29782829 | I90: 5913608 | J90: -8274333 | K90: -7544587 | L90: -6462130 | M90: -2239793 | N90: -651868 | O90: -2889239 | P90: 1098883 | Q90: 46619836 | R90: 4212.452 | S90: -4212452 | T90: 2016-01-29 | U90: -26836 | V90: 5148 | W90: -7157 | X90: -6674 | Y90: -5740 | Z90: -1956 | AA90: -579 | AB90: -2454 | AC90: 967 | AD90: 41040 | AE90: 4241 | AG90: -29782829
G91: 2016-02-01 | H91: 64371025 | I91: -5108298 | J91: -23915424 | K91: -16113404 | L91: -3734668 | M91: -3847370 | N91: -1862431 | O91: -6630845 | P91: -8460984 | Q91: 23469842 | R91: -18167.443 | S91: 18167443 | T91: 2016-02-01 | U91: 55615 | V91: -4429 | W91: -20649 | X91: -13944 | Y91: -3234 | Z91: -3317 | AA91: -1612 | AB91: -5749 | AC91: -7322 | AD91: 20295 | AE91: -15654 | AG91: 64371025
G92: 2016-02-02 | H92: 1490613 | I92: -11124199 | J92: -9796600 | K92: -2170085 | L92: -1904178 | M92: -527862 | N92: 34740 | O92: -6912988 | P92: 762561 | Q92: 48351018 | R92: -18203.02 | S92: 18203020 | T92: 2016-02-02 | U92: 1252 | V92: -9606 | W92: -8442 | X92: -1873 | Y92: -1636 | Z92: -454 | AA92: 30 | AB92: -5956 | AC92: 658 | AD92: 41679 | AE92: -15652 | AG92: 1490613
G93: 2016-02-03 | H93: -13247525 | I93: -22678699 | J93: -7044545 | K93: -4121823 | L93: -3026825 | M93: -725985 | O93: 2045872 | P93: -831051 | Q93: 49559249 | R93: 71.332 | S93: -71332 | T93: 2016-02-03 | U93: -11520 | V93: -19795 | W93: -6143 | X93: -3604 | Y93: -2634 | Z93: -635 | AB93: 1793 | AC93: -722 | AD93: 43171 | AE93: 89 | AG93: -13247525
G94: 2016-02-04 | H94: -15868611 | I94: -279017 | J94: 22785654 | K94: -1392116 | L94: 157558 | M94: -401459 | N94: 109869 | O94: -20495359 | P94: -151470 | Q94: 24168376 | R94: -8633.425 | S94: 8633425 | T94: 2016-02-04 | U94: -13733 | V94: -246 | W94: 19692 | X94: -1203 | Y94: 140 | Z94: -346 | AA94: 95 | AB94: -17718 | AC94: -131 | AD94: 20896 | AE94: -7446 | AG94: -15868611
G95: 2016-02-05 | H95: 16262668 | I95: -14007369 | J95: 1403255 | K95: -3731473 | L95: 7231 | M95: 199939 | N95: 55659 | O95: -6998479 | P95: -538992 | Q95: 24694604 | R95: -17347.043 | S95: 17347043 | T95: 2016-02-05 | U95: 13914 | V95: -12035 | W95: 1234 | X95: -3207 | Y95: 6 | Z95: 173 | AA95: 48 | AB95: -6007 | AC95: -463 | AD95: 21219 | AE95: -14882 | AG95: 16262668
G96: 2016-02-11 | H96: -80970232 | I96: -6326687 | J96: 19386634 | K96: -1539712 | L96: -5199867 | M96: -191861 | O96: 885781 | P96: 738498 | Q96: 50601364 | R96: 22616.082 | S96: -22616082 | T96: 2016-02-11 | U96: -71947 | V96: -5606 | W96: 17209 | X96: -1364 | Y96: -4609 | Z96: -170 | AB96: 782 | AC96: 655 | AD96: 44998 | AE96: 20052 | AG96: -80970232
G97: 2016-02-12 | H97: -63509141 | I97: 4427622 | J97: 49262555 | K97: 5519521 | L97: -3042974 | M97: -140880 | N97: -3352391 | O97: -6016254 | P97: -2582947 | Q97: 47293358 | R97: -27858.469 | S97: 27858469 | T97: 2016-02-12 | U97: -55730 | V97: 3861 | W97: 43157 | X97: 4781 | Y97: -2699 | Z97: -132 | AA97: -2952 | AB97: -5342 | AC97: -2259 | AD97: 41613 | AE97: -24298 | AG97: -63509141
G98: 2016-02-15 | H98: -19168611 | I98: -4239532 | J98: 33728731 | K98: 4639159 | L98: -903831 | M98: 6511 | N98: 31204 | O98: -28829642 | P98: 551257 | Q98: 24825279 | R98: -10640.525 | S98: 10640525 | T98: 2016-02-15 | U98: -16662 | V98: -3699 | W98: 29313 | X98: 4022 | Y98: -782 | Z98: 5 | AA98: 27 | AB98: -25048 | AC98: 478 | AD98: 21569 | AE98: -9223 | AG98: -19168611
G99: 2016-02-16 | H99: -7799363 | I99: -1518596 | J99: -5027132 | K99: 8754110 | L99: -525128 | M99: -118033 | N99: 28224 | O99: -18980867 | P99: -473835 | Q99: 52442024 | R99: -26781.404 | S99: 26781404 | T99: 2016-02-16 | U99: -6617 | V99: -1305 | W99: -4294 | X99: 7485 | Y99: -454 | Z99: -100 | AA99: 24 | AB99: -16195 | AC99: -405 | AD99: 44697 | AE99: -22836 | AG99: -7799363
G100: 2016-02-17 | H100: -22305459 | I100: 22486020 | J100: -16150428 | K100: 4190462 | L100: 28341261 | M100: -935811 | N100: 132650 | O100: -32725267 | P100: -117800 | Q100: 60544765 | R100: -43460.393 | S100: 43460393 | T100: 2016-02-17 | U100: -18875 | V100: 18959 | W100: -13547 | X100: 3538 | Y100: 23965 | Z100: -782 | AA100: 116 | AB100: -27660 | AC100: -100 | AD100: 50997 | AE100: -36611 | AG100: -22305459
G101: 2016-02-18 | H101: -72834862 | I101: -1118857 | J101: 20865397 | K101: -2655866 | L101: 7068554 | M101: -240708 | N101: 386060 | O101: -6268943 | P101: -49767 | Q101: 59936467 | R101: -5087.475 | S101: 5087475 | T101: 2016-02-18 | U101: -61324 | V101: -940 | W101: 17570 | X101: -2237 | Y101: 5935 | Z101: -206 | AA101: 324 | AB101: -5276 | AC101: -42 | AD101: 50453 | AE101: -4257 | AG101: -72834862
G102: 2016-02-19 | H102: -18657972 | I102: -15874075 | J102: 42130 | K102: -3265479 | L102: -2269275 | M102: -636030 | N102: -116811 | O102: 211377 | P102: -11184855 | Q102: 59784141 | R102: -8033.151 | S102: 8033151 | T102: 2016-02-19 | U102: -15725 | V102: -13445 | W102: 81 | X102: -2751 | Y102: -1924 | Z102: -538 | AA102: -99 | AB102: 157 | AC102: -9471 | AD102: 50476 | AE102: -6761 | AG102: -18657972
G103: 2016-02-22 | H103: -27458026 | I103: -30863367 | J103: 13911877 | K103: -8541325 | L103: -3084953 | M103: 535253 | N103: 58651 | O103: -10763609 | P103: -199038 | Q103: 59513916 | R103: 6890.621 | S103: -6890621 | T103: 2016-02-22 | U103: -23232 | V103: -26278 | W103: 11925 | X103: -7277 | Y103: -2579 | Z103: 458 | AA103: 50 | AB103: -9161 | AC103: -170 | AD103: 50321 | AE103: 5943 | AG103: -27458026
G104: 2016-02-23 | H104: -19477473 | I104: -23107445 | J104: 9606896 | K104: -4000959 | L104: 438623 | M104: 203952 | N104: 88389 | O104: -15164441 | P104: -466355 | Q104: 59340263 | R104: -7461.45 | S104: 7461450 | T104: 2016-02-23 | U104: -16487 | V104: -19583 | W104: 8158 | X104: -3395 | Y104: 371 | Z104: 171 | AA104: 75 | AB104: -12868 | AC104: -398 | AD104: 50257 | AE104: -6301 | AG104: -19477473
G105: 2016-02-24 | H105: -41629701 | I105: -3859810 | J105: 4547756 | K105: -7810211 | L105: -2664799 | M105: -502270 | N105: -84685 | O105: -8748571 | P105: -1000767 | Q105: 59322062 | R105: 2430.996 | S105: -2430996 | T105: 2016-02-24 | U105: -35372 | V105: -3299 | W105: 3895 | X105: -6661 | Y105: -2285 | Z105: -431 | AA105: -72 | AB105: -7458 | AC105: -855 | AD105: 50430 | AE105: 2108 | AG105: -41629701
G106: 2016-02-25 | H106: -41516764 | I106: -2113393 | J106: 3704965 | K106: -1608619 | L106: -1080623 | M106: -330008 | N106: -1852438 | O106: -1153351 | P106: -191701 | Q106: 58533412 | R106: -12391.48 | S106: 12391480 | T106: 2016-02-25 | U106: -35200 | V106: -1794 | W106: 3151 | X106: -1365 | Y106: -915 | Z106: -279 | AA106: -1570 | AB106: -979 | AC106: -163 | AD106: 49603 | AE106: -10489 | AG106: -41516764
G107: 2016-02-26 | H107: -13141076 | I107: -18693403 | J107: 24500862 | K107: -10085673 | L107: -17172666 | M107: -168149 | N107: -2715751 | O107: -18022237 | P107: -5798605 | Q107: 58392864 | R107: 2903.834 | S107: -2903834 | T107: 2016-02-26 | U107: -11062 | V107: -15908 | W107: 20832 | X107: -8563 | Y107: -14644 | Z107: -143 | AA107: -2310 | AB107: -15288 | AC107: -4926 | AD107: 49530 | AE107: 2482 | AG107: -13141076
G108: 2016-02-29 | H108: 31748167 | I108: -29585741 | J108: -711651 | K108: -1562516 | L108: -26325277 | M108: 9555 | N108: -242076 | O108: -10594827 | P108: -401820 | Q108: 59137649 | R108: -21471.463 | S108: 21471463 | T108: 2016-02-29 | U108: 26956 | V108: -25034 | W108: -590 | X108: -1329 | Y108: -22289 | Z108: 8 | AA108: -204 | AB108: -8951 | AC108: -339 | AD108: 49822 | AE108: -18050 | AG108: 31748167
G109: 2016-03-02 | H109: 24562295 | I109: -32550913 | J109: 1020247 | K109: 4402042 | L109: -6199574 | M109: -528191 | N109: -75778 | O109: 509635 | P109: -46834 | Q109: 49529901 | R109: -40622.83 | S109: 40622830 | T109: 2016-03-02 | U109: 20457 | V109: -27126 | W109: 859 | X109: 3667 | Y109: -5171 | Z109: -440 | AA109: -63 | AB109: 425 | AC109: -39 | AD109: 41220 | AE109: -33789 | AG109: 24562295
G110: 2016-03-03 | H110: 49632763 | I110: -34724287 | K110: 7149634 | L110: 2242621 | M110: -1201631 | N110: -266640 | O110: -720573 | P110: -411032 | Q110: 50704433 | R110: -32027.631 | S110: 72405288 | T110: 2016-03-03 | U110: 40828 | V110: -28671 | X110: 5893 | Y110: 1868 | Z110: -992 | AA110: -220 | AB110: -598 | AC110: -339 | AD110: 41920 | AE110: -26411 | AG110: 49632763
G111: 2016-03-04 | H111: -1871116 | I111: -17714582 | J111: -1039307 | K111: -88166 | L111: -5352244 | M111: -725714 | O111: -3721045 | P111: -451758 | Q111: 50722904 | R111: -19758.972 | S111: 19758972 | T111: 2016-03-04 | U111: -1529 | V111: -14531 | W111: -838 | X111: -72 | Y111: -4403 | Z111: -596 | AB111: -3051 | AC111: -370 | AD111: 41569 | AE111: -16179 | AG111: -1871116
G112: 2016-03-07 | H112: 4192856 | I112: -14607415 | J112: -4043078 | K112: -2822043 | L112: 2702780 | M112: -230482 | N112: -446664 | O112: -16524193 | P112: 1856568 | Q112: 51053054 | R112: -21131.383 | S112: 21131383 | T112: 2016-03-07 | U112: 3388 | V112: -11978 | W112: -3297 | X112: -2308 | Y112: 2212 | Z112: -188 | AA112: -365 | AB112: -13539 | AC112: 1523 | AD112: 41816 | AE112: -17264 | AG112: 4192856
G113: 2016-03-08 | H113: -66447824 | I113: -21377344 | J113: 35382818 | K113: -2782773 | L113: -6147147 | M113: 257929 | N113: 197713 | O113: -13244798 | P113: 4246554 | Q113: 50853862 | R113: 19061.01 | S113: -19061010 | T113: 2016-03-08 | U113: -55043 | V113: -17823 | W113: 29472 | X113: -2339 | Y113: -5100 | Z113: 217 | AA113: 165 | AB113: -11024 | AC113: 3554 | AD113: 41997 | AE113: 15924 | AG113: -66447824
G114: 2016-03-09 | H114: -22422370 | I114: -16744999 | J114: -2866399 | K114: 1504946 | L114: -2677214 | M114: -327675 | N114: -207643 | O114: -10840956 | P114: -184709 | Q114: 49920063 | R114: 4846.956 | S114: -4846956 | T114: 2016-03-09 | U114: -19000 | V114: -14128 | W114: -2377 | X114: 1256 | Y114: -2250 | Z114: -275 | AA114: -175 | AB114: -9132 | AC114: -154 | AD114: 42098 | AE114: 4137 | AG114: -22422370
G115: 2016-03-10 | H115: 140447818 | I115: -18140866 | J115: -91740987 | L115: 5777053 | M115: -1644914 | N115: -1544952 | O115: -5551881 | P115: -345706 | Q115: 48675716 | R115: -77299.823 | S115: 75931281 | T115: 2016-03-10 | U115: 114788 | V115: -14918 | W115: -75031 | Y115: 4668 | Z115: -1342 | AA115: -1262 | AB115: -4587 | AC115: -282 | AD115: 39864 | AE115: -63019 | AG115: 140447818
G116: 2016-03-11 | H116: 22474650 | I116: -16849662 | J116: -13370229 | K116: 5143377 | L116: -5016988 | M116: -3295259 | N116: 2063868 | O116: 13566365 | P116: 575686 | Q116: 53400552 | R116: -58692.36 | S116: 58692360 | T116: 2016-03-11 | U116: 17809 | V116: -13530 | W116: -10801 | X116: 4118 | Y116: -4006 | Z116: -2662 | AA116: 1655 | AB116: 10836 | AC116: 456 | AD116: 43226 | AE116: -47101 | AG116: 22474650
G117: 2016-03-14 | H117: -9143774 | I117: -15486189 | J117: -12837791 | K117: 7432859 | L117: 25913026 | M117: -1079430 | N117: -475611 | O117: 15600029 | P117: -3012511 | Q117: 27694115 | R117: -34604.723 | S117: 34604723 | T117: 2016-03-14 | U117: -7280 | V117: -12259 | W117: -10146 | X117: 5861 | Y117: 20512 | Z117: -856 | AA117: -376 | AB117: 12316 | AC117: -2383 | AD117: 21922 | AE117: -27311 | AG117: -9143774
G118: 2016-03-15 | H118: -45908782 | I118: -4729018 | J118: 17629495 | K118: -2769465 | L118: 1022901 | M118: -1111558 | N118: -311194 | O118: -5562439 | P118: -120079 | Q118: 54107362 | S118: 12247223 | T118: 2016-03-15 | U118: -36557 | V118: -3775 | W118: 14069 | X118: -2219 | Y118: 813 | Z118: -884 | AA118: -248 | AB118: -4429 | AC118: -96 | AD118: 43068 | AG118: -45908782
G119: 2016-03-16 | H119: -35523030 | I119: -12110935 | J119: 28739880 | K119: -3591328 | L119: 1644107 | M119: -3976782 | N119: -1123032 | O119: 5791730 | P119: -714937 | Q119: 27044628 | R119: -6180.301 | S119: 6180301 | T119: 2016-03-16 | U119: -28231 | V119: -9631 | W119: 22861 | X119: -2865 | Y119: 1304 | Z119: -3163 | AA119: -893 | AB119: 4597 | AC119: -568 | AD119: 21495 | AE119: -4906 | AG119: -35523030
G120: 2016-03-17 | H120: 49403969 | I120: -9056579 | J120: 14871528 | K120: -14601203 | L120: -3398996 | M120: 570532 | N120: -454102 | O120: -28309607 | P120: -350620 | Q120: 25501168 | R120: -34176.09 | S120: 34176090 | T120: 2016-03-17 | U120: 38711 | V120: -7121 | W120: 11690 | X120: -11554 | Y120: -2661 | Z120: 441 | AA120: -358 | AB120: -22217 | AC120: -270 | AD120: 19945 | AE120: -26606 | AG120: 49403969
G121: 2016-03-18 | H121: 51238909 | I121: -6456374 | J121: -43963069 | K121: -8259353 | L121: -8600400 | M121: -3184182 | N121: -50760 | O121: -8605526 | P121: 679292 | Q121: 30218202 | R121: -3016.739 | S121: 3016739 | T121: 2016-03-18 | U121: 40303 | V121: -5086 | W121: -34586 | X121: -6513 | Y121: -6764 | Z121: -2511 | AA121: -40 | AB121: -6791 | AC121: 535 | AD121: 23811 | AE121: -2358 | AG121: 51238909
G122: 2016-03-21 | H122: -6269506 | I122: -9637142 | J122: -29928611 | K122: -7744999 | L122: -7420952 | M122: 83123 | N122: -2740451 | O122: -3706142 | P122: 7621163 | Q122: 58570219 | R122: 1173.298 | S122: -1173298 | T122: 2016-03-21 | U122: -4871 | V122: -7636 | W122: -23556 | X122: -6128 | Y122: -5856 | Z122: 66 | AA122: -2167 | AB122: -2927 | AC122: 6019 | AD122: 46121 | AE122: 935 | AG122: -6269506
G123: 2016-03-22 | H123: -6764694 | I123: -9277144 | J123: -12259100 | K123: -6150257 | L123: -9419929 | M123: -116044 | N123: -40458 | O123: -4289948 | P123: -1381499 | Q123: 58937447 | R123: -9238.374 | S123: 9238374 | T123: 2016-03-22 | U123: -5416 | V123: -7308 | W123: -9634 | X123: -4869 | Y123: -7428 | Z123: -91 | AA123: -32 | AB123: -3394 | AC123: -1091 | AD123: 46515 | AE123: -7252 | AG123: -6764694
G124: 2016-03-23 | H124: -3475213 | I124: -4611443 | J124: -6901783 | K124: -1812557 | L124: -2222885 | M124: -716783 | O124: -9954439 | P124: 116717 | Q124: 59146601 | R124: -29568.215 | S124: 29568215 | T124: 2016-03-23 | U124: -2838 | V124: -3630 | W124: -5401 | X124: -1423 | Y124: -1751 | Z124: -561 | AB124: -7834 | AC124: 92 | AD124: 46575 | AE124: -23229 | AG124: -3475213
G125: 2016-03-24 | H125: -4612547 | I125: -10444279 | J125: 13254704 | K125: 1637909 | L125: -16804592 | M125: 558977 | N125: -297132 | O125: -4261150 | P125: -221352 | Q125: 58598527 | R125: -37409.065 | S125: 37409065 | T125: 2016-03-24 | U125: -3590 | V125: -8164 | W125: 10270 | X125: 1274 | Y125: -13117 | Z125: 437 | AA125: -230 | AB125: -3376 | AC125: -173 | AD125: 45754 | AE125: -29085 | AG125: -4612547
G126: 2016-03-25 | H126: -5180042 | I126: -2872912 | J126: 12004086 | K126: -4431989 | L126: -4160615 | M126: -185420 | N126: 331190 | O126: -13991064 | P126: -699902 | Q126: 58031937 | R126: -38845.269 | S126: 38845269 | T126: 2016-03-25 | U126: -4144 | V126: -2244 | W126: 9353 | X126: -3445 | Y126: -3246 | Z126: -144 | AA126: 257 | AB126: -10868 | AC126: -544 | AD126: 45172 | AE126: -30147 | AG126: -5180042
G127: 2016-03-28 | H127: -12483370 | I127: -9652064 | J127: 721420 | K127: -2193966 | L127: 3054546 | M127: 574974 | N127: -539458 | O127: -2722405 | P127: -448181 | Q127: 57483974 | R127: -33795.47 | S127: 33795470 | T127: 2016-03-28 | U127: -9643 | V127: -7467 | W127: 551 | X127: -1695 | Y127: 2368 | Z127: 444 | AA127: -417 | AB127: -2107 | AC127: -348 | AD127: 44403 | AE127: -26089 | AG127: -12483370
G128: 2016-03-29 | H128: -23061872 | I128: -14150974 | J128: 4300815 | K128: -2404241 | L128: 7439291 | M128: -170596 | N128: -986337 | O128: -8099578 | P128: -887116 | Q128: 59678173 | R128: -21657.565 | S128: 21657565 | T128: 2016-03-29 | U128: -17798 | V128: -10956 | W128: 3356 | X128: -1864 | Y128: 5735 | Z128: -130 | AA128: -763 | AB128: -6274 | AC128: -687 | AD128: 46133 | AE128: -16752 | AG128: -23061872
G129: 2016-03-30 | H129: -37938142 | I129: -3886072 | J129: 22915536 | K129: -1799461 | L129: 11560704 | M129: -2133699 | N129: 956426 | O129: -7762225 | P129: -503266 | Q129: 61357140 | R129: -42766.941 | S129: 42766941 | T129: 2016-03-30 | U129: -28929 | V129: -3012 | W129: 17580 | X129: -1391 | Y129: 8780 | Z129: -1627 | AA129: 730 | AB129: -5946 | AC129: -385 | AD129: 46800 | AE129: -32600 | AG129: -37938142
G130: 2016-03-31 | H130: -33718938 | I130: -5534763 | J130: 7251403 | K130: 383011 | L130: -4204596 | M130: 369655 | N130: -931280 | O130: -1394848 | P130: 3446126 | Q130: 59128467 | R130: -24794.237 | S130: 24794237 | T130: 2016-03-31 | U130: -25924 | V130: -4236 | W130: 5613 | X130: 288 | Y130: -3229 | Z130: 283 | AA130: -714 | AB130: -1065 | AC130: 2642 | AD130: 45291 | AE130: -18949 | AG130: -33718938
G131: 2016-04-01 | H131: -97302167 | I131: -11616637 | J131: 53251816 | K131: -4342407 | L131: -4979167 | M131: 184735 | N131: -1464115 | O131: 9244583 | P131: -3061515 | Q131: 59907368 | R131: 177.506 | S131: -177506 | T131: 2016-04-01 | U131: -75133 | V131: -9078 | W131: 41356 | X131: -3396 | Y131: -3921 | Z131: 146 | AA131: -1137 | AB131: 7186 | AC131: -2350 | AD131: 46170 | AE131: 157 | AG131: -97302167
G132: 2016-04-04 | H132: 22814485 | I132: -2211045 | J132: -72023365 | K132: 2118257 | L132: 1550515 | M132: -718682 | N132: 455870 | O132: 5815373 | P132: -2267430 | Q132: 60687523 | R132: -16221.501 | S132: 16221501 | T132: 2016-04-04 | U132: 17521 | V132: -1712 | W132: -55509 | X132: 1622 | Y132: 1197 | Z132: -552 | AA132: 350 | AB132: 4481 | AC132: -1748 | AD132: 46793 | AE132: -12443 | AG132: 22814485
G133: 2016-04-05 | H133: -111696994 | I133: -6992297 | J133: 11230185 | K133: -9286172 | L133: 5404443 | M133: 1062860 | N133: -37907 | O133: 5422497 | P133: 554090 | Q133: 60747290 | R133: 43592.005 | S133: -43592005 | T133: 2016-04-05 | U133: -87304 | V133: -5522 | W133: 8869 | X133: -7327 | Y133: 4222 | Z133: 836 | AA133: -30 | AB133: 4251 | AC133: 438 | AD133: 47264 | AE133: 34303 | AG133: -111696994
G134: 2016-04-06 | H134: 44563104 | I134: -19464613 | J134: -67651010 | K134: -2818926 | L134: -3276902 | M134: -1134143 | N134: -39793 | O134: -7629020 | P134: -694170 | Q134: 60501497 | R134: -2356.024 | S134: 2356024 | T134: 2016-04-06 | U134: 34761 | V134: -15181 | W134: -52729 | X134: -2203 | Y134: -2556 | Z134: -884 | AA134: -31 | AB134: -5953 | AC134: -541 | AD134: 47135 | AE134: -1818 | AG134: 44563104
G135: 2016-04-07 | H135: 32346496 | I135: -23893463 | J135: -35052678 | K135: -2440489 | L135: -20984076 | M135: -3721051 | N135: 1275025 | O135: -33933919 | P135: -1163613 | Q135: 57562014 | R135: 30005.754 | S135: -30005754 | T135: 2016-04-07 | U135: 25612 | V135: -18811 | W135: -27468 | X135: -1910 | Y135: -16554 | Z135: -2947 | AA135: 1007 | AB135: -26821 | AC135: -920 | AD135: 45092 | AE135: 23720 | AG135: 32346496
G136: 2016-04-08 | H136: 9067060 | I136: -904043 | J136: -42000778 | K136: -3131488 | L136: -28578022 | M136: -3645274 | N136: -2030 | O136: -20928601 | P136: 196924 | Q136: 58547888 | R136: 31378.364 | S136: -31378364 | T136: 2016-04-08 | U136: 7386 | V136: -722 | W136: -33518 | X136: -2509 | Y136: -22856 | Z136: -2920 | AA136: -1 | AB136: -16771 | AC136: 170 | AD136: 46516 | AE136: 25225 | AG136: 9067060
G137: 2016-04-11 | H137: 20319115 | I137: -4716366 | J137: -43589176 | K137: 200172 | L137: 40931 | M137: -170982 | N137: -133246 | O137: -13575169 | P137: 3212 | Q137: 57553097 | R137: -15931.588 | S137: 15931588 | T137: 2016-04-11 | U137: 16147 | V137: -3757 | W137: -34652 | X137: 152 | Y137: 31 | Z137: -132 | AA137: -106 | AB137: -10795 | AC137: 1 | AD137: 45710 | AE137: -12599 | AG137: 20319115
G138: 2016-04-12 | H138: 6180850 | I138: 1367842 | J138: -35357416 | K138: 1104157 | L138: 655712 | M138: -1324568 | N138: 2435820 | O138: -12197540 | P138: -101880 | Q138: 58699020 | R138: -21461.997 | S138: 21461997 | T138: 2016-04-12 | U138: 4857 | V138: 1069 | W138: -27732 | X138: 865 | Y138: 522 | Z138: -1037 | AA138: 1909 | AB138: -9557 | AC138: -80 | AD138: 45979 | AE138: -16795 | AG138: 6180850
G139: 2016-04-14 | H139: 15719125 | I139: -11678076 | J139: 36282818 | K139: 1201563 | L139: -2316898 | M139: -762068 | N139: 216829 | O139: -15955107 | P139: -78948 | Q139: 60490924 | R139: -83120.162 | S139: 83120162 | T139: 2016-04-14 | U139: 12135 | V139: -9000 | W139: 27925 | X139: 920 | Y139: -1786 | Z139: -587 | AA139: 167 | AB139: -12308 | AC139: -61 | AD139: 46619 | AE139: -64024 | AG139: 15719125
G140: 2016-04-15 | H140: -8522306 | I140: -23073406 | J140: 58179752 | K140: -2361721 | L140: 2300244 | M140: -22083 | O140: -16670027 | Q140: -1048178 | R140: -8782.275 | S140: 8782275 | T140: 2016-04-15 | U140: -6639 | V140: -17800 | W140: 44940 | X140: -1824 | Y140: 1776 | Z140: -17 | AB140: -12874 | AD140: -808 | AE140: -6754 | AG140: -8522306
G141: 2016-04-18 | H141: 19216017 | I141: -10380768 | J141: -19357641 | K141: -913512 | L141: 6431540 | M141: 459505 | N141: 123161 | O141: 9688190 | P141: 37599 | Q141: -19615 | R141: -5284.476 | S141: 5284476 | T141: 2016-04-18 | U141: 14834 | V141: -8010 | W141: -14943 | X141: -705 | Y141: 4950 | Z141: 355 | AA141: 95 | AB141: 7473 | AC141: 29 | AD141: -15 | AE141: -4063 | AG141: 19216017
G142: 2016-04-19 | H142: -14117940 | I142: -15031299 | J142: 43505514 | K142: -2443222 | L142: -5324489 | M142: -797872 | N142: 303940 | O142: -9289064 | P142: -191120 | Q142: 251024 | R142: 3134.528 | S142: -3134528 | T142: 2016-04-19 | U142: -10965 | V142: -11671 | W142: 33785 | X142: -1898 | Y142: -4134 | Z142: -620 | AA142: 236 | AB142: -7217 | AC142: -148 | AD142: 195 | AE142: 2437 | AG142: -14117940
G143: 2016-04-20 | H143: 58521362 | I143: -8457048 | J143: -13358981 | K143: -2898126 | L143: -1111561 | M143: -530972 | N143: -997175 | O143: -10093159 | P143: -3733995 | Q143: -208663 | R143: -17131.682 | S143: 17131682 | T143: 2016-04-20 | U143: 45182 | V143: -6538 | W143: -10281 | X143: -2241 | Y143: -869 | Z143: -409 | AA143: -772 | AB143: -7820 | AC143: -2887 | AD143: -161 | AE143: -13204 | AG143: 58521362
G144: 2016-04-21 | H144: 9604147 | I144: -9500483 | J144: 22722490 | K144: -1118071 | L144: 1248779 | M144: -79180 | N144: -195446 | O144: -13350321 | P144: -370177 | Q144: 698116 | R144: -9659.854 | S144: 9659854 | T144: 2016-04-21 | U144: 7427 | V144: -7335 | W144: 17516 | X144: -868 | Y144: 964 | Z144: -61 | AA144: -151 | AB144: -10310 | AC144: -287 | AD144: 539 | AE144: -7434 | AG144: =IF($E$16=1,U144,H144) -> 9604147
G145: 2016-04-22 | H145: 27168951 | I145: -15789843 | J145: 8523453 | K145: -5608647 | L145: 3876182 | M145: -142768 | N145: 125147 | O145: -22111091 | P145: -1296475 | Q145: -2275258 | R145: 7530.349 | S145: =IF($E$16=1,SUM(U145:AD145),SUM(H145:Q145)) -> -7530349 | T145: 2016-04-22 | U145: 21132 | V145: -12296 | W145: 6671 | X145: -4372 | Y145: 3012 | Z145: -111 | AA145: 97 | AB145: -17230 | AC145: -1011 | AD145: -1775 | AE145: 5883 | AG145: 27168951
G146: 2016-04-25 | H146: 36259999 | I146: 1385163 | J146: -24028553 | K146: -3534528 | L146: 3550274 | M146: 607716 | N146: -311174 | O146: -15023767 | P146: -573447 | Q146: -643021 | R146: 2311.338 | S146: -2311338 | T146: 2016-04-25 | U146: 28358 | V146: 1082 | W146: -18770 | X146: -2771 | Y146: 2780 | Z146: 476 | AA146: -244 | AB146: -11769 | AC146: -449 | AD146: -504 | AE146: 1811 | AG146: 36259999
G147: 2016-04-26 | H147: 31565820 | I147: 2112786 | J147: -6706619 | K147: 453471 | L147: 3031307 | M147: 458929 | N147: -77760 | O147: 1387575 | P147: -246587 | Q147: 1364025 | R147: -33342.947 | S147: 33342947 | T147: 2016-04-26 | U147: 24361 | V147: 1611 | W147: -5196 | X147: 342 | Y147: 2337 | Z147: 352 | AA147: -60 | AB147: 1068 | AC147: -190 | AD147: 1053 | AE147: -25678 | AG147: 31565820
G148: 2016-04-27 | H148: -6453184 | I148: -4782971 | J148: -2716993 | K148: -278266 | L148: 13324117 | M148: 94805 | N148: -270895 | O148: 9046258 | P148: -373715 | Q148: 3306506 | R148: -10895.662 | S148: 10895662 | T148: 2016-04-27 | U148: -4948 | V148: -3693 | W148: -2136 | X148: -217 | Y148: 10273 | Z148: 73 | AA148: -209 | AB148: 6970 | AC148: -288 | AD148: 2549 | AE148: -8374 | AG148: -6453184
G149: 2016-04-28 | H149: -55802111 | I149: -6014250 | J149: 78842467 | K149: -5212893 | L149: -25247827 | M149: 2124018 | N149: -664627 | O149: -48529940 | P149: 1665678 | Q149: -151942 | R149: 58991.427 | S149: -58991427 | T149: 2016-04-28 | U149: -43936 | V149: -4715 | W149: 61919 | X149: -4117 | Y149: -19749 | Z149: 1681 | AA149: -526 | AB149: -38237 | AC149: 1318 | AD149: -120 | AE149: 46482 | AG149: -55802111
G150: 2016-04-29 | H150: 23003261 | I150: -37708257 | J150: -22770980 | K150: -11882698 | L150: 20176009 | M150: 869615 | N150: -730949 | O150: -40758146 | P150: 822204 | Q150: 33213735 | R150: 35766.206 | S150: -35766206 | T150: 2016-04-29 | U150: 18469 | V150: -30237 | W150: -18186 | X150: -9503 | Y150: 16197 | Z150: 697 | AA150: -585 | AB150: -32583 | AC150: 657 | AD150: 26444 | AE150: 28630 | AG150: 23003261
G151: 2016-05-02 | H151: 21662156 | I151: -2746940 | J151: -32380484 | K151: -1073597 | L151: -7610596 | M151: -92577 | O151: -12282536 | P151: -328074 | Q151: 27478775 | R151: 7373.873 | S151: -7373873 | T151: 2016-05-02 | U151: 17252 | V151: -2200 | W151: -25861 | X151: -861 | Y151: -6095 | Z151: -72 | AB151: -9849 | AC151: -263 | AD151: 22023 | AE151: 5926 | AG151: 21662156
G152: 2016-05-04 | H152: 85226180 | I152: 8043648 | J152: -96104569 | K152: 501643 | L152: 12118440 | M152: -1332452 | N152: -108348 | O152: 13202622 | P152: 1003671 | Q152: 16367743 | R152: -38918.578 | S152: 38918578 | T152: 2016-05-04 | U152: 66757 | V152: 6291 | W152: -75406 | X152: 398 | Y152: 9529 | Z152: -1048 | AA152: -86 | AB152: 10322 | AC152: 788 | AD152: 12872 | AE152: -30417 | AG152: 85226180
G153: 2016-05-09 | H153: -10400849 | I153: 6754891 | J153: 3790515 | K153: -889870 | L153: 4966339 | M153: 848165 | N153: 129868 | O153: 14892928 | P153: 806802 | Q153: 33769136 | R153: -54667.925 | S153: 54667925 | T153: 2016-05-09 | U153: -8090 | V153: 5200 | W153: 2911 | X153: -688 | Y153: 3837 | Z153: 649 | AA153: 100 | AB153: 11468 | AC153: 622 | AD153: 26102 | AE153: -42111 | AG153: -10400849
G154: 2016-05-10 | H154: -12398562 | I154: -3031917 | J154: -6298260 | K154: -1826311 | L154: 10456113 | M154: 7195 | O154: -5267918 | P154: -236806 | Q154: 34679903 | R154: -16083.437 | S154: 16083437 | T154: 2016-05-10 | U154: -9551 | V154: -2347 | W154: -4833 | X154: -1411 | Y154: 8055 | Z154: 6 | AB154: -4078 | AC154: -183 | AD154: 26732 | AE154: -12390 | AG154: -12398562
G155: 2016-05-11 | H155: 46078383 | I155: -3421515 | J155: -40899029 | K155: -312536 | L155: -16484254 | M155: -689912 | N155: 229992 | O155: -2411338 | P155: -726388 | Q155: 33268597 | R155: -14632 | S155: 14632000 | T155: 2016-05-11 | U155: 35689 | V155: -2647 | W155: -31642 | X155: -240 | Y155: -12773 | Z155: -534 | AA155: 177 | AB155: -1861 | AC155: -562 | AD155: 25715 | AE155: -11322 | AG155: 46078383
G156: 2016-05-12 | H156: -10599732 | I156: -3973824 | J156: 6250700 | K156: -1990192 | L156: -13352303 | M156: -278933 | O156: -18461223 | P156: -812724 | Q156: 34296028 | R156: 8922.203 | S156: -8922203 | T156: 2016-05-12 | U156: -8205 | V156: -3094 | W156: 4909 | X156: -1553 | Y156: -10411 | Z156: -217 | AB156: -14405 | AC156: -634 | AD156: 26635 | AE156: 6975 | AG156: -10599732
G157: 2016-05-13 | H157: -56898568 | I157: -2893681 | J157: 819046 | K157: -2936338 | L157: -4638213 | M157: 270197 | N157: 64051 | O157: -18002920 | P157: -427254 | Q157: 34834053 | R157: 49809.627 | S157: -49809627 | T157: 2016-05-13 | U157: -45098 | V157: -2309 | W157: 727 | X157: -2342 | Y157: -3679 | Z157: 214 | AA157: 51 | AB157: -14355 | AC157: -340 | AD157: 27466 | AE157: 39665 | AG157: -56898568
G158: 2016-05-16 | H158: -58519177 | I158: -9779249 | J158: 35349456 | K158: -3671341 | L158: -11477061 | M158: -80406 | N158: -1292466 | O158: -7433566 | P158: -544247 | Q158: 33405458 | R158: 24042.599 | S158: -24042599 | T158: 2016-05-16 | U158: -46755 | V158: -7821 | W158: 28277 | X158: -2936 | Y158: -9169 | Z158: -64 | AA158: -1033 | AB158: -5931 | AC158: -435 | AD158: 26656 | AE158: 19211 | AG158: -58519177
G159: 2016-05-17 | H159: 36753255 | I159: -2525108 | J159: -26512972 | K159: 728040 | L159: 4860878 | M159: -312900 | N159: 1597704 | O159: -22596883 | P159: 3391023 | Q159: 16809998 | R159: -12193.035 | S159: 12193035 | T159: 2016-05-17 | U159: 29152 | V159: -2008 | W159: -21051 | X159: 581 | Y159: 3859 | Z159: -247 | AA159: 1270 | AB159: -17967 | AC159: 2694 | AD159: 13373 | AE159: -9656 | AG159: 36753255
G160: 2016-05-18 | H160: 17488387 | I160: -2518603 | J160: -31391462 | K160: -3216518 | L160: 2118038 | M160: -71942 | N160: 283969 | O160: -6131047 | P160: -1059573 | Q160: 34165139 | R160: -9666.388 | S160: 9666388 | T160: 2016-05-18 | U160: 13794 | V160: -1997 | W160: -24784 | X160: -2556 | Y160: 1676 | Z160: -57 | AA160: 225 | AB160: -4861 | AC160: -840 | AD160: 27040 | AE160: -7640 | AG160: 17488387
G161: 2016-05-19 | H161: -16023761 | I161: 2143936 | J161: -6209574 | K161: -896260 | L161: 157767 | M161: -43157 | N161: -537416 | O161: 1810945 | P161: 6345 | Q161: 34253654 | R161: -14662.479 | S161: 14662479 | T161: 2016-05-19 | U161: -12625 | V161: 1687 | W161: -4896 | X161: -706 | Y161: 124 | Z161: -34 | AA161: -424 | AB161: 1421 | AC161: 5 | AD161: 26990 | AE161: -11542 | AG161: -16023761
G162: 2016-05-20 | H162: -31776223 | I162: -5385454 | J162: 21330767 | K162: -4344037 | L162: 380668 | M162: 3679 | N162: -1002665 | O162: -2010210 | P162: 640062 | Q162: 33952137 | R162: -11788.724 | S162: 11788724 | T162: 2016-05-20 | U162: -24987 | V162: -4220 | W162: 16753 | X162: -3408 | Y162: 291 | Z162: 3 | AA162: -785 | AB162: -1578 | AC162: 501 | AD162: 26662 | AE162: -9232 | AG162: -31776223
G163: 2016-05-23 | H163: 18663930 | I163: 7915043 | J163: -18504845 | K163: 4138972 | L163: -4718515 | M163: -572281 | N163: -3025369 | O163: -4801799 | P163: 1239325 | Q163: 20098712 | R163: -20433.173 | S163: 20433173 | T163: 2016-05-23 | U163: 14538 | V163: 6191 | W163: -14458 | X163: 3240 | Y163: -3709 | Z163: -444 | AA163: -2366 | AB163: -3783 | AC163: 971 | AD163: 15765 | AE163: -15945 | AG163: 18663930
G164: 2016-05-24 | H164: -19721722 | I164: 498816 | J164: -11654092 | K164: -1103028 | L164: 2424618 | M164: 178822 | N164: -1661187 | O164: -6463059 | P164: -115731 | Q164: 36085767 | R164: 1530.796 | S164: -1530796 | T164: 2016-05-24 | U164: -15420 | V164: 372 | W164: -9049 | X164: -870 | Y164: 1896 | Z164: 141 | AA164: -1305 | AB164: -5074 | AC164: -91 | AD164: 28184 | AE164: 1216 | AG164: -19721722
G165: 2016-05-25 | H165: 14643926 | I165: 3890160 | J165: 32190478 | K165: -712692 | L165: 2515836 | M165: -882222 | N165: 364173 | O165: -12286996 | P165: -955757 | Q165: 15682703 | R165: -54449.609 | S165: 54449609 | T165: 2016-05-25 | U165: 11334 | V165: 3019 | W165: 24866 | X165: -558 | Y165: 1960 | Z165: -681 | AA165: 285 | AB165: -9535 | AC165: -740 | AD165: 12158 | AE165: -42108 | AG165: 14643926
G166: 2016-05-26 | H166: 27619453 | I166: -13558522 | J166: 5696467 | K166: 15103947 | L166: 3751787 | M166: -266060 | N166: -436892 | O166: -10015258 | P166: 4140859 | Q166: 22813392 | R166: -54849.173 | S166: 54849173 | T166: 2016-05-26 | U166: 21242 | V166: -10455 | W166: 4402 | X166: 11623 | Y166: 2888 | Z166: -205 | AA166: -336 | AB166: -7720 | AC166: 3186 | AD166: 17565 | AE166: -42190 | AG166: 27619453
G167: 2016-05-27 | H167: -11725570 | I167: -3666925 | J167: 5449567 | K167: -4600598 | L167: -4558690 | M167: 383941 | N167: -82320 | O167: -17540102 | P167: 2119643 | Q167: 35016357 | R167: -795.303 | S167: 795303 | T167: 2016-05-27 | U167: -9087 | V167: -2868 | W167: 4288 | X167: -3595 | Y167: -3569 | Z167: 299 | AA167: -64 | AB167: -13610 | AC167: 1639 | AD167: 27120 | AE167: -553 | AG167: -11725570
G168: 2016-05-30 | H168: 34963727 | I168: -12002267 | J168: -16067991 | K168: -2656462 | L168: -4800796 | M168: 205799 | N168: -378465 | O168: -26937136 | P168: -5370857 | Q168: 35873013 | R168: -2828.565 | S168: 2828565 | T168: 2016-05-30 | U168: 27160 | V168: -9349 | W168: -12417 | X168: -2084 | Y168: -3749 | Z168: 162 | AA168: -295 | AB168: -21004 | AC168: -4193 | AD168: 27960 | AE168: -2191 | AG168: 34963727
G169: 2016-05-31 | H169: -186565308 | I169: 41984108 | J169: -18435383 | K169: 13818403 | L169: 55342683 | M169: 110151 | N169: 2607743 | O169: 36037810 | P169: 1725014 | Q169: 70088975 | R169: -16714.196 | S169: 16714196 | T169: 2016-05-31 | U169: -144847 | V169: 32501 | W169: -14292 | X169: 10698 | Y169: 42843 | Z169: 82 | AA169: 2020 | AB169: 27823 | AC169: 1334 | AD169: 54729 | AE169: -12891 | AG169: -186565308
G170: 2016-06-01 | H170: 77352822 | I170: 5594909 | J170: -49214439 | K170: 40080727 | L170: 27206378 | M170: -121287 | N170: 673403 | O170: 51028829 | P170: 10413138 | Q170: 32495853 | R170: -195510.333 | S170: 195510333 | T170: 2016-06-01 | U170: 58509 | V170: 4506 | W170: -37064 | X170: 30083 | Y170: 20649 | Z170: -93 | AA170: 480 | AB170: 38318 | AC170: 7827 | AD170: 24388 | AE170: -147603 | AG170: 77352822
G171: 2016-06-02 | H171: 127223570 | I171: -20100727 | J171: -60701514 | K171: 10841600 | L171: 11945867 | M171: -1174728 | N171: -22430 | O171: 17786775 | P171: 4598371 | Q171: 29389059 | R171: -119785.843 | S171: 119785843 | T171: 2016-06-02 | U171: 93566 | V171: -14876 | W171: -44654 | X171: 7974 | Y171: 8794 | Z171: -859 | AA171: -14 | AB171: 13075 | AC171: 3380 | AD171: 21606 | AE171: -87992 | AG171: 127223570
G172: 2016-06-03 | H172: -16550494 | I172: 73179.1 | J172: 47286293 | K172: -1733894 | L172: 2268676.9 | M172: -303121 | N172: -472617 | O172: 10325731 | P172: 929334 | Q172: 35698002 | R172: -77521.09 | S172: 77521090 | T172: 2016-06-03 | U172: -12137 | V172: 54 | W172: 34447 | X172: -1273 | Y172: 1657 | Z172: -222 | AA172: -345 | AB172: 7524 | AC172: 676 | AD172: 26100 | AE172: -56481 | AG172: -16550494
G173: 2016-06-07 | H173: 35891531 | I173: -20766210 | J173: 40861125 | K173: -2684195 | L173: 578392 | M173: -146492 | N173: -166168 | O173: -1138184 | P173: 8568910 | Q173: 38447099 | R173: -99445.808 | S173: 99445808 | T173: 2016-06-07 | U173: 25756 | V173: -14863 | W173: 29181 | X173: -1919 | Y173: 414 | Z173: -105 | AA173: -119 | AB173: -813 | AC173: 6123 | AD173: 27490 | AE173: -71145 | AG173: 35891531
G174: 2016-06-08 | H174: 79687814 | I174: -48928158 | J174: 43684195 | K174: -4073905 | L174: 170851 | M174: -954264 | N174: 134832 | O174: -54849721 | P174: 1659545 | Q174: 37507664 | R174: -54038.853 | S174: 54038853 | T174: 2016-06-08 | U174: 56720 | V174: -34958 | W174: 31277 | X174: -2913 | Y174: 140 | Z174: -680 | AA174: 96 | AB174: -39189 | AC174: 1185 | AD174: 26840 | AE174: -38518 | AG174: 79687814
G175: 2016-06-09 | H175: 183708792 | I175: -100996189 | J175: 95681067 | K175: -34432145 | L175: -1697154 | M175: 337285 | N175: -1602863 | O175: -67153101 | P175: -2616512 | Q175: 24739136 | R175: -95968.316 | S175: 95968316 | T175: 2016-06-09 | U175: 129007 | V175: -70872 | W175: 67226 | X175: -24237 | Y175: -1198 | Z175: 235 | AA175: -1127 | AB175: -47204 | AC175: -1834 | AD175: 17390 | AE175: -67386 | AG175: 183708792
G176: 2016-06-10 | H176: -54148004 | I176: -16955725 | J176: 104706814 | K176: -24386626 | L176: -1284558 | M176: -201158 | N176: -255310 | O176: -27691020 | P176: 1159982 | Q176: 37704088 | R176: -18648.483 | S176: 18648483 | T176: 2016-06-10 | U176: -38260 | V176: -12032 | W176: 74266 | X176: -17304 | Y176: -912 | Z176: -142 | AA176: -181 | AB176: -19647 | AC176: 822 | AD176: 26604 | AE176: -13214 | AG176: -54148004
G177: 2016-06-13 | H177: -1539113 | I177: -30113662 | J177: 25057342 | K177: -2384228 | L177: -12897464 | M177: 145054 | O177: -17855157 | P177: 7346324 | Q177: 37941675 | R177: -5700.771 | S177: 5700771 | T177: 2016-06-13 | U177: -978 | V177: -21895 | W177: 18284 | X177: -1737 | Y177: -9416 | Z177: 106 | AB177: -12938 | AC177: 5340 | AD177: 27327 | AE177: -4093 | AG177: -1539113
G178: 2016-06-14 | H178: 52924170 | I178: -49505966 | J178: -36089737 | K178: -5773507 | L178: 35019 | M178: 669254 | O178: 1477347 | P178: 294608 | Q178: 38956479 | R178: -2987.667 | S178: 2987667 | T178: 2016-06-14 | U178: 38342 | V178: -35942 | W178: -26164 | X178: -4199 | Y178: 25 | Z178: 485 | AB178: 1050 | AC178: 214 | AD178: 28345 | AE178: -2156 | AG178: 52924170
G179: 2016-06-15 | H179: 20249773 | I179: 5906137 | J179: -62994365 | K179: 3243305 | L179: 7176657 | M179: -118156 | N179: 1978904 | O179: 13022726 | P179: 3869232 | Q179: 37846531 | R179: -30180.744 | S179: 30180744 | T179: 2016-06-15 | U179: 14367 | V179: 4218 | W179: -44897 | X179: 2297 | Y179: 5102 | Z179: -84 | AA179: 1407 | AB179: 9247 | AC179: 2756 | AD179: 27034 | AE179: -21447 | AG179: 20249773
G180: 2016-06-16 | H180: 55322168 | I180: -34603780 | J180: -52416321 | K180: -6835028 | L180: 1855908 | M180: -1478118 | N180: 167817 | O180: 7508651 | P180: 1040318 | Q180: 38304190 | R180: -8865.805 | S180: 8865805 | T180: 2016-06-16 | U180: 39538 | V180: -24713 | W180: -37336 | X180: -4877 | Y180: 1314 | Z180: -1055 | AA180: 120 | AB180: 5361 | AC180: 742 | AD180: 27216 | AE180: -6310 | AG180: 55322168
G181: 2016-06-17 | H181: -6147053 | I181: -13925136 | J181: 12389054 | K181: 9649588 | L181: -4484231 | M181: -1640457 | N181: 1449154 | O181: 10073244 | P181: 12262272 | Q181: 39409197 | R181: -59035.632 | S181: 59035632 | T181: 2016-06-17 | U181: -4359 | V181: -9760 | W181: 8694 | X181: 6750 | Y181: -3138 | Z181: -1148 | AA181: 1014 | AB181: 7050 | AC181: 8577 | AD181: 27584 | AE181: -41264 | AG181: -6147053
G182: 2016-06-20 | H182: -23278191 | I182: 7238060 | J182: 5033552 | K182: 1292292 | L182: 15570303 | M182: -74115 | N182: 644634 | O182: -6624912 | P182: -2613355 | Q182: 35757874 | R182: -32946.142 | S182: 32946142 | T182: 2016-06-20 | U182: -16295 | V182: 5058 | W182: 3528 | X182: 896 | Y182: 10843 | Z182: -51 | AA182: 449 | AB182: -4626 | AC182: -1829 | AD182: 24929 | AE182: -22902 | AG182: -23278191
G183: 2016-06-22 | H183: -53720982 | I183: 10863852 | J183: 27937599 | K183: 136969 | L183: 243559 | M183: -64981 | N183: 1880337 | O183: -6034116 | P183: 148461 | Q183: 39107693 | R183: -20498.391 | S183: 20498391 | T183: 2016-06-22 | U183: -37248 | V183: 7532 | W183: 19408 | X183: 92 | Y183: 169 | Z183: -44 | AA183: 1302 | AB183: -4222 | AC183: 102 | AD183: 27072 | AE183: -14163 | AG183: -53720982
G184: 2016-06-23 | H184: -93149849 | I184: 3148350 | J184: 47403713 | K184: -5332757 | L184: -7234875 | M184: 461289 | N184: -922304 | O184: 30213762 | P184: -2974110 | Q184: 39702894 | R184: -11316.113 | S184: 11316113 | T184: 2016-06-23 | U184: -64943 | V184: 2199 | W184: 33128 | X184: -3732 | Y184: -5052 | Z184: 323 | AA184: -645 | AB184: 21072 | AC184: -2078 | AD184: 27607 | AE184: -7879 | AG184: -93149849
G185: 2016-06-24 | H185: -115418280 | I185: 21688864 | J185: -23668205 | K185: 11897815 | L185: -1205350 | M185: -637836 | N185: 519042 | O185: 54369096 | P185: 7711662 | Q185: 43887275 | R185: 855.917 | S185: -855917 | T185: 2016-06-24 | U185: -83092 | V185: 15647 | W185: -16612 | X185: 8524 | Y185: -800 | Z185: -445 | AA185: 373 | AB185: 38857 | AC185: 5537 | AD185: 30967 | AE185: 1044 | AG185: -115418280
G186: 2016-06-27 | H186: -128461400 | I186: 33737537 | J186: 67281657 | K186: 2191733 | L186: -8730531 | M186: -408288 | N186: 1738622 | O186: 18054556 | P186: 503327 | Q186: 38515043 | R186: -24422.256 | S186: 24422256 | T186: 2016-06-27 | U186: -92132 | V186: 24203 | W186: 48206 | X186: 1571 | Y186: -6269 | Z186: -291 | AA186: 1249 | AB186: 12966 | AC186: 360 | AD186: 27578 | AE186: -17441 | AG186: -128461400
G187: 2016-06-28 | H187: -103203282 | I187: 7282145 | J187: 17285869 | K187: -578469 | L187: 1240439 | M187: -1725257 | N187: -619085 | O187: 31496468 | P187: 936257 | Q187: 38390203 | R187: 9494.712 | S187: -9494712 | T187: 2016-06-28 | U187: -74084 | V187: 5235 | W187: 12362 | X187: -407 | Y187: 888 | Z187: -1236 | AA187: -449 | AB187: 22598 | AC187: 670 | AD187: 27574 | AE187: 6849 | AG187: -103203282
G188: 2016-06-29 | H188: -16873321 | I188: 817977 | J188: -26701483 | K188: -3121545 | L188: -3388966 | M188: -622170 | N188: -48928 | O188: 8494819 | P188: -162933 | Q188: 37063163 | R188: 4543.387 | S188: -4543387 | T188: 2016-06-29 | U188: -12088 | V188: 586 | W188: -19010 | X188: -2227 | Y188: -2420 | Z188: -444 | AA188: -35 | AB188: 6049 | AC188: -116 | AD188: 26437 | AE188: 3268 | AG188: -16873321
G189: 2016-06-30 | H189: 42568208 | I189: -3845119 | J189: -64348339 | K189: 701997 | L189: 8393952 | M189: 280295 | N189: -631348 | O189: -15883365 | P189: 3161082 | Q189: 38206174 | R189: -8603.537 | S189: 8603537 | T189: 2016-06-30 | U189: 29951 | V189: -2702 | W189: -45287 | X189: 446 | Y189: 5875 | Z189: 197 | AA189: -456 | AB189: -11234 | AC189: 2223 | AD189: 26978 | AE189: -5991 | AG189: 42568208
G190: 2016-07-01 | H190: 65616999 | I190: -27942722 | J190: -30739768 | K190: 17275830 | L190: 16356717 | M190: 833958 | N190: 1158158 | O190: 24613465 | P190: 2073837 | Q190: 39385070 | R190: -108631.544 | S190: 108631544 | T190: 2016-07-01 | U190: 44933 | V190: -18989 | W190: -20977 | X190: 11760 | Y190: 11168 | Z190: 568 | AA190: 783 | AB190: 16781 | AC190: 1416 | AD190: 26811 | AE190: -74254 | AG190: 65616999
G191: 2016-07-04 | H191: -50687344 | I191: 9004780 | J191: -6846638 | K191: -654162 | L191: -3255655 | M191: 355754 | N191: -2818 | O191: 18975664 | P191: 1943982 | Q191: 39762042 | R191: -8595.605 | S191: 8595605 | T191: 2016-07-04 | U191: -34632 | V191: 6148 | W191: -4641 | X191: -455 | Y191: -2227 | Z191: 242 | AA191: -3 | AB191: 12944 | AC191: 1327 | AD191: 27158 | AE191: -5861 | AG191: -50687344
G192: 2016-07-05 | H192: -17281434 | I192: 666744 | J192: -7075794 | K192: -3747789 | L192: -17872251 | M192: -3032064 | N192: 311882 | O192: 20746944 | P192: 71635 | Q192: 46674881 | R192: -19462.754 | S192: 19462754 | T192: 2016-07-05 | U192: -11778 | V192: 448 | W192: -4819 | X192: -2548 | Y192: -12158 | Z192: -2063 | AA192: 212 | AB192: 14093 | AC192: 49 | AD192: 31783 | AE192: -13219 | AG192: -17281434
G193: 2016-07-06 | H193: -128646424 | I193: -5820036 | J193: 37246631 | K193: 680413 | L193: -23128048 | M193: 373241 | N193: -109419 | O193: 39649897 | P193: 1855596 | R193: 37391.488 | S193: -77898149 | T193: 2016-07-06 | U193: -89955 | V193: -4098 | W193: 26139 | X193: 455 | Y193: -16281 | Z193: 263 | AA193: -77 | AB193: 27799 | AC193: 1302 | AE193: 26253 | AG193: -128646424
G194: 2016-07-07 | H194: 81830934 | I194: -52848130 | J194: -1769803 | K194: -2933141 | L194: -14021481 | M194: -3442851 | N194: -1060067 | O194: 1181332 | P194: -1863467 | Q194: 34191031 | R194: -39264.357 | S194: 39264357 | T194: 2016-07-07 | U194: 56573 | V194: -36758 | W194: -1183 | X194: -2040 | Y194: -9720 | Z194: -2393 | AA194: -735 | AB194: 759 | AC194: -1291 | AD194: 23891 | AE194: -27103 | AG194: 81830934
G195: 2016-07-08 | H195: 84169759 | I195: -11236141 | J195: -28956907 | K195: 1125692 | L195: -601062 | M195: -156606 | N195: -981232 | O195: -19759238 | P195: -3198352 | Q195: 37023228 | R195: -57429.141 | S195: 57429141 | T195: 2016-07-08 | U195: 57335 | V195: -7683 | W195: -19780 | X195: 757 | Y195: -406 | Z195: -107 | AA195: -669 | AB195: -13513 | AC195: -2179 | AD195: 25395 | AE195: -39150 | AG195: 84169759
G196: 2016-07-11 | H196: 10242945 | I196: -1553173 | J196: 46071455 | K196: 403592 | L196: -2648844 | M196: -6145292 | N196: -4116649 | O196: 28360557 | P196: 2968801 | Q196: 36749845 | R196: -110333.237 | S196: 110333237 | T196: 2016-07-11 | U196: 6719 | V196: -1048 | W196: 30959 | X196: 264 | Y196: -1773 | Z196: -4117 | AA196: -2756 | AB196: 18936 | AC196: 1981 | AD196: 24567 | AE196: -73732 | AG196: 10242945
G197: 2016-07-12 | H197: -277230 | I197: -15646623 | J197: 13846392 | K197: -8970862 | L197: -8122150 | M197: -251418 | N197: -496694 | O197: 12713939 | P197: -1069109 | Q197: 40635804 | R197: -32362.049 | S197: 32362049 | T197: 2016-07-12 | U197: -185 | V197: -10618 | W197: 9365 | X197: -6083 | Y197: -5532 | Z197: -171 | AA197: -340 | AB197: 8556 | AC197: -718 | AD197: 27381 | AE197: -21655 | AG197: -277230
G198: 2016-07-13 | H198: 108589978 | I198: -26104031 | J198: -51086266 | K198: -9222167 | L198: -4822119 | M198: -1343362 | N198: -5996409 | O198: -12920579 | P198: -306368 | Q198: -213855 | R198: 3425.178 | S198: -3425178 | T198: 2016-07-13 | U198: 73366 | V198: -17689 | W198: -34414 | X198: -6233 | Y198: -3282 | Z198: -906 | AA198: -4079 | AB198: -8771 | AC198: -209 | AD198: -145 | AE198: 2362 | AG198: 108589978
G199: 2016-07-14 | H199: 152567208 | I199: -21279166 | J199: -58286028 | K199: 13531292 | L199: 1740792 | M199: -849104 | N199: 333128 | O199: -19005898 | P199: 306600 | Q199: -981601 | R199: -68077.223 | S199: 68077223 | T199: 2016-07-14 | U199: 101947 | V199: -14282 | W199: -38897 | X199: 9045 | Y199: 1169 | Z199: -569 | AA199: 224 | AB199: -12726 | AC199: 205 | AD199: -659 | AE199: -45457 | AG199: 152567208
G200: 2016-07-15 | H200: 103316138 | I200: -2665069 | J200: -24152218 | K200: 5915527 | L200: 5218499 | M200: -1361006 | N200: -2876896 | O200: 1141862 | P200: 2265704 | Q200: -638466 | R200: -86164.075 | S200: 86164075 | T200: 2016-07-15 | U200: 68199 | V200: -1769 | W200: -15887 | X200: 3902 | Y200: 3461 | Z200: -903 | AA200: -1900 | AB200: 743 | AC200: 1493 | AD200: -421 | AE200: -56918 | AG200: 103316138
G201: 2016-07-18 | H201: 83126252 | I201: -25671497 | J201: 1718337 | K201: -4183060 | L201: -3372951 | M201: -1091230 | N201: 328095 | O201: -6555240 | P201: 140304 | Q201: -2475622 | R201: -41963.388 | S201: 41963388 | T201: 2016-07-18 | U201: 54323 | V201: -16852 | W201: 1285 | X201: -2753 | Y201: -2214 | Z201: -715 | AA201: 215 | AB201: -4322 | AC201: 89 | AD201: -1624 | AE201: -27432 | AG201: 83126252
... 58 more rows

Sheet Macroeconomic
G3: 韓 元 市 場 匯 率 | L3: 年月 | M3: Data Field | N3: KRT110 韓國美元出口總額 $ (M) | O3: KRT112 韓國進口總額 $ (M) | P3: KRP154 南韓消費者物價指數CPI年增率%(2010=100)M | Q3: KRP153 南韓消費者物價指數CPI(2010=100)M | R3: KRE181 韓國實質GDP成長率(Q)(2010=100)
B4: 代碼 | C4: 日期 | D4: 原幣兌美元 (美元) | E4: 原幣兌台幣 (台幣) | G4: 日期 / 幣別 | H4: 兌美元 | I4: 兌台幣 | L4: 2016-09-30 | M4: 數值 | N4: 40860 | O4: 33760 | P4: 1.21 | Q4: 111.4 | R4: 3.17
B5: KRW 韓元 | C5: 2016-10-13 | D5: 0.000885 | E5: 0.028087 | G5: =C5 -> 2016-10-13 | H5: =IF(D5="","",D5) -> 0.000885 | I5: 0.028087 | L5: 2016-08-31 | M5: 數值 | N5: 40130 | O5: 34820 | P5: 0.4 | Q5: 110.7 | R5: 2.79
B6: KRW 韓元 | C6: 2016-09-30 | D6: 0.000908 | E6: 0.028423 | G6: =C6 -> 2016-09-30 | H6: 0.000908 | I6: 0.028423 | L6: 2016-07-29 | M6: 數值 | N6: 41050 | O6: 33250 | P6: 0.71 | Q6: 110.8 | R6: 3.06
B7: KRW 韓元 | C7: 2016-08-31 | D7: 0.000896 | E7: 0.028433 | G7: =C7 -> 2016-08-31 | H7: 0.000896 | I7: 0.028433 | L7: 2016-06-30 | M7: 數值 | N7: 45292.8 | O7: 33795.3 | P7: 0.76 | Q7: 110.7 | R7: 2.76
B8: KRW 韓元 | C8: 2016-07-29 | D8: 0.000899 | E8: 0.028607 | G8: =C8 -> 2016-07-29 | H8: 0.000899 | I8: 0.028607 | L8: 2016-05-31 | M8: 數值 | N8: 39814.1 | O8: 32824.7 | P8: 0.76 | Q8: 110.7 | R8: 2.19
B9: KRW 韓元 | C9: 2016-06-30 | D9: 0.000868 | E9: 0.027965 | G9: =C9 -> 2016-06-30 | H9: 0.000868 | I9: 0.027965
B10: KRW 韓元 | C10: 2016-05-31 | D10: 0.00084 | E10: 0.027395
B11: KRW 韓元 | C11: 2016-04-29 | D11: 0.000873 | E11: 0.028196
B12: KRW 韓元 | C12: 2016-03-31 | D12: 0.000873 | E12: 0.02814
B13: KRW 韓元 | C13: 2016-02-29 | D13: 0.000808 | E13: 0.026861 | J13: 南 韓 總 體 經 濟 資 訊 概 況
B14: KRW 韓元 | C14: 2016-01-29 | D14: 0.000828 | E14: 0.027709 | J14: 日期 / 名稱 | K14: 出口總額(百萬美元) | L14: 進口總額(百萬美元) | M14: CPI消費者物價指數 | N14: CPI年增率 | O14: 實質GDP成長率
B15: KRW 韓元 | C15: 2015-12-31 | D15: 0.00085 | E15: 0.027994 | J15: =L4 -> 2016-09-30 | K15: =N4 -> 40860 | L15: 33760 | M15: 1.21 | N15: 111.4 | O15: 3.17
B16: KRW 韓元 | C16: 2015-11-30 | D16: 0.000862 | E16: 0.028183 | J16: =L5 -> 2016-08-31 | K16: 40130 | L16: 34820 | M16: 0.4 | N16: 110.7 | O16: 2.79
B17: KRW 韓元 | C17: 2015-10-30 | D17: 0.000876 | E17: 0.028418 | J17: =L6 -> 2016-07-29 | K17: 41050 | L17: 33250 | M17: 0.71 | N17: 110.8 | O17: 3.06
B18: KRW 韓元 | C18: 2015-09-30 | D18: 0.000844 | E18: 0.027832 | J18: =L7 -> 2016-06-30 | K18: 45292.8 | L18: 33795.3 | M18: 0.76 | N18: 110.7 | O18: 2.76
B19: KRW 韓元 | C19: 2015-08-31 | D19: 0.000845 | E19: 0.027443 | J19: =L8 -> 2016-05-31 | K19: 39814.1 | L19: 32824.7 | M19: 0.76 | N19: 110.7 | O19: 2.19
B20: KRW 韓元 | C20: 2015-07-31 | D20: 0.000857 | E20: 0.027154
B21: KRW 韓元 | C21: 2015-06-30 | D21: 0.000893 | E21: 0.027597
B22: KRW 韓元 | C22: 2015-05-29 | D22: 0.000898 | E22: 0.027718
B23: KRW 韓元 | C23: 2015-04-30 | D23: 0.000928 | E23: 0.028431
B24: KRW 韓元 | C24: 2015-03-31 | D24: 0.000902 | E24: 0.028188
B25: KRW 韓元 | C25: 2015-02-27 | D25: 0.000908 | E25: 0.028558
B26: KRW 韓元 | C26: 2015-01-30 | D26: 0.000907 | E26: 0.02877
B27: KRW 韓元 | C27: 2014-12-31 | D27: 0.000914 | E27: 0.028924
B28: KRW 韓元 | C28: 2014-11-28 | D28: 0.000898 | E28: 0.027847
B29: KRW 韓元 | C29: 2014-10-31 | D29: 0.000931 | E29: 0.028379
B30: KRW 韓元 | C30: 2014-09-30 | D30: 0.000948 | E30: 0.028847
